Workbook

Sheet ANA SAYFA
F5: =INDEX('bilgi girişi'!M1283:M1287,'bilgi girişi'!L1283,1) -> 3. Sınıf
F8: ='bilgi girişi'!M1299 -> F ŞUBESİ
E28: Not: Öncelikle Okul Bilgi Girişi sayfasından öğrenci bilgilerinin girilmesi gerekmektedir.
E29: Sayfalarda bulunan formullerin zarar görmemesi için sayfa korumalarını kaldırmamanız tavsiye olunur

Sheet BİLGİ GİRİŞ
B2: ÖĞRENCİ BİLGİLERİ GİRİŞ SAYFASI
E33: Not: Öncelikle Okul Bilgi Girişi sayfasından öğrenci bilgilerinin girilmesi gerekmektedir.

Sheet bilgi girişi
A1: S.NO | B1: OKUL NO | C1: ADI VE SOYADI | D1: Boy 1.Sınıf | E1: Kilo 1.Sınıf | F1: BEDEN - KİTLE İNDEKSİ | G1: OBEZİTE DURUMU | H1: YAŞI | I1: Doğum Tarihi | J1: Baba Mesleği | K1: Cinsiyeti
A2: ANA SINIFI A
A3: 1 | B3: ='ANA-A'!D9 -> 0 | C3: ='ANA-A'!G9 -> 0 | D3: ='ANA-A'!J9 -> 0 | E3: ='ANA-A'!K9 -> 0 | F3: ='ANA-A'!L9 ->  | G3: ='ANA-A'!M9 ->  | H3: ='ANA-A'!O9 ->  | I3: ='ANA-A'!H9 -> 00:00:00 | K3: ='ANA-A'!I9 -> 0 | O3: ÇOK ZAYIF | P3: =COUNTIF(G3:G42,O3) -> 0 | S3: 1 | T3: =COUNTIF(E3:E1071,S3) -> 0 | W3: 0 - 10 KG ARASI | Y3: =SUM(T3:T12) -> 0 | AA3: 80 | AB3: =COUNTIF($D$3:$D$1071,AA3) -> 0 | AE3: 80 - 90 CM ARASI | AG3: =SUM(AB3:AB12) -> 0 | AI3: 4 | AJ3: =COUNTIF($H$3:$H$1071,AI3) -> 0 | AL3: 4 YAŞ | AM3: =AJ3 -> 0
A4: 2 | B4: ='ANA-A'!D10 -> 0 | C4: ='ANA-A'!G10 -> 0 | D4: ='ANA-A'!J10 -> 0 | E4: ='ANA-A'!K10 -> 0 | F4: ='ANA-A'!L10 ->  | G4: ='ANA-A'!M10 ->  | H4: ='ANA-A'!O10 ->  | I4: ='ANA-A'!H10 -> 00:00:00 | K4: ='ANA-A'!I10 -> 0 | O4: ZAYIF | P4: =COUNTIF(G3:G42,O4) -> 0 | S4: 2 | T4: =COUNTIF(E3:E1071,S4) -> 0 | W4: 10 - 20 KG ARASI | Y4: =SUM(T13:T22) -> 59 | AA4: 81 | AB4: 0 | AE4: 90 - 100 CM ARASI | AG4: =SUM(AB13:AB22) -> 0 | AI4: 5 | AJ4: 0 | AL4: 5 YAŞ | AM4: =AJ4 -> 0
A5: 3 | B5: ='ANA-A'!D11 -> 0 | C5: ='ANA-A'!G11 -> 0 | D5: ='ANA-A'!J11 -> 0 | E5: ='ANA-A'!K11 -> 0 | F5: ='ANA-A'!L11 ->  | G5: ='ANA-A'!M11 ->  | H5: ='ANA-A'!O11 ->  | I5: ='ANA-A'!H11 -> 00:00:00 | K5: ='ANA-A'!I11 -> 0 | O5: NORMAL | P5: =COUNTIF(G3:G42,O5) -> 0 | S5: 3 | T5: =COUNTIF(E3:E1071,S5) -> 0 | W5: 20 - 30 KG ARASI | Y5: =SUM(T23:T32) -> 367 | AA5: 82 | AB5: 0 | AE5: 100 - 110 CM ARASI | AG5: =SUM(AB23:AB32) -> 5 | AI5: 6 | AJ5: 137 | AL5: 6 YAŞ | AM5: 137
A6: 4 | B6: ='ANA-A'!D12 -> 0 | C6: ='ANA-A'!G12 -> 0 | D6: ='ANA-A'!J12 -> 0 | E6: ='ANA-A'!K12 -> 0 | F6: ='ANA-A'!L12 ->  | G6: ='ANA-A'!M12 ->  | H6: ='ANA-A'!O12 ->  | I6: ='ANA-A'!H12 -> 00:00:00 | K6: ='ANA-A'!I12 -> 0 | O6: FAZLA KİLOLU | P6: =COUNTIF(G3:G42,O6) -> 0 | S6: 4 | T6: =COUNTIF(E3:E1071,S6) -> 0 | W6: 30 - 40 KG ARASI | Y6: =SUM(T33:T42) -> 167 | AA6: 83 | AB6: 0 | AE6: 110 - 120 CM ARASI | AG6: =SUM(AB33:AB42) -> 75 | AI6: 7 | AJ6: 179 | AL6: 7 YAŞ | AM6: 179
A7: 5 | B7: ='ANA-A'!D13 -> 0 | C7: ='ANA-A'!G13 -> 0 | D7: ='ANA-A'!J13 -> 0 | E7: ='ANA-A'!K13 -> 0 | F7: ='ANA-A'!L13 ->  | G7: ='ANA-A'!M13 ->  | H7: ='ANA-A'!O13 ->  | I7: ='ANA-A'!H13 -> 00:00:00 | K7: ='ANA-A'!I13 -> 0 | O7: OBEZ | P7: =COUNTIF(G3:G42,O7) -> 0 | S7: 5 | T7: =COUNTIF(E3:E1071,S7) -> 0 | W7: 40 - 50 KG ARASI | Y7: =SUM(T43:T52) -> 54 | AA7: 84 | AB7: 0 | AE7: 120 - 130 CMG ARASI | AG7: =SUM(AB43:AB52) -> 244 | AI7: 8 | AJ7: 175 | AL7: 8 YAŞ | AM7: 175
A8: 6 | B8: ='ANA-A'!D14 -> 0 | C8: ='ANA-A'!G14 -> 0 | D8: ='ANA-A'!J14 -> 0 | E8: ='ANA-A'!K14 -> 0 | F8: ='ANA-A'!L14 ->  | G8: ='ANA-A'!M14 ->  | H8: ='ANA-A'!O14 ->  | I8: ='ANA-A'!H14 -> 00:00:00 | K8: ='ANA-A'!I14 -> 0 | S8: 6 | T8: =COUNTIF(E3:E1071,S8) -> 0 | W8: 50 - 60 KG ARASI | Y8: =SUM(T53:T62) -> 14 | AA8: 85 | AB8: 0 | AE8: 130 - 140 CM ARASI | AG8: =SUM(AB53:AB62) -> 224 | AI8: 9 | AJ8: 160 | AL8: 9 YAŞ | AM8: 160
A9: 7 | B9: ='ANA-A'!D15 -> 0 | C9: ='ANA-A'!G15 -> 0 | D9: ='ANA-A'!J15 -> 0 | E9: ='ANA-A'!K15 -> 0 | F9: ='ANA-A'!L15 ->  | G9: ='ANA-A'!M15 ->  | H9: ='ANA-A'!O15 ->  | I9: ='ANA-A'!H15 -> 00:00:00 | K9: ='ANA-A'!I15 -> 0 | S9: 7 | T9: =COUNTIF(E3:E1071,S9) -> 0 | W9: 60 - 70 KG ARASI | Y9: =SUM(T63:T72) -> 4 | AA9: 86 | AB9: 0 | AE9: 140 - 150 CM ARASI | AG9: =SUM(AB63:AB72) -> 100 | AI9: 10 | AJ9: 28 | AL9: 10 YAŞ | AM9: 28
A10: 8 | B10: ='ANA-A'!D16 -> 0 | C10: ='ANA-A'!G16 -> 0 | D10: ='ANA-A'!J16 -> 0 | E10: ='ANA-A'!K16 -> 0 | F10: ='ANA-A'!L16 ->  | G10: ='ANA-A'!M16 ->  | H10: ='ANA-A'!O16 ->  | I10: ='ANA-A'!H16 -> 00:00:00 | K10: ='ANA-A'!I16 -> 0 | S10: 8 | T10: =COUNTIF(E3:E1071,S10) -> 0 | W10: 70 - 80 KG ARASI | Y10: =SUM(T73:T82) -> 1 | AA10: 87 | AB10: 0 | AE10: 150 - 160 CM ARASI | AG10: =SUM(AB73:AB82) -> 15 | AI10: 11 | AJ10: 4 | AL10: 11 YAŞ | AM10: 4
A11: 9 | B11: ='ANA-A'!D17 -> 0 | C11: ='ANA-A'!G17 -> 0 | D11: ='ANA-A'!J17 -> 0 | E11: ='ANA-A'!K17 -> 0 | F11: ='ANA-A'!L17 ->  | G11: ='ANA-A'!M17 ->  | H11: ='ANA-A'!O17 ->  | I11: ='ANA-A'!H17 -> 00:00:00 | K11: ='ANA-A'!I17 -> 0 | S11: 9 | T11: =COUNTIF(E3:E1071,S11) -> 0 | W11: 80 - 90 KG ARASI | Y11: =SUM(T83:T92) -> 0 | AA11: 88 | AB11: 0 | AI11: 12 | AJ11: 0 | AL11: 12 YAŞ | AM11: 0
A12: 10 | B12: ='ANA-A'!D18 -> 0 | C12: ='ANA-A'!G18 -> 0 | D12: ='ANA-A'!J18 -> 0 | E12: ='ANA-A'!K18 -> 0 | F12: ='ANA-A'!L18 ->  | G12: ='ANA-A'!M18 ->  | H12: ='ANA-A'!O18 ->  | I12: ='ANA-A'!H18 -> 00:00:00 | K12: ='ANA-A'!I18 -> 0 | S12: 10 | T12: =COUNTIF(E3:E1071,S12) -> 0 | W12: 90 - 100 KG ARASI | Y12: =SUM(T93:T102) -> 0 | AA12: 89 | AB12: 0 | AF12: TOPLAM | AG12: =SUM(AG3:AG10) -> 663 | AI12: 13 | AJ12: 0 | AL12: 13 YAŞ | AM12: 0
A13: 11 | B13: ='ANA-A'!D19 -> 0 | C13: ='ANA-A'!G19 -> 0 | D13: ='ANA-A'!J19 -> 0 | E13: ='ANA-A'!K19 -> 0 | F13: ='ANA-A'!L19 ->  | G13: ='ANA-A'!M19 ->  | H13: ='ANA-A'!O19 ->  | I13: ='ANA-A'!H19 -> 00:00:00 | K13: ='ANA-A'!I19 -> 0 | S13: 11 | T13: =COUNTIF(E3:E1071,S13) -> 0 | X13: TOPLAM | Y13: =SUM(Y3:Y12) -> 666 | AA13: 90 | AB13: 0 | AI13: 14 | AJ13: 0 | AL13: 14 YAŞ | AM13: 0
A14: 12 | B14: ='ANA-A'!D20 -> 0 | C14: ='ANA-A'!G20 -> 0 | D14: ='ANA-A'!J20 -> 0 | E14: ='ANA-A'!K20 -> 0 | F14: ='ANA-A'!L20 ->  | G14: ='ANA-A'!M20 ->  | H14: ='ANA-A'!O20 ->  | I14: ='ANA-A'!H20 -> 00:00:00 | K14: ='ANA-A'!I20 -> 0 | S14: 12 | T14: =COUNTIF($E$3:$E$1071,S14) -> 0 | AA14: 91 | AB14: 0 | AI14: 15 | AJ14: 0 | AL14: 15 YAŞ | AM14: 0
A15: 13 | B15: ='ANA-A'!D21 -> 0 | C15: ='ANA-A'!G21 -> 0 | D15: ='ANA-A'!J21 -> 0 | E15: ='ANA-A'!K21 -> 0 | F15: ='ANA-A'!L21 ->  | G15: ='ANA-A'!M21 ->  | H15: ='ANA-A'!O21 ->  | I15: ='ANA-A'!H21 -> 00:00:00 | K15: ='ANA-A'!I21 -> 0 | S15: 13 | T15: 0 | AA15: 92 | AB15: 0 | AI15: TOPLAM | AJ15: =SUM(AJ3:AJ14) -> 683 | AL15: TOPLAM | AM15: =SUM(AM3:AM14) -> 683
A16: 14 | B16: ='ANA-A'!D22 -> 0 | C16: ='ANA-A'!G22 -> 0 | D16: ='ANA-A'!J22 -> 0 | E16: ='ANA-A'!K22 -> 0 | F16: ='ANA-A'!L22 ->  | G16: ='ANA-A'!M22 ->  | H16: ='ANA-A'!O22 ->  | I16: ='ANA-A'!H22 -> 00:00:00 | K16: ='ANA-A'!I22 -> 0 | S16: 14 | T16: 0 | AA16: 93 | AB16: 0
A17: 15 | B17: ='ANA-A'!D23 -> 0 | C17: ='ANA-A'!G23 -> 0 | D17: ='ANA-A'!J23 -> 0 | E17: ='ANA-A'!K23 -> 0 | F17: ='ANA-A'!L23 ->  | G17: ='ANA-A'!M23 ->  | H17: ='ANA-A'!O23 ->  | I17: ='ANA-A'!H23 -> 00:00:00 | K17: ='ANA-A'!I23 -> 0 | S17: 15 | T17: 0 | AA17: 94 | AB17: 0
A18: 16 | B18: ='ANA-A'!D24 -> 0 | C18: ='ANA-A'!G24 -> 0 | D18: ='ANA-A'!J24 -> 0 | E18: ='ANA-A'!K24 -> 0 | F18: ='ANA-A'!L24 ->  | G18: ='ANA-A'!M24 ->  | H18: ='ANA-A'!O24 ->  | I18: ='ANA-A'!H24 -> 00:00:00 | K18: ='ANA-A'!I24 -> 0 | S18: 16 | T18: 2 | AA18: 95 | AB18: 0
A19: 17 | B19: ='ANA-A'!D25 -> 0 | C19: ='ANA-A'!G25 -> 0 | D19: ='ANA-A'!J25 -> 0 | E19: ='ANA-A'!K25 -> 0 | F19: ='ANA-A'!L25 ->  | G19: ='ANA-A'!M25 ->  | H19: ='ANA-A'!O25 ->  | I19: ='ANA-A'!H25 -> 00:00:00 | K19: ='ANA-A'!I25 -> 0 | S19: 17 | T19: 7 | AA19: 96 | AB19: 0
A20: 18 | B20: ='ANA-A'!D26 -> 0 | C20: ='ANA-A'!G26 -> 0 | D20: ='ANA-A'!J26 -> 0 | E20: ='ANA-A'!K26 -> 0 | F20: ='ANA-A'!L26 ->  | G20: ='ANA-A'!M26 ->  | H20: ='ANA-A'!O26 ->  | I20: ='ANA-A'!H26 -> 00:00:00 | K20: ='ANA-A'!I26 -> 0 | S20: 18 | T20: 7 | AA20: 97 | AB20: 0
A21: 19 | B21: ='ANA-A'!D27 -> 0 | C21: ='ANA-A'!G27 -> 0 | D21: ='ANA-A'!J27 -> 0 | E21: ='ANA-A'!K27 -> 0 | F21: ='ANA-A'!L27 ->  | G21: ='ANA-A'!M27 ->  | H21: ='ANA-A'!O27 ->  | I21: ='ANA-A'!H27 -> 00:00:00 | K21: ='ANA-A'!I27 -> 0 | S21: 19 | T21: 15 | AA21: 98 | AB21: 0
A22: 20 | B22: ='ANA-A'!D28 -> 0 | C22: ='ANA-A'!G28 -> 0 | D22: ='ANA-A'!J28 -> 0 | E22: ='ANA-A'!K28 -> 0 | F22: ='ANA-A'!L28 ->  | G22: ='ANA-A'!M28 ->  | H22: ='ANA-A'!O28 ->  | I22: ='ANA-A'!H28 -> 00:00:00 | K22: ='ANA-A'!I28 -> 0 | S22: 20 | T22: 28 | AA22: 99 | AB22: 0
A23: 21 | B23: ='ANA-A'!D29 -> 0 | C23: ='ANA-A'!G29 -> 0 | D23: ='ANA-A'!J29 -> 0 | E23: ='ANA-A'!K29 -> 0 | F23: ='ANA-A'!L29 ->  | G23: ='ANA-A'!M29 ->  | H23: ='ANA-A'!O29 ->  | I23: ='ANA-A'!H29 -> 00:00:00 | K23: ='ANA-A'!I29 -> 0 | S23: 21 | T23: 25 | AA23: 100 | AB23: 0
A24: 22 | B24: ='ANA-A'!D30 -> 0 | C24: ='ANA-A'!G30 -> 0 | D24: ='ANA-A'!J30 -> 0 | E24: ='ANA-A'!K30 -> 0 | F24: ='ANA-A'!L30 ->  | G24: ='ANA-A'!M30 ->  | H24: ='ANA-A'!O30 ->  | I24: ='ANA-A'!H30 -> 00:00:00 | K24: ='ANA-A'!I30 -> 0 | S24: 22 | T24: 33 | AA24: 101 | AB24: 0
A25: 23 | B25: ='ANA-A'!D31 -> 0 | C25: ='ANA-A'!G31 -> 0 | D25: ='ANA-A'!J31 -> 0 | E25: ='ANA-A'!K31 -> 0 | F25: ='ANA-A'!L31 ->  | G25: ='ANA-A'!M31 ->  | H25: ='ANA-A'!O31 ->  | I25: ='ANA-A'!H31 -> 00:00:00 | K25: ='ANA-A'!I31 -> 0 | S25: 23 | T25: 34 | AA25: 102 | AB25: 0
A26: 24 | B26: ='ANA-A'!D32 -> 0 | C26: ='ANA-A'!G32 -> 0 | D26: ='ANA-A'!J32 -> 0 | E26: ='ANA-A'!K32 -> 0 | F26: ='ANA-A'!L32 ->  | G26: ='ANA-A'!M32 ->  | H26: ='ANA-A'!O32 ->  | I26: ='ANA-A'!H32 -> 00:00:00 | K26: ='ANA-A'!I32 -> 0 | S26: 24 | T26: 34 | AA26: 103 | AB26: 0
A27: 25 | B27: ='ANA-A'!D33 -> 0 | C27: ='ANA-A'!G33 -> 0 | D27: ='ANA-A'!J33 -> 0 | E27: ='ANA-A'!K33 -> 0 | F27: ='ANA-A'!L33 ->  | G27: ='ANA-A'!M33 ->  | H27: ='ANA-A'!O33 ->  | I27: ='ANA-A'!H33 -> 00:00:00 | K27: ='ANA-A'!I33 -> 0 | S27: 25 | T27: 58 | AA27: 104 | AB27: 0
A28: 26 | B28: ='ANA-A'!D34 -> 0 | C28: ='ANA-A'!G34 -> 0 | D28: ='ANA-A'!J34 -> 0 | E28: ='ANA-A'!K34 -> 0 | F28: ='ANA-A'!L34 ->  | G28: ='ANA-A'!M34 ->  | H28: ='ANA-A'!O34 ->  | I28: ='ANA-A'!H34 -> 00:00:00 | K28: ='ANA-A'!I34 -> 0 | S28: 26 | T28: 39 | AA28: 105 | AB28: 1
A29: 27 | B29: ='ANA-A'!D35 -> 0 | C29: ='ANA-A'!G35 -> 0 | D29: ='ANA-A'!J35 -> 0 | E29: ='ANA-A'!K35 -> 0 | F29: ='ANA-A'!L35 ->  | G29: ='ANA-A'!M35 ->  | H29: ='ANA-A'!O35 ->  | I29: ='ANA-A'!H35 -> 00:00:00 | K29: ='ANA-A'!I35 -> 0 | S29: 27 | T29: 46 | AA29: 106 | AB29: 1
A30: 28 | B30: ='ANA-A'!D36 -> 0 | C30: ='ANA-A'!G36 -> 0 | D30: ='ANA-A'!J36 -> 0 | E30: ='ANA-A'!K36 -> 0 | F30: ='ANA-A'!L36 ->  | G30: ='ANA-A'!M36 ->  | H30: ='ANA-A'!O36 ->  | I30: ='ANA-A'!H36 -> 00:00:00 | K30: ='ANA-A'!I36 -> 0 | S30: 28 | T30: 38 | AA30: 107 | AB30: 0
A31: 29 | B31: ='ANA-A'!D37 -> 0 | C31: ='ANA-A'!G37 -> 0 | D31: ='ANA-A'!J37 -> 0 | E31: ='ANA-A'!K37 -> 0 | F31: ='ANA-A'!L37 ->  | G31: ='ANA-A'!M37 ->  | H31: ='ANA-A'!O37 ->  | I31: ='ANA-A'!H37 -> 00:00:00 | K31: ='ANA-A'!I37 -> 0 | S31: 29 | T31: 27 | AA31: 108 | AB31: 3
A32: 30 | B32: ='ANA-A'!D38 -> 0 | C32: ='ANA-A'!G38 -> 0 | D32: ='ANA-A'!J38 -> 0 | E32: ='ANA-A'!K38 -> 0 | F32: ='ANA-A'!L38 ->  | G32: ='ANA-A'!M38 ->  | H32: ='ANA-A'!O38 ->  | I32: ='ANA-A'!H38 -> 00:00:00 | K32: ='ANA-A'!I38 -> 0 | S32: 30 | T32: 33 | AA32: 109 | AB32: 0
A33: 31 | B33: ='ANA-A'!D39 -> 0 | C33: ='ANA-A'!G39 -> 0 | D33: ='ANA-A'!J39 -> 0 | E33: ='ANA-A'!K39 -> 0 | F33: ='ANA-A'!L39 ->  | G33: ='ANA-A'!M39 ->  | H33: ='ANA-A'!O39 ->  | I33: ='ANA-A'!H39 -> 00:00:00 | K33: ='ANA-A'!I39 -> 0 | S33: 31 | T33: 24 | AA33: 110 | AB33: 3
A34: 32 | B34: ='ANA-A'!D40 -> 0 | C34: ='ANA-A'!G40 -> 0 | D34: ='ANA-A'!J40 -> 0 | E34: ='ANA-A'!K40 -> 0 | F34: ='ANA-A'!L40 ->  | G34: ='ANA-A'!M40 ->  | H34: ='ANA-A'!O40 ->  | I34: ='ANA-A'!H40 -> 00:00:00 | K34: ='ANA-A'!I40 -> 0 | S34: 32 | T34: 31 | AA34: 111 | AB34: 1
A35: 33 | B35: ='ANA-A'!D41 -> 0 | C35: ='ANA-A'!G41 -> 0 | D35: ='ANA-A'!J41 -> 0 | E35: ='ANA-A'!K41 -> 0 | F35: ='ANA-A'!L41 ->  | G35: ='ANA-A'!M41 ->  | H35: ='ANA-A'!O41 ->  | I35: ='ANA-A'!H41 -> 00:00:00 | K35: ='ANA-A'!I41 -> 0 | S35: 33 | T35: 22 | AA35: 112 | AB35: =COUNTIF($D$3:$D$1071,AA35) -> 6
A36: 34 | B36: ='ANA-A'!D42 -> 0 | C36: ='ANA-A'!G42 -> 0 | D36: ='ANA-A'!J42 -> 0 | E36: ='ANA-A'!K42 -> 0 | F36: ='ANA-A'!L42 ->  | G36: ='ANA-A'!M42 ->  | H36: ='ANA-A'!O42 ->  | I36: ='ANA-A'!H42 -> 00:00:00 | K36: ='ANA-A'!I42 -> 0 | S36: 34 | T36: 19 | AA36: 113 | AB36: 6
A37: 35 | B37: ='ANA-A'!D43 -> 0 | C37: ='ANA-A'!G43 -> 0 | D37: ='ANA-A'!J43 -> 0 | E37: ='ANA-A'!K43 -> 0 | F37: ='ANA-A'!L43 ->  | G37: ='ANA-A'!M43 ->  | H37: ='ANA-A'!O43 ->  | I37: ='ANA-A'!H43 -> 00:00:00 | K37: ='ANA-A'!I43 -> 0 | S37: 35 | T37: 16 | AA37: 114 | AB37: 3
A38: 36 | B38: ='ANA-A'!D44 -> 0 | C38: ='ANA-A'!G44 -> 0 | D38: ='ANA-A'!J44 -> 0 | E38: ='ANA-A'!K44 -> 0 | F38: ='ANA-A'!L44 ->  | G38: ='ANA-A'!M44 ->  | H38: ='ANA-A'!O44 ->  | I38: ='ANA-A'!H44 -> 00:00:00 | K38: ='ANA-A'!I44 -> 0 | S38: 36 | T38: 17 | AA38: 115 | AB38: 14
A39: 37 | B39: ='ANA-A'!D45 -> 0 | C39: ='ANA-A'!G45 -> 0 | D39: ='ANA-A'!J45 -> 0 | E39: ='ANA-A'!K45 -> 0 | F39: ='ANA-A'!L45 ->  | G39: ='ANA-A'!M45 ->  | H39: ='ANA-A'!O45 ->  | I39: ='ANA-A'!H45 -> 00:00:00 | K39: ='ANA-A'!I45 -> 0 | S39: 37 | T39: 8 | AA39: 116 | AB39: 9
A40: 38 | B40: ='ANA-A'!D46 -> 0 | C40: ='ANA-A'!G46 -> 0 | D40: ='ANA-A'!J46 -> 0 | E40: ='ANA-A'!K46 -> 0 | F40: ='ANA-A'!L46 ->  | G40: ='ANA-A'!M46 ->  | H40: ='ANA-A'!O46 ->  | I40: ='ANA-A'!H46 -> 00:00:00 | K40: ='ANA-A'!I46 -> 0 | S40: 38 | T40: 16 | AA40: 117 | AB40: 12
A41: 39 | B41: ='ANA-A'!D47 -> 0 | C41: ='ANA-A'!G47 -> 0 | D41: ='ANA-A'!J47 -> 0 | E41: ='ANA-A'!K47 -> 0 | F41: ='ANA-A'!L47 ->  | G41: ='ANA-A'!M47 ->  | H41: ='ANA-A'!O47 ->  | I41: ='ANA-A'!H47 -> 00:00:00 | K41: ='ANA-A'!I47 -> 0 | S41: 39 | T41: 6 | AA41: 118 | AB41: 13
A42: 40 | B42: ='ANA-A'!D48 -> 0 | C42: ='ANA-A'!G48 -> 0 | D42: ='ANA-A'!J48 -> 0 | E42: ='ANA-A'!K48 -> 0 | F42: ='ANA-A'!L48 ->  | G42: ='ANA-A'!M48 ->  | H42: ='ANA-A'!O48 ->  | I42: ='ANA-A'!H48 -> 00:00:00 | K42: ='ANA-A'!I48 -> 0 | S42: 40 | T42: 8 | AA42: 119 | AB42: 8
A43: ANA SINIFI B | S43: 41 | T43: 7 | AA43: 120 | AB43: 28
A44: 1 | B44: ='ANA-B'!D9 -> 0 | C44: ='ANA-B'!G9 -> 0 | D44: ='ANA-B'!J9 -> 0 | E44: ='ANA-B'!K9 -> 0 | F44: ='ANA-B'!L9 ->  | G44: ='ANA-B'!M9 ->  | H44: ='ANA-B'!O9 ->  | I44: ='ANA-B'!H9 -> 00:00:00 | K44: ='ANA-B'!I9 -> 0 | O44: ÇOK ZAYIF | P44: =COUNTIF(G44:G83,O44) -> 0 | S44: 42 | T44: 7 | AA44: 121 | AB44: 13
A45: 2 | B45: ='ANA-B'!D10 -> 0 | C45: ='ANA-B'!G10 -> 0 | D45: ='ANA-B'!J10 -> 0 | E45: ='ANA-B'!K10 -> 0 | F45: ='ANA-B'!L10 ->  | G45: ='ANA-B'!M10 ->  | H45: ='ANA-B'!O10 ->  | I45: ='ANA-B'!H10 -> 00:00:00 | K45: ='ANA-B'!I10 -> 0 | O45: ZAYIF | P45: =COUNTIF(G44:G83,O45) -> 0 | S45: 43 | T45: 6 | AA45: 122 | AB45: 15
A46: 3 | B46: ='ANA-B'!D11 -> 0 | C46: ='ANA-B'!G11 -> 0 | D46: ='ANA-B'!J11 -> 0 | E46: ='ANA-B'!K11 -> 0 | F46: ='ANA-B'!L11 ->  | G46: ='ANA-B'!M11 ->  | H46: ='ANA-B'!O11 ->  | I46: ='ANA-B'!H11 -> 00:00:00 | K46: ='ANA-B'!I11 -> 0 | O46: NORMAL | P46: =COUNTIF(G44:G83,O46) -> 0 | S46: 44 | T46: =COUNTIF($E$3:$E$1071,S46) -> 2 | AA46: 123 | AB46: 11
A47: 4 | B47: ='ANA-B'!D12 -> 0 | C47: ='ANA-B'!G12 -> 0 | D47: ='ANA-B'!J12 -> 0 | E47: ='ANA-B'!K12 -> 0 | F47: ='ANA-B'!L12 ->  | G47: ='ANA-B'!M12 ->  | H47: ='ANA-B'!O12 ->  | I47: ='ANA-B'!H12 -> 00:00:00 | K47: ='ANA-B'!I12 -> 0 | O47: FAZLA KİLOLU | P47: =COUNTIF(G44:G83,O47) -> 0 | S47: 45 | T47: 10 | AA47: 124 | AB47: 32
A48: 5 | B48: ='ANA-B'!D13 -> 0 | C48: ='ANA-B'!G13 -> 0 | D48: ='ANA-B'!J13 -> 0 | E48: ='ANA-B'!K13 -> 0 | F48: ='ANA-B'!L13 ->  | G48: ='ANA-B'!M13 ->  | H48: ='ANA-B'!O13 ->  | I48: ='ANA-B'!H13 -> 00:00:00 | K48: ='ANA-B'!I13 -> 0 | O48: OBEZ | P48: =COUNTIF(G44:G83,O48) -> 0 | S48: 46 | T48: 8 | AA48: 125 | AB48: 52
A49: 6 | B49: ='ANA-B'!D14 -> 0 | C49: ='ANA-B'!G14 -> 0 | D49: ='ANA-B'!J14 -> 0 | E49: ='ANA-B'!K14 -> 0 | F49: ='ANA-B'!L14 ->  | G49: ='ANA-B'!M14 ->  | H49: ='ANA-B'!O14 ->  | I49: ='ANA-B'!H14 -> 00:00:00 | K49: ='ANA-B'!I14 -> 0 | S49: 47 | T49: 0 | AA49: 126 | AB49: 22
A50: 7 | B50: ='ANA-B'!D15 -> 0 | C50: ='ANA-B'!G15 -> 0 | D50: ='ANA-B'!J15 -> 0 | E50: ='ANA-B'!K15 -> 0 | F50: ='ANA-B'!L15 ->  | G50: ='ANA-B'!M15 ->  | H50: ='ANA-B'!O15 ->  | I50: ='ANA-B'!H15 -> 00:00:00 | K50: ='ANA-B'!I15 -> 0 | S50: 48 | T50: 3 | AA50: 127 | AB50: 22
A51: 8 | B51: ='ANA-B'!D16 -> 0 | C51: ='ANA-B'!G16 -> 0 | D51: ='ANA-B'!J16 -> 0 | E51: ='ANA-B'!K16 -> 0 | F51: ='ANA-B'!L16 ->  | G51: ='ANA-B'!M16 ->  | H51: ='ANA-B'!O16 ->  | I51: ='ANA-B'!H16 -> 00:00:00 | K51: ='ANA-B'!I16 -> 0 | S51: 49 | T51: 7 | AA51: 128 | AB51: 27
A52: 9 | B52: ='ANA-B'!D17 -> 0 | C52: ='ANA-B'!G17 -> 0 | D52: ='ANA-B'!J17 -> 0 | E52: ='ANA-B'!K17 -> 0 | F52: ='ANA-B'!L17 ->  | G52: ='ANA-B'!M17 ->  | H52: ='ANA-B'!O17 ->  | I52: ='ANA-B'!H17 -> 00:00:00 | K52: ='ANA-B'!I17 -> 0 | S52: 50 | T52: 4 | AA52: 129 | AB52: 22
A53: 10 | B53: ='ANA-B'!D18 -> 0 | C53: ='ANA-B'!G18 -> 0 | D53: ='ANA-B'!J18 -> 0 | E53: ='ANA-B'!K18 -> 0 | F53: ='ANA-B'!L18 ->  | G53: ='ANA-B'!M18 ->  | H53: ='ANA-B'!O18 ->  | I53: ='ANA-B'!H18 -> 00:00:00 | K53: ='ANA-B'!I18 -> 0 | S53: 51 | T53: 2 | AA53: 130 | AB53: 39
A54: 11 | B54: ='ANA-B'!D19 -> 0 | C54: ='ANA-B'!G19 -> 0 | D54: ='ANA-B'!J19 -> 0 | E54: ='ANA-B'!K19 -> 0 | F54: ='ANA-B'!L19 ->  | G54: ='ANA-B'!M19 ->  | H54: ='ANA-B'!O19 ->  | I54: ='ANA-B'!H19 -> 00:00:00 | K54: ='ANA-B'!I19 -> 0 | S54: 52 | T54: 1 | AA54: 131 | AB54: 19
A55: 12 | B55: ='ANA-B'!D20 -> 0 | C55: ='ANA-B'!G20 -> 0 | D55: ='ANA-B'!J20 -> 0 | E55: ='ANA-B'!K20 -> 0 | F55: ='ANA-B'!L20 ->  | G55: ='ANA-B'!M20 ->  | H55: ='ANA-B'!O20 ->  | I55: ='ANA-B'!H20 -> 00:00:00 | K55: ='ANA-B'!I20 -> 0 | S55: 53 | T55: 0 | AA55: 132 | AB55: 17
A56: 13 | B56: ='ANA-B'!D21 -> 0 | C56: ='ANA-B'!G21 -> 0 | D56: ='ANA-B'!J21 -> 0 | E56: ='ANA-B'!K21 -> 0 | F56: ='ANA-B'!L21 ->  | G56: ='ANA-B'!M21 ->  | H56: ='ANA-B'!O21 ->  | I56: ='ANA-B'!H21 -> 00:00:00 | K56: ='ANA-B'!I21 -> 0 | S56: 54 | T56: 2 | AA56: 133 | AB56: 21
A57: 14 | B57: ='ANA-B'!D22 -> 0 | C57: ='ANA-B'!G22 -> 0 | D57: ='ANA-B'!J22 -> 0 | E57: ='ANA-B'!K22 -> 0 | F57: ='ANA-B'!L22 ->  | G57: ='ANA-B'!M22 ->  | H57: ='ANA-B'!O22 ->  | I57: ='ANA-B'!H22 -> 00:00:00 | K57: ='ANA-B'!I22 -> 0 | S57: 55 | T57: 1 | AA57: 134 | AB57: 24
A58: 15 | B58: ='ANA-B'!D23 -> 0 | C58: ='ANA-B'!G23 -> 0 | D58: ='ANA-B'!J23 -> 0 | E58: ='ANA-B'!K23 -> 0 | F58: ='ANA-B'!L23 ->  | G58: ='ANA-B'!M23 ->  | H58: ='ANA-B'!O23 ->  | I58: ='ANA-B'!H23 -> 00:00:00 | K58: ='ANA-B'!I23 -> 0 | S58: 56 | T58: 3 | AA58: 135 | AB58: 32
A59: 16 | B59: ='ANA-B'!D24 -> 0 | C59: ='ANA-B'!G24 -> 0 | D59: ='ANA-B'!J24 -> 0 | E59: ='ANA-B'!K24 -> 0 | F59: ='ANA-B'!L24 ->  | G59: ='ANA-B'!M24 ->  | H59: ='ANA-B'!O24 ->  | I59: ='ANA-B'!H24 -> 00:00:00 | K59: ='ANA-B'!I24 -> 0 | S59: 57 | T59: 0 | AA59: 136 | AB59: 24
A60: 17 | B60: ='ANA-B'!D25 -> 0 | C60: ='ANA-B'!G25 -> 0 | D60: ='ANA-B'!J25 -> 0 | E60: ='ANA-B'!K25 -> 0 | F60: ='ANA-B'!L25 ->  | G60: ='ANA-B'!M25 ->  | H60: ='ANA-B'!O25 ->  | I60: ='ANA-B'!H25 -> 00:00:00 | K60: ='ANA-B'!I25 -> 0 | S60: 58 | T60: 1 | AA60: 137 | AB60: 13
A61: 18 | B61: ='ANA-B'!D26 -> 0 | C61: ='ANA-B'!G26 -> 0 | D61: ='ANA-B'!J26 -> 0 | E61: ='ANA-B'!K26 -> 0 | F61: ='ANA-B'!L26 ->  | G61: ='ANA-B'!M26 ->  | H61: ='ANA-B'!O26 ->  | I61: ='ANA-B'!H26 -> 00:00:00 | K61: ='ANA-B'!I26 -> 0 | S61: 59 | T61: 4 | AA61: 138 | AB61: 20
A62: 19 | B62: ='ANA-B'!D27 -> 0 | C62: ='ANA-B'!G27 -> 0 | D62: ='ANA-B'!J27 -> 0 | E62: ='ANA-B'!K27 -> 0 | F62: ='ANA-B'!L27 ->  | G62: ='ANA-B'!M27 ->  | H62: ='ANA-B'!O27 ->  | I62: ='ANA-B'!H27 -> 00:00:00 | K62: ='ANA-B'!I27 -> 0 | S62: 60 | T62: 0 | AA62: 139 | AB62: 15
A63: 20 | B63: ='ANA-B'!D28 -> 0 | C63: ='ANA-B'!G28 -> 0 | D63: ='ANA-B'!J28 -> 0 | E63: ='ANA-B'!K28 -> 0 | F63: ='ANA-B'!L28 ->  | G63: ='ANA-B'!M28 ->  | H63: ='ANA-B'!O28 ->  | I63: ='ANA-B'!H28 -> 00:00:00 | K63: ='ANA-B'!I28 -> 0 | S63: 61 | T63: 1 | AA63: 140 | AB63: 26
A64: 21 | B64: ='ANA-B'!D29 -> 0 | C64: ='ANA-B'!G29 -> 0 | D64: ='ANA-B'!J29 -> 0 | E64: ='ANA-B'!K29 -> 0 | F64: ='ANA-B'!L29 ->  | G64: ='ANA-B'!M29 ->  | H64: ='ANA-B'!O29 ->  | I64: ='ANA-B'!H29 -> 00:00:00 | K64: ='ANA-B'!I29 -> 0 | S64: 62 | T64: 0 | AA64: 141 | AB64: 11
A65: 22 | B65: ='ANA-B'!D30 -> 0 | C65: ='ANA-B'!G30 -> 0 | D65: ='ANA-B'!J30 -> 0 | E65: ='ANA-B'!K30 -> 0 | F65: ='ANA-B'!L30 ->  | G65: ='ANA-B'!M30 ->  | H65: ='ANA-B'!O30 ->  | I65: ='ANA-B'!H30 -> 00:00:00 | K65: ='ANA-B'!I30 -> 0 | S65: 63 | T65: 1 | AA65: 142 | AB65: 13
A66: 23 | B66: ='ANA-B'!D31 -> 0 | C66: ='ANA-B'!G31 -> 0 | D66: ='ANA-B'!J31 -> 0 | E66: ='ANA-B'!K31 -> 0 | F66: ='ANA-B'!L31 ->  | G66: ='ANA-B'!M31 ->  | H66: ='ANA-B'!O31 ->  | I66: ='ANA-B'!H31 -> 00:00:00 | K66: ='ANA-B'!I31 -> 0 | S66: 64 | T66: 0 | AA66: 143 | AB66: 13
A67: 24 | B67: ='ANA-B'!D32 -> 0 | C67: ='ANA-B'!G32 -> 0 | D67: ='ANA-B'!J32 -> 0 | E67: ='ANA-B'!K32 -> 0 | F67: ='ANA-B'!L32 ->  | G67: ='ANA-B'!M32 ->  | H67: ='ANA-B'!O32 ->  | I67: ='ANA-B'!H32 -> 00:00:00 | K67: ='ANA-B'!I32 -> 0 | S67: 65 | T67: 0 | AA67: 144 | AB67: =COUNTIF($D$3:$D$1071,AA67) -> 10
A68: 25 | B68: ='ANA-B'!D33 -> 0 | C68: ='ANA-B'!G33 -> 0 | D68: ='ANA-B'!J33 -> 0 | E68: ='ANA-B'!K33 -> 0 | F68: ='ANA-B'!L33 ->  | G68: ='ANA-B'!M33 ->  | H68: ='ANA-B'!O33 ->  | I68: ='ANA-B'!H33 -> 00:00:00 | K68: ='ANA-B'!I33 -> 0 | S68: 66 | T68: 1 | AA68: 145 | AB68: 9
A69: 26 | B69: ='ANA-B'!D34 -> 0 | C69: ='ANA-B'!G34 -> 0 | D69: ='ANA-B'!J34 -> 0 | E69: ='ANA-B'!K34 -> 0 | F69: ='ANA-B'!L34 ->  | G69: ='ANA-B'!M34 ->  | H69: ='ANA-B'!O34 ->  | I69: ='ANA-B'!H34 -> 00:00:00 | K69: ='ANA-B'!I34 -> 0 | S69: 67 | T69: 0 | AA69: 146 | AB69: 8
A70: 27 | B70: ='ANA-B'!D35 -> 0 | C70: ='ANA-B'!G35 -> 0 | D70: ='ANA-B'!J35 -> 0 | E70: ='ANA-B'!K35 -> 0 | F70: ='ANA-B'!L35 ->  | G70: ='ANA-B'!M35 ->  | H70: ='ANA-B'!O35 ->  | I70: ='ANA-B'!H35 -> 00:00:00 | K70: ='ANA-B'!I35 -> 0 | S70: 68 | T70: 0 | AA70: 147 | AB70: 5
A71: 28 | B71: ='ANA-B'!D36 -> 0 | C71: ='ANA-B'!G36 -> 0 | D71: ='ANA-B'!J36 -> 0 | E71: ='ANA-B'!K36 -> 0 | F71: ='ANA-B'!L36 ->  | G71: ='ANA-B'!M36 ->  | H71: ='ANA-B'!O36 ->  | I71: ='ANA-B'!H36 -> 00:00:00 | K71: ='ANA-B'!I36 -> 0 | S71: 69 | T71: 0 | AA71: 148 | AB71: 2
A72: 29 | B72: ='ANA-B'!D37 -> 0 | C72: ='ANA-B'!G37 -> 0 | D72: ='ANA-B'!J37 -> 0 | E72: ='ANA-B'!K37 -> 0 | F72: ='ANA-B'!L37 ->  | G72: ='ANA-B'!M37 ->  | H72: ='ANA-B'!O37 ->  | I72: ='ANA-B'!H37 -> 00:00:00 | K72: ='ANA-B'!I37 -> 0 | S72: 70 | T72: 1 | AA72: 149 | AB72: 3
A73: 30 | B73: ='ANA-B'!D38 -> 0 | C73: ='ANA-B'!G38 -> 0 | D73: ='ANA-B'!J38 -> 0 | E73: ='ANA-B'!K38 -> 0 | F73: ='ANA-B'!L38 ->  | G73: ='ANA-B'!M38 ->  | H73: ='ANA-B'!O38 ->  | I73: ='ANA-B'!H38 -> 00:00:00 | K73: ='ANA-B'!I38 -> 0 | S73: 71 | T73: 0 | AA73: 150 | AB73: 8
A74: 31 | B74: ='ANA-B'!D39 -> 0 | C74: ='ANA-B'!G39 -> 0 | D74: ='ANA-B'!J39 -> 0 | E74: ='ANA-B'!K39 -> 0 | F74: ='ANA-B'!L39 ->  | G74: ='ANA-B'!M39 ->  | H74: ='ANA-B'!O39 ->  | I74: ='ANA-B'!H39 -> 00:00:00 | K74: ='ANA-B'!I39 -> 0 | S74: 72 | T74: 0 | AA74: 151 | AB74: 2
A75: 32 | B75: ='ANA-B'!D40 -> 0 | C75: ='ANA-B'!G40 -> 0 | D75: ='ANA-B'!J40 -> 0 | E75: ='ANA-B'!K40 -> 0 | F75: ='ANA-B'!L40 ->  | G75: ='ANA-B'!M40 ->  | H75: ='ANA-B'!O40 ->  | I75: ='ANA-B'!H40 -> 00:00:00 | K75: ='ANA-B'!I40 -> 0 | S75: 73 | T75: 0 | AA75: 152 | AB75: 2
A76: 33 | B76: ='ANA-B'!D41 -> 0 | C76: ='ANA-B'!G41 -> 0 | D76: ='ANA-B'!J41 -> 0 | E76: ='ANA-B'!K41 -> 0 | F76: ='ANA-B'!L41 ->  | G76: ='ANA-B'!M41 ->  | H76: ='ANA-B'!O41 ->  | I76: ='ANA-B'!H41 -> 00:00:00 | K76: ='ANA-B'!I41 -> 0 | S76: 74 | T76: 0 | AA76: 153 | AB76: 1
A77: 34 | B77: ='ANA-B'!D42 -> 0 | C77: ='ANA-B'!G42 -> 0 | D77: ='ANA-B'!J42 -> 0 | E77: ='ANA-B'!K42 -> 0 | F77: ='ANA-B'!L42 ->  | G77: ='ANA-B'!M42 ->  | H77: ='ANA-B'!O42 ->  | I77: ='ANA-B'!H42 -> 00:00:00 | K77: ='ANA-B'!I42 -> 0 | S77: 75 | T77: 0 | AA77: 154 | AB77: 1
A78: 35 | B78: ='ANA-B'!D43 -> 0 | C78: ='ANA-B'!G43 -> 0 | D78: ='ANA-B'!J43 -> 0 | E78: ='ANA-B'!K43 -> 0 | F78: ='ANA-B'!L43 ->  | G78: ='ANA-B'!M43 ->  | H78: ='ANA-B'!O43 ->  | I78: ='ANA-B'!H43 -> 00:00:00 | K78: ='ANA-B'!I43 -> 0 | S78: 76 | T78: =COUNTIF($E$3:$E$1071,S78) -> 0 | AA78: 155 | AB78: 0
A79: 36 | B79: ='ANA-B'!D44 -> 0 | C79: ='ANA-B'!G44 -> 0 | D79: ='ANA-B'!J44 -> 0 | E79: ='ANA-B'!K44 -> 0 | F79: ='ANA-B'!L44 ->  | G79: ='ANA-B'!M44 ->  | H79: ='ANA-B'!O44 ->  | I79: ='ANA-B'!H44 -> 00:00:00 | K79: ='ANA-B'!I44 -> 0 | S79: 77 | T79: 0 | AA79: 156 | AB79: 0
A80: 37 | B80: ='ANA-B'!D45 -> 0 | C80: ='ANA-B'!G45 -> 0 | D80: ='ANA-B'!J45 -> 0 | E80: ='ANA-B'!K45 -> 0 | F80: ='ANA-B'!L45 ->  | G80: ='ANA-B'!M45 ->  | H80: ='ANA-B'!O45 ->  | I80: ='ANA-B'!H45 -> 00:00:00 | K80: ='ANA-B'!I45 -> 0 | S80: 78 | T80: 1 | AA80: 157 | AB80: 0
A81: 38 | B81: ='ANA-B'!D46 -> 0 | C81: ='ANA-B'!G46 -> 0 | D81: ='ANA-B'!J46 -> 0 | E81: ='ANA-B'!K46 -> 0 | F81: ='ANA-B'!L46 ->  | G81: ='ANA-B'!M46 ->  | H81: ='ANA-B'!O46 ->  | I81: ='ANA-B'!H46 -> 00:00:00 | K81: ='ANA-B'!I46 -> 0 | S81: 79 | T81: 0 | AA81: 158 | AB81: 1
A82: 39 | B82: ='ANA-B'!D47 -> 0 | C82: ='ANA-B'!G47 -> 0 | D82: ='ANA-B'!J47 -> 0 | E82: ='ANA-B'!K47 -> 0 | F82: ='ANA-B'!L47 ->  | G82: ='ANA-B'!M47 ->  | H82: ='ANA-B'!O47 ->  | I82: ='ANA-B'!H47 -> 00:00:00 | K82: ='ANA-B'!I47 -> 0 | S82: 80 | T82: 0 | AA82: 159 | AB82: 0
A83: 40 | B83: ='ANA-B'!D48 -> 0 | C83: ='ANA-B'!G48 -> 0 | D83: ='ANA-B'!J48 -> 0 | E83: ='ANA-B'!K48 -> 0 | F83: ='ANA-B'!L48 ->  | G83: ='ANA-B'!M48 ->  | H83: ='ANA-B'!O48 ->  | I83: ='ANA-B'!H48 -> 00:00:00 | K83: ='ANA-B'!I48 -> 0 | S83: 81 | T83: 0 | AA83: 160 | AB83: 2
A84: 1 / A | S84: 82 | T84: 0 | AA84: TOPLAM | AB84: =SUM(AB3:AB83) -> 665
A85: 1 | B85: ='1-A'!D9 -> 140 | C85: ='1-A'!G9 -> MEHMET SELÇUK KAHRAMAN | D85: ='1-A'!J9 -> 125 | E85: ='1-A'!K9 -> 25 | F85: ='1-A'!L9 -> 16 | G85: ='1-A'!M9 -> NORMAL | H85: ='1-A'!O9 -> 7 | I85: ='1-A'!H9 -> 2016-09-13 | K85: ='1-A'!I9 -> E | O85: ÇOK ZAYIF | P85: =COUNTIF(G85:G124,O85) -> 5 | S85: 83 | T85: 0
A86: 2 | B86: ='1-A'!D10 -> 300 | C86: ='1-A'!G10 -> BİLGE AKKURT | D86: ='1-A'!J10 -> 116 | E86: ='1-A'!K10 -> 25 | F86: ='1-A'!L10 -> 18.58 | G86: ='1-A'!M10 -> FAZLA KİLOLU | H86: ='1-A'!O10 -> 7 | I86: ='1-A'!H10 -> 2016-12-28 | K86: ='1-A'!I10 -> K | O86: ZAYIF | P86: =COUNTIF(G85:G124,O86) -> 0 | S86: 84 | T86: 0
A87: 3 | B87: ='1-A'!D11 -> 523 | C87: ='1-A'!G11 -> ASAF ŞERİF DÜLGER | D87: ='1-A'!J11 -> 116 | E87: ='1-A'!K11 -> 21 | F87: ='1-A'!L11 -> 15.61 | G87: ='1-A'!M11 -> NORMAL | H87: ='1-A'!O11 -> 6 | I87: ='1-A'!H11 -> 2017-08-14 | K87: ='1-A'!I11 -> E | O87: NORMAL | P87: =COUNTIF(G85:G124,O87) -> 16 | S87: 85 | T87: 0
A88: 4 | B88: ='1-A'!D12 -> 576 | C88: ='1-A'!G12 -> AYŞE BERRA CAN | D88: ='1-A'!J12 -> 120 | E88: ='1-A'!K12 -> 18 | F88: ='1-A'!L12 -> 12.5 | G88: ='1-A'!M12 -> ÇOK ZAYIF | H88: ='1-A'!O12 -> 6 | I88: ='1-A'!H12 -> 2017-01-24 | K88: ='1-A'!I12 -> K | O88: FAZLA KİLOLU | P88: =COUNTIF(G85:G124,O88) -> 3 | S88: 86 | T88: 0
A89: 5 | B89: ='1-A'!D13 -> 671 | C89: ='1-A'!G13 -> BATIN EMRE HALİL | D89: ='1-A'!J13 -> 118 | E89: ='1-A'!K13 -> 21 | F89: ='1-A'!L13 -> 15.08 | G89: ='1-A'!M13 -> NORMAL | H89: ='1-A'!O13 -> 6 | I89: ='1-A'!H13 -> 2017-05-06 | K89: ='1-A'!I13 -> E | O89: OBEZ | P89: =COUNTIF(G85:G124,O89) -> 7 | S89: 87 | T89: 0
A90: 6 | B90: ='1-A'!D14 -> 674 | C90: ='1-A'!G14 -> BERİL ZEHRA SARITAŞ | D90: ='1-A'!J14 -> 122 | E90: ='1-A'!K14 -> 24 | F90: ='1-A'!L14 -> 16.12 | G90: ='1-A'!M14 -> NORMAL | H90: ='1-A'!O14 -> 6 | I90: ='1-A'!H14 -> 2017-05-21 | K90: ='1-A'!I14 -> K | S90: 88 | T90: 0
A91: 7 | B91: ='1-A'!D15 -> 678 | C91: ='1-A'!G15 -> BULUT ÇEVİK | D91: ='1-A'!J15 -> 115 | E91: ='1-A'!K15 -> 33 | F91: ='1-A'!L15 -> 24.95 | G91: ='1-A'!M15 -> OBEZ | H91: ='1-A'!O15 -> 6 | I91: ='1-A'!H15 -> 2017-08-10 | K91: ='1-A'!I15 -> E | S91: 89 | T91: 0
A92: 8 | B92: ='1-A'!D16 -> 685 | C92: ='1-A'!G16 -> DENİZ ALİ GÜNDÜZ | D92: ='1-A'!J16 -> 117 | E92: ='1-A'!K16 -> 24 | F92: ='1-A'!L16 -> 17.53 | G92: ='1-A'!M16 -> FAZLA KİLOLU | H92: ='1-A'!O16 -> 6 | I92: ='1-A'!H16 -> 2017-12-07 | K92: ='1-A'!I16 -> E | S92: 90 | T92: 0
A93: 9 | B93: ='1-A'!D17 -> 722 | C93: ='1-A'!G17 -> VİSEM NECİM | D93: ='1-A'!J17 -> 124 | E93: ='1-A'!K17 -> 24 | F93: ='1-A'!L17 -> 15.61 | G93: ='1-A'!M17 -> NORMAL | H93: ='1-A'!O17 -> 7 | I93: ='1-A'!H17 -> 2016-04-21 | K93: ='1-A'!I17 -> E | S93: 91 | T93: 0
A94: 10 | B94: ='1-A'!D18 -> 723 | C94: ='1-A'!G18 -> HACI POYRAZ ABANOZ | D94: ='1-A'!J18 -> 125 | E94: ='1-A'!K18 -> 25 | F94: ='1-A'!L18 -> 16 | G94: ='1-A'!M18 -> NORMAL | H94: ='1-A'!O18 -> 6 | I94: ='1-A'!H18 -> 2017-10-20 | K94: ='1-A'!I18 -> E | S94: 92 | T94: 0
A95: 11 | B95: ='1-A'!D19 -> 725 | C95: ='1-A'!G19 -> HAVVANUR TİRYAKİ | D95: ='1-A'!J19 -> 124 | E95: ='1-A'!K19 -> 22 | F95: ='1-A'!L19 -> 14.31 | G95: ='1-A'!M19 -> NORMAL | H95: ='1-A'!O19 -> 6 | I95: ='1-A'!H19 -> 2017-02-18 | K95: ='1-A'!I19 -> K | S95: 93 | T95: 0
A96: 12 | B96: ='1-A'!D20 -> 727 | C96: ='1-A'!G20 -> HİLAL TOBUZ | D96: ='1-A'!J20 -> 125 | E96: ='1-A'!K20 -> 35 | F96: ='1-A'!L20 -> 22.4 | G96: ='1-A'!M20 -> OBEZ | H96: ='1-A'!O20 -> 7 | I96: ='1-A'!H20 -> 2017-01-05 | K96: ='1-A'!I20 -> K | S96: 94 | T96: 0
A97: 13 | B97: ='1-A'!D21 -> 733 | C97: ='1-A'!G21 -> İBRAHİM ALPER ÇETİN | D97: ='1-A'!J21 -> 125 | E97: ='1-A'!K21 -> 35 | F97: ='1-A'!L21 -> 22.4 | G97: ='1-A'!M21 -> OBEZ | H97: ='1-A'!O21 -> 6 | I97: ='1-A'!H21 -> 2017-08-28 | K97: ='1-A'!I21 -> E | S97: 95 | T97: 0
A98: 14 | B98: ='1-A'!D22 -> 740 | C98: ='1-A'!G22 -> KUZEY UYAR | D98: ='1-A'!J22 -> 125 | E98: ='1-A'!K22 -> 25 | F98: ='1-A'!L22 -> 16 | G98: ='1-A'!M22 -> NORMAL | H98: ='1-A'!O22 -> 6 | I98: ='1-A'!H22 -> 2017-05-11 | K98: ='1-A'!I22 -> E | S98: 96 | T98: 0
A99: 15 | B99: ='1-A'!D23 -> 749 | C99: ='1-A'!G23 -> MEHMET ENİS ÇİN | D99: ='1-A'!J23 -> 113 | E99: ='1-A'!K23 -> 19 | F99: ='1-A'!L23 -> 14.88 | G99: ='1-A'!M23 -> NORMAL | H99: ='1-A'!O23 -> 6 | I99: ='1-A'!H23 -> 2017-08-19 | K99: ='1-A'!I23 -> E | S99: 97 | T99: 0
A100: 16 | B100: ='1-A'!D24 -> 761 | C100: ='1-A'!G24 -> MİHRİBAN NAZ KARAMAN | D100: ='1-A'!J24 -> 113 | E100: ='1-A'!K24 -> 25 | F100: ='1-A'!L24 -> 19.58 | G100: ='1-A'!M24 -> OBEZ | H100: ='1-A'!O24 -> 6 | I100: ='1-A'!H24 -> 2017-03-09 | K100: ='1-A'!I24 -> K | S100: 98 | T100: 0
A101: 17 | B101: ='1-A'!D25 -> 762 | C101: ='1-A'!G25 -> MİRANUR FİLİZFİDANOĞLU | D101: ='1-A'!J25 -> 121 | E101: ='1-A'!K25 -> 24 | F101: ='1-A'!L25 -> 16.39 | G101: ='1-A'!M25 -> NORMAL | H101: ='1-A'!O25 -> 6 | I101: ='1-A'!H25 -> 2017-09-05 | K101: ='1-A'!I25 -> K | S101: 99 | T101: 0
A102: 18 | B102: ='1-A'!D26 -> 771 | C102: ='1-A'!G26 -> NAZ ÇAKIRCA | D102: ='1-A'!J26 -> 125 | E102: ='1-A'!K26 -> 35 | F102: ='1-A'!L26 -> 22.4 | G102: ='1-A'!M26 -> OBEZ | H102: ='1-A'!O26 -> 7 | I102: ='1-A'!H26 -> 2016-10-27 | K102: ='1-A'!I26 -> K | S102: 100 | T102: 0
A103: 19 | B103: ='1-A'!D27 -> 781 | C103: ='1-A'!G27 -> ÖMER ARAS ÇAKIR | D103: ='1-A'!J27 -> 118 | E103: ='1-A'!K27 -> 24 | F103: ='1-A'!L27 -> 17.24 | G103: ='1-A'!M27 -> FAZLA KİLOLU | H103: ='1-A'!O27 -> 6 | I103: ='1-A'!H27 -> 2017-09-28 | K103: ='1-A'!I27 -> E | S103: TOPLAM | T103: =SUM(T3:T102) -> 666
A104: 20 | B104: ='1-A'!D28 -> 786 | C104: ='1-A'!G28 -> ÖMER EFE ALBAYRAK | D104: ='1-A'!J28 -> 126 | E104: ='1-A'!K28 -> 19 | F104: ='1-A'!L28 -> 11.97 | G104: ='1-A'!M28 -> ÇOK ZAYIF | H104: ='1-A'!O28 -> 6 | I104: ='1-A'!H28 -> 2017-03-10 | K104: ='1-A'!I28 -> E
A105: 21 | B105: ='1-A'!D29 -> 799 | C105: ='1-A'!G29 -> SEYİD HAMZA MALKOÇ | D105: ='1-A'!J29 -> 117 | E105: ='1-A'!K29 -> 21 | F105: ='1-A'!L29 -> 15.34 | G105: ='1-A'!M29 -> NORMAL | H105: ='1-A'!O29 -> 6 | I105: ='1-A'!H29 -> 2017-04-25 | K105: ='1-A'!I29 -> E
A106: 22 | B106: ='1-A'!D30 -> 801 | C106: ='1-A'!G30 -> TALHA ARMAN | D106: ='1-A'!J30 -> 117 | E106: ='1-A'!K30 -> 21 | F106: ='1-A'!L30 -> 15.34 | G106: ='1-A'!M30 -> NORMAL | H106: ='1-A'!O30 -> 6 | I106: ='1-A'!H30 -> 2017-10-26 | K106: ='1-A'!I30 -> E
A107: 23 | B107: ='1-A'!D31 -> 805 | C107: ='1-A'!G31 -> YADE NUR KÜÇÜK | D107: ='1-A'!J31 -> 125 | E107: ='1-A'!K31 -> 33 | F107: ='1-A'!L31 -> 21.12 | G107: ='1-A'!M31 -> OBEZ | H107: ='1-A'!O31 -> 6 | I107: ='1-A'!H31 -> 2017-11-11 | K107: ='1-A'!I31 -> K
A108: 24 | B108: ='1-A'!D32 -> 808 | C108: ='1-A'!G32 -> YASEMİN BIYIKLI | D108: ='1-A'!J32 -> 120 | E108: ='1-A'!K32 -> 22 | F108: ='1-A'!L32 -> 15.28 | G108: ='1-A'!M32 -> NORMAL | H108: ='1-A'!O32 -> 7 | I108: ='1-A'!H32 -> 2017-01-15 | K108: ='1-A'!I32 -> K
A109: 25 | B109: ='1-A'!D33 -> 824 | C109: ='1-A'!G33 -> CENE EL MAZHUR | D109: ='1-A'!J33 -> 110 | E109: ='1-A'!K33 -> 17 | F109: ='1-A'!L33 -> 14.05 | G109: ='1-A'!M33 -> NORMAL | H109: ='1-A'!O33 -> 6 | I109: ='1-A'!H33 -> 2017-04-07 | K109: ='1-A'!I33 -> K
A110: 26 | B110: ='1-A'!D34 -> 825 | C110: ='1-A'!G34 -> ŞEHİD KURAYNIS | D110: ='1-A'!J34 -> 0 | E110: ='1-A'!K34 -> 0 | F110: ='1-A'!L34 ->  | G110: ='1-A'!M34 ->  | H110: ='1-A'!O34 -> 6 | I110: ='1-A'!H34 -> 2017-12-16 | K110: ='1-A'!I34 -> K
A111: 27 | B111: ='1-A'!D35 -> 830 | C111: ='1-A'!G35 -> ZEYNEP EFLİN ALTINKAYNAK | D111: ='1-A'!J35 -> 125 | E111: ='1-A'!K35 -> 38 | F111: ='1-A'!L35 -> 24.32 | G111: ='1-A'!M35 -> OBEZ | H111: ='1-A'!O35 -> 6 | I111: ='1-A'!H35 -> 2017-02-16 | K111: ='1-A'!I35 -> K
A112: 28 | B112: ='1-A'!D36 -> 833 | C112: ='1-A'!G36 -> MUHAMMED NUR ARANDES | D112: ='1-A'!J36 -> 120 | E112: ='1-A'!K36 -> 24 | F112: ='1-A'!L36 -> 16.67 | G112: ='1-A'!M36 -> NORMAL | H112: ='1-A'!O36 -> 6 | I112: ='1-A'!H36 -> 2017-02-02 | K112: ='1-A'!I36 -> E
A113: 29 | B113: ='1-A'!D37 -> 836 | C113: ='1-A'!G37 -> ZEYNEP MİHRA YAVUZYİĞİT | D113: ='1-A'!J37 -> 118 | E113: ='1-A'!K37 -> 18 | F113: ='1-A'!L37 -> 12.93 | G113: ='1-A'!M37 -> ÇOK ZAYIF | H113: ='1-A'!O37 -> 7 | I113: ='1-A'!H37 -> 2016-11-21 | K113: ='1-A'!I37 -> K
A114: 30 | B114: ='1-A'!D38 -> 856 | C114: ='1-A'!G38 -> ALİ DEMİR BAKİ | D114: ='1-A'!J38 -> 126 | E114: ='1-A'!K38 -> 21 | F114: ='1-A'!L38 -> 13.23 | G114: ='1-A'!M38 -> ÇOK ZAYIF | H114: ='1-A'!O38 -> 7 | I114: ='1-A'!H38 -> 2016-12-21 | K114: ='1-A'!I38 -> E
A115: 31 | B115: ='1-A'!D39 -> 858 | C115: ='1-A'!G39 -> DEFNE SU BAKİ | D115: ='1-A'!J39 -> 123 | E115: ='1-A'!K39 -> 19 | F115: ='1-A'!L39 -> 12.56 | G115: ='1-A'!M39 -> ÇOK ZAYIF | H115: ='1-A'!O39 -> 7 | I115: ='1-A'!H39 -> 2016-12-21 | K115: ='1-A'!I39 -> K
A116: 32 | B116: ='1-A'!D40 -> 897 | C116: ='1-A'!G40 -> ZEYNEP ERYILMAZ | D116: ='1-A'!J40 -> 117 | E116: ='1-A'!K40 -> 21 | F116: ='1-A'!L40 -> 15.34 | G116: ='1-A'!M40 -> NORMAL | H116: ='1-A'!O40 -> 7 | I116: ='1-A'!H40 -> 2017-01-09 | K116: ='1-A'!I40 -> K
A117: 33 | B117: ='1-A'!D41 -> 0 | C117: ='1-A'!G41 -> 0 | D117: ='1-A'!J41 -> 0 | E117: ='1-A'!K41 -> 0 | F117: ='1-A'!L41 ->  | G117: ='1-A'!M41 ->  | H117: ='1-A'!O41 ->  | I117: ='1-A'!H41 -> 00:00:00 | K117: ='1-A'!I41 -> 0
A118: 34 | B118: ='1-A'!D42 -> 0 | C118: ='1-A'!G42 -> 0 | D118: ='1-A'!J42 -> 0 | E118: ='1-A'!K42 -> 0 | F118: ='1-A'!L42 ->  | G118: ='1-A'!M42 ->  | H118: ='1-A'!O42 ->  | I118: ='1-A'!H42 -> 00:00:00 | K118: ='1-A'!I42 -> 0
A119: 35 | B119: ='1-A'!D43 -> 0 | C119: ='1-A'!G43 -> 0 | D119: ='1-A'!J43 -> 0 | E119: ='1-A'!K43 -> 0 | F119: ='1-A'!L43 ->  | G119: ='1-A'!M43 ->  | H119: ='1-A'!O43 ->  | I119: ='1-A'!H43 -> 00:00:00 | K119: ='1-A'!I43 -> 0
A120: 36 | B120: ='1-A'!D44 -> 0 | C120: ='1-A'!G44 -> 0 | D120: ='1-A'!J44 -> 0 | E120: ='1-A'!K44 -> 0 | F120: ='1-A'!L44 ->  | G120: ='1-A'!M44 ->  | H120: ='1-A'!O44 ->  | I120: ='1-A'!H44 -> 00:00:00 | K120: ='1-A'!I44 -> 0
A121: 37 | B121: ='1-A'!D45 -> 0 | C121: ='1-A'!G45 -> 0 | D121: ='1-A'!J45 -> 0 | E121: ='1-A'!K45 -> 0 | F121: ='1-A'!L45 ->  | G121: ='1-A'!M45 ->  | H121: ='1-A'!O45 ->  | I121: ='1-A'!H45 -> 00:00:00 | K121: ='1-A'!I45 -> 0
A122: 38 | B122: ='1-A'!D46 -> 0 | C122: ='1-A'!G46 -> 0 | D122: ='1-A'!J46 -> 0 | E122: ='1-A'!K46 -> 0 | F122: ='1-A'!L46 ->  | G122: ='1-A'!M46 ->  | H122: ='1-A'!O46 ->  | I122: ='1-A'!H46 -> 00:00:00 | K122: ='1-A'!I46 -> 0
A123: 39 | B123: ='1-A'!D47 -> 0 | C123: ='1-A'!G47 -> 0 | D123: ='1-A'!J47 -> 0 | E123: ='1-A'!K47 -> 0 | F123: ='1-A'!L47 ->  | G123: ='1-A'!M47 ->  | H123: ='1-A'!O47 ->  | I123: ='1-A'!H47 -> 00:00:00 | K123: ='1-A'!I47 -> 0
A124: 40 | B124: ='1-A'!D48 -> 0 | C124: ='1-A'!G48 -> 0 | D124: ='1-A'!J48 -> 0 | E124: ='1-A'!K48 -> 0 | F124: ='1-A'!L48 ->  | G124: ='1-A'!M48 ->  | H124: ='1-A'!O48 ->  | I124: ='1-A'!H48 -> 00:00:00 | K124: ='1-A'!I48 -> 0
A125: 1 / B
A126: 1 | B126: ='1-B'!D9 -> 46 | C126: ='1-B'!G9 -> HİRANUR DURDU | D126: ='1-B'!J9 -> 121 | E126: ='1-B'!K9 -> 24 | F126: ='1-B'!L9 -> 16.39 | G126: ='1-B'!M9 -> NORMAL | H126: ='1-B'!O9 -> 7 | I126: ='1-B'!H9 -> 2016-08-08 | K126: ='1-B'!I9 -> K | O126: ÇOK ZAYIF | P126: =COUNTIF(G126:G165,O126) -> 1
A127: 2 | B127: ='1-B'!D10 -> 129 | C127: ='1-B'!G10 -> CENNET ALMOHAMAD ALKADRO | D127: ='1-B'!J10 -> 0 | E127: ='1-B'!K10 -> 0 | F127: ='1-B'!L10 ->  | G127: ='1-B'!M10 ->  | H127: ='1-B'!O10 -> 7 | I127: ='1-B'!H10 -> 2016-09-21 | K127: ='1-B'!I10 -> K | O127: ZAYIF | P127: =COUNTIF(G126:G165,O127) -> 0
A128: 3 | B128: ='1-B'!D11 -> 201 | C128: ='1-B'!G11 -> MİRAY HAVVA DEMİRCİ | D128: ='1-B'!J11 -> 117 | E128: ='1-B'!K11 -> 17 | F128: ='1-B'!L11 -> 12.42 | G128: ='1-B'!M11 -> ÇOK ZAYIF | H128: ='1-B'!O11 -> 7 | I128: ='1-B'!H11 -> 2016-07-11 | K128: ='1-B'!I11 -> K | O128: NORMAL | P128: =COUNTIF(G126:G165,O128) -> 13
A129: 4 | B129: ='1-B'!D12 -> 259 | C129: ='1-B'!G12 -> BAHOZ BERİTAN ŞEN | D129: ='1-B'!J12 -> 118 | E129: ='1-B'!K12 -> 20 | F129: ='1-B'!L12 -> 14.36 | G129: ='1-B'!M12 -> NORMAL | H129: ='1-B'!O12 -> 7 | I129: ='1-B'!H12 -> 2016-07-28 | K129: ='1-B'!I12 -> E | O129: FAZLA KİLOLU | P129: =COUNTIF(G126:G165,O129) -> 9
A130: 5 | B130: ='1-B'!D13 -> 371 | C130: ='1-B'!G13 -> ABDULLAH YİĞİT ZOROĞLU | D130: ='1-B'!J13 -> 120 | E130: ='1-B'!K13 -> 28 | F130: ='1-B'!L13 -> 19.44 | G130: ='1-B'!M13 -> OBEZ | H130: ='1-B'!O13 -> 6 | I130: ='1-B'!H13 -> 2017-09-12 | K130: ='1-B'!I13 -> E | O130: OBEZ | P130: =COUNTIF(G126:G165,O130) -> 5
A131: 6 | B131: ='1-B'!D14 -> 474 | C131: ='1-B'!G14 -> ALPARSLAN ÖZDEMİROĞLU | D131: ='1-B'!J14 -> 110 | E131: ='1-B'!K14 -> 18 | F131: ='1-B'!L14 -> 14.88 | G131: ='1-B'!M14 -> NORMAL | H131: ='1-B'!O14 -> 6 | I131: ='1-B'!H14 -> 2017-09-29 | K131: ='1-B'!I14 -> E | P131: =COUNTIF(G126:G165,O131) -> 0
A132: 7 | B132: ='1-B'!D15 -> 668 | C132: ='1-B'!G15 -> AZRAF KEREM YAVUZ | D132: ='1-B'!J15 -> 0 | E132: ='1-B'!K15 -> 0 | F132: ='1-B'!L15 ->  | G132: ='1-B'!M15 ->  | H132: ='1-B'!O15 -> 6 | I132: ='1-B'!H15 -> 2017-09-05 | K132: ='1-B'!I15 -> E
A133: 8 | B133: ='1-B'!D16 -> 673 | C133: ='1-B'!G16 -> BERAY ÖZKAHYAOĞLU | D133: ='1-B'!J16 -> 118 | E133: ='1-B'!K16 -> 24 | F133: ='1-B'!L16 -> 17.24 | G133: ='1-B'!M16 -> FAZLA KİLOLU | H133: ='1-B'!O16 -> 6 | I133: ='1-B'!H16 -> 2017-08-18 | K133: ='1-B'!I16 -> K
A134: 9 | B134: ='1-B'!D17 -> 690 | C134: ='1-B'!G17 -> DURU ASLINUR UZUN | D134: ='1-B'!J17 -> 116 | E134: ='1-B'!K17 -> 22 | F134: ='1-B'!L17 -> 16.35 | G134: ='1-B'!M17 -> NORMAL | H134: ='1-B'!O17 -> 7 | I134: ='1-B'!H17 -> 2016-11-27 | K134: ='1-B'!I17 -> K
A135: 10 | B135: ='1-B'!D18 -> 701 | C135: ='1-B'!G18 -> EMRE LEVENT | D135: ='1-B'!J18 -> 115 | E135: ='1-B'!K18 -> 24 | F135: ='1-B'!L18 -> 18.15 | G135: ='1-B'!M18 -> FAZLA KİLOLU | H135: ='1-B'!O18 -> 6 | I135: ='1-B'!H18 -> 2017-06-07 | K135: ='1-B'!I18 -> E
A136: 11 | B136: ='1-B'!D19 -> 705 | C136: ='1-B'!G19 -> ERVA NUR MEMİÇOĞLU | D136: ='1-B'!J19 -> 120 | E136: ='1-B'!K19 -> 22 | F136: ='1-B'!L19 -> 15.28 | G136: ='1-B'!M19 -> NORMAL | H136: ='1-B'!O19 -> 7 | I136: ='1-B'!H19 -> 2016-11-07 | K136: ='1-B'!I19 -> K
A137: 12 | B137: ='1-B'!D20 -> 714 | C137: ='1-B'!G20 -> EYMEN TAVLI | D137: ='1-B'!J20 -> 115 | E137: ='1-B'!K20 -> 22 | F137: ='1-B'!L20 -> 16.64 | G137: ='1-B'!M20 -> NORMAL | H137: ='1-B'!O20 -> 6 | I137: ='1-B'!H20 -> 2017-06-10 | K137: ='1-B'!I20 -> E
A138: 13 | B138: ='1-B'!D21 -> 716 | C138: ='1-B'!G21 -> EZGİ BİR | D138: ='1-B'!J21 -> 115 | E138: ='1-B'!K21 -> 19 | F138: ='1-B'!L21 -> 14.37 | G138: ='1-B'!M21 -> NORMAL | H138: ='1-B'!O21 -> 6 | I138: ='1-B'!H21 -> 2017-11-20 | K138: ='1-B'!I21 -> K
A139: 14 | B139: ='1-B'!D22 -> 719 | C139: ='1-B'!G22 -> FEYZAN AYDOĞAN | D139: ='1-B'!J22 -> 120 | E139: ='1-B'!K22 -> 24 | F139: ='1-B'!L22 -> 16.67 | G139: ='1-B'!M22 -> NORMAL | H139: ='1-B'!O22 -> 7 | I139: ='1-B'!H22 -> 2016-11-02 | K139: ='1-B'!I22 -> K
A140: 15 | B140: ='1-B'!D23 -> 741 | C140: ='1-B'!G23 -> MALİK AFFAN ADIBELLİ | D140: ='1-B'!J23 -> 128 | E140: ='1-B'!K23 -> 29 | F140: ='1-B'!L23 -> 17.7 | G140: ='1-B'!M23 -> FAZLA KİLOLU | H140: ='1-B'!O23 -> 7 | I140: ='1-B'!H23 -> 2017-01-18 | K140: ='1-B'!I23 -> E
A141: 16 | B141: ='1-B'!D24 -> 752 | C141: ='1-B'!G24 -> MEHMETHAN KURT | D141: ='1-B'!J24 -> 125 | E141: ='1-B'!K24 -> 25 | F141: ='1-B'!L24 -> 16 | G141: ='1-B'!M24 -> NORMAL | H141: ='1-B'!O24 -> 6 | I141: ='1-B'!H24 -> 2017-10-21 | K141: ='1-B'!I24 -> E
A142: 17 | B142: ='1-B'!D25 -> 766 | C142: ='1-B'!G25 -> MUHAMMET SAMİR ŞEN | D142: ='1-B'!J25 -> 125 | E142: ='1-B'!K25 -> 28 | F142: ='1-B'!L25 -> 17.92 | G142: ='1-B'!M25 -> FAZLA KİLOLU | H142: ='1-B'!O25 -> 7 | I142: ='1-B'!H25 -> 2016-11-17 | K142: ='1-B'!I25 -> E
A143: 18 | B143: ='1-B'!D26 -> 776 | C143: ='1-B'!G26 -> NİSANUR YİĞİT | D143: ='1-B'!J26 -> 126 | E143: ='1-B'!K26 -> 29 | F143: ='1-B'!L26 -> 18.27 | G143: ='1-B'!M26 -> FAZLA KİLOLU | H143: ='1-B'!O26 -> 6 | I143: ='1-B'!H26 -> 2017-05-09 | K143: ='1-B'!I26 -> K
A144: 19 | B144: ='1-B'!D27 -> 793 | C144: ='1-B'!G27 -> RAVZA HATİCE HIRAÇ | D144: ='1-B'!J27 -> 135 | E144: ='1-B'!K27 -> 42 | F144: ='1-B'!L27 -> 23.05 | G144: ='1-B'!M27 -> OBEZ | H144: ='1-B'!O27 -> 6 | I144: ='1-B'!H27 -> 2017-02-24 | K144: ='1-B'!I27 -> K
A145: 20 | B145: ='1-B'!D28 -> 809 | C145: ='1-B'!G28 -> YAVUZ SELİM TOPÇU | D145: ='1-B'!J28 -> 128 | E145: ='1-B'!K28 -> 38 | F145: ='1-B'!L28 -> 23.19 | G145: ='1-B'!M28 -> OBEZ | H145: ='1-B'!O28 -> 6 | I145: ='1-B'!H28 -> 2017-11-01 | K145: ='1-B'!I28 -> E
A146: 21 | B146: ='1-B'!D29 -> 811 | C146: ='1-B'!G29 -> YUSUF ASAF HAŞMENOĞLU | D146: ='1-B'!J29 -> 121 | E146: ='1-B'!K29 -> 23 | F146: ='1-B'!L29 -> 15.71 | G146: ='1-B'!M29 -> NORMAL | H146: ='1-B'!O29 -> 6 | I146: ='1-B'!H29 -> 2017-02-24 | K146: ='1-B'!I29 -> E
A147: 22 | B147: ='1-B'!D30 -> 819 | C147: ='1-B'!G30 -> ENES ALDOUKHOL | D147: ='1-B'!J30 -> 123 | E147: ='1-B'!K30 -> 27 | F147: ='1-B'!L30 -> 17.85 | G147: ='1-B'!M30 -> FAZLA KİLOLU | H147: ='1-B'!O30 -> 7 | I147: ='1-B'!H30 -> 2016-11-03 | K147: ='1-B'!I30 -> E
A148: 23 | B148: ='1-B'!D31 -> 829 | C148: ='1-B'!G31 -> BANA ALDURUBİ | D148: ='1-B'!J31 -> 115 | E148: ='1-B'!K31 -> 19 | F148: ='1-B'!L31 -> 14.37 | G148: ='1-B'!M31 -> NORMAL | H148: ='1-B'!O31 -> 6 | I148: ='1-B'!H31 -> 2017-04-04 | K148: ='1-B'!I31 -> K
A149: 24 | B149: ='1-B'!D32 -> 831 | C149: ='1-B'!G32 -> ZEHRA GÖKÇE TATAR | D149: ='1-B'!J32 -> 113 | E149: ='1-B'!K32 -> 23 | F149: ='1-B'!L32 -> 18.01 | G149: ='1-B'!M32 -> FAZLA KİLOLU | H149: ='1-B'!O32 -> 6 | I149: ='1-B'!H32 -> 2017-09-15 | K149: ='1-B'!I32 -> K
A150: 25 | B150: ='1-B'!D33 -> 846 | C150: ='1-B'!G33 -> AYSİMA ZEYNEP KAYA | D150: ='1-B'!J33 -> 121 | E150: ='1-B'!K33 -> 23 | F150: ='1-B'!L33 -> 15.71 | G150: ='1-B'!M33 -> NORMAL | H150: ='1-B'!O33 -> 6 | I150: ='1-B'!H33 -> 2017-11-27 | K150: ='1-B'!I33 -> K
A151: 26 | B151: ='1-B'!D34 -> 848 | C151: ='1-B'!G34 -> OBEYDE ALDURUBİ | D151: ='1-B'!J34 -> 118 | E151: ='1-B'!K34 -> 24 | F151: ='1-B'!L34 -> 17.24 | G151: ='1-B'!M34 -> FAZLA KİLOLU | H151: ='1-B'!O34 -> 6 | I151: ='1-B'!H34 -> 2017-06-13 | K151: ='1-B'!I34 -> E
A152: 27 | B152: ='1-B'!D35 -> 860 | C152: ='1-B'!G35 -> SELİM KORKMAZ | D152: ='1-B'!J35 -> 121 | E152: ='1-B'!K35 -> 24 | F152: ='1-B'!L35 -> 16.39 | G152: ='1-B'!M35 -> NORMAL | H152: ='1-B'!O35 -> 6 | I152: ='1-B'!H35 -> 2017-09-12 | K152: ='1-B'!I35 -> E
A153: 28 | B153: ='1-B'!D36 -> 865 | C153: ='1-B'!G36 -> AYSİMA TUBA DERİBAŞ | D153: ='1-B'!J36 -> 117 | E153: ='1-B'!K36 -> 25 | F153: ='1-B'!L36 -> 18.26 | G153: ='1-B'!M36 -> FAZLA KİLOLU | H153: ='1-B'!O36 -> 6 | I153: ='1-B'!H36 -> 2017-01-23 | K153: ='1-B'!I36 -> K
A154: 29 | B154: ='1-B'!D37 -> 867 | C154: ='1-B'!G37 -> ÖMER ALİ SAĞIR | D154: ='1-B'!J37 -> 116 | E154: ='1-B'!K37 -> 27 | F154: ='1-B'!L37 -> 20.07 | G154: ='1-B'!M37 -> OBEZ | H154: ='1-B'!O37 -> 6 | I154: ='1-B'!H37 -> 2017-09-13 | K154: ='1-B'!I37 -> E
A155: 30 | B155: ='1-B'!D38 -> 882 | C155: ='1-B'!G38 -> BİLAL UMUT ODABAŞ | D155: ='1-B'!J38 -> 106 | E155: ='1-B'!K38 -> 23 | F155: ='1-B'!L38 -> 20.47 | G155: ='1-B'!M38 -> OBEZ | H155: ='1-B'!O38 -> 6 | I155: ='1-B'!H38 -> 2017-11-28 | K155: ='1-B'!I38 -> E
A156: 31 | B156: ='1-B'!D39 -> 0 | C156: ='1-B'!G39 -> 0 | D156: ='1-B'!J39 -> 0 | E156: ='1-B'!K39 -> 0 | F156: ='1-B'!L39 ->  | G156: ='1-B'!M39 ->  | H156: ='1-B'!O39 ->  | I156: ='1-B'!H39 -> 00:00:00 | K156: ='1-B'!I39 -> 0
A157: 32 | B157: ='1-B'!D40 -> 0 | C157: ='1-B'!G40 -> 0 | D157: ='1-B'!J40 -> 0 | E157: ='1-B'!K40 -> 0 | F157: ='1-B'!L40 ->  | G157: ='1-B'!M40 ->  | H157: ='1-B'!O40 ->  | I157: ='1-B'!H40 -> 00:00:00 | K157: ='1-B'!I40 -> 0
A158: 33 | B158: ='1-B'!D41 -> 0 | C158: ='1-B'!G41 -> 0 | D158: ='1-B'!J41 -> 0 | E158: ='1-B'!K41 -> 0 | F158: ='1-B'!L41 ->  | G158: ='1-B'!M41 ->  | H158: ='1-B'!O41 ->  | I158: ='1-B'!H41 -> 00:00:00 | K158: ='1-B'!I41 -> 0
A159: 34 | B159: ='1-B'!D42 -> 0 | C159: ='1-B'!G42 -> 0 | D159: ='1-B'!J42 -> 0 | E159: ='1-B'!K42 -> 0 | F159: ='1-B'!L42 ->  | G159: ='1-B'!M42 ->  | H159: ='1-B'!O42 ->  | I159: ='1-B'!H42 -> 00:00:00 | K159: ='1-B'!I42 -> 0
A160: 35 | B160: ='1-B'!D43 -> 0 | C160: ='1-B'!G43 -> 0 | D160: ='1-B'!J43 -> 0 | E160: ='1-B'!K43 -> 0 | F160: ='1-B'!L43 ->  | G160: ='1-B'!M43 ->  | H160: ='1-B'!O43 ->  | I160: ='1-B'!H43 -> 00:00:00 | K160: ='1-B'!I43 -> 0
A161: 36 | B161: ='1-B'!D44 -> 0 | C161: ='1-B'!G44 -> 0 | D161: ='1-B'!J44 -> 0 | E161: ='1-B'!K44 -> 0 | F161: ='1-B'!L44 ->  | G161: ='1-B'!M44 ->  | H161: ='1-B'!O44 ->  | I161: ='1-B'!H44 -> 00:00:00 | K161: ='1-B'!I44 -> 0
A162: 37 | B162: ='1-B'!D45 -> 0 | C162: ='1-B'!G45 -> 0 | D162: ='1-B'!J45 -> 0 | E162: ='1-B'!K45 -> 0 | F162: ='1-B'!L45 ->  | G162: ='1-B'!M45 ->  | H162: ='1-B'!O45 ->  | I162: ='1-B'!H45 -> 00:00:00 | K162: ='1-B'!I45 -> 0
A163: 38 | B163: ='1-B'!D46 -> 0 | C163: ='1-B'!G46 -> 0 | D163: ='1-B'!J46 -> 0 | E163: ='1-B'!K46 -> 0 | F163: ='1-B'!L46 ->  | G163: ='1-B'!M46 ->  | H163: ='1-B'!O46 ->  | I163: ='1-B'!H46 -> 00:00:00 | K163: ='1-B'!I46 -> 0
A164: 39 | B164: ='1-B'!D47 -> 0 | C164: ='1-B'!G47 -> 0 | D164: ='1-B'!J47 -> 0 | E164: ='1-B'!K47 -> 0 | F164: ='1-B'!L47 ->  | G164: ='1-B'!M47 ->  | H164: ='1-B'!O47 ->  | I164: ='1-B'!H47 -> 00:00:00 | K164: ='1-B'!I47 -> 0
A165: 40 | B165: ='1-B'!D48 -> 0 | C165: ='1-B'!G48 -> 0 | D165: ='1-B'!J48 -> 0 | E165: ='1-B'!K48 -> 0 | F165: ='1-B'!L48 ->  | G165: ='1-B'!M48 ->  | H165: ='1-B'!O48 ->  | I165: ='1-B'!H48 -> 00:00:00 | K165: ='1-B'!I48 -> 0
A166: 1 / C
A167: 1 | B167: ='1-C'!D9 -> 2 | C167: ='1-C'!G9 -> AYŞE HAFSA ÖZTÜRK | D167: ='1-C'!J9 -> 122 | E167: ='1-C'!K9 -> 27 | F167: ='1-C'!L9 -> 18.14 | G167: ='1-C'!M9 -> FAZLA KİLOLU | H167: ='1-C'!O9 -> 6 | I167: ='1-C'!H9 -> 2017-01-27 | K167: ='1-C'!I9 -> K | O167: ÇOK ZAYIF | P167: =COUNTIF(G167:G206,O167) -> 4
A168: 2 | B168: ='1-C'!D10 -> 143 | C168: ='1-C'!G10 -> RİM AL SÜLEYMAN | D168: ='1-C'!J10 -> 0 | E168: ='1-C'!K10 -> 0 | F168: ='1-C'!L10 ->  | G168: ='1-C'!M10 ->  | H168: ='1-C'!O10 -> 10 | I168: ='1-C'!H10 -> 2014-01-01 | K168: ='1-C'!I10 -> K | O168: ZAYIF | P168: =COUNTIF(G167:G206,O168) -> 1
A169: 3 | B169: ='1-C'!D11 -> 194 | C169: ='1-C'!G11 -> YAHYA SHIKHO | D169: ='1-C'!J11 -> 122 | E169: ='1-C'!K11 -> 25 | F169: ='1-C'!L11 -> 16.8 | G169: ='1-C'!M11 -> NORMAL | H169: ='1-C'!O11 -> 7 | I169: ='1-C'!H11 -> 2016-01-30 | K169: ='1-C'!I11 -> E | O169: NORMAL | P169: =COUNTIF(G167:G206,O169) -> 13
A170: 4 | B170: ='1-C'!D12 -> 203 | C170: ='1-C'!G12 -> ZEHRA AKSU | D170: ='1-C'!J12 -> 127 | E170: ='1-C'!K12 -> 32 | F170: ='1-C'!L12 -> 19.84 | G170: ='1-C'!M12 -> OBEZ | H170: ='1-C'!O12 -> 6 | I170: ='1-C'!H12 -> 2017-02-03 | K170: ='1-C'!I12 -> K | O170: FAZLA KİLOLU | P170: =COUNTIF(G167:G206,O170) -> 4
A171: 5 | B171: ='1-C'!D13 -> 302 | C171: ='1-C'!G13 -> YASİN EFE BOYA | D171: ='1-C'!J13 -> 130 | E171: ='1-C'!K13 -> 25 | F171: ='1-C'!L13 -> 14.79 | G171: ='1-C'!M13 -> NORMAL | H171: ='1-C'!O13 -> 6 | I171: ='1-C'!H13 -> 2017-07-12 | K171: ='1-C'!I13 -> E | O171: OBEZ | P171: =COUNTIF(G167:G206,O171) -> 8
A172: 6 | B172: ='1-C'!D14 -> 469 | C172: ='1-C'!G14 -> ALİ MİRZA ERTÜRK | D172: ='1-C'!J14 -> 121 | E172: ='1-C'!K14 -> 25 | F172: ='1-C'!L14 -> 17.08 | G172: ='1-C'!M14 -> FAZLA KİLOLU | H172: ='1-C'!O14 -> 6 | I172: ='1-C'!H14 -> 2017-05-27 | K172: ='1-C'!I14 -> E | P172: =COUNTIF(G167:G206,O172) -> 0
A173: 7 | B173: ='1-C'!D15 -> 476 | C173: ='1-C'!G15 -> ALPER SELİM ALTAY | D173: ='1-C'!J15 -> 120 | E173: ='1-C'!K15 -> 20 | F173: ='1-C'!L15 -> 13.89 | G173: ='1-C'!M15 -> ZAYIF | H173: ='1-C'!O15 -> 7 | I173: ='1-C'!H15 -> 2017-01-16 | K173: ='1-C'!I15 -> E
A174: 8 | B174: ='1-C'!D16 -> 496 | C174: ='1-C'!G16 -> ARDA SÜLEYMAN AK | D174: ='1-C'!J16 -> 112 | E174: ='1-C'!K16 -> 25 | F174: ='1-C'!L16 -> 19.93 | G174: ='1-C'!M16 -> OBEZ | H174: ='1-C'!O16 -> 6 | I174: ='1-C'!H16 -> 2017-05-22 | K174: ='1-C'!I16 -> E
A175: 9 | B175: ='1-C'!D17 -> 536 | C175: ='1-C'!G17 -> ASEL SÜLEYMANOĞLU | D175: ='1-C'!J17 -> 127 | E175: ='1-C'!K17 -> 20 | F175: ='1-C'!L17 -> 12.4 | G175: ='1-C'!M17 -> ÇOK ZAYIF | H175: ='1-C'!O17 -> 6 | I175: ='1-C'!H17 -> 2017-06-23 | K175: ='1-C'!I17 -> K
A176: 10 | B176: ='1-C'!D18 -> 669 | C176: ='1-C'!G18 -> BARIŞ KARABULUT | D176: ='1-C'!J18 -> 116 | E176: ='1-C'!K18 -> 21 | F176: ='1-C'!L18 -> 15.61 | G176: ='1-C'!M18 -> NORMAL | H176: ='1-C'!O18 -> 6 | I176: ='1-C'!H18 -> 2017-11-06 | K176: ='1-C'!I18 -> E
A177: 11 | B177: ='1-C'!D19 -> 679 | C177: ='1-C'!G19 -> BULUT ERDEM ELMALI | D177: ='1-C'!J19 -> 127 | E177: ='1-C'!K19 -> 25 | F177: ='1-C'!L19 -> 15.5 | G177: ='1-C'!M19 -> NORMAL | H177: ='1-C'!O19 -> 6 | I177: ='1-C'!H19 -> 2017-07-12 | K177: ='1-C'!I19 -> E
A178: 12 | B178: ='1-C'!D20 -> 687 | C178: ='1-C'!G20 -> DERİN LİYA KISA | D178: ='1-C'!J20 -> 121 | E178: ='1-C'!K20 -> 22 | F178: ='1-C'!L20 -> 15.03 | G178: ='1-C'!M20 -> NORMAL | H178: ='1-C'!O20 -> 6 | I178: ='1-C'!H20 -> 2017-04-25 | K178: ='1-C'!I20 -> K
A179: 13 | B179: ='1-C'!D21 -> 694 | C179: ='1-C'!G21 -> ELİF TALAS | D179: ='1-C'!J21 -> 113 | E179: ='1-C'!K21 -> 27 | F179: ='1-C'!L21 -> 21.14 | G179: ='1-C'!M21 -> OBEZ | H179: ='1-C'!O21 -> 6 | I179: ='1-C'!H21 -> 2017-07-04 | K179: ='1-C'!I21 -> K
A180: 14 | B180: ='1-C'!D22 -> 708 | C180: ='1-C'!G22 -> ESİLA ZAFER | D180: ='1-C'!J22 -> 117 | E180: ='1-C'!K22 -> 16 | F180: ='1-C'!L22 -> 11.69 | G180: ='1-C'!M22 -> ÇOK ZAYIF | H180: ='1-C'!O22 -> 6 | I180: ='1-C'!H22 -> 2017-08-08 | K180: ='1-C'!I22 -> K
A181: 15 | B181: ='1-C'!D23 -> 720 | C181: ='1-C'!G23 -> FURKAN TİRYAKİ | D181: ='1-C'!J23 -> 115 | E181: ='1-C'!K23 -> 19 | F181: ='1-C'!L23 -> 14.37 | G181: ='1-C'!M23 -> NORMAL | H181: ='1-C'!O23 -> 6 | I181: ='1-C'!H23 -> 2017-07-24 | K181: ='1-C'!I23 -> E
A182: 16 | B182: ='1-C'!D24 -> 737 | C182: ='1-C'!G24 -> İREM YILDIRIM | D182: ='1-C'!J24 -> 117 | E182: ='1-C'!K24 -> 22 | F182: ='1-C'!L24 -> 16.07 | G182: ='1-C'!M24 -> NORMAL | H182: ='1-C'!O24 -> 6 | I182: ='1-C'!H24 -> 2017-06-12 | K182: ='1-C'!I24 -> K
A183: 17 | B183: ='1-C'!D25 -> 738 | C183: ='1-C'!G25 -> KAYRA MERT YILDIZ | D183: ='1-C'!J25 -> 126 | E183: ='1-C'!K25 -> 28 | F183: ='1-C'!L25 -> 17.64 | G183: ='1-C'!M25 -> FAZLA KİLOLU | H183: ='1-C'!O25 -> 6 | I183: ='1-C'!H25 -> 2017-08-10 | K183: ='1-C'!I25 -> E
A184: 18 | B184: ='1-C'!D26 -> 773 | C184: ='1-C'!G26 -> NEHİR DUMAN | D184: ='1-C'!J26 -> 127 | E184: ='1-C'!K26 -> 25 | F184: ='1-C'!L26 -> 15.5 | G184: ='1-C'!M26 -> NORMAL | H184: ='1-C'!O26 -> 6 | I184: ='1-C'!H26 -> 2017-04-04 | K184: ='1-C'!I26 -> K
A185: 19 | B185: ='1-C'!D27 -> 784 | C185: ='1-C'!G27 -> ÖMER ASAF ŞAHİN | D185: ='1-C'!J27 -> 124 | E185: ='1-C'!K27 -> 28 | F185: ='1-C'!L27 -> 18.21 | G185: ='1-C'!M27 -> OBEZ | H185: ='1-C'!O27 -> 7 | I185: ='1-C'!H27 -> 2016-11-02 | K185: ='1-C'!I27 -> E
A186: 20 | B186: ='1-C'!D28 -> 785 | C186: ='1-C'!G28 -> ÖMER ASAF ZAFER | D186: ='1-C'!J28 -> 116 | E186: ='1-C'!K28 -> 17 | F186: ='1-C'!L28 -> 12.63 | G186: ='1-C'!M28 -> ÇOK ZAYIF | H186: ='1-C'!O28 -> 6 | I186: ='1-C'!H28 -> 2017-08-08 | K186: ='1-C'!I28 -> E
A187: 21 | B187: ='1-C'!D29 -> 792 | C187: ='1-C'!G29 -> POYRAZ ALİ ÇETİN | D187: ='1-C'!J29 -> 132 | E187: ='1-C'!K29 -> 27 | F187: ='1-C'!L29 -> 15.5 | G187: ='1-C'!M29 -> NORMAL | H187: ='1-C'!O29 -> 6 | I187: ='1-C'!H29 -> 2017-04-06 | K187: ='1-C'!I29 -> E
A188: 22 | B188: ='1-C'!D30 -> 794 | C188: ='1-C'!G30 -> RAVZA MATUR | D188: ='1-C'!J30 -> 116 | E188: ='1-C'!K30 -> 25 | F188: ='1-C'!L30 -> 18.58 | G188: ='1-C'!M30 -> OBEZ | H188: ='1-C'!O30 -> 6 | I188: ='1-C'!H30 -> 2017-06-19 | K188: ='1-C'!I30 -> K
A189: 23 | B189: ='1-C'!D31 -> 798 | C189: ='1-C'!G31 -> SELİN ECE DURMUŞ | D189: ='1-C'!J31 -> 105 | E189: ='1-C'!K31 -> 16 | F189: ='1-C'!L31 -> 14.51 | G189: ='1-C'!M31 -> NORMAL | H189: ='1-C'!O31 -> 6 | I189: ='1-C'!H31 -> 2017-05-21 | K189: ='1-C'!I31 -> K
A190: 24 | B190: ='1-C'!D32 -> 802 | C190: ='1-C'!G32 -> TALHA URAS LEVENT | D190: ='1-C'!J32 -> 132 | E190: ='1-C'!K32 -> 30 | F190: ='1-C'!L32 -> 17.22 | G190: ='1-C'!M32 -> FAZLA KİLOLU | H190: ='1-C'!O32 -> 7 | I190: ='1-C'!H32 -> 2016-12-16 | K190: ='1-C'!I32 -> E
A191: 25 | B191: ='1-C'!D33 -> 807 | C191: ='1-C'!G33 -> YAREN GÜL GÜNEY | D191: ='1-C'!J33 -> 112 | E191: ='1-C'!K33 -> 20 | F191: ='1-C'!L33 -> 15.94 | G191: ='1-C'!M33 -> NORMAL | H191: ='1-C'!O33 -> 6 | I191: ='1-C'!H33 -> 2017-08-18 | K191: ='1-C'!I33 -> K
A192: 26 | B192: ='1-C'!D34 -> 814 | C192: ='1-C'!G34 -> GAZEL ALKİNNAVİ | D192: ='1-C'!J34 -> 122 | E192: ='1-C'!K34 -> 28 | F192: ='1-C'!L34 -> 18.81 | G192: ='1-C'!M34 -> OBEZ | H192: ='1-C'!O34 -> 7 | I192: ='1-C'!H34 -> 2016-12-18 | K192: ='1-C'!I34 -> K
A193: 27 | B193: ='1-C'!D35 -> 816 | C193: ='1-C'!G35 -> ELİFNUR ÖZDEMİR | D193: ='1-C'!J35 -> 124 | E193: ='1-C'!K35 -> 25 | F193: ='1-C'!L35 -> 16.26 | G193: ='1-C'!M35 -> NORMAL | H193: ='1-C'!O35 -> 6 | I193: ='1-C'!H35 -> 2017-04-04 | K193: ='1-C'!I35 -> K
A194: 28 | B194: ='1-C'!D36 -> 834 | C194: ='1-C'!G36 -> HALİD ALELEWI | D194: ='1-C'!J36 -> 108 | E194: ='1-C'!K36 -> 17 | F194: ='1-C'!L36 -> 14.57 | G194: ='1-C'!M36 -> NORMAL | H194: ='1-C'!O36 -> 6 | I194: ='1-C'!H36 -> 2017-08-16 | K194: ='1-C'!I36 -> E
A195: 29 | B195: ='1-C'!D37 -> 863 | C195: ='1-C'!G37 -> ELİF SILA KARAKUŞ | D195: ='1-C'!J37 -> 114 | E195: ='1-C'!K37 -> 26 | F195: ='1-C'!L37 -> 20.01 | G195: ='1-C'!M37 -> OBEZ | H195: ='1-C'!O37 -> 6 | I195: ='1-C'!H37 -> 2017-12-22 | K195: ='1-C'!I37 -> K
A196: 30 | B196: ='1-C'!D38 -> 887 | C196: ='1-C'!G38 -> ÖMER BATIN GENÇBAY | D196: ='1-C'!J38 -> 120 | E196: ='1-C'!K38 -> 18 | F196: ='1-C'!L38 -> 12.5 | G196: ='1-C'!M38 -> ÇOK ZAYIF | H196: ='1-C'!O38 -> 6 | I196: ='1-C'!H38 -> 2017-04-04 | K196: ='1-C'!I38 -> E
A197: 31 | B197: ='1-C'!D39 -> 898 | C197: ='1-C'!G39 -> ASEL KARTAL | D197: ='1-C'!J39 -> 125 | E197: ='1-C'!K39 -> 31 | F197: ='1-C'!L39 -> 19.84 | G197: ='1-C'!M39 -> OBEZ | H197: ='1-C'!O39 -> 6 | I197: ='1-C'!H39 -> 2017-02-13 | K197: ='1-C'!I39 -> K
A198: 32 | B198: ='1-C'!D40 -> 503 | C198: ='1-C'!G40 -> HASIBE ADIL ALI SEYHO | D198: ='1-C'!J40 -> 0 | E198: ='1-C'!K40 -> 0 | F198: ='1-C'!L40 ->  | G198: ='1-C'!M40 ->  | H198: ='1-C'!O40 -> 7 | I198: ='1-C'!H40 -> 2016-08-09 | K198: ='1-C'!I40 -> K
A199: 33 | B199: ='1-C'!D41 -> 508 | C199: ='1-C'!G41 -> ABDÜLMELİK RIDVAN ALİ BİLAL | D199: ='1-C'!J41 -> 0 | E199: ='1-C'!K41 -> 0 | F199: ='1-C'!L41 ->  | G199: ='1-C'!M41 ->  | H199: ='1-C'!O41 -> 7 | I199: ='1-C'!H41 -> 2016-04-21 | K199: ='1-C'!I41 -> E
A200: 34 | B200: ='1-C'!D42 -> 0 | C200: ='1-C'!G42 -> 0 | D200: ='1-C'!J42 -> 0 | E200: ='1-C'!K42 -> 0 | F200: ='1-C'!L42 ->  | G200: ='1-C'!M42 ->  | H200: ='1-C'!O42 ->  | I200: ='1-C'!H42 -> 00:00:00 | K200: ='1-C'!I42 -> 0
... 1118 more rows

Sheet ANA-A
A1: SINIF BKİ DURUMU TESPİTİ FORMU | Z1: 1 | AA1: ÇOK ZAYIF | AE1: 1 | AN1: 1 | AS1: 2 | AX1: 3 | BC1: 4 | BH1: 5 | BM1: 6 | BR1: 7 | BW1: 8 | CB1: 9 | CG1: 10 | CL1: 11 | CQ1: 12 | CV1: 13 | DA1: 14 | DF1: 1 | DK1: 2 | DP1: 3 | DU1: 4 | DZ1: 5 | EE1: 6 | EJ1: 7 | EO1: 8 | ET1: 9 | EY1: 10 | FD1: 11 | FI1: 12 | FN1: 13 | FS1: 14
G2: =TODAY()-7153 -> 2004-06-18 | H2: tarihinden sonra doğanlar için uygulanmaktadır | Z2: 2 | AA2: ZAYIF | AE2: 2 | AN2: E | AO2: E | AP2: E | AQ2: E | AR2: E | AS2: E | AT2: E | AU2: E | AV2: E | AW2: E | AX2: E | AY2: E | AZ2: E | BA2: E | BB2: E | BC2: E | BD2: E | BE2: E | BF2: E | BG2: E | BH2: E | BI2: E | BJ2: E | BK2: E | BL2: E | BM2: E | BN2: E | BO2: E | BP2: E | BQ2: E | BR2: E | BS2: E | BT2: E | BU2: E | BV2: E | BW2: E | BX2: E | BY2: E | BZ2: E | CA2: E | CB2: E | CC2: E | CD2: E | CE2: E | CF2: E | CG2: E | CH2: E | CI2: E | CJ2: E | CK2: E | CL2: E | CM2: E | CN2: E | CO2: E | CP2: E | CQ2: E | CR2: E | CS2: E | CT2: E | CU2: E | CV2: E | CW2: E | CX2: E | CY2: E | CZ2: E | DA2: E | DB2: E | DC2: E | DD2: E | DE2: E | DF2: K | DG2: K | DH2: K | DI2: K | DJ2: K | DK2: K | DL2: K | DM2: K | DN2: K | DO2: K | DP2: K | DQ2: K | DR2: K | DS2: K | DT2: K | DU2: K | DV2: K | DW2: K | DX2: K | DY2: K | DZ2: K | EA2: K | EB2: K | EC2: K | ED2: K | EE2: K | EF2: K | EG2: K | EH2: K | EI2: K | EJ2: K | EK2: K | EL2: K | EM2: K | EN2: K | EO2: K | EP2: K | EQ2: K | ER2: K | ES2: K | ET2: K | EU2: K | EV2: K | EW2: K | EX2: K | EY2: K | EZ2: K | FA2: K | FB2: K | FC2: K | FD2: K | FE2: K | FF2: K | FG2: K | FH2: K | FI2: K | FJ2: K | FK2: K | FL2: K | FM2: K | FN2: K | FO2: K | FP2: K | FQ2: K | FR2: K | FS2: K | FT2: K | FU2: K | FV2: K | FW2: K
D3: OKUL | F3: : | G3: FATİH SULTAN MEHMET İLKOKULU | O3: SINIF | Q3: : | T3: =VLOOKUP(1,C9:AB55,26) -> ANA/A | Z3: 3 | AA3: NORMAL | AE3: 3 | AM3: < | AN3: 607 | AO3: =AN3 -> 607 | AP3: 607 | AQ3: 607 | AR3: 607 | AS3: 707 | AT3: =AS3 -> 707 | AU3: 707 | AV3: 707 | AW3: 707 | AX3: 807 | AY3: =AX3 -> 807 | AZ3: 807 | BA3: 807 | BB3: 807 | BC3: 907 | BD3: =BC3 -> 907 | BE3: 907 | BF3: 907 | BG3: 907 | BH3: 1007 | BI3: =BH3 -> 1007 | BJ3: 1007 | BK3: 1007 | BL3: 1007 | BM3: 1107 | BN3: =BM3 -> 1107 | BO3: 1107 | BP3: 1107 | BQ3: 1107 | BR3: 1207 | BS3: =BR3 -> 1207 | BT3: 1207 | BU3: 1207 | BV3: 1207 | BW3: 1307 | BX3: =BW3 -> 1307 | BY3: 1307 | BZ3: 1307 | CA3: 1307 | CB3: 1407 | CC3: =CB3 -> 1407 | CD3: 1407 | CE3: 1407 | CF3: 1407 | CG3: 1507 | CH3: =CG3 -> 1507 | CI3: 1507 | CJ3: 1507 | CK3: 1507 | CL3: 1607 | CM3: =CL3 -> 1607 | CN3: 1607 | CO3: 1607 | CP3: 1607 | CQ3: 1707 | CR3: =CQ3 -> 1707 | CS3: 1707 | CT3: 1707 | CU3: 1707 | CV3: 1807 | CW3: =CV3 -> 1807 | CX3: 1807 | CY3: 1807 | CZ3: 1807 | DA3: 1907 | DB3: =DA3 -> 1907 | DC3: 1907 | DD3: 1907 | DE3: 1907 | DF3: 607 | DG3: =DF3 -> 607 | DH3: 607 | DI3: 607 | DJ3: 607 | DK3: 707 | DL3: =DK3 -> 707 | DM3: 707 | DN3: 707 | DO3: 707 | DP3: 807 | DQ3: =DP3 -> 807 | DR3: 807 | DS3: 807 | DT3: 807 | DU3: 907 | DV3: =DU3 -> 907 | DW3: 907 | DX3: 907 | DY3: 907 | DZ3: 1007 | EA3: =DZ3 -> 1007 | EB3: 1007 | EC3: 1007 | ED3: 1007 | EE3: 1107 | EF3: =EE3 -> 1107 | EG3: 1107 | EH3: 1107 | EI3: 1107 | EJ3: 1207 | EK3: =EJ3 -> 1207 | EL3: 1207 | EM3: 1207 | EN3: 1207 | EO3: 1307 | EP3: =EO3 -> 1307 | EQ3: 1307 | ER3: 1307 | ES3: 1307 | ET3: 1407 | EU3: =ET3 -> 1407 | EV3: 1407 | EW3: 1407 | EX3: 1407 | EY3: 1507 | EZ3: =EY3 -> 1507 | FA3: 1507 | FB3: 1507 | FC3: 1507 | FD3: 1607 | FE3: =FD3 -> 1607 | FF3: 1607 | FG3: 1607 | FH3: 1607 | FI3: 1707 | FJ3: =FI3 -> 1707 | FK3: 1707 | FL3: 1707 | FM3: 1707 | FN3: 1807 | FO3: =FN3 -> 1807 | FP3: 1807 | FQ3: 1807 | FR3: 1807 | FS3: 1907 | FT3: =FS3 -> 1907 | FU3: 1907 | FV3: 1907 | FW3: 1907
AE4: 4 | AM4: > | AN4: 0 | AO4: 0 | AP4: 0 | AQ4: 0 | AR4: 0 | AS4: 606 | AT4: 606 | AU4: 606 | AV4: 606 | AW4: 606 | AX4: 706 | AY4: 706 | AZ4: 706 | BA4: 706 | BB4: 706 | BC4: 806 | BD4: 806 | BE4: 806 | BF4: 806 | BG4: 806 | BH4: 906 | BI4: 906 | BJ4: 906 | BK4: 906 | BL4: 906 | BM4: 1006 | BN4: 1006 | BO4: 1006 | BP4: 1006 | BQ4: 1006 | BR4: 1106 | BS4: 1106 | BT4: 1106 | BU4: 1106 | BV4: 1106 | BW4: 1206 | BX4: 1206 | BY4: 1206 | BZ4: 1206 | CA4: 1206 | CB4: 1306 | CC4: 1306 | CD4: 1306 | CE4: 1306 | CF4: 1306 | CG4: 1406 | CH4: 1406 | CI4: 1406 | CJ4: 1406 | CK4: 1406 | CL4: 1506 | CM4: 1506 | CN4: 1506 | CO4: 1506 | CP4: 1506 | CQ4: 1606 | CR4: 1606 | CS4: 1606 | CT4: 1606 | CU4: 1606 | CV4: 1706 | CW4: 1706 | CX4: 1706 | CY4: 1706 | CZ4: 1706 | DA4: 1807 | DB4: 1807 | DC4: 1807 | DD4: 1807 | DE4: 1807 | DF4: 0 | DG4: 0 | DH4: 0 | DI4: 0 | DJ4: 0 | DK4: 606 | DL4: 606 | DM4: 606 | DN4: 606 | DO4: 606 | DP4: 706 | DQ4: 706 | DR4: 706 | DS4: 706 | DT4: 706 | DU4: 806 | DV4: 806 | DW4: 806 | DX4: 806 | DY4: 806 | DZ4: 906 | EA4: 906 | EB4: 906 | EC4: 906 | ED4: 906 | EE4: 1006 | EF4: 1006 | EG4: 1006 | EH4: 1006 | EI4: 1006 | EJ4: 1106 | EK4: 1106 | EL4: 1106 | EM4: 1106 | EN4: 1106 | EO4: 1206 | EP4: 1206 | EQ4: 1206 | ER4: 1206 | ES4: 1206 | ET4: 1306 | EU4: 1306 | EV4: 1306 | EW4: 1306 | EX4: 1306 | EY4: 1406 | EZ4: 1406 | FA4: 1406 | FB4: 1406 | FC4: 1406 | FD4: 1506 | FE4: 1506 | FF4: 1506 | FG4: 1506 | FH4: 1506 | FI4: 1606 | FJ4: 1606 | FK4: 1606 | FL4: 1606 | FM4: 1606 | FN4: 1706 | FO4: 1706 | FP4: 1706 | FQ4: 1706 | FR4: 1706 | FS4: 1807 | FT4: 1807 | FU4: 1807 | FV4: 1807 | FW4: 1807
D5: ADRES | F5: : | G5: Kabakoz Mahallesi 829.Sokak No 9/B Karasu/SAKARYA | O5: TARİH | Q5: : | T5: =TODAY() -> 2024-01-18 | Z5: 4 | AA5: FAZLA KİLOLU | AE5: 5 | AN5: 1 | AO5: 2 | AP5: 3 | AQ5: 4 | AR5: 5 | AS5: 1 | AT5: 2 | AU5: 3 | AV5: 4 | AW5: 5 | AX5: 1 | AY5: 2 | AZ5: 3 | BA5: 4 | BB5: 5 | BC5: 1 | BD5: 2 | BE5: 3 | BF5: 4 | BG5: 5 | BH5: 1 | BI5: 2 | BJ5: 3 | BK5: 4 | BL5: 5 | BM5: 1 | BN5: 2 | BO5: 3 | BP5: 4 | BQ5: 5 | BR5: 1 | BS5: 2 | BT5: 3 | BU5: 4 | BV5: 5 | BW5: 1 | BX5: 2 | BY5: 3 | BZ5: 4 | CA5: 5 | CB5: 1 | CC5: 2 | CD5: 3 | CE5: 4 | CF5: 5 | CG5: 1 | CH5: 2 | CI5: 3 | CJ5: 4 | CK5: 5 | CL5: 1 | CM5: 2 | CN5: 3 | CO5: 4 | CP5: 5 | CQ5: 1 | CR5: 2 | CS5: 3 | CT5: 4 | CU5: 5 | CV5: 1 | CW5: 2 | CX5: 3 | CY5: 4 | CZ5: 5 | DA5: 1 | DB5: 2 | DC5: 3 | DD5: 4 | DE5: 5 | DF5: 1 | DG5: 2 | DH5: 3 | DI5: 4 | DJ5: 5 | DK5: 1 | DL5: 2 | DM5: 3 | DN5: 4 | DO5: 5 | DP5: 1 | DQ5: 2 | DR5: 3 | DS5: 4 | DT5: 5 | DU5: 1 | DV5: 2 | DW5: 3 | DX5: 4 | DY5: 5 | DZ5: 1 | EA5: 2 | EB5: 3 | EC5: 4 | ED5: 5 | EE5: 1 | EF5: 2 | EG5: 3 | EH5: 4 | EI5: 5 | EJ5: 1 | EK5: 2 | EL5: 3 | EM5: 4 | EN5: 5 | EO5: 1 | EP5: 2 | EQ5: 3 | ER5: 4 | ES5: 5 | ET5: 1 | EU5: 2 | EV5: 3 | EW5: 4 | EX5: 5 | EY5: 1 | EZ5: 2 | FA5: 3 | FB5: 4 | FC5: 5 | FD5: 1 | FE5: 2 | FF5: 3 | FG5: 4 | FH5: 5 | FI5: 1 | FJ5: 2 | FK5: 3 | FL5: 4 | FM5: 5 | FN5: 1 | FO5: 2 | FP5: 3 | FQ5: 4 | FR5: 5 | FS5: 1 | FT5: 2 | FU5: 3 | FV5: 4 | FW5: 5
Z6: 5 | AA6: OBEZ | AE6: 6 | AM6: B | AN6: 0 | AO6: 13.3 | AP6: 13.9 | AQ6: 16.7 | AR6: 17.8 | AS6: 0 | AT6: 13.4 | AU6: 14.1 | AV6: 17 | AW6: 18.2 | AX6: 0 | AY6: 13.6 | AZ6: 14.3 | BA6: 17.4 | BB6: 18.7 | BC6: 0 | BD6: 13.8 | BE6: 14.5 | BF6: 17.9 | BG6: 19.4 | BH6: 0 | BI6: 14 | BJ6: 14.8 | BK6: 18.5 | BL6: 20.1 | BM6: 0 | BN6: 14.4 | BO6: 15.2 | BP6: 19.2 | BQ6: 21 | BR6: 0 | BS6: 14.8 | BT6: 15.6 | BU6: 20 | BV6: 22 | BW6: 0 | BX6: 15.3 | BY6: 16.2 | BZ6: 20.8 | CA6: 23 | CB6: 0 | CC6: 15.9 | CD6: 16.8 | CE6: 21.8 | CF6: 24.1 | CG6: 0 | CH6: 16.4 | CI6: 17.5 | CJ6: 22.7 | CK6: 25.1 | CL6: 0 | CM6: 17 | CN6: 18.1 | CO6: 23.6 | CP6: 26 | CQ6: 0 | CR6: 17.4 | CS6: 18.6 | CT6: 24.3 | CU6: 26.8 | CV6: 0 | CW6: 17.8 | CX6: 19.1 | CY6: 24.9 | CZ6: 27.4 | DA6: 0 | DB6: 18.1 | DC6: 19.4 | DD6: 25.5 | DE6: 28 | DF6: 0 | DG6: 13.1 | DH6: 13.7 | DI6: 17 | DJ6: 18.3 | DK6: 0 | DL6: 13.1 | DM6: 13.8 | DN6: 17.3 | DO6: 18.7 | DP6: 0 | DQ6: 13.3 | DR6: 14 | DS6: 17.7 | DT6: 19.3 | DU6: 0 | DV6: 13.6 | DW6: 14.3 | DX6: 18.3 | DY6: 20.1 | DZ6: 0 | EA6: 13.9 | EB6: 14.7 | EC6: 19 | ED6: 21 | EE6: 0 | EF6: 14.4 | EG6: 15.2 | EH6: 19.9 | EI6: 22.1 | EJ6: 0 | EK6: 14.9 | EL6: 15.8 | EM6: 20.8 | EN6: 23.2 | EO6: 0 | EP6: 15.5 | EQ6: 16.4 | ER6: 21.8 | ES6: 24.3 | ET6: 0 | EU6: 16 | EV6: 17.1 | EW6: 22.8 | EX6: 25.4 | EY6: 0 | EZ6: 16.5 | FA6: 17.6 | FB6: 23.6 | FC6: 26.2 | FD6: 0 | FE6: 16.8 | FF6: 18 | FG6: 24.1 | FH6: 26.9 | FI6: 0 | FJ6: 17 | FK6: 18.2 | FL6: 24.6 | FM6: 27.3 | FN6: 0 | FO6: 17.1 | FP6: 18.4 | FQ6: 24.8 | FR6: 27.6 | FS6: 0 | FT6: 17.2 | FU6: 18.5 | FV6: 25 | FW6: 27.7
AA7: =TODAY() -> 2024-01-18 | AE7: 7 | AM7: K | AN7: 13.4 | AO7: 14 | AP7: 16.8 | AQ7: 17.9 | AR7: 50 | AS7: 13.5 | AT7: 14.2 | AU7: 17.1 | AV7: 18.3 | AW7: 50 | AX7: 13.7 | AY7: 14.4 | AZ7: 17.5 | BA7: 18.8 | BB7: 50 | BC7: 13.9 | BD7: 14.6 | BE7: 18 | BF7: 19.5 | BG7: 50 | BH7: 14.1 | BI7: 14.9 | BJ7: 18.6 | BK7: 20.2 | BL7: 50 | BM7: 14.5 | BN7: 15.3 | BO7: 19.3 | BP7: 21.1 | BQ7: 50 | BR7: 14.9 | BS7: 15.7 | BT7: 20.1 | BU7: 22.1 | BV7: 50 | BW7: 15.4 | BX7: 16.3 | BY7: 20.9 | BZ7: 23.1 | CA7: 50 | CB7: 16 | CC7: 16.9 | CD7: 21.9 | CE7: 24.2 | CF7: 50 | CG7: 16.5 | CH7: 17.6 | CI7: 22.8 | CJ7: 25.2 | CK7: 50 | CL7: 17.1 | CM7: 18.2 | CN7: 23.7 | CO7: 26.1 | CP7: 50 | CQ7: 17.5 | CR7: 18.7 | CS7: 24.4 | CT7: 26.9 | CU7: 50 | CV7: 17.9 | CW7: 19.2 | CX7: 25 | CY7: 27.5 | CZ7: 50 | DA7: 18.2 | DB7: 19.5 | DC7: 25.6 | DD7: 28.1 | DE7: 50 | DF7: 13.2 | DG7: 13.8 | DH7: 17.1 | DI7: 18.4 | DJ7: 50 | DK7: 13.2 | DL7: 13.9 | DM7: 17.4 | DN7: 18.8 | DO7: 50 | DP7: 13.4 | DQ7: 14.1 | DR7: 17.8 | DS7: 19.4 | DT7: 50 | DU7: 13.7 | DV7: 14.4 | DW7: 18.4 | DX7: 20.2 | DY7: 50 | DZ7: 14 | EA7: 14.8 | EB7: 19.1 | EC7: 21.1 | ED7: 50 | EE7: 14.5 | EF7: 15.3 | EG7: 20 | EH7: 22.2 | EI7: 50 | EJ7: 15 | EK7: 15.9 | EL7: 20.9 | EM7: 23.3 | EN7: 50 | EO7: 15.6 | EP7: 16.5 | EQ7: 21.9 | ER7: 24.4 | ES7: 50 | ET7: 16.1 | EU7: 17.2 | EV7: 22.9 | EW7: 25.5 | EX7: 50 | EY7: 16.6 | EZ7: 17.7 | FA7: 23.7 | FB7: 26.3 | FC7: 50 | FD7: 16.9 | FE7: 18.1 | FF7: 24.2 | FG7: 27 | FH7: 50 | FI7: 17.1 | FJ7: 18.3 | FK7: 24.7 | FL7: 27.4 | FM7: 50 | FN7: 17.2 | FO7: 18.5 | FP7: 24.9 | FQ7: 27.7 | FR7: 50 | FS7: 17.3 | FT7: 18.6 | FU7: 25.1 | FV7: 27.8 | FW7: 50
C8: S. No | D8: Öğ. No | E8: Snf | F8: Şb. | G8: Adı ve Soyadı | H8: Doğum Tarihi | I8: Cns | J8: Boy | K8: Kilo | L8: BKİ | M8: DURUMU | O8: YIL | P8: AY | Q8: GÜN | T8: Değerlendirme | U8: Veli Adres | V8: Veli Tel | W8: T.C. Kimlik No | X8: Baba Adı | Y8: D.T. | Z8: =AA7 -> 2024-01-18 | AA8: İLK TARİH | AN8: 1 | AO8: 2 | AP8: 3 | AQ8: 4 | AR8: 5 | AS8: 1 | AT8: 2 | AU8: 3 | AV8: 4 | AW8: 5 | AX8: 1 | AY8: 2 | AZ8: 3 | BA8: 4 | BB8: 5 | BC8: 1 | BD8: 2 | BE8: 3 | BF8: 4 | BG8: 5 | BH8: 1 | BI8: 2 | BJ8: 3 | BK8: 4 | BL8: 5 | BM8: 1 | BN8: 2 | BO8: 3 | BP8: 4 | BQ8: 5 | BR8: 1 | BS8: 2 | BT8: 3 | BU8: 4 | BV8: 5 | BW8: 1 | BX8: 2 | BY8: 3 | BZ8: 4 | CA8: 5 | CB8: 1 | CC8: 2 | CD8: 3 | CE8: 4 | CF8: 5 | CG8: 1 | CH8: 2 | CI8: 3 | CJ8: 4 | CK8: 5 | CL8: 1 | CM8: 2 | CN8: 3 | CO8: 4 | CP8: 5 | CQ8: 1 | CR8: 2 | CS8: 3 | CT8: 4 | CU8: 5 | CV8: 1 | CW8: 2 | CX8: 3 | CY8: 4 | CZ8: 5 | DA8: 1 | DB8: 2 | DC8: 3 | DD8: 4 | DE8: 5 | DF8: 1 | DG8: 2 | DH8: 3 | DI8: 4 | DJ8: 5 | DK8: 1 | DL8: 2 | DM8: 3 | DN8: 4 | DO8: 5 | DP8: 1 | DQ8: 2 | DR8: 3 | DS8: 4 | DT8: 5 | DU8: 1 | DV8: 2 | DW8: 3 | DX8: 4 | DY8: 5 | DZ8: 1 | EA8: 2 | EB8: 3 | EC8: 4 | ED8: 5 | EE8: 1 | EF8: 2 | EG8: 3 | EH8: 4 | EI8: 5 | EJ8: 1 | EK8: 2 | EL8: 3 | EM8: 4 | EN8: 5 | EO8: 1 | EP8: 2 | EQ8: 3 | ER8: 4 | ES8: 5 | ET8: 1 | EU8: 2 | EV8: 3 | EW8: 4 | EX8: 5 | EY8: 1 | EZ8: 2 | FA8: 3 | FB8: 4 | FC8: 5 | FD8: 1 | FE8: 2 | FF8: 3 | FG8: 4 | FH8: 5 | FI8: 1 | FJ8: 2 | FK8: 3 | FL8: 4 | FM8: 5 | FN8: 1 | FO8: 2 | FP8: 3 | FQ8: 4 | FR8: 5 | FS8: 1 | FT8: 2 | FU8: 3 | FV8: 4 | FW8: 5
B9: 1 | C9: =SUBTOTAL(9,$B9:B$9) -> 1 | E9: ANA | F9: A | L9: =IF((J9+K9)>0,(ROUND(((K9)/(J9/100*J9/100)),2)),"") ->  | M9: =IF((J9+K9)>0,(VLOOKUP((MAX(AN9:FW9)),KRİTERLER,2,0)),"") ->  | N9: =E9&"/"&F9&M9 -> ANA/A | O9: =IF(I9="","",(AK9-AL9)) ->  | P9: =IF(H9<>"",(IF(AI9<AJ9,(AI9+12)-AJ9,(AI9-AJ9))),"") ->  | Q9: =IF(H9<>"",(IF(AF9<AG9,AH9-AG9,AF9-AG9)),"") ->  | R9: =VALUE((O9&S9)) ->  | S9: =IF((LEN(P9))=1,0&P9,P9) ->  | Y9: =IF(H9<>"",(YEAR(H9)),"") ->  | Z9: =IF(H9<>"",(SONTARİH),"") ->  | AA9: =H9 -> 00:00:00 | AB9: =E9&"/"&F9 -> ANA/A | AF9: =VALUE(TEXT(Z9,"GG")) ->  | AG9: 0 | AH9: =IF((AF9-AG9)<0,AF9+30,(AF9-AG9)) ->  | AI9: =IF(AF9<AG9,((VALUE(TEXT(Z9,"AA"))))-1,(VALUE(TEXT(Z9,"AA")))) ->  | AJ9: =VALUE(TEXT(AA9,"AA")) -> 1 | AK9: =IF(AI9<AJ9,(VALUE(TEXT(Z9,"YYY")))-1,(VALUE(TEXT(Z9,"YYY")))) ->  | AL9: =VALUE(TEXT(AA9,"YYY")) -> 1900 | AN9: =IF(AND($I9=AN$2,$R9<AN$3,$R9>AN$4,$L9>AN$6,$L9<AN$7),AN$5,"") ->  | BD9: =IF(AND($I9=BD$2,$R9<BD$3,$R9>BD$4,$L9>BD$6,$L9<BD$7),BD$5,"") ->  | BT9: =IF(AND($I9=BT$2,$R9<BT$3,$R9>BT$4,$L9>BT$6,$L9<BT$7),BT$5,"") ->  | CJ9: =IF(AND($I9=CJ$2,$R9<CJ$3,$R9>CJ$4,$L9>CJ$6,$L9<CJ$7),CJ$5,"") ->  | CZ9: =IF(AND($I9=CZ$2,$R9<CZ$3,$R9>CZ$4,$L9>CZ$6,$L9<CZ$7),CZ$5,"") ->  | DP9: =IF(AND($I9=DP$2,$R9<DP$3,$R9>DP$4,$L9>DP$6,$L9<DP$7),DP$5,"") ->  | EF9: =IF(AND($I9=EF$2,$R9<EF$3,$R9>EF$4,$L9>EF$6,$L9<EF$7),EF$5,"") ->  | EV9: =IF(AND($I9=EV$2,$R9<EV$3,$R9>EV$4,$L9>EV$6,$L9<EV$7),EV$5,"") ->  | FL9: =IF(AND($I9=FL$2,$R9<FL$3,$R9>FL$4,$L9>FL$6,$L9<FL$7),FL$5,"") -> 
B10: 1 | C10: =SUBTOTAL(9,$B$9:B10) -> 2 | N10: / | AA10: 00:00:00 | AB10: / | AG10: 0 | AJ10: 1 | AL10: 1900
B11: 1 | C11: =SUBTOTAL(9,$B$9:B11) -> 3 | N11: / | AA11: 00:00:00 | AB11: / | AG11: 0 | AJ11: 1 | AL11: 1900
B12: 1 | C12: =SUBTOTAL(9,$B$9:B12) -> 4 | N12: / | AA12: 00:00:00 | AB12: / | AG12: 0 | AJ12: 1 | AL12: 1900
B13: 1 | C13: =SUBTOTAL(9,$B$9:B13) -> 5 | N13: / | AA13: 00:00:00 | AB13: / | AG13: 0 | AJ13: 1 | AL13: 1900
B14: 1 | C14: =SUBTOTAL(9,$B$9:B14) -> 6 | N14: / | AA14: 00:00:00 | AB14: / | AG14: 0 | AJ14: 1 | AL14: 1900
B15: 1 | C15: =SUBTOTAL(9,$B$9:B15) -> 7 | N15: / | AA15: 00:00:00 | AB15: / | AG15: 0 | AJ15: 1 | AL15: 1900
B16: 1 | C16: =SUBTOTAL(9,$B$9:B16) -> 8 | N16: / | AA16: 00:00:00 | AB16: / | AG16: 0 | AJ16: 1 | AL16: 1900
B17: 1 | C17: =SUBTOTAL(9,$B$9:B17) -> 9 | N17: / | AA17: 00:00:00 | AB17: / | AG17: 0 | AJ17: 1 | AL17: 1900
B18: 1 | C18: =SUBTOTAL(9,$B$9:B18) -> 10 | N18: / | AA18: 00:00:00 | AB18: / | AG18: 0 | AJ18: 1 | AL18: 1900
B19: 1 | C19: =SUBTOTAL(9,$B$9:B19) -> 11 | N19: / | AA19: 00:00:00 | AB19: / | AG19: 0 | AJ19: 1 | AL19: 1900
B20: 1 | C20: =SUBTOTAL(9,$B$9:B20) -> 12 | N20: / | AA20: 00:00:00 | AB20: / | AG20: 0 | AJ20: 1 | AL20: 1900
B21: 1 | C21: =SUBTOTAL(9,$B$9:B21) -> 13 | N21: / | AA21: 00:00:00 | AB21: / | AG21: 0 | AJ21: 1 | AL21: 1900
B22: 1 | C22: =SUBTOTAL(9,$B$9:B22) -> 14 | N22: / | AA22: 00:00:00 | AB22: / | AG22: 0 | AJ22: 1 | AL22: 1900
B23: 1 | C23: =SUBTOTAL(9,$B$9:B23) -> 15 | N23: / | AA23: 00:00:00 | AB23: / | AG23: 0 | AJ23: 1 | AL23: 1900
B24: 1 | C24: =SUBTOTAL(9,$B$9:B24) -> 16 | N24: / | AA24: 00:00:00 | AB24: / | AG24: 0 | AJ24: 1 | AL24: 1900 | BC24: =IF(AND($I24=BC$2,$R24<BC$3,$R24>BC$4,$L24>BC$6,$L24<BC$7),BC$5,"") ->  | CI24: =IF(AND($I24=CI$2,$R24<CI$3,$R24>CI$4,$L24>CI$6,$L24<CI$7),CI$5,"") ->  | CJ24: =IF(AND($I24=CJ$2,$R24<CJ$3,$R24>CJ$4,$L24>CJ$6,$L24<CJ$7),CJ$5,"") ->  | CK24: =IF(AND($I24=CK$2,$R24<CK$3,$R24>CK$4,$L24>CK$6,$L24<CK$7),CK$5,"") ->  | DO24: =IF(AND($I24=DO$2,$R24<DO$3,$R24>DO$4,$L24>DO$6,$L24<DO$7),DO$5,"") ->  | EE24: =IF(AND($I24=EE$2,$R24<EE$3,$R24>EE$4,$L24>EE$6,$L24<EE$7),EE$5,"") ->  | FK24: =IF(AND($I24=FK$2,$R24<FK$3,$R24>FK$4,$L24>FK$6,$L24<FK$7),FK$5,"") ->  | FL24: =IF(AND($I24=FL$2,$R24<FL$3,$R24>FL$4,$L24>FL$6,$L24<FL$7),FL$5,"") ->  | FM24: =IF(AND($I24=FM$2,$R24<FM$3,$R24>FM$4,$L24>FM$6,$L24<FM$7),FM$5,"") -> 
B25: 1 | C25: =SUBTOTAL(9,$B$9:B25) -> 17 | N25: / | AA25: 00:00:00 | AB25: / | AG25: 0 | AJ25: 1 | AL25: 1900 | AN25: =IF(AND($I25=AN$2,$R25<AN$3,$R25>AN$4,$L25>AN$6,$L25<AN$7),AN$5,"") ->  | BS25: =IF(AND($I25=BS$2,$R25<BS$3,$R25>BS$4,$L25>BS$6,$L25<BS$7),BS$5,"") ->  | CI25: =IF(AND($I25=CI$2,$R25<CI$3,$R25>CI$4,$L25>CI$6,$L25<CI$7),CI$5,"") ->  | CY25: =IF(AND($I25=CY$2,$R25<CY$3,$R25>CY$4,$L25>CY$6,$L25<CY$7),CY$5,"") ->  | DO25: =IF(AND($I25=DO$2,$R25<DO$3,$R25>DO$4,$L25>DO$6,$L25<DO$7),DO$5,"") ->  | EU25: =IF(AND($I25=EU$2,$R25<EU$3,$R25>EU$4,$L25>EU$6,$L25<EU$7),EU$5,"") ->  | FK25: =IF(AND($I25=FK$2,$R25<FK$3,$R25>FK$4,$L25>FK$6,$L25<FK$7),FK$5,"") -> 
B26: 1 | C26: =SUBTOTAL(9,$B$9:B26) -> 18 | N26: / | AA26: 00:00:00 | AB26: / | AG26: 0 | AJ26: 1 | AL26: 1900
B27: 1 | C27: =SUBTOTAL(9,$B$9:B27) -> 19 | N27: / | AA27: 00:00:00 | AB27: / | AG27: 0 | AJ27: 1 | AL27: 1900
B28: 1 | C28: =SUBTOTAL(9,$B$9:B28) -> 20 | N28: / | AA28: 00:00:00 | AB28: / | AG28: 0 | AJ28: 1 | AL28: 1900
B29: 1 | C29: =SUBTOTAL(9,$B$9:B29) -> 21 | N29: / | AA29: 00:00:00 | AB29: / | AG29: 0 | AJ29: 1 | AL29: 1900
B30: 1 | C30: =SUBTOTAL(9,$B$9:B30) -> 22 | N30: / | AA30: 00:00:00 | AB30: / | AG30: 0 | AJ30: 1 | AL30: 1900
B31: 1 | C31: =SUBTOTAL(9,$B$9:B31) -> 23 | N31: / | AA31: 00:00:00 | AB31: / | AG31: 0 | AJ31: 1 | AL31: 1900
B32: 1 | C32: =SUBTOTAL(9,$B$9:B32) -> 24 | N32: / | Z32: =IF(H32<>"",(SONTARİH),"") ->  | AA32: 00:00:00 | AB32: / | AF32: =VALUE(TEXT(Z32,"GG")) ->  | AG32: 0 | AJ32: 1 | AL32: 1900
B33: 1 | C33: =SUBTOTAL(9,$B$9:B33) -> 25 | N33: / | AA33: 00:00:00 | AB33: / | AG33: 0 | AJ33: 1 | AL33: 1900
B34: 1 | C34: =SUBTOTAL(9,$B$9:B34) -> 26 | N34: / | AA34: 00:00:00 | AB34: / | AG34: 0 | AJ34: 1 | AL34: 1900
B35: 1 | C35: =SUBTOTAL(9,$B$9:B35) -> 27 | N35: / | AA35: 00:00:00 | AB35: / | AG35: 0 | AJ35: 1 | AL35: 1900
B36: 1 | C36: =SUBTOTAL(9,$B$9:B36) -> 28 | N36: / | AA36: 00:00:00 | AB36: / | AG36: 0 | AJ36: 1 | AL36: 1900
B37: 1 | C37: =SUBTOTAL(9,$B$9:B37) -> 29 | N37: / | AA37: 00:00:00 | AB37: / | AG37: 0 | AJ37: 1 | AL37: 1900
B38: 1 | C38: 30 | O38: =IF(I38="","",(AK38-AL38)) ->  | P38: =IF(H38<>"",(IF(AI38<AJ38,(AI38+12)-AJ38,(AI38-AJ38))),"") ->  | Q38: =IF(H38<>"",(IF(AF38<AG38,AH38-AG38,AF38-AG38)),"") ->  | R38: =VALUE((O38&S38)) ->  | S38: =IF((LEN(P38))=1,0&P38,P38) ->  | AA38: 00:00:00 | AB38: / | AF38: =VALUE(TEXT(Z38,"GG")) ->  | AG38: =VALUE(TEXT(AA38,"GG")) -> 0 | AH38: =IF((AF38-AG38)<0,AF38+30,(AF38-AG38)) ->  | AI38: =IF(AF38<AG38,((VALUE(TEXT(Z38,"AA"))))-1,(VALUE(TEXT(Z38,"AA")))) ->  | AJ38: =VALUE(TEXT(AA38,"AA")) -> 1 | AK38: =IF(AI38<AJ38,(VALUE(TEXT(Z38,"YYY")))-1,(VALUE(TEXT(Z38,"YYY")))) ->  | AL38: =VALUE(TEXT(AA38,"YYY")) -> 1900
B39: 1 | C39: 31 | O39: =IF(I39="","",(AK39-AL39)) ->  | P39: =IF(H39<>"",(IF(AI39<AJ39,(AI39+12)-AJ39,(AI39-AJ39))),"") ->  | Q39: =IF(H39<>"",(IF(AF39<AG39,AH39-AG39,AF39-AG39)),"") ->  | R39: =VALUE((O39&S39)) ->  | S39: =IF((LEN(P39))=1,0&P39,P39) ->  | AA39: 00:00:00 | AB39: / | AF39: =VALUE(TEXT(Z39,"GG")) ->  | AG39: =VALUE(TEXT(AA39,"GG")) -> 0 | AH39: =IF((AF39-AG39)<0,AF39+30,(AF39-AG39)) ->  | AI39: =IF(AF39<AG39,((VALUE(TEXT(Z39,"AA"))))-1,(VALUE(TEXT(Z39,"AA")))) ->  | AJ39: =VALUE(TEXT(AA39,"AA")) -> 1 | AK39: =IF(AI39<AJ39,(VALUE(TEXT(Z39,"YYY")))-1,(VALUE(TEXT(Z39,"YYY")))) ->  | AL39: =VALUE(TEXT(AA39,"YYY")) -> 1900 | BS39: =IF(AND($I39=BS$2,$R39<BS$3,$R39>BS$4,$L39>BS$6,$L39<BS$7),BS$5,"") ->  | CI39: =IF(AND($I39=CI$2,$R39<CI$3,$R39>CI$4,$L39>CI$6,$L39<CI$7),CI$5,"") ->  | CY39: =IF(AND($I39=CY$2,$R39<CY$3,$R39>CY$4,$L39>CY$6,$L39<CY$7),CY$5,"") ->  | DO39: =IF(AND($I39=DO$2,$R39<DO$3,$R39>DO$4,$L39>DO$6,$L39<DO$7),DO$5,"") ->  | EE39: =IF(AND($I39=EE$2,$R39<EE$3,$R39>EE$4,$L39>EE$6,$L39<EE$7),EE$5,"") ->  | EU39: =IF(AND($I39=EU$2,$R39<EU$3,$R39>EU$4,$L39>EU$6,$L39<EU$7),EU$5,"") ->  | FK39: =IF(AND($I39=FK$2,$R39<FK$3,$R39>FK$4,$L39>FK$6,$L39<FK$7),FK$5,"") -> 
B40: 1 | C40: 32 | N40: / | AA40: 00:00:00 | AB40: / | AG40: 0 | AJ40: 1 | AL40: 1900 | BC40: =IF(AND($I40=BC$2,$R40<BC$3,$R40>BC$4,$L40>BC$6,$L40<BC$7),BC$5,"") ->  | BS40: =IF(AND($I40=BS$2,$R40<BS$3,$R40>BS$4,$L40>BS$6,$L40<BS$7),BS$5,"") ->  | CI40: =IF(AND($I40=CI$2,$R40<CI$3,$R40>CI$4,$L40>CI$6,$L40<CI$7),CI$5,"") ->  | CY40: =IF(AND($I40=CY$2,$R40<CY$3,$R40>CY$4,$L40>CY$6,$L40<CY$7),CY$5,"") ->  | DO40: =IF(AND($I40=DO$2,$R40<DO$3,$R40>DO$4,$L40>DO$6,$L40<DO$7),DO$5,"") ->  | EE40: =IF(AND($I40=EE$2,$R40<EE$3,$R40>EE$4,$L40>EE$6,$L40<EE$7),EE$5,"") ->  | EU40: =IF(AND($I40=EU$2,$R40<EU$3,$R40>EU$4,$L40>EU$6,$L40<EU$7),EU$5,"") ->  | FK40: =IF(AND($I40=FK$2,$R40<FK$3,$R40>FK$4,$L40>FK$6,$L40<FK$7),FK$5,"") -> 
B41: 1 | C41: =SUBTOTAL(9,$B$9:B41) -> 33 | N41: / | AA41: 00:00:00 | AB41: / | AG41: 0 | AJ41: 1 | AL41: 1900 | AN41: =IF(AND($I41=AN$2,$R41<AN$3,$R41>AN$4,$L41>AN$6,$L41<AN$7),AN$5,"") -> 
B42: 1 | C42: =SUBTOTAL(9,$B$9:B42) -> 34 | N42: / | AA42: 00:00:00 | AB42: / | AG42: 0 | AJ42: 1 | AL42: 1900
B43: 1 | C43: =SUBTOTAL(9,$B$9:B43) -> 35 | N43: / | AA43: 00:00:00 | AB43: / | AG43: 0 | AJ43: 1 | AL43: 1900 | BC43: =IF(AND($I43=BC$2,$R43<BC$3,$R43>BC$4,$L43>BC$6,$L43<BC$7),BC$5,"") -> 
B44: 1 | C44: =SUBTOTAL(9,$B$9:B44) -> 36 | M44: =IF((J44+K44)>0,(VLOOKUP((MAX(AN44:FW44)),KRİTERLER,2,0)),"") ->  | N44: / | AA44: 00:00:00 | AB44: / | AG44: 0 | AJ44: 1 | AL44: 1900
B45: 1 | C45: =SUBTOTAL(9,$B$9:B45) -> 37 | N45: / | AA45: 00:00:00 | AB45: / | AG45: 0 | AJ45: 1 | AL45: 1900
B46: 1 | C46: =SUBTOTAL(9,$B$9:B46) -> 38 | L46: =IF((J46+K46)>0,(ROUND(((K46)/(J46/100*J46/100)),2)),"") ->  | N46: =E46&"/"&F46&M46 -> / | O46: =IF(I46="","",(AK46-AL46)) ->  | P46: =IF(H46<>"",(IF(AI46<AJ46,(AI46+12)-AJ46,(AI46-AJ46))),"") ->  | Q46: =IF(H46<>"",(IF(AF46<AG46,AH46-AG46,AF46-AG46)),"") ->  | R46: =VALUE((O46&S46)) ->  | S46: =IF((LEN(P46))=1,0&P46,P46) ->  | Y46: =IF(H46<>"",(YEAR(H46)),"") ->  | Z46: =IF(H46<>"",(SONTARİH),"") ->  | AA46: =H46 -> 00:00:00 | AB46: =E46&"/"&F46 -> / | AG46: 0 | AH46: =IF((AF46-AG46)<0,AF46+30,(AF46-AG46)) ->  | AI46: =IF(AF46<AG46,((VALUE(TEXT(Z46,"AA"))))-1,(VALUE(TEXT(Z46,"AA")))) ->  | AJ46: =VALUE(TEXT(AA46,"AA")) -> 1 | AK46: =IF(AI46<AJ46,(VALUE(TEXT(Z46,"YYY")))-1,(VALUE(TEXT(Z46,"YYY")))) ->  | AL46: =VALUE(TEXT(AA46,"YYY")) -> 1900
B47: 1 | C47: =SUBTOTAL(9,$B$9:B47) -> 39 | L47: =IF((J47+K47)>0,(ROUND(((K47)/(J47/100*J47/100)),2)),"") ->  | N47: =E47&"/"&F47&M47 -> / | O47: =IF(I47="","",(AK47-AL47)) ->  | P47: =IF(H47<>"",(IF(AI47<AJ47,(AI47+12)-AJ47,(AI47-AJ47))),"") ->  | Q47: =IF(H47<>"",(IF(AF47<AG47,AH47-AG47,AF47-AG47)),"") ->  | R47: =VALUE((O47&S47)) ->  | S47: =IF((LEN(P47))=1,0&P47,P47) ->  | Y47: =IF(H47<>"",(YEAR(H47)),"") ->  | Z47: =IF(H47<>"",(SONTARİH),"") ->  | AA47: =H47 -> 00:00:00 | AB47: =E47&"/"&F47 -> / | AG47: 0 | AH47: =IF((AF47-AG47)<0,AF47+30,(AF47-AG47)) ->  | AI47: =IF(AF47<AG47,((VALUE(TEXT(Z47,"AA"))))-1,(VALUE(TEXT(Z47,"AA")))) ->  | AJ47: =VALUE(TEXT(AA47,"AA")) -> 1 | AK47: =IF(AI47<AJ47,(VALUE(TEXT(Z47,"YYY")))-1,(VALUE(TEXT(Z47,"YYY")))) ->  | AL47: =VALUE(TEXT(AA47,"YYY")) -> 1900
B48: 1 | C48: =SUBTOTAL(9,$B$9:B48) -> 40 | L48: =IF((J48+K48)>0,(ROUND(((K48)/(J48/100*J48/100)),2)),"") ->  | N48: =E48&"/"&F48&M48 -> / | O48: =IF(I48="","",(AK48-AL48)) ->  | P48: =IF(H48<>"",(IF(AI48<AJ48,(AI48+12)-AJ48,(AI48-AJ48))),"") ->  | Q48: =IF(H48<>"",(IF(AF48<AG48,AH48-AG48,AF48-AG48)),"") ->  | R48: =VALUE((O48&S48)) ->  | S48: =IF((LEN(P48))=1,0&P48,P48) ->  | Y48: =IF(H48<>"",(YEAR(H48)),"") ->  | Z48: =IF(H48<>"",(SONTARİH),"") ->  | AA48: =H48 -> 00:00:00 | AB48: =E48&"/"&F48 -> / | AF48: =VALUE(TEXT(Z48,"GG")) ->  | AG48: 0 | AH48: =IF((AF48-AG48)<0,AF48+30,(AF48-AG48)) ->  | AI48: =IF(AF48<AG48,((VALUE(TEXT(Z48,"AA"))))-1,(VALUE(TEXT(Z48,"AA")))) ->  | AJ48: =VALUE(TEXT(AA48,"AA")) -> 1 | AK48: =IF(AI48<AJ48,(VALUE(TEXT(Z48,"YYY")))-1,(VALUE(TEXT(Z48,"YYY")))) ->  | AL48: =VALUE(TEXT(AA48,"YYY")) -> 1900
E49: BKİ : BEDEN KİTLE İNDEKSİ | AN49: =IF(AND(#REF!=AN$2,$R49<AN$3,$R49>AN$4,#REF!>AN$6,#REF!<AN$7),AN$5,"") ->  | AO49: =IF(AND(#REF!=AO$2,$R49<AO$3,$R49>AO$4,#REF!>AO$6,#REF!<AO$7),AO$5,"") ->  | AP49: =IF(AND(#REF!=AP$2,$R49<AP$3,$R49>AP$4,#REF!>AP$6,#REF!<AP$7),AP$5,"") ->  | AQ49: =IF(AND(#REF!=AQ$2,$R49<AQ$3,$R49>AQ$4,#REF!>AQ$6,#REF!<AQ$7),AQ$5,"") ->  | AR49: =IF(AND(#REF!=AR$2,$R49<AR$3,$R49>AR$4,#REF!>AR$6,#REF!<AR$7),AR$5,"") ->  | AS49: =IF(AND(#REF!=AS$2,$R49<AS$3,$R49>AS$4,#REF!>AS$6,#REF!<AS$7),AS$5,"") ->  | AT49: =IF(AND(#REF!=AT$2,$R49<AT$3,$R49>AT$4,#REF!>AT$6,#REF!<AT$7),AT$5,"") ->  | AU49: =IF(AND(#REF!=AU$2,$R49<AU$3,$R49>AU$4,#REF!>AU$6,#REF!<AU$7),AU$5,"") ->  | AV49: =IF(AND(#REF!=AV$2,$R49<AV$3,$R49>AV$4,#REF!>AV$6,#REF!<AV$7),AV$5,"") ->  | AW49: =IF(AND(#REF!=AW$2,$R49<AW$3,$R49>AW$4,#REF!>AW$6,#REF!<AW$7),AW$5,"") ->  | AX49: =IF(AND(#REF!=AX$2,$R49<AX$3,$R49>AX$4,#REF!>AX$6,#REF!<AX$7),AX$5,"") ->  | AY49: =IF(AND(#REF!=AY$2,$R49<AY$3,$R49>AY$4,#REF!>AY$6,#REF!<AY$7),AY$5,"") ->  | AZ49: =IF(AND(#REF!=AZ$2,$R49<AZ$3,$R49>AZ$4,#REF!>AZ$6,#REF!<AZ$7),AZ$5,"") ->  | BA49: =IF(AND(#REF!=BA$2,$R49<BA$3,$R49>BA$4,#REF!>BA$6,#REF!<BA$7),BA$5,"") ->  | BB49: =IF(AND(#REF!=BB$2,$R49<BB$3,$R49>BB$4,#REF!>BB$6,#REF!<BB$7),BB$5,"") ->  | BC49: =IF(AND(#REF!=BC$2,$R49<BC$3,$R49>BC$4,#REF!>BC$6,#REF!<BC$7),BC$5,"") ->  | BD49: =IF(AND(#REF!=BD$2,$R49<BD$3,$R49>BD$4,#REF!>BD$6,#REF!<BD$7),BD$5,"") ->  | BE49: =IF(AND(#REF!=BE$2,$R49<BE$3,$R49>BE$4,#REF!>BE$6,#REF!<BE$7),BE$5,"") ->  | BF49: =IF(AND(#REF!=BF$2,$R49<BF$3,$R49>BF$4,#REF!>BF$6,#REF!<BF$7),BF$5,"") ->  | BG49: =IF(AND(#REF!=BG$2,$R49<BG$3,$R49>BG$4,#REF!>BG$6,#REF!<BG$7),BG$5,"") ->  | BH49: =IF(AND(#REF!=BH$2,$R49<BH$3,$R49>BH$4,#REF!>BH$6,#REF!<BH$7),BH$5,"") ->  | BI49: =IF(AND(#REF!=BI$2,$R49<BI$3,$R49>BI$4,#REF!>BI$6,#REF!<BI$7),BI$5,"") ->  | BJ49: =IF(AND(#REF!=BJ$2,$R49<BJ$3,$R49>BJ$4,#REF!>BJ$6,#REF!<BJ$7),BJ$5,"") ->  | BK49: =IF(AND(#REF!=BK$2,$R49<BK$3,$R49>BK$4,#REF!>BK$6,#REF!<BK$7),BK$5,"") ->  | BL49: =IF(AND(#REF!=BL$2,$R49<BL$3,$R49>BL$4,#REF!>BL$6,#REF!<BL$7),BL$5,"") ->  | BM49: =IF(AND(#REF!=BM$2,$R49<BM$3,$R49>BM$4,#REF!>BM$6,#REF!<BM$7),BM$5,"") ->  | BN49: =IF(AND(#REF!=BN$2,$R49<BN$3,$R49>BN$4,#REF!>BN$6,#REF!<BN$7),BN$5,"") ->  | BO49: =IF(AND(#REF!=BO$2,$R49<BO$3,$R49>BO$4,#REF!>BO$6,#REF!<BO$7),BO$5,"") ->  | BP49: =IF(AND(#REF!=BP$2,$R49<BP$3,$R49>BP$4,#REF!>BP$6,#REF!<BP$7),BP$5,"") ->  | BQ49: =IF(AND(#REF!=BQ$2,$R49<BQ$3,$R49>BQ$4,#REF!>BQ$6,#REF!<BQ$7),BQ$5,"") ->  | BR49: =IF(AND(#REF!=BR$2,$R49<BR$3,$R49>BR$4,#REF!>BR$6,#REF!<BR$7),BR$5,"") ->  | BS49: =IF(AND(#REF!=BS$2,$R49<BS$3,$R49>BS$4,#REF!>BS$6,#REF!<BS$7),BS$5,"") ->  | BT49: =IF(AND(#REF!=BT$2,$R49<BT$3,$R49>BT$4,#REF!>BT$6,#REF!<BT$7),BT$5,"") ->  | BU49: =IF(AND(#REF!=BU$2,$R49<BU$3,$R49>BU$4,#REF!>BU$6,#REF!<BU$7),BU$5,"") ->  | BV49: =IF(AND(#REF!=BV$2,$R49<BV$3,$R49>BV$4,#REF!>BV$6,#REF!<BV$7),BV$5,"") ->  | BW49: =IF(AND(#REF!=BW$2,$R49<BW$3,$R49>BW$4,#REF!>BW$6,#REF!<BW$7),BW$5,"") ->  | BX49: =IF(AND(#REF!=BX$2,$R49<BX$3,$R49>BX$4,#REF!>BX$6,#REF!<BX$7),BX$5,"") ->  | BY49: =IF(AND(#REF!=BY$2,$R49<BY$3,$R49>BY$4,#REF!>BY$6,#REF!<BY$7),BY$5,"") ->  | BZ49: =IF(AND(#REF!=BZ$2,$R49<BZ$3,$R49>BZ$4,#REF!>BZ$6,#REF!<BZ$7),BZ$5,"") ->  | CA49: =IF(AND(#REF!=CA$2,$R49<CA$3,$R49>CA$4,#REF!>CA$6,#REF!<CA$7),CA$5,"") ->  | CB49: =IF(AND(#REF!=CB$2,$R49<CB$3,$R49>CB$4,#REF!>CB$6,#REF!<CB$7),CB$5,"") ->  | CC49: =IF(AND(#REF!=CC$2,$R49<CC$3,$R49>CC$4,#REF!>CC$6,#REF!<CC$7),CC$5,"") ->  | CD49: =IF(AND(#REF!=CD$2,$R49<CD$3,$R49>CD$4,#REF!>CD$6,#REF!<CD$7),CD$5,"") ->  | CE49: =IF(AND(#REF!=CE$2,$R49<CE$3,$R49>CE$4,#REF!>CE$6,#REF!<CE$7),CE$5,"") ->  | CF49: =IF(AND(#REF!=CF$2,$R49<CF$3,$R49>CF$4,#REF!>CF$6,#REF!<CF$7),CF$5,"") ->  | CG49: =IF(AND(#REF!=CG$2,$R49<CG$3,$R49>CG$4,#REF!>CG$6,#REF!<CG$7),CG$5,"") ->  | CH49: =IF(AND(#REF!=CH$2,$R49<CH$3,$R49>CH$4,#REF!>CH$6,#REF!<CH$7),CH$5,"") ->  | CI49: =IF(AND(#REF!=CI$2,$R49<CI$3,$R49>CI$4,#REF!>CI$6,#REF!<CI$7),CI$5,"") ->  | CJ49: =IF(AND(#REF!=CJ$2,$R49<CJ$3,$R49>CJ$4,#REF!>CJ$6,#REF!<CJ$7),CJ$5,"") ->  | CK49: =IF(AND(#REF!=CK$2,$R49<CK$3,$R49>CK$4,#REF!>CK$6,#REF!<CK$7),CK$5,"") ->  | CL49: =IF(AND(#REF!=CL$2,$R49<CL$3,$R49>CL$4,#REF!>CL$6,#REF!<CL$7),CL$5,"") ->  | CM49: =IF(AND(#REF!=CM$2,$R49<CM$3,$R49>CM$4,#REF!>CM$6,#REF!<CM$7),CM$5,"") ->  | CN49: =IF(AND(#REF!=CN$2,$R49<CN$3,$R49>CN$4,#REF!>CN$6,#REF!<CN$7),CN$5,"") ->  | CO49: =IF(AND(#REF!=CO$2,$R49<CO$3,$R49>CO$4,#REF!>CO$6,#REF!<CO$7),CO$5,"") ->  | CP49: =IF(AND(#REF!=CP$2,$R49<CP$3,$R49>CP$4,#REF!>CP$6,#REF!<CP$7),CP$5,"") ->  | CQ49: =IF(AND(#REF!=CQ$2,$R49<CQ$3,$R49>CQ$4,#REF!>CQ$6,#REF!<CQ$7),CQ$5,"") ->  | CR49: =IF(AND(#REF!=CR$2,$R49<CR$3,$R49>CR$4,#REF!>CR$6,#REF!<CR$7),CR$5,"") ->  | CS49: =IF(AND(#REF!=CS$2,$R49<CS$3,$R49>CS$4,#REF!>CS$6,#REF!<CS$7),CS$5,"") ->  | CT49: =IF(AND(#REF!=CT$2,$R49<CT$3,$R49>CT$4,#REF!>CT$6,#REF!<CT$7),CT$5,"") ->  | CU49: =IF(AND(#REF!=CU$2,$R49<CU$3,$R49>CU$4,#REF!>CU$6,#REF!<CU$7),CU$5,"") ->  | CV49: =IF(AND(#REF!=CV$2,$R49<CV$3,$R49>CV$4,#REF!>CV$6,#REF!<CV$7),CV$5,"") ->  | CW49: =IF(AND(#REF!=CW$2,$R49<CW$3,$R49>CW$4,#REF!>CW$6,#REF!<CW$7),CW$5,"") ->  | CX49: =IF(AND(#REF!=CX$2,$R49<CX$3,$R49>CX$4,#REF!>CX$6,#REF!<CX$7),CX$5,"") ->  | CY49: =IF(AND(#REF!=CY$2,$R49<CY$3,$R49>CY$4,#REF!>CY$6,#REF!<CY$7),CY$5,"") ->  | CZ49: =IF(AND(#REF!=CZ$2,$R49<CZ$3,$R49>CZ$4,#REF!>CZ$6,#REF!<CZ$7),CZ$5,"") ->  | DA49: =IF(AND(#REF!=DA$2,$R49<DA$3,$R49>DA$4,#REF!>DA$6,#REF!<DA$7),DA$5,"") ->  | DB49: =IF(AND(#REF!=DB$2,$R49<DB$3,$R49>DB$4,#REF!>DB$6,#REF!<DB$7),DB$5,"") ->  | DC49: =IF(AND(#REF!=DC$2,$R49<DC$3,$R49>DC$4,#REF!>DC$6,#REF!<DC$7),DC$5,"") ->  | DD49: =IF(AND(#REF!=DD$2,$R49<DD$3,$R49>DD$4,#REF!>DD$6,#REF!<DD$7),DD$5,"") ->  | DE49: =IF(AND(#REF!=DE$2,$R49<DE$3,$R49>DE$4,#REF!>DE$6,#REF!<DE$7),DE$5,"") ->  | DF49: =IF(AND(#REF!=DF$2,$R49<DF$3,$R49>DF$4,#REF!>DF$6,#REF!<DF$7),DF$5,"") ->  | DG49: =IF(AND(#REF!=DG$2,$R49<DG$3,$R49>DG$4,#REF!>DG$6,#REF!<DG$7),DG$5,"") ->  | DH49: =IF(AND(#REF!=DH$2,$R49<DH$3,$R49>DH$4,#REF!>DH$6,#REF!<DH$7),DH$5,"") ->  | DI49: =IF(AND(#REF!=DI$2,$R49<DI$3,$R49>DI$4,#REF!>DI$6,#REF!<DI$7),DI$5,"") ->  | DJ49: =IF(AND(#REF!=DJ$2,$R49<DJ$3,$R49>DJ$4,#REF!>DJ$6,#REF!<DJ$7),DJ$5,"") ->  | DK49: =IF(AND(#REF!=DK$2,$R49<DK$3,$R49>DK$4,#REF!>DK$6,#REF!<DK$7),DK$5,"") ->  | DL49: =IF(AND(#REF!=DL$2,$R49<DL$3,$R49>DL$4,#REF!>DL$6,#REF!<DL$7),DL$5,"") ->  | DM49: =IF(AND(#REF!=DM$2,$R49<DM$3,$R49>DM$4,#REF!>DM$6,#REF!<DM$7),DM$5,"") ->  | DN49: =IF(AND(#REF!=DN$2,$R49<DN$3,$R49>DN$4,#REF!>DN$6,#REF!<DN$7),DN$5,"") ->  | DO49: =IF(AND(#REF!=DO$2,$R49<DO$3,$R49>DO$4,#REF!>DO$6,#REF!<DO$7),DO$5,"") ->  | DP49: =IF(AND(#REF!=DP$2,$R49<DP$3,$R49>DP$4,#REF!>DP$6,#REF!<DP$7),DP$5,"") ->  | DQ49: =IF(AND(#REF!=DQ$2,$R49<DQ$3,$R49>DQ$4,#REF!>DQ$6,#REF!<DQ$7),DQ$5,"") ->  | DR49: =IF(AND(#REF!=DR$2,$R49<DR$3,$R49>DR$4,#REF!>DR$6,#REF!<DR$7),DR$5,"") ->  | DS49: =IF(AND(#REF!=DS$2,$R49<DS$3,$R49>DS$4,#REF!>DS$6,#REF!<DS$7),DS$5,"") ->  | DT49: =IF(AND(#REF!=DT$2,$R49<DT$3,$R49>DT$4,#REF!>DT$6,#REF!<DT$7),DT$5,"") ->  | DU49: =IF(AND(#REF!=DU$2,$R49<DU$3,$R49>DU$4,#REF!>DU$6,#REF!<DU$7),DU$5,"") ->  | DV49: =IF(AND(#REF!=DV$2,$R49<DV$3,$R49>DV$4,#REF!>DV$6,#REF!<DV$7),DV$5,"") ->  | DW49: =IF(AND(#REF!=DW$2,$R49<DW$3,$R49>DW$4,#REF!>DW$6,#REF!<DW$7),DW$5,"") ->  | DX49: =IF(AND(#REF!=DX$2,$R49<DX$3,$R49>DX$4,#REF!>DX$6,#REF!<DX$7),DX$5,"") ->  | DY49: =IF(AND(#REF!=DY$2,$R49<DY$3,$R49>DY$4,#REF!>DY$6,#REF!<DY$7),DY$5,"") ->  | DZ49: =IF(AND(#REF!=DZ$2,$R49<DZ$3,$R49>DZ$4,#REF!>DZ$6,#REF!<DZ$7),DZ$5,"") ->  | EA49: =IF(AND(#REF!=EA$2,$R49<EA$3,$R49>EA$4,#REF!>EA$6,#REF!<EA$7),EA$5,"") ->  | EB49: =IF(AND(#REF!=EB$2,$R49<EB$3,$R49>EB$4,#REF!>EB$6,#REF!<EB$7),EB$5,"") ->  | EC49: =IF(AND(#REF!=EC$2,$R49<EC$3,$R49>EC$4,#REF!>EC$6,#REF!<EC$7),EC$5,"") ->  | ED49: =IF(AND(#REF!=ED$2,$R49<ED$3,$R49>ED$4,#REF!>ED$6,#REF!<ED$7),ED$5,"") ->  | EE49: =IF(AND(#REF!=EE$2,$R49<EE$3,$R49>EE$4,#REF!>EE$6,#REF!<EE$7),EE$5,"") ->  | EF49: =IF(AND(#REF!=EF$2,$R49<EF$3,$R49>EF$4,#REF!>EF$6,#REF!<EF$7),EF$5,"") ->  | EG49: =IF(AND(#REF!=EG$2,$R49<EG$3,$R49>EG$4,#REF!>EG$6,#REF!<EG$7),EG$5,"") ->  | EH49: =IF(AND(#REF!=EH$2,$R49<EH$3,$R49>EH$4,#REF!>EH$6,#REF!<EH$7),EH$5,"") ->  | EI49: =IF(AND(#REF!=EI$2,$R49<EI$3,$R49>EI$4,#REF!>EI$6,#REF!<EI$7),EI$5,"") ->  | EJ49: =IF(AND(#REF!=EJ$2,$R49<EJ$3,$R49>EJ$4,#REF!>EJ$6,#REF!<EJ$7),EJ$5,"") ->  | EK49: =IF(AND(#REF!=EK$2,$R49<EK$3,$R49>EK$4,#REF!>EK$6,#REF!<EK$7),EK$5,"") ->  | EL49: =IF(AND(#REF!=EL$2,$R49<EL$3,$R49>EL$4,#REF!>EL$6,#REF!<EL$7),EL$5,"") ->  | EM49: =IF(AND(#REF!=EM$2,$R49<EM$3,$R49>EM$4,#REF!>EM$6,#REF!<EM$7),EM$5,"") ->  | EN49: =IF(AND(#REF!=EN$2,$R49<EN$3,$R49>EN$4,#REF!>EN$6,#REF!<EN$7),EN$5,"") ->  | EO49: =IF(AND(#REF!=EO$2,$R49<EO$3,$R49>EO$4,#REF!>EO$6,#REF!<EO$7),EO$5,"") ->  | EP49: =IF(AND(#REF!=EP$2,$R49<EP$3,$R49>EP$4,#REF!>EP$6,#REF!<EP$7),EP$5,"") ->  | EQ49: =IF(AND(#REF!=EQ$2,$R49<EQ$3,$R49>EQ$4,#REF!>EQ$6,#REF!<EQ$7),EQ$5,"") ->  | ER49: =IF(AND(#REF!=ER$2,$R49<ER$3,$R49>ER$4,#REF!>ER$6,#REF!<ER$7),ER$5,"") ->  | ES49: =IF(AND(#REF!=ES$2,$R49<ES$3,$R49>ES$4,#REF!>ES$6,#REF!<ES$7),ES$5,"") ->  | ET49: =IF(AND(#REF!=ET$2,$R49<ET$3,$R49>ET$4,#REF!>ET$6,#REF!<ET$7),ET$5,"") ->  | EU49: =IF(AND(#REF!=EU$2,$R49<EU$3,$R49>EU$4,#REF!>EU$6,#REF!<EU$7),EU$5,"") ->  | EV49: =IF(AND(#REF!=EV$2,$R49<EV$3,$R49>EV$4,#REF!>EV$6,#REF!<EV$7),EV$5,"") ->  | EW49: =IF(AND(#REF!=EW$2,$R49<EW$3,$R49>EW$4,#REF!>EW$6,#REF!<EW$7),EW$5,"") ->  | EX49: =IF(AND(#REF!=EX$2,$R49<EX$3,$R49>EX$4,#REF!>EX$6,#REF!<EX$7),EX$5,"") ->  | EY49: =IF(AND(#REF!=EY$2,$R49<EY$3,$R49>EY$4,#REF!>EY$6,#REF!<EY$7),EY$5,"") ->  | EZ49: =IF(AND(#REF!=EZ$2,$R49<EZ$3,$R49>EZ$4,#REF!>EZ$6,#REF!<EZ$7),EZ$5,"") ->  | FA49: =IF(AND(#REF!=FA$2,$R49<FA$3,$R49>FA$4,#REF!>FA$6,#REF!<FA$7),FA$5,"") ->  | FB49: =IF(AND(#REF!=FB$2,$R49<FB$3,$R49>FB$4,#REF!>FB$6,#REF!<FB$7),FB$5,"") ->  | FC49: =IF(AND(#REF!=FC$2,$R49<FC$3,$R49>FC$4,#REF!>FC$6,#REF!<FC$7),FC$5,"") ->  | FD49: =IF(AND(#REF!=FD$2,$R49<FD$3,$R49>FD$4,#REF!>FD$6,#REF!<FD$7),FD$5,"") ->  | FE49: =IF(AND(#REF!=FE$2,$R49<FE$3,$R49>FE$4,#REF!>FE$6,#REF!<FE$7),FE$5,"") ->  | FF49: =IF(AND(#REF!=FF$2,$R49<FF$3,$R49>FF$4,#REF!>FF$6,#REF!<FF$7),FF$5,"") ->  | FG49: =IF(AND(#REF!=FG$2,$R49<FG$3,$R49>FG$4,#REF!>FG$6,#REF!<FG$7),FG$5,"") ->  | FH49: =IF(AND(#REF!=FH$2,$R49<FH$3,$R49>FH$4,#REF!>FH$6,#REF!<FH$7),FH$5,"") ->  | FI49: =IF(AND(#REF!=FI$2,$R49<FI$3,$R49>FI$4,#REF!>FI$6,#REF!<FI$7),FI$5,"") ->  | FJ49: =IF(AND(#REF!=FJ$2,$R49<FJ$3,$R49>FJ$4,#REF!>FJ$6,#REF!<FJ$7),FJ$5,"") ->  | FK49: =IF(AND(#REF!=FK$2,$R49<FK$3,$R49>FK$4,#REF!>FK$6,#REF!<FK$7),FK$5,"") ->  | FL49: =IF(AND(#REF!=FL$2,$R49<FL$3,$R49>FL$4,#REF!>FL$6,#REF!<FL$7),FL$5,"") ->  | FM49: =IF(AND(#REF!=FM$2,$R49<FM$3,$R49>FM$4,#REF!>FM$6,#REF!<FM$7),FM$5,"") ->  | FN49: =IF(AND(#REF!=FN$2,$R49<FN$3,$R49>FN$4,#REF!>FN$6,#REF!<FN$7),FN$5,"") ->  | FO49: =IF(AND(#REF!=FO$2,$R49<FO$3,$R49>FO$4,#REF!>FO$6,#REF!<FO$7),FO$5,"") ->  | FP49: =IF(AND(#REF!=FP$2,$R49<FP$3,$R49>FP$4,#REF!>FP$6,#REF!<FP$7),FP$5,"") ->  | FQ49: =IF(AND(#REF!=FQ$2,$R49<FQ$3,$R49>FQ$4,#REF!>FQ$6,#REF!<FQ$7),FQ$5,"") ->  | FR49: =IF(AND(#REF!=FR$2,$R49<FR$3,$R49>FR$4,#REF!>FR$6,#REF!<FR$7),FR$5,"") ->  | FS49: =IF(AND(#REF!=FS$2,$R49<FS$3,$R49>FS$4,#REF!>FS$6,#REF!<FS$7),FS$5,"") ->  | FT49: =IF(AND(#REF!=FT$2,$R49<FT$3,$R49>FT$4,#REF!>FT$6,#REF!<FT$7),FT$5,"") ->  | FU49: =IF(AND(#REF!=FU$2,$R49<FU$3,$R49>FU$4,#REF!>FU$6,#REF!<FU$7),FU$5,"") ->  | FV49: =IF(AND(#REF!=FV$2,$R49<FV$3,$R49>FV$4,#REF!>FV$6,#REF!<FV$7),FV$5,"") ->  | FW49: =IF(AND(#REF!=FW$2,$R49<FW$3,$R49>FW$4,#REF!>FW$6,#REF!<FW$7),FW$5,"") -> 
D50: =SSNNFF&E50 -> ANA/AÇOK ZAYIF | E50: =AA1 -> ÇOK ZAYIF | I50: =COUNTIF(N9:N48,D50) -> 0 | AN50: =IF(AND(#REF!=AN$2,$R50<AN$3,$R50>AN$4,#REF!>AN$6,#REF!<AN$7),AN$5,"") ->  | AO50: =IF(AND(#REF!=AO$2,$R50<AO$3,$R50>AO$4,#REF!>AO$6,#REF!<AO$7),AO$5,"") ->  | AP50: =IF(AND(#REF!=AP$2,$R50<AP$3,$R50>AP$4,#REF!>AP$6,#REF!<AP$7),AP$5,"") ->  | AQ50: =IF(AND(#REF!=AQ$2,$R50<AQ$3,$R50>AQ$4,#REF!>AQ$6,#REF!<AQ$7),AQ$5,"") ->  | AR50: =IF(AND(#REF!=AR$2,$R50<AR$3,$R50>AR$4,#REF!>AR$6,#REF!<AR$7),AR$5,"") ->  | AS50: =IF(AND(#REF!=AS$2,$R50<AS$3,$R50>AS$4,#REF!>AS$6,#REF!<AS$7),AS$5,"") ->  | AT50: =IF(AND(#REF!=AT$2,$R50<AT$3,$R50>AT$4,#REF!>AT$6,#REF!<AT$7),AT$5,"") ->  | AU50: =IF(AND(#REF!=AU$2,$R50<AU$3,$R50>AU$4,#REF!>AU$6,#REF!<AU$7),AU$5,"") ->  | AV50: =IF(AND(#REF!=AV$2,$R50<AV$3,$R50>AV$4,#REF!>AV$6,#REF!<AV$7),AV$5,"") ->  | AW50: =IF(AND(#REF!=AW$2,$R50<AW$3,$R50>AW$4,#REF!>AW$6,#REF!<AW$7),AW$5,"") ->  | AX50: =IF(AND(#REF!=AX$2,$R50<AX$3,$R50>AX$4,#REF!>AX$6,#REF!<AX$7),AX$5,"") ->  | AY50: =IF(AND(#REF!=AY$2,$R50<AY$3,$R50>AY$4,#REF!>AY$6,#REF!<AY$7),AY$5,"") ->  | AZ50: =IF(AND(#REF!=AZ$2,$R50<AZ$3,$R50>AZ$4,#REF!>AZ$6,#REF!<AZ$7),AZ$5,"") ->  | BA50: =IF(AND(#REF!=BA$2,$R50<BA$3,$R50>BA$4,#REF!>BA$6,#REF!<BA$7),BA$5,"") ->  | BB50: =IF(AND(#REF!=BB$2,$R50<BB$3,$R50>BB$4,#REF!>BB$6,#REF!<BB$7),BB$5,"") ->  | BC50: =IF(AND(#REF!=BC$2,$R50<BC$3,$R50>BC$4,#REF!>BC$6,#REF!<BC$7),BC$5,"") ->  | BD50: =IF(AND(#REF!=BD$2,$R50<BD$3,$R50>BD$4,#REF!>BD$6,#REF!<BD$7),BD$5,"") ->  | BE50: =IF(AND(#REF!=BE$2,$R50<BE$3,$R50>BE$4,#REF!>BE$6,#REF!<BE$7),BE$5,"") ->  | BF50: =IF(AND(#REF!=BF$2,$R50<BF$3,$R50>BF$4,#REF!>BF$6,#REF!<BF$7),BF$5,"") ->  | BG50: =IF(AND(#REF!=BG$2,$R50<BG$3,$R50>BG$4,#REF!>BG$6,#REF!<BG$7),BG$5,"") ->  | BH50: =IF(AND(#REF!=BH$2,$R50<BH$3,$R50>BH$4,#REF!>BH$6,#REF!<BH$7),BH$5,"") ->  | BI50: =IF(AND(#REF!=BI$2,$R50<BI$3,$R50>BI$4,#REF!>BI$6,#REF!<BI$7),BI$5,"") ->  | BJ50: =IF(AND(#REF!=BJ$2,$R50<BJ$3,$R50>BJ$4,#REF!>BJ$6,#REF!<BJ$7),BJ$5,"") ->  | BK50: =IF(AND(#REF!=BK$2,$R50<BK$3,$R50>BK$4,#REF!>BK$6,#REF!<BK$7),BK$5,"") ->  | BL50: =IF(AND(#REF!=BL$2,$R50<BL$3,$R50>BL$4,#REF!>BL$6,#REF!<BL$7),BL$5,"") ->  | BM50: =IF(AND(#REF!=BM$2,$R50<BM$3,$R50>BM$4,#REF!>BM$6,#REF!<BM$7),BM$5,"") ->  | BN50: =IF(AND(#REF!=BN$2,$R50<BN$3,$R50>BN$4,#REF!>BN$6,#REF!<BN$7),BN$5,"") ->  | BO50: =IF(AND(#REF!=BO$2,$R50<BO$3,$R50>BO$4,#REF!>BO$6,#REF!<BO$7),BO$5,"") ->  | BP50: =IF(AND(#REF!=BP$2,$R50<BP$3,$R50>BP$4,#REF!>BP$6,#REF!<BP$7),BP$5,"") ->  | BQ50: =IF(AND(#REF!=BQ$2,$R50<BQ$3,$R50>BQ$4,#REF!>BQ$6,#REF!<BQ$7),BQ$5,"") ->  | BR50: =IF(AND(#REF!=BR$2,$R50<BR$3,$R50>BR$4,#REF!>BR$6,#REF!<BR$7),BR$5,"") ->  | BS50: =IF(AND(#REF!=BS$2,$R50<BS$3,$R50>BS$4,#REF!>BS$6,#REF!<BS$7),BS$5,"") ->  | BT50: =IF(AND(#REF!=BT$2,$R50<BT$3,$R50>BT$4,#REF!>BT$6,#REF!<BT$7),BT$5,"") ->  | BU50: =IF(AND(#REF!=BU$2,$R50<BU$3,$R50>BU$4,#REF!>BU$6,#REF!<BU$7),BU$5,"") ->  | BV50: =IF(AND(#REF!=BV$2,$R50<BV$3,$R50>BV$4,#REF!>BV$6,#REF!<BV$7),BV$5,"") ->  | BW50: =IF(AND(#REF!=BW$2,$R50<BW$3,$R50>BW$4,#REF!>BW$6,#REF!<BW$7),BW$5,"") ->  | BX50: =IF(AND(#REF!=BX$2,$R50<BX$3,$R50>BX$4,#REF!>BX$6,#REF!<BX$7),BX$5,"") ->  | BY50: =IF(AND(#REF!=BY$2,$R50<BY$3,$R50>BY$4,#REF!>BY$6,#REF!<BY$7),BY$5,"") ->  | BZ50: =IF(AND(#REF!=BZ$2,$R50<BZ$3,$R50>BZ$4,#REF!>BZ$6,#REF!<BZ$7),BZ$5,"") ->  | CA50: =IF(AND(#REF!=CA$2,$R50<CA$3,$R50>CA$4,#REF!>CA$6,#REF!<CA$7),CA$5,"") ->  | CB50: =IF(AND(#REF!=CB$2,$R50<CB$3,$R50>CB$4,#REF!>CB$6,#REF!<CB$7),CB$5,"") ->  | CC50: =IF(AND(#REF!=CC$2,$R50<CC$3,$R50>CC$4,#REF!>CC$6,#REF!<CC$7),CC$5,"") ->  | CD50: =IF(AND(#REF!=CD$2,$R50<CD$3,$R50>CD$4,#REF!>CD$6,#REF!<CD$7),CD$5,"") ->  | CE50: =IF(AND(#REF!=CE$2,$R50<CE$3,$R50>CE$4,#REF!>CE$6,#REF!<CE$7),CE$5,"") ->  | CF50: =IF(AND(#REF!=CF$2,$R50<CF$3,$R50>CF$4,#REF!>CF$6,#REF!<CF$7),CF$5,"") ->  | CG50: =IF(AND(#REF!=CG$2,$R50<CG$3,$R50>CG$4,#REF!>CG$6,#REF!<CG$7),CG$5,"") ->  | CH50: =IF(AND(#REF!=CH$2,$R50<CH$3,$R50>CH$4,#REF!>CH$6,#REF!<CH$7),CH$5,"") ->  | CI50: =IF(AND(#REF!=CI$2,$R50<CI$3,$R50>CI$4,#REF!>CI$6,#REF!<CI$7),CI$5,"") ->  | CJ50: =IF(AND(#REF!=CJ$2,$R50<CJ$3,$R50>CJ$4,#REF!>CJ$6,#REF!<CJ$7),CJ$5,"") ->  | CK50: =IF(AND(#REF!=CK$2,$R50<CK$3,$R50>CK$4,#REF!>CK$6,#REF!<CK$7),CK$5,"") ->  | CL50: =IF(AND(#REF!=CL$2,$R50<CL$3,$R50>CL$4,#REF!>CL$6,#REF!<CL$7),CL$5,"") ->  | CM50: =IF(AND(#REF!=CM$2,$R50<CM$3,$R50>CM$4,#REF!>CM$6,#REF!<CM$7),CM$5,"") ->  | CN50: =IF(AND(#REF!=CN$2,$R50<CN$3,$R50>CN$4,#REF!>CN$6,#REF!<CN$7),CN$5,"") ->  | CO50: =IF(AND(#REF!=CO$2,$R50<CO$3,$R50>CO$4,#REF!>CO$6,#REF!<CO$7),CO$5,"") ->  | CP50: =IF(AND(#REF!=CP$2,$R50<CP$3,$R50>CP$4,#REF!>CP$6,#REF!<CP$7),CP$5,"") ->  | CQ50: =IF(AND(#REF!=CQ$2,$R50<CQ$3,$R50>CQ$4,#REF!>CQ$6,#REF!<CQ$7),CQ$5,"") ->  | CR50: =IF(AND(#REF!=CR$2,$R50<CR$3,$R50>CR$4,#REF!>CR$6,#REF!<CR$7),CR$5,"") ->  | CS50: =IF(AND(#REF!=CS$2,$R50<CS$3,$R50>CS$4,#REF!>CS$6,#REF!<CS$7),CS$5,"") ->  | CT50: =IF(AND(#REF!=CT$2,$R50<CT$3,$R50>CT$4,#REF!>CT$6,#REF!<CT$7),CT$5,"") ->  | CU50: =IF(AND(#REF!=CU$2,$R50<CU$3,$R50>CU$4,#REF!>CU$6,#REF!<CU$7),CU$5,"") ->  | CV50: =IF(AND(#REF!=CV$2,$R50<CV$3,$R50>CV$4,#REF!>CV$6,#REF!<CV$7),CV$5,"") ->  | CW50: =IF(AND(#REF!=CW$2,$R50<CW$3,$R50>CW$4,#REF!>CW$6,#REF!<CW$7),CW$5,"") ->  | CX50: =IF(AND(#REF!=CX$2,$R50<CX$3,$R50>CX$4,#REF!>CX$6,#REF!<CX$7),CX$5,"") ->  | CY50: =IF(AND(#REF!=CY$2,$R50<CY$3,$R50>CY$4,#REF!>CY$6,#REF!<CY$7),CY$5,"") ->  | CZ50: =IF(AND(#REF!=CZ$2,$R50<CZ$3,$R50>CZ$4,#REF!>CZ$6,#REF!<CZ$7),CZ$5,"") ->  | DA50: =IF(AND(#REF!=DA$2,$R50<DA$3,$R50>DA$4,#REF!>DA$6,#REF!<DA$7),DA$5,"") ->  | DB50: =IF(AND(#REF!=DB$2,$R50<DB$3,$R50>DB$4,#REF!>DB$6,#REF!<DB$7),DB$5,"") ->  | DC50: =IF(AND(#REF!=DC$2,$R50<DC$3,$R50>DC$4,#REF!>DC$6,#REF!<DC$7),DC$5,"") ->  | DD50: =IF(AND(#REF!=DD$2,$R50<DD$3,$R50>DD$4,#REF!>DD$6,#REF!<DD$7),DD$5,"") ->  | DE50: =IF(AND(#REF!=DE$2,$R50<DE$3,$R50>DE$4,#REF!>DE$6,#REF!<DE$7),DE$5,"") ->  | DF50: =IF(AND(#REF!=DF$2,$R50<DF$3,$R50>DF$4,#REF!>DF$6,#REF!<DF$7),DF$5,"") ->  | DG50: =IF(AND(#REF!=DG$2,$R50<DG$3,$R50>DG$4,#REF!>DG$6,#REF!<DG$7),DG$5,"") ->  | DH50: =IF(AND(#REF!=DH$2,$R50<DH$3,$R50>DH$4,#REF!>DH$6,#REF!<DH$7),DH$5,"") ->  | DI50: =IF(AND(#REF!=DI$2,$R50<DI$3,$R50>DI$4,#REF!>DI$6,#REF!<DI$7),DI$5,"") ->  | DJ50: =IF(AND(#REF!=DJ$2,$R50<DJ$3,$R50>DJ$4,#REF!>DJ$6,#REF!<DJ$7),DJ$5,"") ->  | DK50: =IF(AND(#REF!=DK$2,$R50<DK$3,$R50>DK$4,#REF!>DK$6,#REF!<DK$7),DK$5,"") ->  | DL50: =IF(AND(#REF!=DL$2,$R50<DL$3,$R50>DL$4,#REF!>DL$6,#REF!<DL$7),DL$5,"") ->  | DM50: =IF(AND(#REF!=DM$2,$R50<DM$3,$R50>DM$4,#REF!>DM$6,#REF!<DM$7),DM$5,"") ->  | DN50: =IF(AND(#REF!=DN$2,$R50<DN$3,$R50>DN$4,#REF!>DN$6,#REF!<DN$7),DN$5,"") ->  | DO50: =IF(AND(#REF!=DO$2,$R50<DO$3,$R50>DO$4,#REF!>DO$6,#REF!<DO$7),DO$5,"") ->  | DP50: =IF(AND(#REF!=DP$2,$R50<DP$3,$R50>DP$4,#REF!>DP$6,#REF!<DP$7),DP$5,"") ->  | DQ50: =IF(AND(#REF!=DQ$2,$R50<DQ$3,$R50>DQ$4,#REF!>DQ$6,#REF!<DQ$7),DQ$5,"") ->  | DR50: =IF(AND(#REF!=DR$2,$R50<DR$3,$R50>DR$4,#REF!>DR$6,#REF!<DR$7),DR$5,"") ->  | DS50: =IF(AND(#REF!=DS$2,$R50<DS$3,$R50>DS$4,#REF!>DS$6,#REF!<DS$7),DS$5,"") ->  | DT50: =IF(AND(#REF!=DT$2,$R50<DT$3,$R50>DT$4,#REF!>DT$6,#REF!<DT$7),DT$5,"") ->  | DU50: =IF(AND(#REF!=DU$2,$R50<DU$3,$R50>DU$4,#REF!>DU$6,#REF!<DU$7),DU$5,"") ->  | DV50: =IF(AND(#REF!=DV$2,$R50<DV$3,$R50>DV$4,#REF!>DV$6,#REF!<DV$7),DV$5,"") ->  | DW50: =IF(AND(#REF!=DW$2,$R50<DW$3,$R50>DW$4,#REF!>DW$6,#REF!<DW$7),DW$5,"") ->  | DX50: =IF(AND(#REF!=DX$2,$R50<DX$3,$R50>DX$4,#REF!>DX$6,#REF!<DX$7),DX$5,"") ->  | DY50: =IF(AND(#REF!=DY$2,$R50<DY$3,$R50>DY$4,#REF!>DY$6,#REF!<DY$7),DY$5,"") ->  | DZ50: =IF(AND(#REF!=DZ$2,$R50<DZ$3,$R50>DZ$4,#REF!>DZ$6,#REF!<DZ$7),DZ$5,"") ->  | EA50: =IF(AND(#REF!=EA$2,$R50<EA$3,$R50>EA$4,#REF!>EA$6,#REF!<EA$7),EA$5,"") ->  | EB50: =IF(AND(#REF!=EB$2,$R50<EB$3,$R50>EB$4,#REF!>EB$6,#REF!<EB$7),EB$5,"") ->  | EC50: =IF(AND(#REF!=EC$2,$R50<EC$3,$R50>EC$4,#REF!>EC$6,#REF!<EC$7),EC$5,"") ->  | ED50: =IF(AND(#REF!=ED$2,$R50<ED$3,$R50>ED$4,#REF!>ED$6,#REF!<ED$7),ED$5,"") ->  | EE50: =IF(AND(#REF!=EE$2,$R50<EE$3,$R50>EE$4,#REF!>EE$6,#REF!<EE$7),EE$5,"") ->  | EF50: =IF(AND(#REF!=EF$2,$R50<EF$3,$R50>EF$4,#REF!>EF$6,#REF!<EF$7),EF$5,"") ->  | EG50: =IF(AND(#REF!=EG$2,$R50<EG$3,$R50>EG$4,#REF!>EG$6,#REF!<EG$7),EG$5,"") ->  | EH50: =IF(AND(#REF!=EH$2,$R50<EH$3,$R50>EH$4,#REF!>EH$6,#REF!<EH$7),EH$5,"") ->  | EI50: =IF(AND(#REF!=EI$2,$R50<EI$3,$R50>EI$4,#REF!>EI$6,#REF!<EI$7),EI$5,"") ->  | EJ50: =IF(AND(#REF!=EJ$2,$R50<EJ$3,$R50>EJ$4,#REF!>EJ$6,#REF!<EJ$7),EJ$5,"") ->  | EK50: =IF(AND(#REF!=EK$2,$R50<EK$3,$R50>EK$4,#REF!>EK$6,#REF!<EK$7),EK$5,"") ->  | EL50: =IF(AND(#REF!=EL$2,$R50<EL$3,$R50>EL$4,#REF!>EL$6,#REF!<EL$7),EL$5,"") ->  | EM50: =IF(AND(#REF!=EM$2,$R50<EM$3,$R50>EM$4,#REF!>EM$6,#REF!<EM$7),EM$5,"") ->  | EN50: =IF(AND(#REF!=EN$2,$R50<EN$3,$R50>EN$4,#REF!>EN$6,#REF!<EN$7),EN$5,"") ->  | EO50: =IF(AND(#REF!=EO$2,$R50<EO$3,$R50>EO$4,#REF!>EO$6,#REF!<EO$7),EO$5,"") ->  | EP50: =IF(AND(#REF!=EP$2,$R50<EP$3,$R50>EP$4,#REF!>EP$6,#REF!<EP$7),EP$5,"") ->  | EQ50: =IF(AND(#REF!=EQ$2,$R50<EQ$3,$R50>EQ$4,#REF!>EQ$6,#REF!<EQ$7),EQ$5,"") ->  | ER50: =IF(AND(#REF!=ER$2,$R50<ER$3,$R50>ER$4,#REF!>ER$6,#REF!<ER$7),ER$5,"") ->  | ES50: =IF(AND(#REF!=ES$2,$R50<ES$3,$R50>ES$4,#REF!>ES$6,#REF!<ES$7),ES$5,"") ->  | ET50: =IF(AND(#REF!=ET$2,$R50<ET$3,$R50>ET$4,#REF!>ET$6,#REF!<ET$7),ET$5,"") ->  | EU50: =IF(AND(#REF!=EU$2,$R50<EU$3,$R50>EU$4,#REF!>EU$6,#REF!<EU$7),EU$5,"") ->  | EV50: =IF(AND(#REF!=EV$2,$R50<EV$3,$R50>EV$4,#REF!>EV$6,#REF!<EV$7),EV$5,"") ->  | EW50: =IF(AND(#REF!=EW$2,$R50<EW$3,$R50>EW$4,#REF!>EW$6,#REF!<EW$7),EW$5,"") ->  | EX50: =IF(AND(#REF!=EX$2,$R50<EX$3,$R50>EX$4,#REF!>EX$6,#REF!<EX$7),EX$5,"") ->  | EY50: =IF(AND(#REF!=EY$2,$R50<EY$3,$R50>EY$4,#REF!>EY$6,#REF!<EY$7),EY$5,"") ->  | EZ50: =IF(AND(#REF!=EZ$2,$R50<EZ$3,$R50>EZ$4,#REF!>EZ$6,#REF!<EZ$7),EZ$5,"") ->  | FA50: =IF(AND(#REF!=FA$2,$R50<FA$3,$R50>FA$4,#REF!>FA$6,#REF!<FA$7),FA$5,"") ->  | FB50: =IF(AND(#REF!=FB$2,$R50<FB$3,$R50>FB$4,#REF!>FB$6,#REF!<FB$7),FB$5,"") ->  | FC50: =IF(AND(#REF!=FC$2,$R50<FC$3,$R50>FC$4,#REF!>FC$6,#REF!<FC$7),FC$5,"") ->  | FD50: =IF(AND(#REF!=FD$2,$R50<FD$3,$R50>FD$4,#REF!>FD$6,#REF!<FD$7),FD$5,"") ->  | FE50: =IF(AND(#REF!=FE$2,$R50<FE$3,$R50>FE$4,#REF!>FE$6,#REF!<FE$7),FE$5,"") ->  | FF50: =IF(AND(#REF!=FF$2,$R50<FF$3,$R50>FF$4,#REF!>FF$6,#REF!<FF$7),FF$5,"") ->  | FG50: =IF(AND(#REF!=FG$2,$R50<FG$3,$R50>FG$4,#REF!>FG$6,#REF!<FG$7),FG$5,"") ->  | FH50: =IF(AND(#REF!=FH$2,$R50<FH$3,$R50>FH$4,#REF!>FH$6,#REF!<FH$7),FH$5,"") ->  | FI50: =IF(AND(#REF!=FI$2,$R50<FI$3,$R50>FI$4,#REF!>FI$6,#REF!<FI$7),FI$5,"") ->  | FJ50: =IF(AND(#REF!=FJ$2,$R50<FJ$3,$R50>FJ$4,#REF!>FJ$6,#REF!<FJ$7),FJ$5,"") ->  | FK50: =IF(AND(#REF!=FK$2,$R50<FK$3,$R50>FK$4,#REF!>FK$6,#REF!<FK$7),FK$5,"") ->  | FL50: =IF(AND(#REF!=FL$2,$R50<FL$3,$R50>FL$4,#REF!>FL$6,#REF!<FL$7),FL$5,"") ->  | FM50: =IF(AND(#REF!=FM$2,$R50<FM$3,$R50>FM$4,#REF!>FM$6,#REF!<FM$7),FM$5,"") ->  | FN50: =IF(AND(#REF!=FN$2,$R50<FN$3,$R50>FN$4,#REF!>FN$6,#REF!<FN$7),FN$5,"") ->  | FO50: =IF(AND(#REF!=FO$2,$R50<FO$3,$R50>FO$4,#REF!>FO$6,#REF!<FO$7),FO$5,"") ->  | FP50: =IF(AND(#REF!=FP$2,$R50<FP$3,$R50>FP$4,#REF!>FP$6,#REF!<FP$7),FP$5,"") ->  | FQ50: =IF(AND(#REF!=FQ$2,$R50<FQ$3,$R50>FQ$4,#REF!>FQ$6,#REF!<FQ$7),FQ$5,"") ->  | FR50: =IF(AND(#REF!=FR$2,$R50<FR$3,$R50>FR$4,#REF!>FR$6,#REF!<FR$7),FR$5,"") ->  | FS50: =IF(AND(#REF!=FS$2,$R50<FS$3,$R50>FS$4,#REF!>FS$6,#REF!<FS$7),FS$5,"") ->  | FT50: =IF(AND(#REF!=FT$2,$R50<FT$3,$R50>FT$4,#REF!>FT$6,#REF!<FT$7),FT$5,"") ->  | FU50: =IF(AND(#REF!=FU$2,$R50<FU$3,$R50>FU$4,#REF!>FU$6,#REF!<FU$7),FU$5,"") ->  | FV50: =IF(AND(#REF!=FV$2,$R50<FV$3,$R50>FV$4,#REF!>FV$6,#REF!<FV$7),FV$5,"") ->  | FW50: =IF(AND(#REF!=FW$2,$R50<FW$3,$R50>FW$4,#REF!>FW$6,#REF!<FW$7),FW$5,"") -> 
D51: =SSNNFF&E51 -> ANA/AZAYIF | E51: =AA2 -> ZAYIF | I51: =COUNTIF(N9:N48,D51) -> 0 | AN51: =IF(AND(#REF!=AN$2,$R51<AN$3,$R51>AN$4,#REF!>AN$6,#REF!<AN$7),AN$5,"") ->  | AO51: =IF(AND(#REF!=AO$2,$R51<AO$3,$R51>AO$4,#REF!>AO$6,#REF!<AO$7),AO$5,"") ->  | AP51: =IF(AND(#REF!=AP$2,$R51<AP$3,$R51>AP$4,#REF!>AP$6,#REF!<AP$7),AP$5,"") ->  | AQ51: =IF(AND(#REF!=AQ$2,$R51<AQ$3,$R51>AQ$4,#REF!>AQ$6,#REF!<AQ$7),AQ$5,"") ->  | AR51: =IF(AND(#REF!=AR$2,$R51<AR$3,$R51>AR$4,#REF!>AR$6,#REF!<AR$7),AR$5,"") ->  | AS51: =IF(AND(#REF!=AS$2,$R51<AS$3,$R51>AS$4,#REF!>AS$6,#REF!<AS$7),AS$5,"") ->  | AT51: =IF(AND(#REF!=AT$2,$R51<AT$3,$R51>AT$4,#REF!>AT$6,#REF!<AT$7),AT$5,"") ->  | AU51: =IF(AND(#REF!=AU$2,$R51<AU$3,$R51>AU$4,#REF!>AU$6,#REF!<AU$7),AU$5,"") ->  | AV51: =IF(AND(#REF!=AV$2,$R51<AV$3,$R51>AV$4,#REF!>AV$6,#REF!<AV$7),AV$5,"") ->  | AW51: =IF(AND(#REF!=AW$2,$R51<AW$3,$R51>AW$4,#REF!>AW$6,#REF!<AW$7),AW$5,"") ->  | AX51: =IF(AND(#REF!=AX$2,$R51<AX$3,$R51>AX$4,#REF!>AX$6,#REF!<AX$7),AX$5,"") ->  | AY51: =IF(AND(#REF!=AY$2,$R51<AY$3,$R51>AY$4,#REF!>AY$6,#REF!<AY$7),AY$5,"") ->  | AZ51: =IF(AND(#REF!=AZ$2,$R51<AZ$3,$R51>AZ$4,#REF!>AZ$6,#REF!<AZ$7),AZ$5,"") ->  | BA51: =IF(AND(#REF!=BA$2,$R51<BA$3,$R51>BA$4,#REF!>BA$6,#REF!<BA$7),BA$5,"") ->  | BB51: =IF(AND(#REF!=BB$2,$R51<BB$3,$R51>BB$4,#REF!>BB$6,#REF!<BB$7),BB$5,"") ->  | BC51: =IF(AND(#REF!=BC$2,$R51<BC$3,$R51>BC$4,#REF!>BC$6,#REF!<BC$7),BC$5,"") ->  | BD51: =IF(AND(#REF!=BD$2,$R51<BD$3,$R51>BD$4,#REF!>BD$6,#REF!<BD$7),BD$5,"") ->  | BE51: =IF(AND(#REF!=BE$2,$R51<BE$3,$R51>BE$4,#REF!>BE$6,#REF!<BE$7),BE$5,"") ->  | BF51: =IF(AND(#REF!=BF$2,$R51<BF$3,$R51>BF$4,#REF!>BF$6,#REF!<BF$7),BF$5,"") ->  | BG51: =IF(AND(#REF!=BG$2,$R51<BG$3,$R51>BG$4,#REF!>BG$6,#REF!<BG$7),BG$5,"") ->  | BH51: =IF(AND(#REF!=BH$2,$R51<BH$3,$R51>BH$4,#REF!>BH$6,#REF!<BH$7),BH$5,"") ->  | BI51: =IF(AND(#REF!=BI$2,$R51<BI$3,$R51>BI$4,#REF!>BI$6,#REF!<BI$7),BI$5,"") ->  | BJ51: =IF(AND(#REF!=BJ$2,$R51<BJ$3,$R51>BJ$4,#REF!>BJ$6,#REF!<BJ$7),BJ$5,"") ->  | BK51: =IF(AND(#REF!=BK$2,$R51<BK$3,$R51>BK$4,#REF!>BK$6,#REF!<BK$7),BK$5,"") ->  | BL51: =IF(AND(#REF!=BL$2,$R51<BL$3,$R51>BL$4,#REF!>BL$6,#REF!<BL$7),BL$5,"") ->  | BM51: =IF(AND(#REF!=BM$2,$R51<BM$3,$R51>BM$4,#REF!>BM$6,#REF!<BM$7),BM$5,"") ->  | BN51: =IF(AND(#REF!=BN$2,$R51<BN$3,$R51>BN$4,#REF!>BN$6,#REF!<BN$7),BN$5,"") ->  | BO51: =IF(AND(#REF!=BO$2,$R51<BO$3,$R51>BO$4,#REF!>BO$6,#REF!<BO$7),BO$5,"") ->  | BP51: =IF(AND(#REF!=BP$2,$R51<BP$3,$R51>BP$4,#REF!>BP$6,#REF!<BP$7),BP$5,"") ->  | BQ51: =IF(AND(#REF!=BQ$2,$R51<BQ$3,$R51>BQ$4,#REF!>BQ$6,#REF!<BQ$7),BQ$5,"") ->  | BR51: =IF(AND(#REF!=BR$2,$R51<BR$3,$R51>BR$4,#REF!>BR$6,#REF!<BR$7),BR$5,"") ->  | BS51: =IF(AND(#REF!=BS$2,$R51<BS$3,$R51>BS$4,#REF!>BS$6,#REF!<BS$7),BS$5,"") ->  | BT51: =IF(AND(#REF!=BT$2,$R51<BT$3,$R51>BT$4,#REF!>BT$6,#REF!<BT$7),BT$5,"") ->  | BU51: =IF(AND(#REF!=BU$2,$R51<BU$3,$R51>BU$4,#REF!>BU$6,#REF!<BU$7),BU$5,"") ->  | BV51: =IF(AND(#REF!=BV$2,$R51<BV$3,$R51>BV$4,#REF!>BV$6,#REF!<BV$7),BV$5,"") ->  | BW51: =IF(AND(#REF!=BW$2,$R51<BW$3,$R51>BW$4,#REF!>BW$6,#REF!<BW$7),BW$5,"") ->  | BX51: =IF(AND(#REF!=BX$2,$R51<BX$3,$R51>BX$4,#REF!>BX$6,#REF!<BX$7),BX$5,"") ->  | BY51: =IF(AND(#REF!=BY$2,$R51<BY$3,$R51>BY$4,#REF!>BY$6,#REF!<BY$7),BY$5,"") ->  | BZ51: =IF(AND(#REF!=BZ$2,$R51<BZ$3,$R51>BZ$4,#REF!>BZ$6,#REF!<BZ$7),BZ$5,"") ->  | CA51: =IF(AND(#REF!=CA$2,$R51<CA$3,$R51>CA$4,#REF!>CA$6,#REF!<CA$7),CA$5,"") ->  | CB51: =IF(AND(#REF!=CB$2,$R51<CB$3,$R51>CB$4,#REF!>CB$6,#REF!<CB$7),CB$5,"") ->  | CC51: =IF(AND(#REF!=CC$2,$R51<CC$3,$R51>CC$4,#REF!>CC$6,#REF!<CC$7),CC$5,"") ->  | CD51: =IF(AND(#REF!=CD$2,$R51<CD$3,$R51>CD$4,#REF!>CD$6,#REF!<CD$7),CD$5,"") ->  | CE51: =IF(AND(#REF!=CE$2,$R51<CE$3,$R51>CE$4,#REF!>CE$6,#REF!<CE$7),CE$5,"") ->  | CF51: =IF(AND(#REF!=CF$2,$R51<CF$3,$R51>CF$4,#REF!>CF$6,#REF!<CF$7),CF$5,"") ->  | CG51: =IF(AND(#REF!=CG$2,$R51<CG$3,$R51>CG$4,#REF!>CG$6,#REF!<CG$7),CG$5,"") ->  | CH51: =IF(AND(#REF!=CH$2,$R51<CH$3,$R51>CH$4,#REF!>CH$6,#REF!<CH$7),CH$5,"") ->  | CI51: =IF(AND(#REF!=CI$2,$R51<CI$3,$R51>CI$4,#REF!>CI$6,#REF!<CI$7),CI$5,"") ->  | CJ51: =IF(AND(#REF!=CJ$2,$R51<CJ$3,$R51>CJ$4,#REF!>CJ$6,#REF!<CJ$7),CJ$5,"") ->  | CK51: =IF(AND(#REF!=CK$2,$R51<CK$3,$R51>CK$4,#REF!>CK$6,#REF!<CK$7),CK$5,"") ->  | CL51: =IF(AND(#REF!=CL$2,$R51<CL$3,$R51>CL$4,#REF!>CL$6,#REF!<CL$7),CL$5,"") ->  | CM51: =IF(AND(#REF!=CM$2,$R51<CM$3,$R51>CM$4,#REF!>CM$6,#REF!<CM$7),CM$5,"") ->  | CN51: =IF(AND(#REF!=CN$2,$R51<CN$3,$R51>CN$4,#REF!>CN$6,#REF!<CN$7),CN$5,"") ->  | CO51: =IF(AND(#REF!=CO$2,$R51<CO$3,$R51>CO$4,#REF!>CO$6,#REF!<CO$7),CO$5,"") ->  | CP51: =IF(AND(#REF!=CP$2,$R51<CP$3,$R51>CP$4,#REF!>CP$6,#REF!<CP$7),CP$5,"") ->  | CQ51: =IF(AND(#REF!=CQ$2,$R51<CQ$3,$R51>CQ$4,#REF!>CQ$6,#REF!<CQ$7),CQ$5,"") ->  | CR51: =IF(AND(#REF!=CR$2,$R51<CR$3,$R51>CR$4,#REF!>CR$6,#REF!<CR$7),CR$5,"") ->  | CS51: =IF(AND(#REF!=CS$2,$R51<CS$3,$R51>CS$4,#REF!>CS$6,#REF!<CS$7),CS$5,"") ->  | CT51: =IF(AND(#REF!=CT$2,$R51<CT$3,$R51>CT$4,#REF!>CT$6,#REF!<CT$7),CT$5,"") ->  | CU51: =IF(AND(#REF!=CU$2,$R51<CU$3,$R51>CU$4,#REF!>CU$6,#REF!<CU$7),CU$5,"") ->  | CV51: =IF(AND(#REF!=CV$2,$R51<CV$3,$R51>CV$4,#REF!>CV$6,#REF!<CV$7),CV$5,"") ->  | CW51: =IF(AND(#REF!=CW$2,$R51<CW$3,$R51>CW$4,#REF!>CW$6,#REF!<CW$7),CW$5,"") ->  | CX51: =IF(AND(#REF!=CX$2,$R51<CX$3,$R51>CX$4,#REF!>CX$6,#REF!<CX$7),CX$5,"") ->  | CY51: =IF(AND(#REF!=CY$2,$R51<CY$3,$R51>CY$4,#REF!>CY$6,#REF!<CY$7),CY$5,"") ->  | CZ51: =IF(AND(#REF!=CZ$2,$R51<CZ$3,$R51>CZ$4,#REF!>CZ$6,#REF!<CZ$7),CZ$5,"") ->  | DA51: =IF(AND(#REF!=DA$2,$R51<DA$3,$R51>DA$4,#REF!>DA$6,#REF!<DA$7),DA$5,"") ->  | DB51: =IF(AND(#REF!=DB$2,$R51<DB$3,$R51>DB$4,#REF!>DB$6,#REF!<DB$7),DB$5,"") ->  | DC51: =IF(AND(#REF!=DC$2,$R51<DC$3,$R51>DC$4,#REF!>DC$6,#REF!<DC$7),DC$5,"") ->  | DD51: =IF(AND(#REF!=DD$2,$R51<DD$3,$R51>DD$4,#REF!>DD$6,#REF!<DD$7),DD$5,"") ->  | DE51: =IF(AND(#REF!=DE$2,$R51<DE$3,$R51>DE$4,#REF!>DE$6,#REF!<DE$7),DE$5,"") ->  | DF51: =IF(AND(#REF!=DF$2,$R51<DF$3,$R51>DF$4,#REF!>DF$6,#REF!<DF$7),DF$5,"") ->  | DG51: =IF(AND(#REF!=DG$2,$R51<DG$3,$R51>DG$4,#REF!>DG$6,#REF!<DG$7),DG$5,"") ->  | DH51: =IF(AND(#REF!=DH$2,$R51<DH$3,$R51>DH$4,#REF!>DH$6,#REF!<DH$7),DH$5,"") ->  | DI51: =IF(AND(#REF!=DI$2,$R51<DI$3,$R51>DI$4,#REF!>DI$6,#REF!<DI$7),DI$5,"") ->  | DJ51: =IF(AND(#REF!=DJ$2,$R51<DJ$3,$R51>DJ$4,#REF!>DJ$6,#REF!<DJ$7),DJ$5,"") ->  | DK51: =IF(AND(#REF!=DK$2,$R51<DK$3,$R51>DK$4,#REF!>DK$6,#REF!<DK$7),DK$5,"") ->  | DL51: =IF(AND(#REF!=DL$2,$R51<DL$3,$R51>DL$4,#REF!>DL$6,#REF!<DL$7),DL$5,"") ->  | DM51: =IF(AND(#REF!=DM$2,$R51<DM$3,$R51>DM$4,#REF!>DM$6,#REF!<DM$7),DM$5,"") ->  | DN51: =IF(AND(#REF!=DN$2,$R51<DN$3,$R51>DN$4,#REF!>DN$6,#REF!<DN$7),DN$5,"") ->  | DO51: =IF(AND(#REF!=DO$2,$R51<DO$3,$R51>DO$4,#REF!>DO$6,#REF!<DO$7),DO$5,"") ->  | DP51: =IF(AND(#REF!=DP$2,$R51<DP$3,$R51>DP$4,#REF!>DP$6,#REF!<DP$7),DP$5,"") ->  | DQ51: =IF(AND(#REF!=DQ$2,$R51<DQ$3,$R51>DQ$4,#REF!>DQ$6,#REF!<DQ$7),DQ$5,"") ->  | DR51: =IF(AND(#REF!=DR$2,$R51<DR$3,$R51>DR$4,#REF!>DR$6,#REF!<DR$7),DR$5,"") ->  | DS51: =IF(AND(#REF!=DS$2,$R51<DS$3,$R51>DS$4,#REF!>DS$6,#REF!<DS$7),DS$5,"") ->  | DT51: =IF(AND(#REF!=DT$2,$R51<DT$3,$R51>DT$4,#REF!>DT$6,#REF!<DT$7),DT$5,"") ->  | DU51: =IF(AND(#REF!=DU$2,$R51<DU$3,$R51>DU$4,#REF!>DU$6,#REF!<DU$7),DU$5,"") ->  | DV51: =IF(AND(#REF!=DV$2,$R51<DV$3,$R51>DV$4,#REF!>DV$6,#REF!<DV$7),DV$5,"") ->  | DW51: =IF(AND(#REF!=DW$2,$R51<DW$3,$R51>DW$4,#REF!>DW$6,#REF!<DW$7),DW$5,"") ->  | DX51: =IF(AND(#REF!=DX$2,$R51<DX$3,$R51>DX$4,#REF!>DX$6,#REF!<DX$7),DX$5,"") ->  | DY51: =IF(AND(#REF!=DY$2,$R51<DY$3,$R51>DY$4,#REF!>DY$6,#REF!<DY$7),DY$5,"") ->  | DZ51: =IF(AND(#REF!=DZ$2,$R51<DZ$3,$R51>DZ$4,#REF!>DZ$6,#REF!<DZ$7),DZ$5,"") ->  | EA51: =IF(AND(#REF!=EA$2,$R51<EA$3,$R51>EA$4,#REF!>EA$6,#REF!<EA$7),EA$5,"") ->  | EB51: =IF(AND(#REF!=EB$2,$R51<EB$3,$R51>EB$4,#REF!>EB$6,#REF!<EB$7),EB$5,"") ->  | EC51: =IF(AND(#REF!=EC$2,$R51<EC$3,$R51>EC$4,#REF!>EC$6,#REF!<EC$7),EC$5,"") ->  | ED51: =IF(AND(#REF!=ED$2,$R51<ED$3,$R51>ED$4,#REF!>ED$6,#REF!<ED$7),ED$5,"") ->  | EE51: =IF(AND(#REF!=EE$2,$R51<EE$3,$R51>EE$4,#REF!>EE$6,#REF!<EE$7),EE$5,"") ->  | EF51: =IF(AND(#REF!=EF$2,$R51<EF$3,$R51>EF$4,#REF!>EF$6,#REF!<EF$7),EF$5,"") ->  | EG51: =IF(AND(#REF!=EG$2,$R51<EG$3,$R51>EG$4,#REF!>EG$6,#REF!<EG$7),EG$5,"") ->  | EH51: =IF(AND(#REF!=EH$2,$R51<EH$3,$R51>EH$4,#REF!>EH$6,#REF!<EH$7),EH$5,"") ->  | EI51: =IF(AND(#REF!=EI$2,$R51<EI$3,$R51>EI$4,#REF!>EI$6,#REF!<EI$7),EI$5,"") ->  | EJ51: =IF(AND(#REF!=EJ$2,$R51<EJ$3,$R51>EJ$4,#REF!>EJ$6,#REF!<EJ$7),EJ$5,"") ->  | EK51: =IF(AND(#REF!=EK$2,$R51<EK$3,$R51>EK$4,#REF!>EK$6,#REF!<EK$7),EK$5,"") ->  | EL51: =IF(AND(#REF!=EL$2,$R51<EL$3,$R51>EL$4,#REF!>EL$6,#REF!<EL$7),EL$5,"") ->  | EM51: =IF(AND(#REF!=EM$2,$R51<EM$3,$R51>EM$4,#REF!>EM$6,#REF!<EM$7),EM$5,"") ->  | EN51: =IF(AND(#REF!=EN$2,$R51<EN$3,$R51>EN$4,#REF!>EN$6,#REF!<EN$7),EN$5,"") ->  | EO51: =IF(AND(#REF!=EO$2,$R51<EO$3,$R51>EO$4,#REF!>EO$6,#REF!<EO$7),EO$5,"") ->  | EP51: =IF(AND(#REF!=EP$2,$R51<EP$3,$R51>EP$4,#REF!>EP$6,#REF!<EP$7),EP$5,"") ->  | EQ51: =IF(AND(#REF!=EQ$2,$R51<EQ$3,$R51>EQ$4,#REF!>EQ$6,#REF!<EQ$7),EQ$5,"") ->  | ER51: =IF(AND(#REF!=ER$2,$R51<ER$3,$R51>ER$4,#REF!>ER$6,#REF!<ER$7),ER$5,"") ->  | ES51: =IF(AND(#REF!=ES$2,$R51<ES$3,$R51>ES$4,#REF!>ES$6,#REF!<ES$7),ES$5,"") ->  | ET51: =IF(AND(#REF!=ET$2,$R51<ET$3,$R51>ET$4,#REF!>ET$6,#REF!<ET$7),ET$5,"") ->  | EU51: =IF(AND(#REF!=EU$2,$R51<EU$3,$R51>EU$4,#REF!>EU$6,#REF!<EU$7),EU$5,"") ->  | EV51: =IF(AND(#REF!=EV$2,$R51<EV$3,$R51>EV$4,#REF!>EV$6,#REF!<EV$7),EV$5,"") ->  | EW51: =IF(AND(#REF!=EW$2,$R51<EW$3,$R51>EW$4,#REF!>EW$6,#REF!<EW$7),EW$5,"") ->  | EX51: =IF(AND(#REF!=EX$2,$R51<EX$3,$R51>EX$4,#REF!>EX$6,#REF!<EX$7),EX$5,"") ->  | EY51: =IF(AND(#REF!=EY$2,$R51<EY$3,$R51>EY$4,#REF!>EY$6,#REF!<EY$7),EY$5,"") ->  | EZ51: =IF(AND(#REF!=EZ$2,$R51<EZ$3,$R51>EZ$4,#REF!>EZ$6,#REF!<EZ$7),EZ$5,"") ->  | FA51: =IF(AND(#REF!=FA$2,$R51<FA$3,$R51>FA$4,#REF!>FA$6,#REF!<FA$7),FA$5,"") ->  | FB51: =IF(AND(#REF!=FB$2,$R51<FB$3,$R51>FB$4,#REF!>FB$6,#REF!<FB$7),FB$5,"") ->  | FC51: =IF(AND(#REF!=FC$2,$R51<FC$3,$R51>FC$4,#REF!>FC$6,#REF!<FC$7),FC$5,"") ->  | FD51: =IF(AND(#REF!=FD$2,$R51<FD$3,$R51>FD$4,#REF!>FD$6,#REF!<FD$7),FD$5,"") ->  | FE51: =IF(AND(#REF!=FE$2,$R51<FE$3,$R51>FE$4,#REF!>FE$6,#REF!<FE$7),FE$5,"") ->  | FF51: =IF(AND(#REF!=FF$2,$R51<FF$3,$R51>FF$4,#REF!>FF$6,#REF!<FF$7),FF$5,"") ->  | FG51: =IF(AND(#REF!=FG$2,$R51<FG$3,$R51>FG$4,#REF!>FG$6,#REF!<FG$7),FG$5,"") ->  | FH51: =IF(AND(#REF!=FH$2,$R51<FH$3,$R51>FH$4,#REF!>FH$6,#REF!<FH$7),FH$5,"") ->  | FI51: =IF(AND(#REF!=FI$2,$R51<FI$3,$R51>FI$4,#REF!>FI$6,#REF!<FI$7),FI$5,"") ->  | FJ51: =IF(AND(#REF!=FJ$2,$R51<FJ$3,$R51>FJ$4,#REF!>FJ$6,#REF!<FJ$7),FJ$5,"") ->  | FK51: =IF(AND(#REF!=FK$2,$R51<FK$3,$R51>FK$4,#REF!>FK$6,#REF!<FK$7),FK$5,"") ->  | FL51: =IF(AND(#REF!=FL$2,$R51<FL$3,$R51>FL$4,#REF!>FL$6,#REF!<FL$7),FL$5,"") ->  | FM51: =IF(AND(#REF!=FM$2,$R51<FM$3,$R51>FM$4,#REF!>FM$6,#REF!<FM$7),FM$5,"") ->  | FN51: =IF(AND(#REF!=FN$2,$R51<FN$3,$R51>FN$4,#REF!>FN$6,#REF!<FN$7),FN$5,"") ->  | FO51: =IF(AND(#REF!=FO$2,$R51<FO$3,$R51>FO$4,#REF!>FO$6,#REF!<FO$7),FO$5,"") ->  | FP51: =IF(AND(#REF!=FP$2,$R51<FP$3,$R51>FP$4,#REF!>FP$6,#REF!<FP$7),FP$5,"") ->  | FQ51: =IF(AND(#REF!=FQ$2,$R51<FQ$3,$R51>FQ$4,#REF!>FQ$6,#REF!<FQ$7),FQ$5,"") ->  | FR51: =IF(AND(#REF!=FR$2,$R51<FR$3,$R51>FR$4,#REF!>FR$6,#REF!<FR$7),FR$5,"") ->  | FS51: =IF(AND(#REF!=FS$2,$R51<FS$3,$R51>FS$4,#REF!>FS$6,#REF!<FS$7),FS$5,"") ->  | FT51: =IF(AND(#REF!=FT$2,$R51<FT$3,$R51>FT$4,#REF!>FT$6,#REF!<FT$7),FT$5,"") ->  | FU51: =IF(AND(#REF!=FU$2,$R51<FU$3,$R51>FU$4,#REF!>FU$6,#REF!<FU$7),FU$5,"") ->  | FV51: =IF(AND(#REF!=FV$2,$R51<FV$3,$R51>FV$4,#REF!>FV$6,#REF!<FV$7),FV$5,"") ->  | FW51: =IF(AND(#REF!=FW$2,$R51<FW$3,$R51>FW$4,#REF!>FW$6,#REF!<FW$7),FW$5,"") -> 
D52: =SSNNFF&E52 -> ANA/ANORMAL | E52: =AA3 -> NORMAL | I52: =COUNTIF(N9:N48,D52) -> 0 | AN52: =IF(AND(#REF!=AN$2,$R52<AN$3,$R52>AN$4,#REF!>AN$6,#REF!<AN$7),AN$5,"") ->  | AO52: =IF(AND(#REF!=AO$2,$R52<AO$3,$R52>AO$4,#REF!>AO$6,#REF!<AO$7),AO$5,"") ->  | AP52: =IF(AND(#REF!=AP$2,$R52<AP$3,$R52>AP$4,#REF!>AP$6,#REF!<AP$7),AP$5,"") ->  | AQ52: =IF(AND(#REF!=AQ$2,$R52<AQ$3,$R52>AQ$4,#REF!>AQ$6,#REF!<AQ$7),AQ$5,"") ->  | AR52: =IF(AND(#REF!=AR$2,$R52<AR$3,$R52>AR$4,#REF!>AR$6,#REF!<AR$7),AR$5,"") ->  | AS52: =IF(AND(#REF!=AS$2,$R52<AS$3,$R52>AS$4,#REF!>AS$6,#REF!<AS$7),AS$5,"") ->  | AT52: =IF(AND(#REF!=AT$2,$R52<AT$3,$R52>AT$4,#REF!>AT$6,#REF!<AT$7),AT$5,"") ->  | AU52: =IF(AND(#REF!=AU$2,$R52<AU$3,$R52>AU$4,#REF!>AU$6,#REF!<AU$7),AU$5,"") ->  | AV52: =IF(AND(#REF!=AV$2,$R52<AV$3,$R52>AV$4,#REF!>AV$6,#REF!<AV$7),AV$5,"") ->  | AW52: =IF(AND(#REF!=AW$2,$R52<AW$3,$R52>AW$4,#REF!>AW$6,#REF!<AW$7),AW$5,"") ->  | AX52: =IF(AND(#REF!=AX$2,$R52<AX$3,$R52>AX$4,#REF!>AX$6,#REF!<AX$7),AX$5,"") ->  | AY52: =IF(AND(#REF!=AY$2,$R52<AY$3,$R52>AY$4,#REF!>AY$6,#REF!<AY$7),AY$5,"") ->  | AZ52: =IF(AND(#REF!=AZ$2,$R52<AZ$3,$R52>AZ$4,#REF!>AZ$6,#REF!<AZ$7),AZ$5,"") ->  | BA52: =IF(AND(#REF!=BA$2,$R52<BA$3,$R52>BA$4,#REF!>BA$6,#REF!<BA$7),BA$5,"") ->  | BB52: =IF(AND(#REF!=BB$2,$R52<BB$3,$R52>BB$4,#REF!>BB$6,#REF!<BB$7),BB$5,"") ->  | BC52: =IF(AND(#REF!=BC$2,$R52<BC$3,$R52>BC$4,#REF!>BC$6,#REF!<BC$7),BC$5,"") ->  | BD52: =IF(AND(#REF!=BD$2,$R52<BD$3,$R52>BD$4,#REF!>BD$6,#REF!<BD$7),BD$5,"") ->  | BE52: =IF(AND(#REF!=BE$2,$R52<BE$3,$R52>BE$4,#REF!>BE$6,#REF!<BE$7),BE$5,"") ->  | BF52: =IF(AND(#REF!=BF$2,$R52<BF$3,$R52>BF$4,#REF!>BF$6,#REF!<BF$7),BF$5,"") ->  | BG52: =IF(AND(#REF!=BG$2,$R52<BG$3,$R52>BG$4,#REF!>BG$6,#REF!<BG$7),BG$5,"") ->  | BH52: =IF(AND(#REF!=BH$2,$R52<BH$3,$R52>BH$4,#REF!>BH$6,#REF!<BH$7),BH$5,"") ->  | BI52: =IF(AND(#REF!=BI$2,$R52<BI$3,$R52>BI$4,#REF!>BI$6,#REF!<BI$7),BI$5,"") ->  | BJ52: =IF(AND(#REF!=BJ$2,$R52<BJ$3,$R52>BJ$4,#REF!>BJ$6,#REF!<BJ$7),BJ$5,"") ->  | BK52: =IF(AND(#REF!=BK$2,$R52<BK$3,$R52>BK$4,#REF!>BK$6,#REF!<BK$7),BK$5,"") ->  | BL52: =IF(AND(#REF!=BL$2,$R52<BL$3,$R52>BL$4,#REF!>BL$6,#REF!<BL$7),BL$5,"") ->  | BM52: =IF(AND(#REF!=BM$2,$R52<BM$3,$R52>BM$4,#REF!>BM$6,#REF!<BM$7),BM$5,"") ->  | BN52: =IF(AND(#REF!=BN$2,$R52<BN$3,$R52>BN$4,#REF!>BN$6,#REF!<BN$7),BN$5,"") ->  | BO52: =IF(AND(#REF!=BO$2,$R52<BO$3,$R52>BO$4,#REF!>BO$6,#REF!<BO$7),BO$5,"") ->  | BP52: =IF(AND(#REF!=BP$2,$R52<BP$3,$R52>BP$4,#REF!>BP$6,#REF!<BP$7),BP$5,"") ->  | BQ52: =IF(AND(#REF!=BQ$2,$R52<BQ$3,$R52>BQ$4,#REF!>BQ$6,#REF!<BQ$7),BQ$5,"") ->  | BR52: =IF(AND(#REF!=BR$2,$R52<BR$3,$R52>BR$4,#REF!>BR$6,#REF!<BR$7),BR$5,"") ->  | BS52: =IF(AND(#REF!=BS$2,$R52<BS$3,$R52>BS$4,#REF!>BS$6,#REF!<BS$7),BS$5,"") ->  | BT52: =IF(AND(#REF!=BT$2,$R52<BT$3,$R52>BT$4,#REF!>BT$6,#REF!<BT$7),BT$5,"") ->  | BU52: =IF(AND(#REF!=BU$2,$R52<BU$3,$R52>BU$4,#REF!>BU$6,#REF!<BU$7),BU$5,"") ->  | BV52: =IF(AND(#REF!=BV$2,$R52<BV$3,$R52>BV$4,#REF!>BV$6,#REF!<BV$7),BV$5,"") ->  | BW52: =IF(AND(#REF!=BW$2,$R52<BW$3,$R52>BW$4,#REF!>BW$6,#REF!<BW$7),BW$5,"") ->  | BX52: =IF(AND(#REF!=BX$2,$R52<BX$3,$R52>BX$4,#REF!>BX$6,#REF!<BX$7),BX$5,"") ->  | BY52: =IF(AND(#REF!=BY$2,$R52<BY$3,$R52>BY$4,#REF!>BY$6,#REF!<BY$7),BY$5,"") ->  | BZ52: =IF(AND(#REF!=BZ$2,$R52<BZ$3,$R52>BZ$4,#REF!>BZ$6,#REF!<BZ$7),BZ$5,"") ->  | CA52: =IF(AND(#REF!=CA$2,$R52<CA$3,$R52>CA$4,#REF!>CA$6,#REF!<CA$7),CA$5,"") ->  | CB52: =IF(AND(#REF!=CB$2,$R52<CB$3,$R52>CB$4,#REF!>CB$6,#REF!<CB$7),CB$5,"") ->  | CC52: =IF(AND(#REF!=CC$2,$R52<CC$3,$R52>CC$4,#REF!>CC$6,#REF!<CC$7),CC$5,"") ->  | CD52: =IF(AND(#REF!=CD$2,$R52<CD$3,$R52>CD$4,#REF!>CD$6,#REF!<CD$7),CD$5,"") ->  | CE52: =IF(AND(#REF!=CE$2,$R52<CE$3,$R52>CE$4,#REF!>CE$6,#REF!<CE$7),CE$5,"") ->  | CF52: =IF(AND(#REF!=CF$2,$R52<CF$3,$R52>CF$4,#REF!>CF$6,#REF!<CF$7),CF$5,"") ->  | CG52: =IF(AND(#REF!=CG$2,$R52<CG$3,$R52>CG$4,#REF!>CG$6,#REF!<CG$7),CG$5,"") ->  | CH52: =IF(AND(#REF!=CH$2,$R52<CH$3,$R52>CH$4,#REF!>CH$6,#REF!<CH$7),CH$5,"") ->  | CI52: =IF(AND(#REF!=CI$2,$R52<CI$3,$R52>CI$4,#REF!>CI$6,#REF!<CI$7),CI$5,"") ->  | CJ52: =IF(AND(#REF!=CJ$2,$R52<CJ$3,$R52>CJ$4,#REF!>CJ$6,#REF!<CJ$7),CJ$5,"") ->  | CK52: =IF(AND(#REF!=CK$2,$R52<CK$3,$R52>CK$4,#REF!>CK$6,#REF!<CK$7),CK$5,"") ->  | CL52: =IF(AND(#REF!=CL$2,$R52<CL$3,$R52>CL$4,#REF!>CL$6,#REF!<CL$7),CL$5,"") ->  | CM52: =IF(AND(#REF!=CM$2,$R52<CM$3,$R52>CM$4,#REF!>CM$6,#REF!<CM$7),CM$5,"") ->  | CN52: =IF(AND(#REF!=CN$2,$R52<CN$3,$R52>CN$4,#REF!>CN$6,#REF!<CN$7),CN$5,"") ->  | CO52: =IF(AND(#REF!=CO$2,$R52<CO$3,$R52>CO$4,#REF!>CO$6,#REF!<CO$7),CO$5,"") ->  | CP52: =IF(AND(#REF!=CP$2,$R52<CP$3,$R52>CP$4,#REF!>CP$6,#REF!<CP$7),CP$5,"") ->  | CQ52: =IF(AND(#REF!=CQ$2,$R52<CQ$3,$R52>CQ$4,#REF!>CQ$6,#REF!<CQ$7),CQ$5,"") ->  | CR52: =IF(AND(#REF!=CR$2,$R52<CR$3,$R52>CR$4,#REF!>CR$6,#REF!<CR$7),CR$5,"") ->  | CS52: =IF(AND(#REF!=CS$2,$R52<CS$3,$R52>CS$4,#REF!>CS$6,#REF!<CS$7),CS$5,"") ->  | CT52: =IF(AND(#REF!=CT$2,$R52<CT$3,$R52>CT$4,#REF!>CT$6,#REF!<CT$7),CT$5,"") ->  | CU52: =IF(AND(#REF!=CU$2,$R52<CU$3,$R52>CU$4,#REF!>CU$6,#REF!<CU$7),CU$5,"") ->  | CV52: =IF(AND(#REF!=CV$2,$R52<CV$3,$R52>CV$4,#REF!>CV$6,#REF!<CV$7),CV$5,"") ->  | CW52: =IF(AND(#REF!=CW$2,$R52<CW$3,$R52>CW$4,#REF!>CW$6,#REF!<CW$7),CW$5,"") ->  | CX52: =IF(AND(#REF!=CX$2,$R52<CX$3,$R52>CX$4,#REF!>CX$6,#REF!<CX$7),CX$5,"") ->  | CY52: =IF(AND(#REF!=CY$2,$R52<CY$3,$R52>CY$4,#REF!>CY$6,#REF!<CY$7),CY$5,"") ->  | CZ52: =IF(AND(#REF!=CZ$2,$R52<CZ$3,$R52>CZ$4,#REF!>CZ$6,#REF!<CZ$7),CZ$5,"") ->  | DA52: =IF(AND(#REF!=DA$2,$R52<DA$3,$R52>DA$4,#REF!>DA$6,#REF!<DA$7),DA$5,"") ->  | DB52: =IF(AND(#REF!=DB$2,$R52<DB$3,$R52>DB$4,#REF!>DB$6,#REF!<DB$7),DB$5,"") ->  | DC52: =IF(AND(#REF!=DC$2,$R52<DC$3,$R52>DC$4,#REF!>DC$6,#REF!<DC$7),DC$5,"") ->  | DD52: =IF(AND(#REF!=DD$2,$R52<DD$3,$R52>DD$4,#REF!>DD$6,#REF!<DD$7),DD$5,"") ->  | DE52: =IF(AND(#REF!=DE$2,$R52<DE$3,$R52>DE$4,#REF!>DE$6,#REF!<DE$7),DE$5,"") ->  | DF52: =IF(AND(#REF!=DF$2,$R52<DF$3,$R52>DF$4,#REF!>DF$6,#REF!<DF$7),DF$5,"") ->  | DG52: =IF(AND(#REF!=DG$2,$R52<DG$3,$R52>DG$4,#REF!>DG$6,#REF!<DG$7),DG$5,"") ->  | DH52: =IF(AND(#REF!=DH$2,$R52<DH$3,$R52>DH$4,#REF!>DH$6,#REF!<DH$7),DH$5,"") ->  | DI52: =IF(AND(#REF!=DI$2,$R52<DI$3,$R52>DI$4,#REF!>DI$6,#REF!<DI$7),DI$5,"") ->  | DJ52: =IF(AND(#REF!=DJ$2,$R52<DJ$3,$R52>DJ$4,#REF!>DJ$6,#REF!<DJ$7),DJ$5,"") ->  | DK52: =IF(AND(#REF!=DK$2,$R52<DK$3,$R52>DK$4,#REF!>DK$6,#REF!<DK$7),DK$5,"") ->  | DL52: =IF(AND(#REF!=DL$2,$R52<DL$3,$R52>DL$4,#REF!>DL$6,#REF!<DL$7),DL$5,"") ->  | DM52: =IF(AND(#REF!=DM$2,$R52<DM$3,$R52>DM$4,#REF!>DM$6,#REF!<DM$7),DM$5,"") ->  | DN52: =IF(AND(#REF!=DN$2,$R52<DN$3,$R52>DN$4,#REF!>DN$6,#REF!<DN$7),DN$5,"") ->  | DO52: =IF(AND(#REF!=DO$2,$R52<DO$3,$R52>DO$4,#REF!>DO$6,#REF!<DO$7),DO$5,"") ->  | DP52: =IF(AND(#REF!=DP$2,$R52<DP$3,$R52>DP$4,#REF!>DP$6,#REF!<DP$7),DP$5,"") ->  | DQ52: =IF(AND(#REF!=DQ$2,$R52<DQ$3,$R52>DQ$4,#REF!>DQ$6,#REF!<DQ$7),DQ$5,"") ->  | DR52: =IF(AND(#REF!=DR$2,$R52<DR$3,$R52>DR$4,#REF!>DR$6,#REF!<DR$7),DR$5,"") ->  | DS52: =IF(AND(#REF!=DS$2,$R52<DS$3,$R52>DS$4,#REF!>DS$6,#REF!<DS$7),DS$5,"") ->  | DT52: =IF(AND(#REF!=DT$2,$R52<DT$3,$R52>DT$4,#REF!>DT$6,#REF!<DT$7),DT$5,"") ->  | DU52: =IF(AND(#REF!=DU$2,$R52<DU$3,$R52>DU$4,#REF!>DU$6,#REF!<DU$7),DU$5,"") ->  | DV52: =IF(AND(#REF!=DV$2,$R52<DV$3,$R52>DV$4,#REF!>DV$6,#REF!<DV$7),DV$5,"") ->  | DW52: =IF(AND(#REF!=DW$2,$R52<DW$3,$R52>DW$4,#REF!>DW$6,#REF!<DW$7),DW$5,"") ->  | DX52: =IF(AND(#REF!=DX$2,$R52<DX$3,$R52>DX$4,#REF!>DX$6,#REF!<DX$7),DX$5,"") ->  | DY52: =IF(AND(#REF!=DY$2,$R52<DY$3,$R52>DY$4,#REF!>DY$6,#REF!<DY$7),DY$5,"") ->  | DZ52: =IF(AND(#REF!=DZ$2,$R52<DZ$3,$R52>DZ$4,#REF!>DZ$6,#REF!<DZ$7),DZ$5,"") ->  | EA52: =IF(AND(#REF!=EA$2,$R52<EA$3,$R52>EA$4,#REF!>EA$6,#REF!<EA$7),EA$5,"") ->  | EB52: =IF(AND(#REF!=EB$2,$R52<EB$3,$R52>EB$4,#REF!>EB$6,#REF!<EB$7),EB$5,"") ->  | EC52: =IF(AND(#REF!=EC$2,$R52<EC$3,$R52>EC$4,#REF!>EC$6,#REF!<EC$7),EC$5,"") ->  | ED52: =IF(AND(#REF!=ED$2,$R52<ED$3,$R52>ED$4,#REF!>ED$6,#REF!<ED$7),ED$5,"") ->  | EE52: =IF(AND(#REF!=EE$2,$R52<EE$3,$R52>EE$4,#REF!>EE$6,#REF!<EE$7),EE$5,"") ->  | EF52: =IF(AND(#REF!=EF$2,$R52<EF$3,$R52>EF$4,#REF!>EF$6,#REF!<EF$7),EF$5,"") ->  | EG52: =IF(AND(#REF!=EG$2,$R52<EG$3,$R52>EG$4,#REF!>EG$6,#REF!<EG$7),EG$5,"") ->  | EH52: =IF(AND(#REF!=EH$2,$R52<EH$3,$R52>EH$4,#REF!>EH$6,#REF!<EH$7),EH$5,"") ->  | EI52: =IF(AND(#REF!=EI$2,$R52<EI$3,$R52>EI$4,#REF!>EI$6,#REF!<EI$7),EI$5,"") ->  | EJ52: =IF(AND(#REF!=EJ$2,$R52<EJ$3,$R52>EJ$4,#REF!>EJ$6,#REF!<EJ$7),EJ$5,"") ->  | EK52: =IF(AND(#REF!=EK$2,$R52<EK$3,$R52>EK$4,#REF!>EK$6,#REF!<EK$7),EK$5,"") ->  | EL52: =IF(AND(#REF!=EL$2,$R52<EL$3,$R52>EL$4,#REF!>EL$6,#REF!<EL$7),EL$5,"") ->  | EM52: =IF(AND(#REF!=EM$2,$R52<EM$3,$R52>EM$4,#REF!>EM$6,#REF!<EM$7),EM$5,"") ->  | EN52: =IF(AND(#REF!=EN$2,$R52<EN$3,$R52>EN$4,#REF!>EN$6,#REF!<EN$7),EN$5,"") ->  | EO52: =IF(AND(#REF!=EO$2,$R52<EO$3,$R52>EO$4,#REF!>EO$6,#REF!<EO$7),EO$5,"") ->  | EP52: =IF(AND(#REF!=EP$2,$R52<EP$3,$R52>EP$4,#REF!>EP$6,#REF!<EP$7),EP$5,"") ->  | EQ52: =IF(AND(#REF!=EQ$2,$R52<EQ$3,$R52>EQ$4,#REF!>EQ$6,#REF!<EQ$7),EQ$5,"") ->  | ER52: =IF(AND(#REF!=ER$2,$R52<ER$3,$R52>ER$4,#REF!>ER$6,#REF!<ER$7),ER$5,"") ->  | ES52: =IF(AND(#REF!=ES$2,$R52<ES$3,$R52>ES$4,#REF!>ES$6,#REF!<ES$7),ES$5,"") ->  | ET52: =IF(AND(#REF!=ET$2,$R52<ET$3,$R52>ET$4,#REF!>ET$6,#REF!<ET$7),ET$5,"") ->  | EU52: =IF(AND(#REF!=EU$2,$R52<EU$3,$R52>EU$4,#REF!>EU$6,#REF!<EU$7),EU$5,"") ->  | EV52: =IF(AND(#REF!=EV$2,$R52<EV$3,$R52>EV$4,#REF!>EV$6,#REF!<EV$7),EV$5,"") ->  | EW52: =IF(AND(#REF!=EW$2,$R52<EW$3,$R52>EW$4,#REF!>EW$6,#REF!<EW$7),EW$5,"") ->  | EX52: =IF(AND(#REF!=EX$2,$R52<EX$3,$R52>EX$4,#REF!>EX$6,#REF!<EX$7),EX$5,"") ->  | EY52: =IF(AND(#REF!=EY$2,$R52<EY$3,$R52>EY$4,#REF!>EY$6,#REF!<EY$7),EY$5,"") ->  | EZ52: =IF(AND(#REF!=EZ$2,$R52<EZ$3,$R52>EZ$4,#REF!>EZ$6,#REF!<EZ$7),EZ$5,"") ->  | FA52: =IF(AND(#REF!=FA$2,$R52<FA$3,$R52>FA$4,#REF!>FA$6,#REF!<FA$7),FA$5,"") ->  | FB52: =IF(AND(#REF!=FB$2,$R52<FB$3,$R52>FB$4,#REF!>FB$6,#REF!<FB$7),FB$5,"") ->  | FC52: =IF(AND(#REF!=FC$2,$R52<FC$3,$R52>FC$4,#REF!>FC$6,#REF!<FC$7),FC$5,"") ->  | FD52: =IF(AND(#REF!=FD$2,$R52<FD$3,$R52>FD$4,#REF!>FD$6,#REF!<FD$7),FD$5,"") ->  | FE52: =IF(AND(#REF!=FE$2,$R52<FE$3,$R52>FE$4,#REF!>FE$6,#REF!<FE$7),FE$5,"") ->  | FF52: =IF(AND(#REF!=FF$2,$R52<FF$3,$R52>FF$4,#REF!>FF$6,#REF!<FF$7),FF$5,"") ->  | FG52: =IF(AND(#REF!=FG$2,$R52<FG$3,$R52>FG$4,#REF!>FG$6,#REF!<FG$7),FG$5,"") ->  | FH52: =IF(AND(#REF!=FH$2,$R52<FH$3,$R52>FH$4,#REF!>FH$6,#REF!<FH$7),FH$5,"") ->  | FI52: =IF(AND(#REF!=FI$2,$R52<FI$3,$R52>FI$4,#REF!>FI$6,#REF!<FI$7),FI$5,"") ->  | FJ52: =IF(AND(#REF!=FJ$2,$R52<FJ$3,$R52>FJ$4,#REF!>FJ$6,#REF!<FJ$7),FJ$5,"") ->  | FK52: =IF(AND(#REF!=FK$2,$R52<FK$3,$R52>FK$4,#REF!>FK$6,#REF!<FK$7),FK$5,"") ->  | FL52: =IF(AND(#REF!=FL$2,$R52<FL$3,$R52>FL$4,#REF!>FL$6,#REF!<FL$7),FL$5,"") ->  | FM52: =IF(AND(#REF!=FM$2,$R52<FM$3,$R52>FM$4,#REF!>FM$6,#REF!<FM$7),FM$5,"") ->  | FN52: =IF(AND(#REF!=FN$2,$R52<FN$3,$R52>FN$4,#REF!>FN$6,#REF!<FN$7),FN$5,"") ->  | FO52: =IF(AND(#REF!=FO$2,$R52<FO$3,$R52>FO$4,#REF!>FO$6,#REF!<FO$7),FO$5,"") ->  | FP52: =IF(AND(#REF!=FP$2,$R52<FP$3,$R52>FP$4,#REF!>FP$6,#REF!<FP$7),FP$5,"") ->  | FQ52: =IF(AND(#REF!=FQ$2,$R52<FQ$3,$R52>FQ$4,#REF!>FQ$6,#REF!<FQ$7),FQ$5,"") ->  | FR52: =IF(AND(#REF!=FR$2,$R52<FR$3,$R52>FR$4,#REF!>FR$6,#REF!<FR$7),FR$5,"") ->  | FS52: =IF(AND(#REF!=FS$2,$R52<FS$3,$R52>FS$4,#REF!>FS$6,#REF!<FS$7),FS$5,"") ->  | FT52: =IF(AND(#REF!=FT$2,$R52<FT$3,$R52>FT$4,#REF!>FT$6,#REF!<FT$7),FT$5,"") ->  | FU52: =IF(AND(#REF!=FU$2,$R52<FU$3,$R52>FU$4,#REF!>FU$6,#REF!<FU$7),FU$5,"") ->  | FV52: =IF(AND(#REF!=FV$2,$R52<FV$3,$R52>FV$4,#REF!>FV$6,#REF!<FV$7),FV$5,"") ->  | FW52: =IF(AND(#REF!=FW$2,$R52<FW$3,$R52>FW$4,#REF!>FW$6,#REF!<FW$7),FW$5,"") -> 
D53: =SSNNFF&E53 -> ANA/AFAZLA KİLOLU | E53: =AA5 -> FAZLA KİLOLU | I53: =COUNTIF(N9:N48,D53) -> 0 | AN53: =IF(AND(#REF!=AN$2,$R53<AN$3,$R53>AN$4,#REF!>AN$6,#REF!<AN$7),AN$5,"") ->  | AO53: =IF(AND(#REF!=AO$2,$R53<AO$3,$R53>AO$4,#REF!>AO$6,#REF!<AO$7),AO$5,"") ->  | AP53: =IF(AND(#REF!=AP$2,$R53<AP$3,$R53>AP$4,#REF!>AP$6,#REF!<AP$7),AP$5,"") ->  | AQ53: =IF(AND(#REF!=AQ$2,$R53<AQ$3,$R53>AQ$4,#REF!>AQ$6,#REF!<AQ$7),AQ$5,"") ->  | AR53: =IF(AND(#REF!=AR$2,$R53<AR$3,$R53>AR$4,#REF!>AR$6,#REF!<AR$7),AR$5,"") ->  | AS53: =IF(AND(#REF!=AS$2,$R53<AS$3,$R53>AS$4,#REF!>AS$6,#REF!<AS$7),AS$5,"") ->  | AT53: =IF(AND(#REF!=AT$2,$R53<AT$3,$R53>AT$4,#REF!>AT$6,#REF!<AT$7),AT$5,"") ->  | AU53: =IF(AND(#REF!=AU$2,$R53<AU$3,$R53>AU$4,#REF!>AU$6,#REF!<AU$7),AU$5,"") ->  | AV53: =IF(AND(#REF!=AV$2,$R53<AV$3,$R53>AV$4,#REF!>AV$6,#REF!<AV$7),AV$5,"") ->  | AW53: =IF(AND(#REF!=AW$2,$R53<AW$3,$R53>AW$4,#REF!>AW$6,#REF!<AW$7),AW$5,"") ->  | AX53: =IF(AND(#REF!=AX$2,$R53<AX$3,$R53>AX$4,#REF!>AX$6,#REF!<AX$7),AX$5,"") ->  | AY53: =IF(AND(#REF!=AY$2,$R53<AY$3,$R53>AY$4,#REF!>AY$6,#REF!<AY$7),AY$5,"") ->  | AZ53: =IF(AND(#REF!=AZ$2,$R53<AZ$3,$R53>AZ$4,#REF!>AZ$6,#REF!<AZ$7),AZ$5,"") ->  | BA53: =IF(AND(#REF!=BA$2,$R53<BA$3,$R53>BA$4,#REF!>BA$6,#REF!<BA$7),BA$5,"") ->  | BB53: =IF(AND(#REF!=BB$2,$R53<BB$3,$R53>BB$4,#REF!>BB$6,#REF!<BB$7),BB$5,"") ->  | BC53: =IF(AND(#REF!=BC$2,$R53<BC$3,$R53>BC$4,#REF!>BC$6,#REF!<BC$7),BC$5,"") ->  | BD53: =IF(AND(#REF!=BD$2,$R53<BD$3,$R53>BD$4,#REF!>BD$6,#REF!<BD$7),BD$5,"") ->  | BE53: =IF(AND(#REF!=BE$2,$R53<BE$3,$R53>BE$4,#REF!>BE$6,#REF!<BE$7),BE$5,"") ->  | BF53: =IF(AND(#REF!=BF$2,$R53<BF$3,$R53>BF$4,#REF!>BF$6,#REF!<BF$7),BF$5,"") ->  | BG53: =IF(AND(#REF!=BG$2,$R53<BG$3,$R53>BG$4,#REF!>BG$6,#REF!<BG$7),BG$5,"") ->  | BH53: =IF(AND(#REF!=BH$2,$R53<BH$3,$R53>BH$4,#REF!>BH$6,#REF!<BH$7),BH$5,"") ->  | BI53: =IF(AND(#REF!=BI$2,$R53<BI$3,$R53>BI$4,#REF!>BI$6,#REF!<BI$7),BI$5,"") ->  | BJ53: =IF(AND(#REF!=BJ$2,$R53<BJ$3,$R53>BJ$4,#REF!>BJ$6,#REF!<BJ$7),BJ$5,"") ->  | BK53: =IF(AND(#REF!=BK$2,$R53<BK$3,$R53>BK$4,#REF!>BK$6,#REF!<BK$7),BK$5,"") ->  | BL53: =IF(AND(#REF!=BL$2,$R53<BL$3,$R53>BL$4,#REF!>BL$6,#REF!<BL$7),BL$5,"") ->  | BM53: =IF(AND(#REF!=BM$2,$R53<BM$3,$R53>BM$4,#REF!>BM$6,#REF!<BM$7),BM$5,"") ->  | BN53: =IF(AND(#REF!=BN$2,$R53<BN$3,$R53>BN$4,#REF!>BN$6,#REF!<BN$7),BN$5,"") ->  | BO53: =IF(AND(#REF!=BO$2,$R53<BO$3,$R53>BO$4,#REF!>BO$6,#REF!<BO$7),BO$5,"") ->  | BP53: =IF(AND(#REF!=BP$2,$R53<BP$3,$R53>BP$4,#REF!>BP$6,#REF!<BP$7),BP$5,"") ->  | BQ53: =IF(AND(#REF!=BQ$2,$R53<BQ$3,$R53>BQ$4,#REF!>BQ$6,#REF!<BQ$7),BQ$5,"") ->  | BR53: =IF(AND(#REF!=BR$2,$R53<BR$3,$R53>BR$4,#REF!>BR$6,#REF!<BR$7),BR$5,"") ->  | BS53: =IF(AND(#REF!=BS$2,$R53<BS$3,$R53>BS$4,#REF!>BS$6,#REF!<BS$7),BS$5,"") ->  | BT53: =IF(AND(#REF!=BT$2,$R53<BT$3,$R53>BT$4,#REF!>BT$6,#REF!<BT$7),BT$5,"") ->  | BU53: =IF(AND(#REF!=BU$2,$R53<BU$3,$R53>BU$4,#REF!>BU$6,#REF!<BU$7),BU$5,"") ->  | BV53: =IF(AND(#REF!=BV$2,$R53<BV$3,$R53>BV$4,#REF!>BV$6,#REF!<BV$7),BV$5,"") ->  | BW53: =IF(AND(#REF!=BW$2,$R53<BW$3,$R53>BW$4,#REF!>BW$6,#REF!<BW$7),BW$5,"") ->  | BX53: =IF(AND(#REF!=BX$2,$R53<BX$3,$R53>BX$4,#REF!>BX$6,#REF!<BX$7),BX$5,"") ->  | BY53: =IF(AND(#REF!=BY$2,$R53<BY$3,$R53>BY$4,#REF!>BY$6,#REF!<BY$7),BY$5,"") ->  | BZ53: =IF(AND(#REF!=BZ$2,$R53<BZ$3,$R53>BZ$4,#REF!>BZ$6,#REF!<BZ$7),BZ$5,"") ->  | CA53: =IF(AND(#REF!=CA$2,$R53<CA$3,$R53>CA$4,#REF!>CA$6,#REF!<CA$7),CA$5,"") ->  | CB53: =IF(AND(#REF!=CB$2,$R53<CB$3,$R53>CB$4,#REF!>CB$6,#REF!<CB$7),CB$5,"") ->  | CC53: =IF(AND(#REF!=CC$2,$R53<CC$3,$R53>CC$4,#REF!>CC$6,#REF!<CC$7),CC$5,"") ->  | CD53: =IF(AND(#REF!=CD$2,$R53<CD$3,$R53>CD$4,#REF!>CD$6,#REF!<CD$7),CD$5,"") ->  | CE53: =IF(AND(#REF!=CE$2,$R53<CE$3,$R53>CE$4,#REF!>CE$6,#REF!<CE$7),CE$5,"") ->  | CF53: =IF(AND(#REF!=CF$2,$R53<CF$3,$R53>CF$4,#REF!>CF$6,#REF!<CF$7),CF$5,"") ->  | CG53: =IF(AND(#REF!=CG$2,$R53<CG$3,$R53>CG$4,#REF!>CG$6,#REF!<CG$7),CG$5,"") ->  | CH53: =IF(AND(#REF!=CH$2,$R53<CH$3,$R53>CH$4,#REF!>CH$6,#REF!<CH$7),CH$5,"") ->  | CI53: =IF(AND(#REF!=CI$2,$R53<CI$3,$R53>CI$4,#REF!>CI$6,#REF!<CI$7),CI$5,"") ->  | CJ53: =IF(AND(#REF!=CJ$2,$R53<CJ$3,$R53>CJ$4,#REF!>CJ$6,#REF!<CJ$7),CJ$5,"") ->  | CK53: =IF(AND(#REF!=CK$2,$R53<CK$3,$R53>CK$4,#REF!>CK$6,#REF!<CK$7),CK$5,"") ->  | CL53: =IF(AND(#REF!=CL$2,$R53<CL$3,$R53>CL$4,#REF!>CL$6,#REF!<CL$7),CL$5,"") ->  | CM53: =IF(AND(#REF!=CM$2,$R53<CM$3,$R53>CM$4,#REF!>CM$6,#REF!<CM$7),CM$5,"") ->  | CN53: =IF(AND(#REF!=CN$2,$R53<CN$3,$R53>CN$4,#REF!>CN$6,#REF!<CN$7),CN$5,"") ->  | CO53: =IF(AND(#REF!=CO$2,$R53<CO$3,$R53>CO$4,#REF!>CO$6,#REF!<CO$7),CO$5,"") ->  | CP53: =IF(AND(#REF!=CP$2,$R53<CP$3,$R53>CP$4,#REF!>CP$6,#REF!<CP$7),CP$5,"") ->  | CQ53: =IF(AND(#REF!=CQ$2,$R53<CQ$3,$R53>CQ$4,#REF!>CQ$6,#REF!<CQ$7),CQ$5,"") ->  | CR53: =IF(AND(#REF!=CR$2,$R53<CR$3,$R53>CR$4,#REF!>CR$6,#REF!<CR$7),CR$5,"") ->  | CS53: =IF(AND(#REF!=CS$2,$R53<CS$3,$R53>CS$4,#REF!>CS$6,#REF!<CS$7),CS$5,"") ->  | CT53: =IF(AND(#REF!=CT$2,$R53<CT$3,$R53>CT$4,#REF!>CT$6,#REF!<CT$7),CT$5,"") ->  | CU53: =IF(AND(#REF!=CU$2,$R53<CU$3,$R53>CU$4,#REF!>CU$6,#REF!<CU$7),CU$5,"") ->  | CV53: =IF(AND(#REF!=CV$2,$R53<CV$3,$R53>CV$4,#REF!>CV$6,#REF!<CV$7),CV$5,"") ->  | CW53: =IF(AND(#REF!=CW$2,$R53<CW$3,$R53>CW$4,#REF!>CW$6,#REF!<CW$7),CW$5,"") ->  | CX53: =IF(AND(#REF!=CX$2,$R53<CX$3,$R53>CX$4,#REF!>CX$6,#REF!<CX$7),CX$5,"") ->  | CY53: =IF(AND(#REF!=CY$2,$R53<CY$3,$R53>CY$4,#REF!>CY$6,#REF!<CY$7),CY$5,"") ->  | CZ53: =IF(AND(#REF!=CZ$2,$R53<CZ$3,$R53>CZ$4,#REF!>CZ$6,#REF!<CZ$7),CZ$5,"") ->  | DA53: =IF(AND(#REF!=DA$2,$R53<DA$3,$R53>DA$4,#REF!>DA$6,#REF!<DA$7),DA$5,"") ->  | DB53: =IF(AND(#REF!=DB$2,$R53<DB$3,$R53>DB$4,#REF!>DB$6,#REF!<DB$7),DB$5,"") ->  | DC53: =IF(AND(#REF!=DC$2,$R53<DC$3,$R53>DC$4,#REF!>DC$6,#REF!<DC$7),DC$5,"") ->  | DD53: =IF(AND(#REF!=DD$2,$R53<DD$3,$R53>DD$4,#REF!>DD$6,#REF!<DD$7),DD$5,"") ->  | DE53: =IF(AND(#REF!=DE$2,$R53<DE$3,$R53>DE$4,#REF!>DE$6,#REF!<DE$7),DE$5,"") ->  | DF53: =IF(AND(#REF!=DF$2,$R53<DF$3,$R53>DF$4,#REF!>DF$6,#REF!<DF$7),DF$5,"") ->  | DG53: =IF(AND(#REF!=DG$2,$R53<DG$3,$R53>DG$4,#REF!>DG$6,#REF!<DG$7),DG$5,"") ->  | DH53: =IF(AND(#REF!=DH$2,$R53<DH$3,$R53>DH$4,#REF!>DH$6,#REF!<DH$7),DH$5,"") ->  | DI53: =IF(AND(#REF!=DI$2,$R53<DI$3,$R53>DI$4,#REF!>DI$6,#REF!<DI$7),DI$5,"") ->  | DJ53: =IF(AND(#REF!=DJ$2,$R53<DJ$3,$R53>DJ$4,#REF!>DJ$6,#REF!<DJ$7),DJ$5,"") ->  | DK53: =IF(AND(#REF!=DK$2,$R53<DK$3,$R53>DK$4,#REF!>DK$6,#REF!<DK$7),DK$5,"") ->  | DL53: =IF(AND(#REF!=DL$2,$R53<DL$3,$R53>DL$4,#REF!>DL$6,#REF!<DL$7),DL$5,"") ->  | DM53: =IF(AND(#REF!=DM$2,$R53<DM$3,$R53>DM$4,#REF!>DM$6,#REF!<DM$7),DM$5,"") ->  | DN53: =IF(AND(#REF!=DN$2,$R53<DN$3,$R53>DN$4,#REF!>DN$6,#REF!<DN$7),DN$5,"") ->  | DO53: =IF(AND(#REF!=DO$2,$R53<DO$3,$R53>DO$4,#REF!>DO$6,#REF!<DO$7),DO$5,"") ->  | DP53: =IF(AND(#REF!=DP$2,$R53<DP$3,$R53>DP$4,#REF!>DP$6,#REF!<DP$7),DP$5,"") ->  | DQ53: =IF(AND(#REF!=DQ$2,$R53<DQ$3,$R53>DQ$4,#REF!>DQ$6,#REF!<DQ$7),DQ$5,"") ->  | DR53: =IF(AND(#REF!=DR$2,$R53<DR$3,$R53>DR$4,#REF!>DR$6,#REF!<DR$7),DR$5,"") ->  | DS53: =IF(AND(#REF!=DS$2,$R53<DS$3,$R53>DS$4,#REF!>DS$6,#REF!<DS$7),DS$5,"") ->  | DT53: =IF(AND(#REF!=DT$2,$R53<DT$3,$R53>DT$4,#REF!>DT$6,#REF!<DT$7),DT$5,"") ->  | DU53: =IF(AND(#REF!=DU$2,$R53<DU$3,$R53>DU$4,#REF!>DU$6,#REF!<DU$7),DU$5,"") ->  | DV53: =IF(AND(#REF!=DV$2,$R53<DV$3,$R53>DV$4,#REF!>DV$6,#REF!<DV$7),DV$5,"") ->  | DW53: =IF(AND(#REF!=DW$2,$R53<DW$3,$R53>DW$4,#REF!>DW$6,#REF!<DW$7),DW$5,"") ->  | DX53: =IF(AND(#REF!=DX$2,$R53<DX$3,$R53>DX$4,#REF!>DX$6,#REF!<DX$7),DX$5,"") ->  | DY53: =IF(AND(#REF!=DY$2,$R53<DY$3,$R53>DY$4,#REF!>DY$6,#REF!<DY$7),DY$5,"") ->  | DZ53: =IF(AND(#REF!=DZ$2,$R53<DZ$3,$R53>DZ$4,#REF!>DZ$6,#REF!<DZ$7),DZ$5,"") ->  | EA53: =IF(AND(#REF!=EA$2,$R53<EA$3,$R53>EA$4,#REF!>EA$6,#REF!<EA$7),EA$5,"") ->  | EB53: =IF(AND(#REF!=EB$2,$R53<EB$3,$R53>EB$4,#REF!>EB$6,#REF!<EB$7),EB$5,"") ->  | EC53: =IF(AND(#REF!=EC$2,$R53<EC$3,$R53>EC$4,#REF!>EC$6,#REF!<EC$7),EC$5,"") ->  | ED53: =IF(AND(#REF!=ED$2,$R53<ED$3,$R53>ED$4,#REF!>ED$6,#REF!<ED$7),ED$5,"") ->  | EE53: =IF(AND(#REF!=EE$2,$R53<EE$3,$R53>EE$4,#REF!>EE$6,#REF!<EE$7),EE$5,"") ->  | EF53: =IF(AND(#REF!=EF$2,$R53<EF$3,$R53>EF$4,#REF!>EF$6,#REF!<EF$7),EF$5,"") ->  | EG53: =IF(AND(#REF!=EG$2,$R53<EG$3,$R53>EG$4,#REF!>EG$6,#REF!<EG$7),EG$5,"") ->  | EH53: =IF(AND(#REF!=EH$2,$R53<EH$3,$R53>EH$4,#REF!>EH$6,#REF!<EH$7),EH$5,"") ->  | EI53: =IF(AND(#REF!=EI$2,$R53<EI$3,$R53>EI$4,#REF!>EI$6,#REF!<EI$7),EI$5,"") ->  | EJ53: =IF(AND(#REF!=EJ$2,$R53<EJ$3,$R53>EJ$4,#REF!>EJ$6,#REF!<EJ$7),EJ$5,"") ->  | EK53: =IF(AND(#REF!=EK$2,$R53<EK$3,$R53>EK$4,#REF!>EK$6,#REF!<EK$7),EK$5,"") ->  | EL53: =IF(AND(#REF!=EL$2,$R53<EL$3,$R53>EL$4,#REF!>EL$6,#REF!<EL$7),EL$5,"") ->  | EM53: =IF(AND(#REF!=EM$2,$R53<EM$3,$R53>EM$4,#REF!>EM$6,#REF!<EM$7),EM$5,"") ->  | EN53: =IF(AND(#REF!=EN$2,$R53<EN$3,$R53>EN$4,#REF!>EN$6,#REF!<EN$7),EN$5,"") ->  | EO53: =IF(AND(#REF!=EO$2,$R53<EO$3,$R53>EO$4,#REF!>EO$6,#REF!<EO$7),EO$5,"") ->  | EP53: =IF(AND(#REF!=EP$2,$R53<EP$3,$R53>EP$4,#REF!>EP$6,#REF!<EP$7),EP$5,"") ->  | EQ53: =IF(AND(#REF!=EQ$2,$R53<EQ$3,$R53>EQ$4,#REF!>EQ$6,#REF!<EQ$7),EQ$5,"") ->  | ER53: =IF(AND(#REF!=ER$2,$R53<ER$3,$R53>ER$4,#REF!>ER$6,#REF!<ER$7),ER$5,"") ->  | ES53: =IF(AND(#REF!=ES$2,$R53<ES$3,$R53>ES$4,#REF!>ES$6,#REF!<ES$7),ES$5,"") ->  | ET53: =IF(AND(#REF!=ET$2,$R53<ET$3,$R53>ET$4,#REF!>ET$6,#REF!<ET$7),ET$5,"") ->  | EU53: =IF(AND(#REF!=EU$2,$R53<EU$3,$R53>EU$4,#REF!>EU$6,#REF!<EU$7),EU$5,"") ->  | EV53: =IF(AND(#REF!=EV$2,$R53<EV$3,$R53>EV$4,#REF!>EV$6,#REF!<EV$7),EV$5,"") ->  | EW53: =IF(AND(#REF!=EW$2,$R53<EW$3,$R53>EW$4,#REF!>EW$6,#REF!<EW$7),EW$5,"") ->  | EX53: =IF(AND(#REF!=EX$2,$R53<EX$3,$R53>EX$4,#REF!>EX$6,#REF!<EX$7),EX$5,"") ->  | EY53: =IF(AND(#REF!=EY$2,$R53<EY$3,$R53>EY$4,#REF!>EY$6,#REF!<EY$7),EY$5,"") ->  | EZ53: =IF(AND(#REF!=EZ$2,$R53<EZ$3,$R53>EZ$4,#REF!>EZ$6,#REF!<EZ$7),EZ$5,"") ->  | FA53: =IF(AND(#REF!=FA$2,$R53<FA$3,$R53>FA$4,#REF!>FA$6,#REF!<FA$7),FA$5,"") ->  | FB53: =IF(AND(#REF!=FB$2,$R53<FB$3,$R53>FB$4,#REF!>FB$6,#REF!<FB$7),FB$5,"") ->  | FC53: =IF(AND(#REF!=FC$2,$R53<FC$3,$R53>FC$4,#REF!>FC$6,#REF!<FC$7),FC$5,"") ->  | FD53: =IF(AND(#REF!=FD$2,$R53<FD$3,$R53>FD$4,#REF!>FD$6,#REF!<FD$7),FD$5,"") ->  | FE53: =IF(AND(#REF!=FE$2,$R53<FE$3,$R53>FE$4,#REF!>FE$6,#REF!<FE$7),FE$5,"") ->  | FF53: =IF(AND(#REF!=FF$2,$R53<FF$3,$R53>FF$4,#REF!>FF$6,#REF!<FF$7),FF$5,"") ->  | FG53: =IF(AND(#REF!=FG$2,$R53<FG$3,$R53>FG$4,#REF!>FG$6,#REF!<FG$7),FG$5,"") ->  | FH53: =IF(AND(#REF!=FH$2,$R53<FH$3,$R53>FH$4,#REF!>FH$6,#REF!<FH$7),FH$5,"") ->  | FI53: =IF(AND(#REF!=FI$2,$R53<FI$3,$R53>FI$4,#REF!>FI$6,#REF!<FI$7),FI$5,"") ->  | FJ53: =IF(AND(#REF!=FJ$2,$R53<FJ$3,$R53>FJ$4,#REF!>FJ$6,#REF!<FJ$7),FJ$5,"") ->  | FK53: =IF(AND(#REF!=FK$2,$R53<FK$3,$R53>FK$4,#REF!>FK$6,#REF!<FK$7),FK$5,"") ->  | FL53: =IF(AND(#REF!=FL$2,$R53<FL$3,$R53>FL$4,#REF!>FL$6,#REF!<FL$7),FL$5,"") ->  | FM53: =IF(AND(#REF!=FM$2,$R53<FM$3,$R53>FM$4,#REF!>FM$6,#REF!<FM$7),FM$5,"") ->  | FN53: =IF(AND(#REF!=FN$2,$R53<FN$3,$R53>FN$4,#REF!>FN$6,#REF!<FN$7),FN$5,"") ->  | FO53: =IF(AND(#REF!=FO$2,$R53<FO$3,$R53>FO$4,#REF!>FO$6,#REF!<FO$7),FO$5,"") ->  | FP53: =IF(AND(#REF!=FP$2,$R53<FP$3,$R53>FP$4,#REF!>FP$6,#REF!<FP$7),FP$5,"") ->  | FQ53: =IF(AND(#REF!=FQ$2,$R53<FQ$3,$R53>FQ$4,#REF!>FQ$6,#REF!<FQ$7),FQ$5,"") ->  | FR53: =IF(AND(#REF!=FR$2,$R53<FR$3,$R53>FR$4,#REF!>FR$6,#REF!<FR$7),FR$5,"") ->  | FS53: =IF(AND(#REF!=FS$2,$R53<FS$3,$R53>FS$4,#REF!>FS$6,#REF!<FS$7),FS$5,"") ->  | FT53: =IF(AND(#REF!=FT$2,$R53<FT$3,$R53>FT$4,#REF!>FT$6,#REF!<FT$7),FT$5,"") ->  | FU53: =IF(AND(#REF!=FU$2,$R53<FU$3,$R53>FU$4,#REF!>FU$6,#REF!<FU$7),FU$5,"") ->  | FV53: =IF(AND(#REF!=FV$2,$R53<FV$3,$R53>FV$4,#REF!>FV$6,#REF!<FV$7),FV$5,"") ->  | FW53: =IF(AND(#REF!=FW$2,$R53<FW$3,$R53>FW$4,#REF!>FW$6,#REF!<FW$7),FW$5,"") -> 
D54: =SSNNFF&E54 -> ANA/AOBEZ | E54: =AA6 -> OBEZ | I54: =COUNTIF(N9:N48,D54) -> 0 | AN54: =IF(AND(#REF!=AN$2,$R54<AN$3,$R54>AN$4,#REF!>AN$6,#REF!<AN$7),AN$5,"") ->  | AO54: =IF(AND(#REF!=AO$2,$R54<AO$3,$R54>AO$4,#REF!>AO$6,#REF!<AO$7),AO$5,"") ->  | AP54: =IF(AND(#REF!=AP$2,$R54<AP$3,$R54>AP$4,#REF!>AP$6,#REF!<AP$7),AP$5,"") ->  | AQ54: =IF(AND(#REF!=AQ$2,$R54<AQ$3,$R54>AQ$4,#REF!>AQ$6,#REF!<AQ$7),AQ$5,"") ->  | AR54: =IF(AND(#REF!=AR$2,$R54<AR$3,$R54>AR$4,#REF!>AR$6,#REF!<AR$7),AR$5,"") ->  | AS54: =IF(AND(#REF!=AS$2,$R54<AS$3,$R54>AS$4,#REF!>AS$6,#REF!<AS$7),AS$5,"") ->  | AT54: =IF(AND(#REF!=AT$2,$R54<AT$3,$R54>AT$4,#REF!>AT$6,#REF!<AT$7),AT$5,"") ->  | AU54: =IF(AND(#REF!=AU$2,$R54<AU$3,$R54>AU$4,#REF!>AU$6,#REF!<AU$7),AU$5,"") ->  | AV54: =IF(AND(#REF!=AV$2,$R54<AV$3,$R54>AV$4,#REF!>AV$6,#REF!<AV$7),AV$5,"") ->  | AW54: =IF(AND(#REF!=AW$2,$R54<AW$3,$R54>AW$4,#REF!>AW$6,#REF!<AW$7),AW$5,"") ->  | AX54: =IF(AND(#REF!=AX$2,$R54<AX$3,$R54>AX$4,#REF!>AX$6,#REF!<AX$7),AX$5,"") ->  | AY54: =IF(AND(#REF!=AY$2,$R54<AY$3,$R54>AY$4,#REF!>AY$6,#REF!<AY$7),AY$5,"") ->  | AZ54: =IF(AND(#REF!=AZ$2,$R54<AZ$3,$R54>AZ$4,#REF!>AZ$6,#REF!<AZ$7),AZ$5,"") ->  | BA54: =IF(AND(#REF!=BA$2,$R54<BA$3,$R54>BA$4,#REF!>BA$6,#REF!<BA$7),BA$5,"") ->  | BB54: =IF(AND(#REF!=BB$2,$R54<BB$3,$R54>BB$4,#REF!>BB$6,#REF!<BB$7),BB$5,"") ->  | BC54: =IF(AND(#REF!=BC$2,$R54<BC$3,$R54>BC$4,#REF!>BC$6,#REF!<BC$7),BC$5,"") ->  | BD54: =IF(AND(#REF!=BD$2,$R54<BD$3,$R54>BD$4,#REF!>BD$6,#REF!<BD$7),BD$5,"") ->  | BE54: =IF(AND(#REF!=BE$2,$R54<BE$3,$R54>BE$4,#REF!>BE$6,#REF!<BE$7),BE$5,"") ->  | BF54: =IF(AND(#REF!=BF$2,$R54<BF$3,$R54>BF$4,#REF!>BF$6,#REF!<BF$7),BF$5,"") ->  | BG54: =IF(AND(#REF!=BG$2,$R54<BG$3,$R54>BG$4,#REF!>BG$6,#REF!<BG$7),BG$5,"") ->  | BH54: =IF(AND(#REF!=BH$2,$R54<BH$3,$R54>BH$4,#REF!>BH$6,#REF!<BH$7),BH$5,"") ->  | BI54: =IF(AND(#REF!=BI$2,$R54<BI$3,$R54>BI$4,#REF!>BI$6,#REF!<BI$7),BI$5,"") ->  | BJ54: =IF(AND(#REF!=BJ$2,$R54<BJ$3,$R54>BJ$4,#REF!>BJ$6,#REF!<BJ$7),BJ$5,"") ->  | BK54: =IF(AND(#REF!=BK$2,$R54<BK$3,$R54>BK$4,#REF!>BK$6,#REF!<BK$7),BK$5,"") ->  | BL54: =IF(AND(#REF!=BL$2,$R54<BL$3,$R54>BL$4,#REF!>BL$6,#REF!<BL$7),BL$5,"") ->  | BM54: =IF(AND(#REF!=BM$2,$R54<BM$3,$R54>BM$4,#REF!>BM$6,#REF!<BM$7),BM$5,"") ->  | BN54: =IF(AND(#REF!=BN$2,$R54<BN$3,$R54>BN$4,#REF!>BN$6,#REF!<BN$7),BN$5,"") ->  | BO54: =IF(AND(#REF!=BO$2,$R54<BO$3,$R54>BO$4,#REF!>BO$6,#REF!<BO$7),BO$5,"") ->  | BP54: =IF(AND(#REF!=BP$2,$R54<BP$3,$R54>BP$4,#REF!>BP$6,#REF!<BP$7),BP$5,"") ->  | BQ54: =IF(AND(#REF!=BQ$2,$R54<BQ$3,$R54>BQ$4,#REF!>BQ$6,#REF!<BQ$7),BQ$5,"") ->  | BR54: =IF(AND(#REF!=BR$2,$R54<BR$3,$R54>BR$4,#REF!>BR$6,#REF!<BR$7),BR$5,"") ->  | BS54: =IF(AND(#REF!=BS$2,$R54<BS$3,$R54>BS$4,#REF!>BS$6,#REF!<BS$7),BS$5,"") ->  | BT54: =IF(AND(#REF!=BT$2,$R54<BT$3,$R54>BT$4,#REF!>BT$6,#REF!<BT$7),BT$5,"") ->  | BU54: =IF(AND(#REF!=BU$2,$R54<BU$3,$R54>BU$4,#REF!>BU$6,#REF!<BU$7),BU$5,"") ->  | BV54: =IF(AND(#REF!=BV$2,$R54<BV$3,$R54>BV$4,#REF!>BV$6,#REF!<BV$7),BV$5,"") ->  | BW54: =IF(AND(#REF!=BW$2,$R54<BW$3,$R54>BW$4,#REF!>BW$6,#REF!<BW$7),BW$5,"") ->  | BX54: =IF(AND(#REF!=BX$2,$R54<BX$3,$R54>BX$4,#REF!>BX$6,#REF!<BX$7),BX$5,"") ->  | BY54: =IF(AND(#REF!=BY$2,$R54<BY$3,$R54>BY$4,#REF!>BY$6,#REF!<BY$7),BY$5,"") ->  | BZ54: =IF(AND(#REF!=BZ$2,$R54<BZ$3,$R54>BZ$4,#REF!>BZ$6,#REF!<BZ$7),BZ$5,"") ->  | CA54: =IF(AND(#REF!=CA$2,$R54<CA$3,$R54>CA$4,#REF!>CA$6,#REF!<CA$7),CA$5,"") ->  | CB54: =IF(AND(#REF!=CB$2,$R54<CB$3,$R54>CB$4,#REF!>CB$6,#REF!<CB$7),CB$5,"") ->  | CC54: =IF(AND(#REF!=CC$2,$R54<CC$3,$R54>CC$4,#REF!>CC$6,#REF!<CC$7),CC$5,"") ->  | CD54: =IF(AND(#REF!=CD$2,$R54<CD$3,$R54>CD$4,#REF!>CD$6,#REF!<CD$7),CD$5,"") ->  | CE54: =IF(AND(#REF!=CE$2,$R54<CE$3,$R54>CE$4,#REF!>CE$6,#REF!<CE$7),CE$5,"") ->  | CF54: =IF(AND(#REF!=CF$2,$R54<CF$3,$R54>CF$4,#REF!>CF$6,#REF!<CF$7),CF$5,"") ->  | CG54: =IF(AND(#REF!=CG$2,$R54<CG$3,$R54>CG$4,#REF!>CG$6,#REF!<CG$7),CG$5,"") ->  | CH54: =IF(AND(#REF!=CH$2,$R54<CH$3,$R54>CH$4,#REF!>CH$6,#REF!<CH$7),CH$5,"") ->  | CI54: =IF(AND(#REF!=CI$2,$R54<CI$3,$R54>CI$4,#REF!>CI$6,#REF!<CI$7),CI$5,"") ->  | CJ54: =IF(AND(#REF!=CJ$2,$R54<CJ$3,$R54>CJ$4,#REF!>CJ$6,#REF!<CJ$7),CJ$5,"") ->  | CK54: =IF(AND(#REF!=CK$2,$R54<CK$3,$R54>CK$4,#REF!>CK$6,#REF!<CK$7),CK$5,"") ->  | CL54: =IF(AND(#REF!=CL$2,$R54<CL$3,$R54>CL$4,#REF!>CL$6,#REF!<CL$7),CL$5,"") ->  | CM54: =IF(AND(#REF!=CM$2,$R54<CM$3,$R54>CM$4,#REF!>CM$6,#REF!<CM$7),CM$5,"") ->  | CN54: =IF(AND(#REF!=CN$2,$R54<CN$3,$R54>CN$4,#REF!>CN$6,#REF!<CN$7),CN$5,"") ->  | CO54: =IF(AND(#REF!=CO$2,$R54<CO$3,$R54>CO$4,#REF!>CO$6,#REF!<CO$7),CO$5,"") ->  | CP54: =IF(AND(#REF!=CP$2,$R54<CP$3,$R54>CP$4,#REF!>CP$6,#REF!<CP$7),CP$5,"") ->  | CQ54: =IF(AND(#REF!=CQ$2,$R54<CQ$3,$R54>CQ$4,#REF!>CQ$6,#REF!<CQ$7),CQ$5,"") ->  | CR54: =IF(AND(#REF!=CR$2,$R54<CR$3,$R54>CR$4,#REF!>CR$6,#REF!<CR$7),CR$5,"") ->  | CS54: =IF(AND(#REF!=CS$2,$R54<CS$3,$R54>CS$4,#REF!>CS$6,#REF!<CS$7),CS$5,"") ->  | CT54: =IF(AND(#REF!=CT$2,$R54<CT$3,$R54>CT$4,#REF!>CT$6,#REF!<CT$7),CT$5,"") ->  | CU54: =IF(AND(#REF!=CU$2,$R54<CU$3,$R54>CU$4,#REF!>CU$6,#REF!<CU$7),CU$5,"") ->  | CV54: =IF(AND(#REF!=CV$2,$R54<CV$3,$R54>CV$4,#REF!>CV$6,#REF!<CV$7),CV$5,"") ->  | CW54: =IF(AND(#REF!=CW$2,$R54<CW$3,$R54>CW$4,#REF!>CW$6,#REF!<CW$7),CW$5,"") ->  | CX54: =IF(AND(#REF!=CX$2,$R54<CX$3,$R54>CX$4,#REF!>CX$6,#REF!<CX$7),CX$5,"") ->  | CY54: =IF(AND(#REF!=CY$2,$R54<CY$3,$R54>CY$4,#REF!>CY$6,#REF!<CY$7),CY$5,"") ->  | CZ54: =IF(AND(#REF!=CZ$2,$R54<CZ$3,$R54>CZ$4,#REF!>CZ$6,#REF!<CZ$7),CZ$5,"") ->  | DA54: =IF(AND(#REF!=DA$2,$R54<DA$3,$R54>DA$4,#REF!>DA$6,#REF!<DA$7),DA$5,"") ->  | DB54: =IF(AND(#REF!=DB$2,$R54<DB$3,$R54>DB$4,#REF!>DB$6,#REF!<DB$7),DB$5,"") ->  | DC54: =IF(AND(#REF!=DC$2,$R54<DC$3,$R54>DC$4,#REF!>DC$6,#REF!<DC$7),DC$5,"") ->  | DD54: =IF(AND(#REF!=DD$2,$R54<DD$3,$R54>DD$4,#REF!>DD$6,#REF!<DD$7),DD$5,"") ->  | DE54: =IF(AND(#REF!=DE$2,$R54<DE$3,$R54>DE$4,#REF!>DE$6,#REF!<DE$7),DE$5,"") ->  | DF54: =IF(AND(#REF!=DF$2,$R54<DF$3,$R54>DF$4,#REF!>DF$6,#REF!<DF$7),DF$5,"") ->  | DG54: =IF(AND(#REF!=DG$2,$R54<DG$3,$R54>DG$4,#REF!>DG$6,#REF!<DG$7),DG$5,"") ->  | DH54: =IF(AND(#REF!=DH$2,$R54<DH$3,$R54>DH$4,#REF!>DH$6,#REF!<DH$7),DH$5,"") ->  | DI54: =IF(AND(#REF!=DI$2,$R54<DI$3,$R54>DI$4,#REF!>DI$6,#REF!<DI$7),DI$5,"") ->  | DJ54: =IF(AND(#REF!=DJ$2,$R54<DJ$3,$R54>DJ$4,#REF!>DJ$6,#REF!<DJ$7),DJ$5,"") ->  | DK54: =IF(AND(#REF!=DK$2,$R54<DK$3,$R54>DK$4,#REF!>DK$6,#REF!<DK$7),DK$5,"") ->  | DL54: =IF(AND(#REF!=DL$2,$R54<DL$3,$R54>DL$4,#REF!>DL$6,#REF!<DL$7),DL$5,"") ->  | DM54: =IF(AND(#REF!=DM$2,$R54<DM$3,$R54>DM$4,#REF!>DM$6,#REF!<DM$7),DM$5,"") ->  | DN54: =IF(AND(#REF!=DN$2,$R54<DN$3,$R54>DN$4,#REF!>DN$6,#REF!<DN$7),DN$5,"") ->  | DO54: =IF(AND(#REF!=DO$2,$R54<DO$3,$R54>DO$4,#REF!>DO$6,#REF!<DO$7),DO$5,"") ->  | DP54: =IF(AND(#REF!=DP$2,$R54<DP$3,$R54>DP$4,#REF!>DP$6,#REF!<DP$7),DP$5,"") ->  | DQ54: =IF(AND(#REF!=DQ$2,$R54<DQ$3,$R54>DQ$4,#REF!>DQ$6,#REF!<DQ$7),DQ$5,"") ->  | DR54: =IF(AND(#REF!=DR$2,$R54<DR$3,$R54>DR$4,#REF!>DR$6,#REF!<DR$7),DR$5,"") ->  | DS54: =IF(AND(#REF!=DS$2,$R54<DS$3,$R54>DS$4,#REF!>DS$6,#REF!<DS$7),DS$5,"") ->  | DT54: =IF(AND(#REF!=DT$2,$R54<DT$3,$R54>DT$4,#REF!>DT$6,#REF!<DT$7),DT$5,"") ->  | DU54: =IF(AND(#REF!=DU$2,$R54<DU$3,$R54>DU$4,#REF!>DU$6,#REF!<DU$7),DU$5,"") ->  | DV54: =IF(AND(#REF!=DV$2,$R54<DV$3,$R54>DV$4,#REF!>DV$6,#REF!<DV$7),DV$5,"") ->  | DW54: =IF(AND(#REF!=DW$2,$R54<DW$3,$R54>DW$4,#REF!>DW$6,#REF!<DW$7),DW$5,"") ->  | DX54: =IF(AND(#REF!=DX$2,$R54<DX$3,$R54>DX$4,#REF!>DX$6,#REF!<DX$7),DX$5,"") ->  | DY54: =IF(AND(#REF!=DY$2,$R54<DY$3,$R54>DY$4,#REF!>DY$6,#REF!<DY$7),DY$5,"") ->  | DZ54: =IF(AND(#REF!=DZ$2,$R54<DZ$3,$R54>DZ$4,#REF!>DZ$6,#REF!<DZ$7),DZ$5,"") ->  | EA54: =IF(AND(#REF!=EA$2,$R54<EA$3,$R54>EA$4,#REF!>EA$6,#REF!<EA$7),EA$5,"") ->  | EB54: =IF(AND(#REF!=EB$2,$R54<EB$3,$R54>EB$4,#REF!>EB$6,#REF!<EB$7),EB$5,"") ->  | EC54: =IF(AND(#REF!=EC$2,$R54<EC$3,$R54>EC$4,#REF!>EC$6,#REF!<EC$7),EC$5,"") ->  | ED54: =IF(AND(#REF!=ED$2,$R54<ED$3,$R54>ED$4,#REF!>ED$6,#REF!<ED$7),ED$5,"") ->  | EE54: =IF(AND(#REF!=EE$2,$R54<EE$3,$R54>EE$4,#REF!>EE$6,#REF!<EE$7),EE$5,"") ->  | EF54: =IF(AND(#REF!=EF$2,$R54<EF$3,$R54>EF$4,#REF!>EF$6,#REF!<EF$7),EF$5,"") ->  | EG54: =IF(AND(#REF!=EG$2,$R54<EG$3,$R54>EG$4,#REF!>EG$6,#REF!<EG$7),EG$5,"") ->  | EH54: =IF(AND(#REF!=EH$2,$R54<EH$3,$R54>EH$4,#REF!>EH$6,#REF!<EH$7),EH$5,"") ->  | EI54: =IF(AND(#REF!=EI$2,$R54<EI$3,$R54>EI$4,#REF!>EI$6,#REF!<EI$7),EI$5,"") ->  | EJ54: =IF(AND(#REF!=EJ$2,$R54<EJ$3,$R54>EJ$4,#REF!>EJ$6,#REF!<EJ$7),EJ$5,"") ->  | EK54: =IF(AND(#REF!=EK$2,$R54<EK$3,$R54>EK$4,#REF!>EK$6,#REF!<EK$7),EK$5,"") ->  | EL54: =IF(AND(#REF!=EL$2,$R54<EL$3,$R54>EL$4,#REF!>EL$6,#REF!<EL$7),EL$5,"") ->  | EM54: =IF(AND(#REF!=EM$2,$R54<EM$3,$R54>EM$4,#REF!>EM$6,#REF!<EM$7),EM$5,"") ->  | EN54: =IF(AND(#REF!=EN$2,$R54<EN$3,$R54>EN$4,#REF!>EN$6,#REF!<EN$7),EN$5,"") ->  | EO54: =IF(AND(#REF!=EO$2,$R54<EO$3,$R54>EO$4,#REF!>EO$6,#REF!<EO$7),EO$5,"") ->  | EP54: =IF(AND(#REF!=EP$2,$R54<EP$3,$R54>EP$4,#REF!>EP$6,#REF!<EP$7),EP$5,"") ->  | EQ54: =IF(AND(#REF!=EQ$2,$R54<EQ$3,$R54>EQ$4,#REF!>EQ$6,#REF!<EQ$7),EQ$5,"") ->  | ER54: =IF(AND(#REF!=ER$2,$R54<ER$3,$R54>ER$4,#REF!>ER$6,#REF!<ER$7),ER$5,"") ->  | ES54: =IF(AND(#REF!=ES$2,$R54<ES$3,$R54>ES$4,#REF!>ES$6,#REF!<ES$7),ES$5,"") ->  | ET54: =IF(AND(#REF!=ET$2,$R54<ET$3,$R54>ET$4,#REF!>ET$6,#REF!<ET$7),ET$5,"") ->  | EU54: =IF(AND(#REF!=EU$2,$R54<EU$3,$R54>EU$4,#REF!>EU$6,#REF!<EU$7),EU$5,"") ->  | EV54: =IF(AND(#REF!=EV$2,$R54<EV$3,$R54>EV$4,#REF!>EV$6,#REF!<EV$7),EV$5,"") ->  | EW54: =IF(AND(#REF!=EW$2,$R54<EW$3,$R54>EW$4,#REF!>EW$6,#REF!<EW$7),EW$5,"") ->  | EX54: =IF(AND(#REF!=EX$2,$R54<EX$3,$R54>EX$4,#REF!>EX$6,#REF!<EX$7),EX$5,"") ->  | EY54: =IF(AND(#REF!=EY$2,$R54<EY$3,$R54>EY$4,#REF!>EY$6,#REF!<EY$7),EY$5,"") ->  | EZ54: =IF(AND(#REF!=EZ$2,$R54<EZ$3,$R54>EZ$4,#REF!>EZ$6,#REF!<EZ$7),EZ$5,"") ->  | FA54: =IF(AND(#REF!=FA$2,$R54<FA$3,$R54>FA$4,#REF!>FA$6,#REF!<FA$7),FA$5,"") ->  | FB54: =IF(AND(#REF!=FB$2,$R54<FB$3,$R54>FB$4,#REF!>FB$6,#REF!<FB$7),FB$5,"") ->  | FC54: =IF(AND(#REF!=FC$2,$R54<FC$3,$R54>FC$4,#REF!>FC$6,#REF!<FC$7),FC$5,"") ->  | FD54: =IF(AND(#REF!=FD$2,$R54<FD$3,$R54>FD$4,#REF!>FD$6,#REF!<FD$7),FD$5,"") ->  | FE54: =IF(AND(#REF!=FE$2,$R54<FE$3,$R54>FE$4,#REF!>FE$6,#REF!<FE$7),FE$5,"") ->  | FF54: =IF(AND(#REF!=FF$2,$R54<FF$3,$R54>FF$4,#REF!>FF$6,#REF!<FF$7),FF$5,"") ->  | FG54: =IF(AND(#REF!=FG$2,$R54<FG$3,$R54>FG$4,#REF!>FG$6,#REF!<FG$7),FG$5,"") ->  | FH54: =IF(AND(#REF!=FH$2,$R54<FH$3,$R54>FH$4,#REF!>FH$6,#REF!<FH$7),FH$5,"") ->  | FI54: =IF(AND(#REF!=FI$2,$R54<FI$3,$R54>FI$4,#REF!>FI$6,#REF!<FI$7),FI$5,"") ->  | FJ54: =IF(AND(#REF!=FJ$2,$R54<FJ$3,$R54>FJ$4,#REF!>FJ$6,#REF!<FJ$7),FJ$5,"") ->  | FK54: =IF(AND(#REF!=FK$2,$R54<FK$3,$R54>FK$4,#REF!>FK$6,#REF!<FK$7),FK$5,"") ->  | FL54: =IF(AND(#REF!=FL$2,$R54<FL$3,$R54>FL$4,#REF!>FL$6,#REF!<FL$7),FL$5,"") ->  | FM54: =IF(AND(#REF!=FM$2,$R54<FM$3,$R54>FM$4,#REF!>FM$6,#REF!<FM$7),FM$5,"") ->  | FN54: =IF(AND(#REF!=FN$2,$R54<FN$3,$R54>FN$4,#REF!>FN$6,#REF!<FN$7),FN$5,"") ->  | FO54: =IF(AND(#REF!=FO$2,$R54<FO$3,$R54>FO$4,#REF!>FO$6,#REF!<FO$7),FO$5,"") ->  | FP54: =IF(AND(#REF!=FP$2,$R54<FP$3,$R54>FP$4,#REF!>FP$6,#REF!<FP$7),FP$5,"") ->  | FQ54: =IF(AND(#REF!=FQ$2,$R54<FQ$3,$R54>FQ$4,#REF!>FQ$6,#REF!<FQ$7),FQ$5,"") ->  | FR54: =IF(AND(#REF!=FR$2,$R54<FR$3,$R54>FR$4,#REF!>FR$6,#REF!<FR$7),FR$5,"") ->  | FS54: =IF(AND(#REF!=FS$2,$R54<FS$3,$R54>FS$4,#REF!>FS$6,#REF!<FS$7),FS$5,"") ->  | FT54: =IF(AND(#REF!=FT$2,$R54<FT$3,$R54>FT$4,#REF!>FT$6,#REF!<FT$7),FT$5,"") ->  | FU54: =IF(AND(#REF!=FU$2,$R54<FU$3,$R54>FU$4,#REF!>FU$6,#REF!<FU$7),FU$5,"") ->  | FV54: =IF(AND(#REF!=FV$2,$R54<FV$3,$R54>FV$4,#REF!>FV$6,#REF!<FV$7),FV$5,"") ->  | FW54: =IF(AND(#REF!=FW$2,$R54<FW$3,$R54>FW$4,#REF!>FW$6,#REF!<FW$7),FW$5,"") -> 
AN55: =IF(AND(#REF!=AN$2,$R55<AN$3,$R55>AN$4,#REF!>AN$6,#REF!<AN$7),AN$5,"") ->  | AO55: =IF(AND(#REF!=AO$2,$R55<AO$3,$R55>AO$4,#REF!>AO$6,#REF!<AO$7),AO$5,"") ->  | AP55: =IF(AND(#REF!=AP$2,$R55<AP$3,$R55>AP$4,#REF!>AP$6,#REF!<AP$7),AP$5,"") ->  | AQ55: =IF(AND(#REF!=AQ$2,$R55<AQ$3,$R55>AQ$4,#REF!>AQ$6,#REF!<AQ$7),AQ$5,"") ->  | AR55: =IF(AND(#REF!=AR$2,$R55<AR$3,$R55>AR$4,#REF!>AR$6,#REF!<AR$7),AR$5,"") ->  | AS55: =IF(AND(#REF!=AS$2,$R55<AS$3,$R55>AS$4,#REF!>AS$6,#REF!<AS$7),AS$5,"") ->  | AT55: =IF(AND(#REF!=AT$2,$R55<AT$3,$R55>AT$4,#REF!>AT$6,#REF!<AT$7),AT$5,"") ->  | AU55: =IF(AND(#REF!=AU$2,$R55<AU$3,$R55>AU$4,#REF!>AU$6,#REF!<AU$7),AU$5,"") ->  | AV55: =IF(AND(#REF!=AV$2,$R55<AV$3,$R55>AV$4,#REF!>AV$6,#REF!<AV$7),AV$5,"") ->  | AW55: =IF(AND(#REF!=AW$2,$R55<AW$3,$R55>AW$4,#REF!>AW$6,#REF!<AW$7),AW$5,"") ->  | AX55: =IF(AND(#REF!=AX$2,$R55<AX$3,$R55>AX$4,#REF!>AX$6,#REF!<AX$7),AX$5,"") ->  | AY55: =IF(AND(#REF!=AY$2,$R55<AY$3,$R55>AY$4,#REF!>AY$6,#REF!<AY$7),AY$5,"") ->  | AZ55: =IF(AND(#REF!=AZ$2,$R55<AZ$3,$R55>AZ$4,#REF!>AZ$6,#REF!<AZ$7),AZ$5,"") ->  | BA55: =IF(AND(#REF!=BA$2,$R55<BA$3,$R55>BA$4,#REF!>BA$6,#REF!<BA$7),BA$5,"") ->  | BB55: =IF(AND(#REF!=BB$2,$R55<BB$3,$R55>BB$4,#REF!>BB$6,#REF!<BB$7),BB$5,"") ->  | BC55: =IF(AND(#REF!=BC$2,$R55<BC$3,$R55>BC$4,#REF!>BC$6,#REF!<BC$7),BC$5,"") ->  | BD55: =IF(AND(#REF!=BD$2,$R55<BD$3,$R55>BD$4,#REF!>BD$6,#REF!<BD$7),BD$5,"") ->  | BE55: =IF(AND(#REF!=BE$2,$R55<BE$3,$R55>BE$4,#REF!>BE$6,#REF!<BE$7),BE$5,"") ->  | BF55: =IF(AND(#REF!=BF$2,$R55<BF$3,$R55>BF$4,#REF!>BF$6,#REF!<BF$7),BF$5,"") ->  | BG55: =IF(AND(#REF!=BG$2,$R55<BG$3,$R55>BG$4,#REF!>BG$6,#REF!<BG$7),BG$5,"") ->  | BH55: =IF(AND(#REF!=BH$2,$R55<BH$3,$R55>BH$4,#REF!>BH$6,#REF!<BH$7),BH$5,"") ->  | BI55: =IF(AND(#REF!=BI$2,$R55<BI$3,$R55>BI$4,#REF!>BI$6,#REF!<BI$7),BI$5,"") ->  | BJ55: =IF(AND(#REF!=BJ$2,$R55<BJ$3,$R55>BJ$4,#REF!>BJ$6,#REF!<BJ$7),BJ$5,"") ->  | BK55: =IF(AND(#REF!=BK$2,$R55<BK$3,$R55>BK$4,#REF!>BK$6,#REF!<BK$7),BK$5,"") ->  | BL55: =IF(AND(#REF!=BL$2,$R55<BL$3,$R55>BL$4,#REF!>BL$6,#REF!<BL$7),BL$5,"") ->  | BM55: =IF(AND(#REF!=BM$2,$R55<BM$3,$R55>BM$4,#REF!>BM$6,#REF!<BM$7),BM$5,"") ->  | BN55: =IF(AND(#REF!=BN$2,$R55<BN$3,$R55>BN$4,#REF!>BN$6,#REF!<BN$7),BN$5,"") ->  | BO55: =IF(AND(#REF!=BO$2,$R55<BO$3,$R55>BO$4,#REF!>BO$6,#REF!<BO$7),BO$5,"") ->  | BP55: =IF(AND(#REF!=BP$2,$R55<BP$3,$R55>BP$4,#REF!>BP$6,#REF!<BP$7),BP$5,"") ->  | BQ55: =IF(AND(#REF!=BQ$2,$R55<BQ$3,$R55>BQ$4,#REF!>BQ$6,#REF!<BQ$7),BQ$5,"") ->  | BR55: =IF(AND(#REF!=BR$2,$R55<BR$3,$R55>BR$4,#REF!>BR$6,#REF!<BR$7),BR$5,"") ->  | BS55: =IF(AND(#REF!=BS$2,$R55<BS$3,$R55>BS$4,#REF!>BS$6,#REF!<BS$7),BS$5,"") ->  | BT55: =IF(AND(#REF!=BT$2,$R55<BT$3,$R55>BT$4,#REF!>BT$6,#REF!<BT$7),BT$5,"") ->  | BU55: =IF(AND(#REF!=BU$2,$R55<BU$3,$R55>BU$4,#REF!>BU$6,#REF!<BU$7),BU$5,"") ->  | BV55: =IF(AND(#REF!=BV$2,$R55<BV$3,$R55>BV$4,#REF!>BV$6,#REF!<BV$7),BV$5,"") ->  | BW55: =IF(AND(#REF!=BW$2,$R55<BW$3,$R55>BW$4,#REF!>BW$6,#REF!<BW$7),BW$5,"") ->  | BX55: =IF(AND(#REF!=BX$2,$R55<BX$3,$R55>BX$4,#REF!>BX$6,#REF!<BX$7),BX$5,"") ->  | BY55: =IF(AND(#REF!=BY$2,$R55<BY$3,$R55>BY$4,#REF!>BY$6,#REF!<BY$7),BY$5,"") ->  | BZ55: =IF(AND(#REF!=BZ$2,$R55<BZ$3,$R55>BZ$4,#REF!>BZ$6,#REF!<BZ$7),BZ$5,"") ->  | CA55: =IF(AND(#REF!=CA$2,$R55<CA$3,$R55>CA$4,#REF!>CA$6,#REF!<CA$7),CA$5,"") ->  | CB55: =IF(AND(#REF!=CB$2,$R55<CB$3,$R55>CB$4,#REF!>CB$6,#REF!<CB$7),CB$5,"") ->  | CC55: =IF(AND(#REF!=CC$2,$R55<CC$3,$R55>CC$4,#REF!>CC$6,#REF!<CC$7),CC$5,"") ->  | CD55: =IF(AND(#REF!=CD$2,$R55<CD$3,$R55>CD$4,#REF!>CD$6,#REF!<CD$7),CD$5,"") ->  | CE55: =IF(AND(#REF!=CE$2,$R55<CE$3,$R55>CE$4,#REF!>CE$6,#REF!<CE$7),CE$5,"") ->  | CF55: =IF(AND(#REF!=CF$2,$R55<CF$3,$R55>CF$4,#REF!>CF$6,#REF!<CF$7),CF$5,"") ->  | CG55: =IF(AND(#REF!=CG$2,$R55<CG$3,$R55>CG$4,#REF!>CG$6,#REF!<CG$7),CG$5,"") ->  | CH55: =IF(AND(#REF!=CH$2,$R55<CH$3,$R55>CH$4,#REF!>CH$6,#REF!<CH$7),CH$5,"") ->  | CI55: =IF(AND(#REF!=CI$2,$R55<CI$3,$R55>CI$4,#REF!>CI$6,#REF!<CI$7),CI$5,"") ->  | CJ55: =IF(AND(#REF!=CJ$2,$R55<CJ$3,$R55>CJ$4,#REF!>CJ$6,#REF!<CJ$7),CJ$5,"") ->  | CK55: =IF(AND(#REF!=CK$2,$R55<CK$3,$R55>CK$4,#REF!>CK$6,#REF!<CK$7),CK$5,"") ->  | CL55: =IF(AND(#REF!=CL$2,$R55<CL$3,$R55>CL$4,#REF!>CL$6,#REF!<CL$7),CL$5,"") ->  | CM55: =IF(AND(#REF!=CM$2,$R55<CM$3,$R55>CM$4,#REF!>CM$6,#REF!<CM$7),CM$5,"") ->  | CN55: =IF(AND(#REF!=CN$2,$R55<CN$3,$R55>CN$4,#REF!>CN$6,#REF!<CN$7),CN$5,"") ->  | CO55: =IF(AND(#REF!=CO$2,$R55<CO$3,$R55>CO$4,#REF!>CO$6,#REF!<CO$7),CO$5,"") ->  | CP55: =IF(AND(#REF!=CP$2,$R55<CP$3,$R55>CP$4,#REF!>CP$6,#REF!<CP$7),CP$5,"") ->  | CQ55: =IF(AND(#REF!=CQ$2,$R55<CQ$3,$R55>CQ$4,#REF!>CQ$6,#REF!<CQ$7),CQ$5,"") ->  | CR55: =IF(AND(#REF!=CR$2,$R55<CR$3,$R55>CR$4,#REF!>CR$6,#REF!<CR$7),CR$5,"") ->  | CS55: =IF(AND(#REF!=CS$2,$R55<CS$3,$R55>CS$4,#REF!>CS$6,#REF!<CS$7),CS$5,"") ->  | CT55: =IF(AND(#REF!=CT$2,$R55<CT$3,$R55>CT$4,#REF!>CT$6,#REF!<CT$7),CT$5,"") ->  | CU55: =IF(AND(#REF!=CU$2,$R55<CU$3,$R55>CU$4,#REF!>CU$6,#REF!<CU$7),CU$5,"") ->  | CV55: =IF(AND(#REF!=CV$2,$R55<CV$3,$R55>CV$4,#REF!>CV$6,#REF!<CV$7),CV$5,"") ->  | CW55: =IF(AND(#REF!=CW$2,$R55<CW$3,$R55>CW$4,#REF!>CW$6,#REF!<CW$7),CW$5,"") ->  | CX55: =IF(AND(#REF!=CX$2,$R55<CX$3,$R55>CX$4,#REF!>CX$6,#REF!<CX$7),CX$5,"") ->  | CY55: =IF(AND(#REF!=CY$2,$R55<CY$3,$R55>CY$4,#REF!>CY$6,#REF!<CY$7),CY$5,"") ->  | CZ55: =IF(AND(#REF!=CZ$2,$R55<CZ$3,$R55>CZ$4,#REF!>CZ$6,#REF!<CZ$7),CZ$5,"") ->  | DA55: =IF(AND(#REF!=DA$2,$R55<DA$3,$R55>DA$4,#REF!>DA$6,#REF!<DA$7),DA$5,"") ->  | DB55: =IF(AND(#REF!=DB$2,$R55<DB$3,$R55>DB$4,#REF!>DB$6,#REF!<DB$7),DB$5,"") ->  | DC55: =IF(AND(#REF!=DC$2,$R55<DC$3,$R55>DC$4,#REF!>DC$6,#REF!<DC$7),DC$5,"") ->  | DD55: =IF(AND(#REF!=DD$2,$R55<DD$3,$R55>DD$4,#REF!>DD$6,#REF!<DD$7),DD$5,"") ->  | DE55: =IF(AND(#REF!=DE$2,$R55<DE$3,$R55>DE$4,#REF!>DE$6,#REF!<DE$7),DE$5,"") ->  | DF55: =IF(AND(#REF!=DF$2,$R55<DF$3,$R55>DF$4,#REF!>DF$6,#REF!<DF$7),DF$5,"") ->  | DG55: =IF(AND(#REF!=DG$2,$R55<DG$3,$R55>DG$4,#REF!>DG$6,#REF!<DG$7),DG$5,"") ->  | DH55: =IF(AND(#REF!=DH$2,$R55<DH$3,$R55>DH$4,#REF!>DH$6,#REF!<DH$7),DH$5,"") ->  | DI55: =IF(AND(#REF!=DI$2,$R55<DI$3,$R55>DI$4,#REF!>DI$6,#REF!<DI$7),DI$5,"") ->  | DJ55: =IF(AND(#REF!=DJ$2,$R55<DJ$3,$R55>DJ$4,#REF!>DJ$6,#REF!<DJ$7),DJ$5,"") ->  | DK55: =IF(AND(#REF!=DK$2,$R55<DK$3,$R55>DK$4,#REF!>DK$6,#REF!<DK$7),DK$5,"") ->  | DL55: =IF(AND(#REF!=DL$2,$R55<DL$3,$R55>DL$4,#REF!>DL$6,#REF!<DL$7),DL$5,"") ->  | DM55: =IF(AND(#REF!=DM$2,$R55<DM$3,$R55>DM$4,#REF!>DM$6,#REF!<DM$7),DM$5,"") ->  | DN55: =IF(AND(#REF!=DN$2,$R55<DN$3,$R55>DN$4,#REF!>DN$6,#REF!<DN$7),DN$5,"") ->  | DO55: =IF(AND(#REF!=DO$2,$R55<DO$3,$R55>DO$4,#REF!>DO$6,#REF!<DO$7),DO$5,"") ->  | DP55: =IF(AND(#REF!=DP$2,$R55<DP$3,$R55>DP$4,#REF!>DP$6,#REF!<DP$7),DP$5,"") ->  | DQ55: =IF(AND(#REF!=DQ$2,$R55<DQ$3,$R55>DQ$4,#REF!>DQ$6,#REF!<DQ$7),DQ$5,"") ->  | DR55: =IF(AND(#REF!=DR$2,$R55<DR$3,$R55>DR$4,#REF!>DR$6,#REF!<DR$7),DR$5,"") ->  | DS55: =IF(AND(#REF!=DS$2,$R55<DS$3,$R55>DS$4,#REF!>DS$6,#REF!<DS$7),DS$5,"") ->  | DT55: =IF(AND(#REF!=DT$2,$R55<DT$3,$R55>DT$4,#REF!>DT$6,#REF!<DT$7),DT$5,"") ->  | DU55: =IF(AND(#REF!=DU$2,$R55<DU$3,$R55>DU$4,#REF!>DU$6,#REF!<DU$7),DU$5,"") ->  | DV55: =IF(AND(#REF!=DV$2,$R55<DV$3,$R55>DV$4,#REF!>DV$6,#REF!<DV$7),DV$5,"") ->  | DW55: =IF(AND(#REF!=DW$2,$R55<DW$3,$R55>DW$4,#REF!>DW$6,#REF!<DW$7),DW$5,"") ->  | DX55: =IF(AND(#REF!=DX$2,$R55<DX$3,$R55>DX$4,#REF!>DX$6,#REF!<DX$7),DX$5,"") ->  | DY55: =IF(AND(#REF!=DY$2,$R55<DY$3,$R55>DY$4,#REF!>DY$6,#REF!<DY$7),DY$5,"") ->  | DZ55: =IF(AND(#REF!=DZ$2,$R55<DZ$3,$R55>DZ$4,#REF!>DZ$6,#REF!<DZ$7),DZ$5,"") ->  | EA55: =IF(AND(#REF!=EA$2,$R55<EA$3,$R55>EA$4,#REF!>EA$6,#REF!<EA$7),EA$5,"") ->  | EB55: =IF(AND(#REF!=EB$2,$R55<EB$3,$R55>EB$4,#REF!>EB$6,#REF!<EB$7),EB$5,"") ->  | EC55: =IF(AND(#REF!=EC$2,$R55<EC$3,$R55>EC$4,#REF!>EC$6,#REF!<EC$7),EC$5,"") ->  | ED55: =IF(AND(#REF!=ED$2,$R55<ED$3,$R55>ED$4,#REF!>ED$6,#REF!<ED$7),ED$5,"") ->  | EE55: =IF(AND(#REF!=EE$2,$R55<EE$3,$R55>EE$4,#REF!>EE$6,#REF!<EE$7),EE$5,"") ->  | EF55: =IF(AND(#REF!=EF$2,$R55<EF$3,$R55>EF$4,#REF!>EF$6,#REF!<EF$7),EF$5,"") ->  | EG55: =IF(AND(#REF!=EG$2,$R55<EG$3,$R55>EG$4,#REF!>EG$6,#REF!<EG$7),EG$5,"") ->  | EH55: =IF(AND(#REF!=EH$2,$R55<EH$3,$R55>EH$4,#REF!>EH$6,#REF!<EH$7),EH$5,"") ->  | EI55: =IF(AND(#REF!=EI$2,$R55<EI$3,$R55>EI$4,#REF!>EI$6,#REF!<EI$7),EI$5,"") ->  | EJ55: =IF(AND(#REF!=EJ$2,$R55<EJ$3,$R55>EJ$4,#REF!>EJ$6,#REF!<EJ$7),EJ$5,"") ->  | EK55: =IF(AND(#REF!=EK$2,$R55<EK$3,$R55>EK$4,#REF!>EK$6,#REF!<EK$7),EK$5,"") ->  | EL55: =IF(AND(#REF!=EL$2,$R55<EL$3,$R55>EL$4,#REF!>EL$6,#REF!<EL$7),EL$5,"") ->  | EM55: =IF(AND(#REF!=EM$2,$R55<EM$3,$R55>EM$4,#REF!>EM$6,#REF!<EM$7),EM$5,"") ->  | EN55: =IF(AND(#REF!=EN$2,$R55<EN$3,$R55>EN$4,#REF!>EN$6,#REF!<EN$7),EN$5,"") ->  | EO55: =IF(AND(#REF!=EO$2,$R55<EO$3,$R55>EO$4,#REF!>EO$6,#REF!<EO$7),EO$5,"") ->  | EP55: =IF(AND(#REF!=EP$2,$R55<EP$3,$R55>EP$4,#REF!>EP$6,#REF!<EP$7),EP$5,"") ->  | EQ55: =IF(AND(#REF!=EQ$2,$R55<EQ$3,$R55>EQ$4,#REF!>EQ$6,#REF!<EQ$7),EQ$5,"") ->  | ER55: =IF(AND(#REF!=ER$2,$R55<ER$3,$R55>ER$4,#REF!>ER$6,#REF!<ER$7),ER$5,"") ->  | ES55: =IF(AND(#REF!=ES$2,$R55<ES$3,$R55>ES$4,#REF!>ES$6,#REF!<ES$7),ES$5,"") ->  | ET55: =IF(AND(#REF!=ET$2,$R55<ET$3,$R55>ET$4,#REF!>ET$6,#REF!<ET$7),ET$5,"") ->  | EU55: =IF(AND(#REF!=EU$2,$R55<EU$3,$R55>EU$4,#REF!>EU$6,#REF!<EU$7),EU$5,"") ->  | EV55: =IF(AND(#REF!=EV$2,$R55<EV$3,$R55>EV$4,#REF!>EV$6,#REF!<EV$7),EV$5,"") ->  | EW55: =IF(AND(#REF!=EW$2,$R55<EW$3,$R55>EW$4,#REF!>EW$6,#REF!<EW$7),EW$5,"") ->  | EX55: =IF(AND(#REF!=EX$2,$R55<EX$3,$R55>EX$4,#REF!>EX$6,#REF!<EX$7),EX$5,"") ->  | EY55: =IF(AND(#REF!=EY$2,$R55<EY$3,$R55>EY$4,#REF!>EY$6,#REF!<EY$7),EY$5,"") ->  | EZ55: =IF(AND(#REF!=EZ$2,$R55<EZ$3,$R55>EZ$4,#REF!>EZ$6,#REF!<EZ$7),EZ$5,"") ->  | FA55: =IF(AND(#REF!=FA$2,$R55<FA$3,$R55>FA$4,#REF!>FA$6,#REF!<FA$7),FA$5,"") ->  | FB55: =IF(AND(#REF!=FB$2,$R55<FB$3,$R55>FB$4,#REF!>FB$6,#REF!<FB$7),FB$5,"") ->  | FC55: =IF(AND(#REF!=FC$2,$R55<FC$3,$R55>FC$4,#REF!>FC$6,#REF!<FC$7),FC$5,"") ->  | FD55: =IF(AND(#REF!=FD$2,$R55<FD$3,$R55>FD$4,#REF!>FD$6,#REF!<FD$7),FD$5,"") ->  | FE55: =IF(AND(#REF!=FE$2,$R55<FE$3,$R55>FE$4,#REF!>FE$6,#REF!<FE$7),FE$5,"") ->  | FF55: =IF(AND(#REF!=FF$2,$R55<FF$3,$R55>FF$4,#REF!>FF$6,#REF!<FF$7),FF$5,"") ->  | FG55: =IF(AND(#REF!=FG$2,$R55<FG$3,$R55>FG$4,#REF!>FG$6,#REF!<FG$7),FG$5,"") ->  | FH55: =IF(AND(#REF!=FH$2,$R55<FH$3,$R55>FH$4,#REF!>FH$6,#REF!<FH$7),FH$5,"") ->  | FI55: =IF(AND(#REF!=FI$2,$R55<FI$3,$R55>FI$4,#REF!>FI$6,#REF!<FI$7),FI$5,"") ->  | FJ55: =IF(AND(#REF!=FJ$2,$R55<FJ$3,$R55>FJ$4,#REF!>FJ$6,#REF!<FJ$7),FJ$5,"") ->  | FK55: =IF(AND(#REF!=FK$2,$R55<FK$3,$R55>FK$4,#REF!>FK$6,#REF!<FK$7),FK$5,"") ->  | FL55: =IF(AND(#REF!=FL$2,$R55<FL$3,$R55>FL$4,#REF!>FL$6,#REF!<FL$7),FL$5,"") ->  | FM55: =IF(AND(#REF!=FM$2,$R55<FM$3,$R55>FM$4,#REF!>FM$6,#REF!<FM$7),FM$5,"") ->  | FN55: =IF(AND(#REF!=FN$2,$R55<FN$3,$R55>FN$4,#REF!>FN$6,#REF!<FN$7),FN$5,"") ->  | FO55: =IF(AND(#REF!=FO$2,$R55<FO$3,$R55>FO$4,#REF!>FO$6,#REF!<FO$7),FO$5,"") ->  | FP55: =IF(AND(#REF!=FP$2,$R55<FP$3,$R55>FP$4,#REF!>FP$6,#REF!<FP$7),FP$5,"") ->  | FQ55: =IF(AND(#REF!=FQ$2,$R55<FQ$3,$R55>FQ$4,#REF!>FQ$6,#REF!<FQ$7),FQ$5,"") ->  | FR55: =IF(AND(#REF!=FR$2,$R55<FR$3,$R55>FR$4,#REF!>FR$6,#REF!<FR$7),FR$5,"") ->  | FS55: =IF(AND(#REF!=FS$2,$R55<FS$3,$R55>FS$4,#REF!>FS$6,#REF!<FS$7),FS$5,"") ->  | FT55: =IF(AND(#REF!=FT$2,$R55<FT$3,$R55>FT$4,#REF!>FT$6,#REF!<FT$7),FT$5,"") ->  | FU55: =IF(AND(#REF!=FU$2,$R55<FU$3,$R55>FU$4,#REF!>FU$6,#REF!<FU$7),FU$5,"") ->  | FV55: =IF(AND(#REF!=FV$2,$R55<FV$3,$R55>FV$4,#REF!>FV$6,#REF!<FV$7),FV$5,"") ->  | FW55: =IF(AND(#REF!=FW$2,$R55<FW$3,$R55>FW$4,#REF!>FW$6,#REF!<FW$7),FW$5,"") -> 
AN56: =IF(AND(#REF!=AN$2,$K49<AN$3,$K49>AN$4,#REF!>AN$6,#REF!<AN$7),AN$5,"") ->  | AO56: =IF(AND(#REF!=AO$2,$K49<AO$3,$K49>AO$4,#REF!>AO$6,#REF!<AO$7),AO$5,"") ->  | AP56: =IF(AND(#REF!=AP$2,$K49<AP$3,$K49>AP$4,#REF!>AP$6,#REF!<AP$7),AP$5,"") ->  | AQ56: =IF(AND(#REF!=AQ$2,$K49<AQ$3,$K49>AQ$4,#REF!>AQ$6,#REF!<AQ$7),AQ$5,"") ->  | AR56: =IF(AND(#REF!=AR$2,$K49<AR$3,$K49>AR$4,#REF!>AR$6,#REF!<AR$7),AR$5,"") ->  | AS56: =IF(AND(#REF!=AS$2,$K49<AS$3,$K49>AS$4,#REF!>AS$6,#REF!<AS$7),AS$5,"") ->  | AT56: =IF(AND(#REF!=AT$2,$K49<AT$3,$K49>AT$4,#REF!>AT$6,#REF!<AT$7),AT$5,"") ->  | AU56: =IF(AND(#REF!=AU$2,$K49<AU$3,$K49>AU$4,#REF!>AU$6,#REF!<AU$7),AU$5,"") ->  | AV56: =IF(AND(#REF!=AV$2,$K49<AV$3,$K49>AV$4,#REF!>AV$6,#REF!<AV$7),AV$5,"") ->  | AW56: =IF(AND(#REF!=AW$2,$K49<AW$3,$K49>AW$4,#REF!>AW$6,#REF!<AW$7),AW$5,"") ->  | AX56: =IF(AND(#REF!=AX$2,$K49<AX$3,$K49>AX$4,#REF!>AX$6,#REF!<AX$7),AX$5,"") ->  | AY56: =IF(AND(#REF!=AY$2,$K49<AY$3,$K49>AY$4,#REF!>AY$6,#REF!<AY$7),AY$5,"") ->  | AZ56: =IF(AND(#REF!=AZ$2,$K49<AZ$3,$K49>AZ$4,#REF!>AZ$6,#REF!<AZ$7),AZ$5,"") ->  | BA56: =IF(AND(#REF!=BA$2,$K49<BA$3,$K49>BA$4,#REF!>BA$6,#REF!<BA$7),BA$5,"") ->  | BB56: =IF(AND(#REF!=BB$2,$K49<BB$3,$K49>BB$4,#REF!>BB$6,#REF!<BB$7),BB$5,"") ->  | BC56: =IF(AND(#REF!=BC$2,$K49<BC$3,$K49>BC$4,#REF!>BC$6,#REF!<BC$7),BC$5,"") ->  | BD56: =IF(AND(#REF!=BD$2,$K49<BD$3,$K49>BD$4,#REF!>BD$6,#REF!<BD$7),BD$5,"") ->  | BE56: =IF(AND(#REF!=BE$2,$K49<BE$3,$K49>BE$4,#REF!>BE$6,#REF!<BE$7),BE$5,"") ->  | BF56: =IF(AND(#REF!=BF$2,$K49<BF$3,$K49>BF$4,#REF!>BF$6,#REF!<BF$7),BF$5,"") ->  | BG56: =IF(AND(#REF!=BG$2,$K49<BG$3,$K49>BG$4,#REF!>BG$6,#REF!<BG$7),BG$5,"") ->  | BH56: =IF(AND(#REF!=BH$2,$K49<BH$3,$K49>BH$4,#REF!>BH$6,#REF!<BH$7),BH$5,"") ->  | BI56: =IF(AND(#REF!=BI$2,$K49<BI$3,$K49>BI$4,#REF!>BI$6,#REF!<BI$7),BI$5,"") ->  | BJ56: =IF(AND(#REF!=BJ$2,$K49<BJ$3,$K49>BJ$4,#REF!>BJ$6,#REF!<BJ$7),BJ$5,"") ->  | BK56: =IF(AND(#REF!=BK$2,$K49<BK$3,$K49>BK$4,#REF!>BK$6,#REF!<BK$7),BK$5,"") ->  | BL56: =IF(AND(#REF!=BL$2,$K49<BL$3,$K49>BL$4,#REF!>BL$6,#REF!<BL$7),BL$5,"") ->  | BM56: =IF(AND(#REF!=BM$2,$K49<BM$3,$K49>BM$4,#REF!>BM$6,#REF!<BM$7),BM$5,"") ->  | BN56: =IF(AND(#REF!=BN$2,$K49<BN$3,$K49>BN$4,#REF!>BN$6,#REF!<BN$7),BN$5,"") ->  | BO56: =IF(AND(#REF!=BO$2,$K49<BO$3,$K49>BO$4,#REF!>BO$6,#REF!<BO$7),BO$5,"") ->  | BP56: =IF(AND(#REF!=BP$2,$K49<BP$3,$K49>BP$4,#REF!>BP$6,#REF!<BP$7),BP$5,"") ->  | BQ56: =IF(AND(#REF!=BQ$2,$K49<BQ$3,$K49>BQ$4,#REF!>BQ$6,#REF!<BQ$7),BQ$5,"") ->  | BR56: =IF(AND(#REF!=BR$2,$K49<BR$3,$K49>BR$4,#REF!>BR$6,#REF!<BR$7),BR$5,"") ->  | BS56: =IF(AND(#REF!=BS$2,$K49<BS$3,$K49>BS$4,#REF!>BS$6,#REF!<BS$7),BS$5,"") ->  | BT56: =IF(AND(#REF!=BT$2,$K49<BT$3,$K49>BT$4,#REF!>BT$6,#REF!<BT$7),BT$5,"") ->  | BU56: =IF(AND(#REF!=BU$2,$K49<BU$3,$K49>BU$4,#REF!>BU$6,#REF!<BU$7),BU$5,"") ->  | BV56: =IF(AND(#REF!=BV$2,$K49<BV$3,$K49>BV$4,#REF!>BV$6,#REF!<BV$7),BV$5,"") ->  | BW56: =IF(AND(#REF!=BW$2,$K49<BW$3,$K49>BW$4,#REF!>BW$6,#REF!<BW$7),BW$5,"") ->  | BX56: =IF(AND(#REF!=BX$2,$K49<BX$3,$K49>BX$4,#REF!>BX$6,#REF!<BX$7),BX$5,"") ->  | BY56: =IF(AND(#REF!=BY$2,$K49<BY$3,$K49>BY$4,#REF!>BY$6,#REF!<BY$7),BY$5,"") ->  | BZ56: =IF(AND(#REF!=BZ$2,$K49<BZ$3,$K49>BZ$4,#REF!>BZ$6,#REF!<BZ$7),BZ$5,"") ->  | CA56: =IF(AND(#REF!=CA$2,$K49<CA$3,$K49>CA$4,#REF!>CA$6,#REF!<CA$7),CA$5,"") ->  | CB56: =IF(AND(#REF!=CB$2,$K49<CB$3,$K49>CB$4,#REF!>CB$6,#REF!<CB$7),CB$5,"") ->  | CC56: =IF(AND(#REF!=CC$2,$K49<CC$3,$K49>CC$4,#REF!>CC$6,#REF!<CC$7),CC$5,"") ->  | CD56: =IF(AND(#REF!=CD$2,$K49<CD$3,$K49>CD$4,#REF!>CD$6,#REF!<CD$7),CD$5,"") ->  | CE56: =IF(AND(#REF!=CE$2,$K49<CE$3,$K49>CE$4,#REF!>CE$6,#REF!<CE$7),CE$5,"") ->  | CF56: =IF(AND(#REF!=CF$2,$K49<CF$3,$K49>CF$4,#REF!>CF$6,#REF!<CF$7),CF$5,"") ->  | CG56: =IF(AND(#REF!=CG$2,$K49<CG$3,$K49>CG$4,#REF!>CG$6,#REF!<CG$7),CG$5,"") ->  | CH56: =IF(AND(#REF!=CH$2,$K49<CH$3,$K49>CH$4,#REF!>CH$6,#REF!<CH$7),CH$5,"") ->  | CI56: =IF(AND(#REF!=CI$2,$K49<CI$3,$K49>CI$4,#REF!>CI$6,#REF!<CI$7),CI$5,"") ->  | CJ56: =IF(AND(#REF!=CJ$2,$K49<CJ$3,$K49>CJ$4,#REF!>CJ$6,#REF!<CJ$7),CJ$5,"") ->  | CK56: =IF(AND(#REF!=CK$2,$K49<CK$3,$K49>CK$4,#REF!>CK$6,#REF!<CK$7),CK$5,"") ->  | CL56: =IF(AND(#REF!=CL$2,$K49<CL$3,$K49>CL$4,#REF!>CL$6,#REF!<CL$7),CL$5,"") ->  | CM56: =IF(AND(#REF!=CM$2,$K49<CM$3,$K49>CM$4,#REF!>CM$6,#REF!<CM$7),CM$5,"") ->  | CN56: =IF(AND(#REF!=CN$2,$K49<CN$3,$K49>CN$4,#REF!>CN$6,#REF!<CN$7),CN$5,"") ->  | CO56: =IF(AND(#REF!=CO$2,$K49<CO$3,$K49>CO$4,#REF!>CO$6,#REF!<CO$7),CO$5,"") ->  | CP56: =IF(AND(#REF!=CP$2,$K49<CP$3,$K49>CP$4,#REF!>CP$6,#REF!<CP$7),CP$5,"") ->  | CQ56: =IF(AND(#REF!=CQ$2,$K49<CQ$3,$K49>CQ$4,#REF!>CQ$6,#REF!<CQ$7),CQ$5,"") ->  | CR56: =IF(AND(#REF!=CR$2,$K49<CR$3,$K49>CR$4,#REF!>CR$6,#REF!<CR$7),CR$5,"") ->  | CS56: =IF(AND(#REF!=CS$2,$K49<CS$3,$K49>CS$4,#REF!>CS$6,#REF!<CS$7),CS$5,"") ->  | CT56: =IF(AND(#REF!=CT$2,$K49<CT$3,$K49>CT$4,#REF!>CT$6,#REF!<CT$7),CT$5,"") ->  | CU56: =IF(AND(#REF!=CU$2,$K49<CU$3,$K49>CU$4,#REF!>CU$6,#REF!<CU$7),CU$5,"") ->  | CV56: =IF(AND(#REF!=CV$2,$K49<CV$3,$K49>CV$4,#REF!>CV$6,#REF!<CV$7),CV$5,"") ->  | CW56: =IF(AND(#REF!=CW$2,$K49<CW$3,$K49>CW$4,#REF!>CW$6,#REF!<CW$7),CW$5,"") ->  | CX56: =IF(AND(#REF!=CX$2,$K49<CX$3,$K49>CX$4,#REF!>CX$6,#REF!<CX$7),CX$5,"") ->  | CY56: =IF(AND(#REF!=CY$2,$K49<CY$3,$K49>CY$4,#REF!>CY$6,#REF!<CY$7),CY$5,"") ->  | CZ56: =IF(AND(#REF!=CZ$2,$K49<CZ$3,$K49>CZ$4,#REF!>CZ$6,#REF!<CZ$7),CZ$5,"") ->  | DA56: =IF(AND(#REF!=DA$2,$K49<DA$3,$K49>DA$4,#REF!>DA$6,#REF!<DA$7),DA$5,"") ->  | DB56: =IF(AND(#REF!=DB$2,$K49<DB$3,$K49>DB$4,#REF!>DB$6,#REF!<DB$7),DB$5,"") ->  | DC56: =IF(AND(#REF!=DC$2,$K49<DC$3,$K49>DC$4,#REF!>DC$6,#REF!<DC$7),DC$5,"") ->  | DD56: =IF(AND(#REF!=DD$2,$K49<DD$3,$K49>DD$4,#REF!>DD$6,#REF!<DD$7),DD$5,"") ->  | DE56: =IF(AND(#REF!=DE$2,$K49<DE$3,$K49>DE$4,#REF!>DE$6,#REF!<DE$7),DE$5,"") ->  | DF56: =IF(AND(#REF!=DF$2,$K49<DF$3,$K49>DF$4,#REF!>DF$6,#REF!<DF$7),DF$5,"") ->  | DG56: =IF(AND(#REF!=DG$2,$K49<DG$3,$K49>DG$4,#REF!>DG$6,#REF!<DG$7),DG$5,"") ->  | DH56: =IF(AND(#REF!=DH$2,$K49<DH$3,$K49>DH$4,#REF!>DH$6,#REF!<DH$7),DH$5,"") ->  | DI56: =IF(AND(#REF!=DI$2,$K49<DI$3,$K49>DI$4,#REF!>DI$6,#REF!<DI$7),DI$5,"") ->  | DJ56: =IF(AND(#REF!=DJ$2,$K49<DJ$3,$K49>DJ$4,#REF!>DJ$6,#REF!<DJ$7),DJ$5,"") ->  | DK56: =IF(AND(#REF!=DK$2,$K49<DK$3,$K49>DK$4,#REF!>DK$6,#REF!<DK$7),DK$5,"") ->  | DL56: =IF(AND(#REF!=DL$2,$K49<DL$3,$K49>DL$4,#REF!>DL$6,#REF!<DL$7),DL$5,"") ->  | DM56: =IF(AND(#REF!=DM$2,$K49<DM$3,$K49>DM$4,#REF!>DM$6,#REF!<DM$7),DM$5,"") ->  | DN56: =IF(AND(#REF!=DN$2,$K49<DN$3,$K49>DN$4,#REF!>DN$6,#REF!<DN$7),DN$5,"") ->  | DO56: =IF(AND(#REF!=DO$2,$K49<DO$3,$K49>DO$4,#REF!>DO$6,#REF!<DO$7),DO$5,"") ->  | DP56: =IF(AND(#REF!=DP$2,$K49<DP$3,$K49>DP$4,#REF!>DP$6,#REF!<DP$7),DP$5,"") ->  | DQ56: =IF(AND(#REF!=DQ$2,$K49<DQ$3,$K49>DQ$4,#REF!>DQ$6,#REF!<DQ$7),DQ$5,"") ->  | DR56: =IF(AND(#REF!=DR$2,$K49<DR$3,$K49>DR$4,#REF!>DR$6,#REF!<DR$7),DR$5,"") ->  | DS56: =IF(AND(#REF!=DS$2,$K49<DS$3,$K49>DS$4,#REF!>DS$6,#REF!<DS$7),DS$5,"") ->  | DT56: =IF(AND(#REF!=DT$2,$K49<DT$3,$K49>DT$4,#REF!>DT$6,#REF!<DT$7),DT$5,"") ->  | DU56: =IF(AND(#REF!=DU$2,$K49<DU$3,$K49>DU$4,#REF!>DU$6,#REF!<DU$7),DU$5,"") ->  | DV56: =IF(AND(#REF!=DV$2,$K49<DV$3,$K49>DV$4,#REF!>DV$6,#REF!<DV$7),DV$5,"") ->  | DW56: =IF(AND(#REF!=DW$2,$K49<DW$3,$K49>DW$4,#REF!>DW$6,#REF!<DW$7),DW$5,"") ->  | DX56: =IF(AND(#REF!=DX$2,$K49<DX$3,$K49>DX$4,#REF!>DX$6,#REF!<DX$7),DX$5,"") ->  | DY56: =IF(AND(#REF!=DY$2,$K49<DY$3,$K49>DY$4,#REF!>DY$6,#REF!<DY$7),DY$5,"") ->  | DZ56: =IF(AND(#REF!=DZ$2,$K49<DZ$3,$K49>DZ$4,#REF!>DZ$6,#REF!<DZ$7),DZ$5,"") ->  | EA56: =IF(AND(#REF!=EA$2,$K49<EA$3,$K49>EA$4,#REF!>EA$6,#REF!<EA$7),EA$5,"") ->  | EB56: =IF(AND(#REF!=EB$2,$K49<EB$3,$K49>EB$4,#REF!>EB$6,#REF!<EB$7),EB$5,"") ->  | EC56: =IF(AND(#REF!=EC$2,$K49<EC$3,$K49>EC$4,#REF!>EC$6,#REF!<EC$7),EC$5,"") ->  | ED56: =IF(AND(#REF!=ED$2,$K49<ED$3,$K49>ED$4,#REF!>ED$6,#REF!<ED$7),ED$5,"") ->  | EE56: =IF(AND(#REF!=EE$2,$K49<EE$3,$K49>EE$4,#REF!>EE$6,#REF!<EE$7),EE$5,"") ->  | EF56: =IF(AND(#REF!=EF$2,$K49<EF$3,$K49>EF$4,#REF!>EF$6,#REF!<EF$7),EF$5,"") ->  | EG56: =IF(AND(#REF!=EG$2,$K49<EG$3,$K49>EG$4,#REF!>EG$6,#REF!<EG$7),EG$5,"") ->  | EH56: =IF(AND(#REF!=EH$2,$K49<EH$3,$K49>EH$4,#REF!>EH$6,#REF!<EH$7),EH$5,"") ->  | EI56: =IF(AND(#REF!=EI$2,$K49<EI$3,$K49>EI$4,#REF!>EI$6,#REF!<EI$7),EI$5,"") ->  | EJ56: =IF(AND(#REF!=EJ$2,$K49<EJ$3,$K49>EJ$4,#REF!>EJ$6,#REF!<EJ$7),EJ$5,"") ->  | EK56: =IF(AND(#REF!=EK$2,$K49<EK$3,$K49>EK$4,#REF!>EK$6,#REF!<EK$7),EK$5,"") ->  | EL56: =IF(AND(#REF!=EL$2,$K49<EL$3,$K49>EL$4,#REF!>EL$6,#REF!<EL$7),EL$5,"") ->  | EM56: =IF(AND(#REF!=EM$2,$K49<EM$3,$K49>EM$4,#REF!>EM$6,#REF!<EM$7),EM$5,"") ->  | EN56: =IF(AND(#REF!=EN$2,$K49<EN$3,$K49>EN$4,#REF!>EN$6,#REF!<EN$7),EN$5,"") ->  | EO56: =IF(AND(#REF!=EO$2,$K49<EO$3,$K49>EO$4,#REF!>EO$6,#REF!<EO$7),EO$5,"") ->  | EP56: =IF(AND(#REF!=EP$2,$K49<EP$3,$K49>EP$4,#REF!>EP$6,#REF!<EP$7),EP$5,"") ->  | EQ56: =IF(AND(#REF!=EQ$2,$K49<EQ$3,$K49>EQ$4,#REF!>EQ$6,#REF!<EQ$7),EQ$5,"") ->  | ER56: =IF(AND(#REF!=ER$2,$K49<ER$3,$K49>ER$4,#REF!>ER$6,#REF!<ER$7),ER$5,"") ->  | ES56: =IF(AND(#REF!=ES$2,$K49<ES$3,$K49>ES$4,#REF!>ES$6,#REF!<ES$7),ES$5,"") ->  | ET56: =IF(AND(#REF!=ET$2,$K49<ET$3,$K49>ET$4,#REF!>ET$6,#REF!<ET$7),ET$5,"") ->  | EU56: =IF(AND(#REF!=EU$2,$K49<EU$3,$K49>EU$4,#REF!>EU$6,#REF!<EU$7),EU$5,"") ->  | EV56: =IF(AND(#REF!=EV$2,$K49<EV$3,$K49>EV$4,#REF!>EV$6,#REF!<EV$7),EV$5,"") ->  | EW56: =IF(AND(#REF!=EW$2,$K49<EW$3,$K49>EW$4,#REF!>EW$6,#REF!<EW$7),EW$5,"") ->  | EX56: =IF(AND(#REF!=EX$2,$K49<EX$3,$K49>EX$4,#REF!>EX$6,#REF!<EX$7),EX$5,"") ->  | EY56: =IF(AND(#REF!=EY$2,$K49<EY$3,$K49>EY$4,#REF!>EY$6,#REF!<EY$7),EY$5,"") ->  | EZ56: =IF(AND(#REF!=EZ$2,$K49<EZ$3,$K49>EZ$4,#REF!>EZ$6,#REF!<EZ$7),EZ$5,"") ->  | FA56: =IF(AND(#REF!=FA$2,$K49<FA$3,$K49>FA$4,#REF!>FA$6,#REF!<FA$7),FA$5,"") ->  | FB56: =IF(AND(#REF!=FB$2,$K49<FB$3,$K49>FB$4,#REF!>FB$6,#REF!<FB$7),FB$5,"") ->  | FC56: =IF(AND(#REF!=FC$2,$K49<FC$3,$K49>FC$4,#REF!>FC$6,#REF!<FC$7),FC$5,"") ->  | FD56: =IF(AND(#REF!=FD$2,$K49<FD$3,$K49>FD$4,#REF!>FD$6,#REF!<FD$7),FD$5,"") ->  | FE56: =IF(AND(#REF!=FE$2,$K49<FE$3,$K49>FE$4,#REF!>FE$6,#REF!<FE$7),FE$5,"") ->  | FF56: =IF(AND(#REF!=FF$2,$K49<FF$3,$K49>FF$4,#REF!>FF$6,#REF!<FF$7),FF$5,"") ->  | FG56: =IF(AND(#REF!=FG$2,$K49<FG$3,$K49>FG$4,#REF!>FG$6,#REF!<FG$7),FG$5,"") ->  | FH56: =IF(AND(#REF!=FH$2,$K49<FH$3,$K49>FH$4,#REF!>FH$6,#REF!<FH$7),FH$5,"") ->  | FI56: =IF(AND(#REF!=FI$2,$K49<FI$3,$K49>FI$4,#REF!>FI$6,#REF!<FI$7),FI$5,"") ->  | FJ56: =IF(AND(#REF!=FJ$2,$K49<FJ$3,$K49>FJ$4,#REF!>FJ$6,#REF!<FJ$7),FJ$5,"") ->  | FK56: =IF(AND(#REF!=FK$2,$K49<FK$3,$K49>FK$4,#REF!>FK$6,#REF!<FK$7),FK$5,"") ->  | FL56: =IF(AND(#REF!=FL$2,$K49<FL$3,$K49>FL$4,#REF!>FL$6,#REF!<FL$7),FL$5,"") ->  | FM56: =IF(AND(#REF!=FM$2,$K49<FM$3,$K49>FM$4,#REF!>FM$6,#REF!<FM$7),FM$5,"") ->  | FN56: =IF(AND(#REF!=FN$2,$K49<FN$3,$K49>FN$4,#REF!>FN$6,#REF!<FN$7),FN$5,"") ->  | FO56: =IF(AND(#REF!=FO$2,$K49<FO$3,$K49>FO$4,#REF!>FO$6,#REF!<FO$7),FO$5,"") ->  | FP56: =IF(AND(#REF!=FP$2,$K49<FP$3,$K49>FP$4,#REF!>FP$6,#REF!<FP$7),FP$5,"") ->  | FQ56: =IF(AND(#REF!=FQ$2,$K49<FQ$3,$K49>FQ$4,#REF!>FQ$6,#REF!<FQ$7),FQ$5,"") ->  | FR56: =IF(AND(#REF!=FR$2,$K49<FR$3,$K49>FR$4,#REF!>FR$6,#REF!<FR$7),FR$5,"") ->  | FS56: =IF(AND(#REF!=FS$2,$K49<FS$3,$K49>FS$4,#REF!>FS$6,#REF!<FS$7),FS$5,"") ->  | FT56: =IF(AND(#REF!=FT$2,$K49<FT$3,$K49>FT$4,#REF!>FT$6,#REF!<FT$7),FT$5,"") ->  | FU56: =IF(AND(#REF!=FU$2,$K49<FU$3,$K49>FU$4,#REF!>FU$6,#REF!<FU$7),FU$5,"") ->  | FV56: =IF(AND(#REF!=FV$2,$K49<FV$3,$K49>FV$4,#REF!>FV$6,#REF!<FV$7),FV$5,"") ->  | FW56: =IF(AND(#REF!=FW$2,$K49<FW$3,$K49>FW$4,#REF!>FW$6,#REF!<FW$7),FW$5,"") -> 
AN57: =IF(AND($I57=AN$2,$K50<AN$3,$K50>AN$4,#REF!>AN$6,#REF!<AN$7),AN$5,"") ->  | AO57: =IF(AND($I57=AO$2,$K50<AO$3,$K50>AO$4,#REF!>AO$6,#REF!<AO$7),AO$5,"") ->  | AP57: =IF(AND($I57=AP$2,$K50<AP$3,$K50>AP$4,#REF!>AP$6,#REF!<AP$7),AP$5,"") ->  | AQ57: =IF(AND($I57=AQ$2,$K50<AQ$3,$K50>AQ$4,#REF!>AQ$6,#REF!<AQ$7),AQ$5,"") ->  | AR57: =IF(AND($I57=AR$2,$K50<AR$3,$K50>AR$4,#REF!>AR$6,#REF!<AR$7),AR$5,"") ->  | AS57: =IF(AND($I57=AS$2,$K50<AS$3,$K50>AS$4,#REF!>AS$6,#REF!<AS$7),AS$5,"") ->  | AT57: =IF(AND($I57=AT$2,$K50<AT$3,$K50>AT$4,#REF!>AT$6,#REF!<AT$7),AT$5,"") ->  | AU57: =IF(AND($I57=AU$2,$K50<AU$3,$K50>AU$4,#REF!>AU$6,#REF!<AU$7),AU$5,"") ->  | AV57: =IF(AND($I57=AV$2,$K50<AV$3,$K50>AV$4,#REF!>AV$6,#REF!<AV$7),AV$5,"") ->  | AW57: =IF(AND($I57=AW$2,$K50<AW$3,$K50>AW$4,#REF!>AW$6,#REF!<AW$7),AW$5,"") ->  | AX57: =IF(AND($I57=AX$2,$K50<AX$3,$K50>AX$4,#REF!>AX$6,#REF!<AX$7),AX$5,"") ->  | AY57: =IF(AND($I57=AY$2,$K50<AY$3,$K50>AY$4,#REF!>AY$6,#REF!<AY$7),AY$5,"") ->  | AZ57: =IF(AND($I57=AZ$2,$K50<AZ$3,$K50>AZ$4,#REF!>AZ$6,#REF!<AZ$7),AZ$5,"") ->  | BA57: =IF(AND($I57=BA$2,$K50<BA$3,$K50>BA$4,#REF!>BA$6,#REF!<BA$7),BA$5,"") ->  | BB57: =IF(AND($I57=BB$2,$K50<BB$3,$K50>BB$4,#REF!>BB$6,#REF!<BB$7),BB$5,"") ->  | BC57: =IF(AND($I57=BC$2,$K50<BC$3,$K50>BC$4,#REF!>BC$6,#REF!<BC$7),BC$5,"") ->  | BD57: =IF(AND($I57=BD$2,$K50<BD$3,$K50>BD$4,#REF!>BD$6,#REF!<BD$7),BD$5,"") ->  | BE57: =IF(AND($I57=BE$2,$K50<BE$3,$K50>BE$4,#REF!>BE$6,#REF!<BE$7),BE$5,"") ->  | BF57: =IF(AND($I57=BF$2,$K50<BF$3,$K50>BF$4,#REF!>BF$6,#REF!<BF$7),BF$5,"") ->  | BG57: =IF(AND($I57=BG$2,$K50<BG$3,$K50>BG$4,#REF!>BG$6,#REF!<BG$7),BG$5,"") ->  | BH57: =IF(AND($I57=BH$2,$K50<BH$3,$K50>BH$4,#REF!>BH$6,#REF!<BH$7),BH$5,"") ->  | BI57: =IF(AND($I57=BI$2,$K50<BI$3,$K50>BI$4,#REF!>BI$6,#REF!<BI$7),BI$5,"") ->  | BJ57: =IF(AND($I57=BJ$2,$K50<BJ$3,$K50>BJ$4,#REF!>BJ$6,#REF!<BJ$7),BJ$5,"") ->  | BK57: =IF(AND($I57=BK$2,$K50<BK$3,$K50>BK$4,#REF!>BK$6,#REF!<BK$7),BK$5,"") ->  | BL57: =IF(AND($I57=BL$2,$K50<BL$3,$K50>BL$4,#REF!>BL$6,#REF!<BL$7),BL$5,"") ->  | BM57: =IF(AND($I57=BM$2,$K50<BM$3,$K50>BM$4,#REF!>BM$6,#REF!<BM$7),BM$5,"") ->  | BN57: =IF(AND($I57=BN$2,$K50<BN$3,$K50>BN$4,#REF!>BN$6,#REF!<BN$7),BN$5,"") ->  | BO57: =IF(AND($I57=BO$2,$K50<BO$3,$K50>BO$4,#REF!>BO$6,#REF!<BO$7),BO$5,"") ->  | BP57: =IF(AND($I57=BP$2,$K50<BP$3,$K50>BP$4,#REF!>BP$6,#REF!<BP$7),BP$5,"") ->  | BQ57: =IF(AND($I57=BQ$2,$K50<BQ$3,$K50>BQ$4,#REF!>BQ$6,#REF!<BQ$7),BQ$5,"") ->  | BR57: =IF(AND($I57=BR$2,$K50<BR$3,$K50>BR$4,#REF!>BR$6,#REF!<BR$7),BR$5,"") ->  | BS57: =IF(AND($I57=BS$2,$K50<BS$3,$K50>BS$4,#REF!>BS$6,#REF!<BS$7),BS$5,"") ->  | BT57: =IF(AND($I57=BT$2,$K50<BT$3,$K50>BT$4,#REF!>BT$6,#REF!<BT$7),BT$5,"") ->  | BU57: =IF(AND($I57=BU$2,$K50<BU$3,$K50>BU$4,#REF!>BU$6,#REF!<BU$7),BU$5,"") ->  | BV57: =IF(AND($I57=BV$2,$K50<BV$3,$K50>BV$4,#REF!>BV$6,#REF!<BV$7),BV$5,"") ->  | BW57: =IF(AND($I57=BW$2,$K50<BW$3,$K50>BW$4,#REF!>BW$6,#REF!<BW$7),BW$5,"") ->  | BX57: =IF(AND($I57=BX$2,$K50<BX$3,$K50>BX$4,#REF!>BX$6,#REF!<BX$7),BX$5,"") ->  | BY57: =IF(AND($I57=BY$2,$K50<BY$3,$K50>BY$4,#REF!>BY$6,#REF!<BY$7),BY$5,"") ->  | BZ57: =IF(AND($I57=BZ$2,$K50<BZ$3,$K50>BZ$4,#REF!>BZ$6,#REF!<BZ$7),BZ$5,"") ->  | CA57: =IF(AND($I57=CA$2,$K50<CA$3,$K50>CA$4,#REF!>CA$6,#REF!<CA$7),CA$5,"") ->  | CB57: =IF(AND($I57=CB$2,$K50<CB$3,$K50>CB$4,#REF!>CB$6,#REF!<CB$7),CB$5,"") ->  | CC57: =IF(AND($I57=CC$2,$K50<CC$3,$K50>CC$4,#REF!>CC$6,#REF!<CC$7),CC$5,"") ->  | CD57: =IF(AND($I57=CD$2,$K50<CD$3,$K50>CD$4,#REF!>CD$6,#REF!<CD$7),CD$5,"") ->  | CE57: =IF(AND($I57=CE$2,$K50<CE$3,$K50>CE$4,#REF!>CE$6,#REF!<CE$7),CE$5,"") ->  | CF57: =IF(AND($I57=CF$2,$K50<CF$3,$K50>CF$4,#REF!>CF$6,#REF!<CF$7),CF$5,"") ->  | CG57: =IF(AND($I57=CG$2,$K50<CG$3,$K50>CG$4,#REF!>CG$6,#REF!<CG$7),CG$5,"") ->  | CH57: =IF(AND($I57=CH$2,$K50<CH$3,$K50>CH$4,#REF!>CH$6,#REF!<CH$7),CH$5,"") ->  | CI57: =IF(AND($I57=CI$2,$K50<CI$3,$K50>CI$4,#REF!>CI$6,#REF!<CI$7),CI$5,"") ->  | CJ57: =IF(AND($I57=CJ$2,$K50<CJ$3,$K50>CJ$4,#REF!>CJ$6,#REF!<CJ$7),CJ$5,"") ->  | CK57: =IF(AND($I57=CK$2,$K50<CK$3,$K50>CK$4,#REF!>CK$6,#REF!<CK$7),CK$5,"") ->  | CL57: =IF(AND($I57=CL$2,$K50<CL$3,$K50>CL$4,#REF!>CL$6,#REF!<CL$7),CL$5,"") ->  | CM57: =IF(AND($I57=CM$2,$K50<CM$3,$K50>CM$4,#REF!>CM$6,#REF!<CM$7),CM$5,"") ->  | CN57: =IF(AND($I57=CN$2,$K50<CN$3,$K50>CN$4,#REF!>CN$6,#REF!<CN$7),CN$5,"") ->  | CO57: =IF(AND($I57=CO$2,$K50<CO$3,$K50>CO$4,#REF!>CO$6,#REF!<CO$7),CO$5,"") ->  | CP57: =IF(AND($I57=CP$2,$K50<CP$3,$K50>CP$4,#REF!>CP$6,#REF!<CP$7),CP$5,"") ->  | CQ57: =IF(AND($I57=CQ$2,$K50<CQ$3,$K50>CQ$4,#REF!>CQ$6,#REF!<CQ$7),CQ$5,"") ->  | CR57: =IF(AND($I57=CR$2,$K50<CR$3,$K50>CR$4,#REF!>CR$6,#REF!<CR$7),CR$5,"") ->  | CS57: =IF(AND($I57=CS$2,$K50<CS$3,$K50>CS$4,#REF!>CS$6,#REF!<CS$7),CS$5,"") ->  | CT57: =IF(AND($I57=CT$2,$K50<CT$3,$K50>CT$4,#REF!>CT$6,#REF!<CT$7),CT$5,"") ->  | CU57: =IF(AND($I57=CU$2,$K50<CU$3,$K50>CU$4,#REF!>CU$6,#REF!<CU$7),CU$5,"") ->  | CV57: =IF(AND($I57=CV$2,$K50<CV$3,$K50>CV$4,#REF!>CV$6,#REF!<CV$7),CV$5,"") ->  | CW57: =IF(AND($I57=CW$2,$K50<CW$3,$K50>CW$4,#REF!>CW$6,#REF!<CW$7),CW$5,"") ->  | CX57: =IF(AND($I57=CX$2,$K50<CX$3,$K50>CX$4,#REF!>CX$6,#REF!<CX$7),CX$5,"") ->  | CY57: =IF(AND($I57=CY$2,$K50<CY$3,$K50>CY$4,#REF!>CY$6,#REF!<CY$7),CY$5,"") ->  | CZ57: =IF(AND($I57=CZ$2,$K50<CZ$3,$K50>CZ$4,#REF!>CZ$6,#REF!<CZ$7),CZ$5,"") ->  | DA57: =IF(AND($I57=DA$2,$K50<DA$3,$K50>DA$4,#REF!>DA$6,#REF!<DA$7),DA$5,"") ->  | DB57: =IF(AND($I57=DB$2,$K50<DB$3,$K50>DB$4,#REF!>DB$6,#REF!<DB$7),DB$5,"") ->  | DC57: =IF(AND($I57=DC$2,$K50<DC$3,$K50>DC$4,#REF!>DC$6,#REF!<DC$7),DC$5,"") ->  | DD57: =IF(AND($I57=DD$2,$K50<DD$3,$K50>DD$4,#REF!>DD$6,#REF!<DD$7),DD$5,"") ->  | DE57: =IF(AND($I57=DE$2,$K50<DE$3,$K50>DE$4,#REF!>DE$6,#REF!<DE$7),DE$5,"") ->  | DF57: =IF(AND($I57=DF$2,$K50<DF$3,$K50>DF$4,#REF!>DF$6,#REF!<DF$7),DF$5,"") ->  | DG57: =IF(AND($I57=DG$2,$K50<DG$3,$K50>DG$4,#REF!>DG$6,#REF!<DG$7),DG$5,"") ->  | DH57: =IF(AND($I57=DH$2,$K50<DH$3,$K50>DH$4,#REF!>DH$6,#REF!<DH$7),DH$5,"") ->  | DI57: =IF(AND($I57=DI$2,$K50<DI$3,$K50>DI$4,#REF!>DI$6,#REF!<DI$7),DI$5,"") ->  | DJ57: =IF(AND($I57=DJ$2,$K50<DJ$3,$K50>DJ$4,#REF!>DJ$6,#REF!<DJ$7),DJ$5,"") ->  | DK57: =IF(AND($I57=DK$2,$K50<DK$3,$K50>DK$4,#REF!>DK$6,#REF!<DK$7),DK$5,"") ->  | DL57: =IF(AND($I57=DL$2,$K50<DL$3,$K50>DL$4,#REF!>DL$6,#REF!<DL$7),DL$5,"") ->  | DM57: =IF(AND($I57=DM$2,$K50<DM$3,$K50>DM$4,#REF!>DM$6,#REF!<DM$7),DM$5,"") ->  | DN57: =IF(AND($I57=DN$2,$K50<DN$3,$K50>DN$4,#REF!>DN$6,#REF!<DN$7),DN$5,"") ->  | DO57: =IF(AND($I57=DO$2,$K50<DO$3,$K50>DO$4,#REF!>DO$6,#REF!<DO$7),DO$5,"") ->  | DP57: =IF(AND($I57=DP$2,$K50<DP$3,$K50>DP$4,#REF!>DP$6,#REF!<DP$7),DP$5,"") ->  | DQ57: =IF(AND($I57=DQ$2,$K50<DQ$3,$K50>DQ$4,#REF!>DQ$6,#REF!<DQ$7),DQ$5,"") ->  | DR57: =IF(AND($I57=DR$2,$K50<DR$3,$K50>DR$4,#REF!>DR$6,#REF!<DR$7),DR$5,"") ->  | DS57: =IF(AND($I57=DS$2,$K50<DS$3,$K50>DS$4,#REF!>DS$6,#REF!<DS$7),DS$5,"") ->  | DT57: =IF(AND($I57=DT$2,$K50<DT$3,$K50>DT$4,#REF!>DT$6,#REF!<DT$7),DT$5,"") ->  | DU57: =IF(AND($I57=DU$2,$K50<DU$3,$K50>DU$4,#REF!>DU$6,#REF!<DU$7),DU$5,"") ->  | DV57: =IF(AND($I57=DV$2,$K50<DV$3,$K50>DV$4,#REF!>DV$6,#REF!<DV$7),DV$5,"") ->  | DW57: =IF(AND($I57=DW$2,$K50<DW$3,$K50>DW$4,#REF!>DW$6,#REF!<DW$7),DW$5,"") ->  | DX57: =IF(AND($I57=DX$2,$K50<DX$3,$K50>DX$4,#REF!>DX$6,#REF!<DX$7),DX$5,"") ->  | DY57: =IF(AND($I57=DY$2,$K50<DY$3,$K50>DY$4,#REF!>DY$6,#REF!<DY$7),DY$5,"") ->  | DZ57: =IF(AND($I57=DZ$2,$K50<DZ$3,$K50>DZ$4,#REF!>DZ$6,#REF!<DZ$7),DZ$5,"") ->  | EA57: =IF(AND($I57=EA$2,$K50<EA$3,$K50>EA$4,#REF!>EA$6,#REF!<EA$7),EA$5,"") ->  | EB57: =IF(AND($I57=EB$2,$K50<EB$3,$K50>EB$4,#REF!>EB$6,#REF!<EB$7),EB$5,"") ->  | EC57: =IF(AND($I57=EC$2,$K50<EC$3,$K50>EC$4,#REF!>EC$6,#REF!<EC$7),EC$5,"") ->  | ED57: =IF(AND($I57=ED$2,$K50<ED$3,$K50>ED$4,#REF!>ED$6,#REF!<ED$7),ED$5,"") ->  | EE57: =IF(AND($I57=EE$2,$K50<EE$3,$K50>EE$4,#REF!>EE$6,#REF!<EE$7),EE$5,"") ->  | EF57: =IF(AND($I57=EF$2,$K50<EF$3,$K50>EF$4,#REF!>EF$6,#REF!<EF$7),EF$5,"") ->  | EG57: =IF(AND($I57=EG$2,$K50<EG$3,$K50>EG$4,#REF!>EG$6,#REF!<EG$7),EG$5,"") ->  | EH57: =IF(AND($I57=EH$2,$K50<EH$3,$K50>EH$4,#REF!>EH$6,#REF!<EH$7),EH$5,"") ->  | EI57: =IF(AND($I57=EI$2,$K50<EI$3,$K50>EI$4,#REF!>EI$6,#REF!<EI$7),EI$5,"") ->  | EJ57: =IF(AND($I57=EJ$2,$K50<EJ$3,$K50>EJ$4,#REF!>EJ$6,#REF!<EJ$7),EJ$5,"") ->  | EK57: =IF(AND($I57=EK$2,$K50<EK$3,$K50>EK$4,#REF!>EK$6,#REF!<EK$7),EK$5,"") ->  | EL57: =IF(AND($I57=EL$2,$K50<EL$3,$K50>EL$4,#REF!>EL$6,#REF!<EL$7),EL$5,"") ->  | EM57: =IF(AND($I57=EM$2,$K50<EM$3,$K50>EM$4,#REF!>EM$6,#REF!<EM$7),EM$5,"") ->  | EN57: =IF(AND($I57=EN$2,$K50<EN$3,$K50>EN$4,#REF!>EN$6,#REF!<EN$7),EN$5,"") ->  | EO57: =IF(AND($I57=EO$2,$K50<EO$3,$K50>EO$4,#REF!>EO$6,#REF!<EO$7),EO$5,"") ->  | EP57: =IF(AND($I57=EP$2,$K50<EP$3,$K50>EP$4,#REF!>EP$6,#REF!<EP$7),EP$5,"") ->  | EQ57: =IF(AND($I57=EQ$2,$K50<EQ$3,$K50>EQ$4,#REF!>EQ$6,#REF!<EQ$7),EQ$5,"") ->  | ER57: =IF(AND($I57=ER$2,$K50<ER$3,$K50>ER$4,#REF!>ER$6,#REF!<ER$7),ER$5,"") ->  | ES57: =IF(AND($I57=ES$2,$K50<ES$3,$K50>ES$4,#REF!>ES$6,#REF!<ES$7),ES$5,"") ->  | ET57: =IF(AND($I57=ET$2,$K50<ET$3,$K50>ET$4,#REF!>ET$6,#REF!<ET$7),ET$5,"") ->  | EU57: =IF(AND($I57=EU$2,$K50<EU$3,$K50>EU$4,#REF!>EU$6,#REF!<EU$7),EU$5,"") ->  | EV57: =IF(AND($I57=EV$2,$K50<EV$3,$K50>EV$4,#REF!>EV$6,#REF!<EV$7),EV$5,"") ->  | EW57: =IF(AND($I57=EW$2,$K50<EW$3,$K50>EW$4,#REF!>EW$6,#REF!<EW$7),EW$5,"") ->  | EX57: =IF(AND($I57=EX$2,$K50<EX$3,$K50>EX$4,#REF!>EX$6,#REF!<EX$7),EX$5,"") ->  | EY57: =IF(AND($I57=EY$2,$K50<EY$3,$K50>EY$4,#REF!>EY$6,#REF!<EY$7),EY$5,"") ->  | EZ57: =IF(AND($I57=EZ$2,$K50<EZ$3,$K50>EZ$4,#REF!>EZ$6,#REF!<EZ$7),EZ$5,"") ->  | FA57: =IF(AND($I57=FA$2,$K50<FA$3,$K50>FA$4,#REF!>FA$6,#REF!<FA$7),FA$5,"") ->  | FB57: =IF(AND($I57=FB$2,$K50<FB$3,$K50>FB$4,#REF!>FB$6,#REF!<FB$7),FB$5,"") ->  | FC57: =IF(AND($I57=FC$2,$K50<FC$3,$K50>FC$4,#REF!>FC$6,#REF!<FC$7),FC$5,"") ->  | FD57: =IF(AND($I57=FD$2,$K50<FD$3,$K50>FD$4,#REF!>FD$6,#REF!<FD$7),FD$5,"") ->  | FE57: =IF(AND($I57=FE$2,$K50<FE$3,$K50>FE$4,#REF!>FE$6,#REF!<FE$7),FE$5,"") ->  | FF57: =IF(AND($I57=FF$2,$K50<FF$3,$K50>FF$4,#REF!>FF$6,#REF!<FF$7),FF$5,"") ->  | FG57: =IF(AND($I57=FG$2,$K50<FG$3,$K50>FG$4,#REF!>FG$6,#REF!<FG$7),FG$5,"") ->  | FH57: =IF(AND($I57=FH$2,$K50<FH$3,$K50>FH$4,#REF!>FH$6,#REF!<FH$7),FH$5,"") ->  | FI57: =IF(AND($I57=FI$2,$K50<FI$3,$K50>FI$4,#REF!>FI$6,#REF!<FI$7),FI$5,"") ->  | FJ57: =IF(AND($I57=FJ$2,$K50<FJ$3,$K50>FJ$4,#REF!>FJ$6,#REF!<FJ$7),FJ$5,"") ->  | FK57: =IF(AND($I57=FK$2,$K50<FK$3,$K50>FK$4,#REF!>FK$6,#REF!<FK$7),FK$5,"") ->  | FL57: =IF(AND($I57=FL$2,$K50<FL$3,$K50>FL$4,#REF!>FL$6,#REF!<FL$7),FL$5,"") ->  | FM57: =IF(AND($I57=FM$2,$K50<FM$3,$K50>FM$4,#REF!>FM$6,#REF!<FM$7),FM$5,"") ->  | FN57: =IF(AND($I57=FN$2,$K50<FN$3,$K50>FN$4,#REF!>FN$6,#REF!<FN$7),FN$5,"") ->  | FO57: =IF(AND($I57=FO$2,$K50<FO$3,$K50>FO$4,#REF!>FO$6,#REF!<FO$7),FO$5,"") ->  | FP57: =IF(AND($I57=FP$2,$K50<FP$3,$K50>FP$4,#REF!>FP$6,#REF!<FP$7),FP$5,"") ->  | FQ57: =IF(AND($I57=FQ$2,$K50<FQ$3,$K50>FQ$4,#REF!>FQ$6,#REF!<FQ$7),FQ$5,"") ->  | FR57: =IF(AND($I57=FR$2,$K50<FR$3,$K50>FR$4,#REF!>FR$6,#REF!<FR$7),FR$5,"") ->  | FS57: =IF(AND($I57=FS$2,$K50<FS$3,$K50>FS$4,#REF!>FS$6,#REF!<FS$7),FS$5,"") ->  | FT57: =IF(AND($I57=FT$2,$K50<FT$3,$K50>FT$4,#REF!>FT$6,#REF!<FT$7),FT$5,"") ->  | FU57: =IF(AND($I57=FU$2,$K50<FU$3,$K50>FU$4,#REF!>FU$6,#REF!<FU$7),FU$5,"") ->  | FV57: =IF(AND($I57=FV$2,$K50<FV$3,$K50>FV$4,#REF!>FV$6,#REF!<FV$7),FV$5,"") ->  | FW57: =IF(AND($I57=FW$2,$K50<FW$3,$K50>FW$4,#REF!>FW$6,#REF!<FW$7),FW$5,"") -> 
AN58: =IF(AND($I58=AN$2,$K51<AN$3,$K51>AN$4,#REF!>AN$6,#REF!<AN$7),AN$5,"") ->  | AO58: =IF(AND($I58=AO$2,$K51<AO$3,$K51>AO$4,#REF!>AO$6,#REF!<AO$7),AO$5,"") ->  | AP58: =IF(AND($I58=AP$2,$K51<AP$3,$K51>AP$4,#REF!>AP$6,#REF!<AP$7),AP$5,"") ->  | AQ58: =IF(AND($I58=AQ$2,$K51<AQ$3,$K51>AQ$4,#REF!>AQ$6,#REF!<AQ$7),AQ$5,"") ->  | AR58: =IF(AND($I58=AR$2,$K51<AR$3,$K51>AR$4,#REF!>AR$6,#REF!<AR$7),AR$5,"") ->  | AS58: =IF(AND($I58=AS$2,$K51<AS$3,$K51>AS$4,#REF!>AS$6,#REF!<AS$7),AS$5,"") ->  | AT58: =IF(AND($I58=AT$2,$K51<AT$3,$K51>AT$4,#REF!>AT$6,#REF!<AT$7),AT$5,"") ->  | AU58: =IF(AND($I58=AU$2,$K51<AU$3,$K51>AU$4,#REF!>AU$6,#REF!<AU$7),AU$5,"") ->  | AV58: =IF(AND($I58=AV$2,$K51<AV$3,$K51>AV$4,#REF!>AV$6,#REF!<AV$7),AV$5,"") ->  | AW58: =IF(AND($I58=AW$2,$K51<AW$3,$K51>AW$4,#REF!>AW$6,#REF!<AW$7),AW$5,"") ->  | AX58: =IF(AND($I58=AX$2,$K51<AX$3,$K51>AX$4,#REF!>AX$6,#REF!<AX$7),AX$5,"") ->  | AY58: =IF(AND($I58=AY$2,$K51<AY$3,$K51>AY$4,#REF!>AY$6,#REF!<AY$7),AY$5,"") ->  | AZ58: =IF(AND($I58=AZ$2,$K51<AZ$3,$K51>AZ$4,#REF!>AZ$6,#REF!<AZ$7),AZ$5,"") ->  | BA58: =IF(AND($I58=BA$2,$K51<BA$3,$K51>BA$4,#REF!>BA$6,#REF!<BA$7),BA$5,"") ->  | BB58: =IF(AND($I58=BB$2,$K51<BB$3,$K51>BB$4,#REF!>BB$6,#REF!<BB$7),BB$5,"") ->  | BC58: =IF(AND($I58=BC$2,$K51<BC$3,$K51>BC$4,#REF!>BC$6,#REF!<BC$7),BC$5,"") ->  | BD58: =IF(AND($I58=BD$2,$K51<BD$3,$K51>BD$4,#REF!>BD$6,#REF!<BD$7),BD$5,"") ->  | BE58: =IF(AND($I58=BE$2,$K51<BE$3,$K51>BE$4,#REF!>BE$6,#REF!<BE$7),BE$5,"") ->  | BF58: =IF(AND($I58=BF$2,$K51<BF$3,$K51>BF$4,#REF!>BF$6,#REF!<BF$7),BF$5,"") ->  | BG58: =IF(AND($I58=BG$2,$K51<BG$3,$K51>BG$4,#REF!>BG$6,#REF!<BG$7),BG$5,"") ->  | BH58: =IF(AND($I58=BH$2,$K51<BH$3,$K51>BH$4,#REF!>BH$6,#REF!<BH$7),BH$5,"") ->  | BI58: =IF(AND($I58=BI$2,$K51<BI$3,$K51>BI$4,#REF!>BI$6,#REF!<BI$7),BI$5,"") ->  | BJ58: =IF(AND($I58=BJ$2,$K51<BJ$3,$K51>BJ$4,#REF!>BJ$6,#REF!<BJ$7),BJ$5,"") ->  | BK58: =IF(AND($I58=BK$2,$K51<BK$3,$K51>BK$4,#REF!>BK$6,#REF!<BK$7),BK$5,"") ->  | BL58: =IF(AND($I58=BL$2,$K51<BL$3,$K51>BL$4,#REF!>BL$6,#REF!<BL$7),BL$5,"") ->  | BM58: =IF(AND($I58=BM$2,$K51<BM$3,$K51>BM$4,#REF!>BM$6,#REF!<BM$7),BM$5,"") ->  | BN58: =IF(AND($I58=BN$2,$K51<BN$3,$K51>BN$4,#REF!>BN$6,#REF!<BN$7),BN$5,"") ->  | BO58: =IF(AND($I58=BO$2,$K51<BO$3,$K51>BO$4,#REF!>BO$6,#REF!<BO$7),BO$5,"") ->  | BP58: =IF(AND($I58=BP$2,$K51<BP$3,$K51>BP$4,#REF!>BP$6,#REF!<BP$7),BP$5,"") ->  | BQ58: =IF(AND($I58=BQ$2,$K51<BQ$3,$K51>BQ$4,#REF!>BQ$6,#REF!<BQ$7),BQ$5,"") ->  | BR58: =IF(AND($I58=BR$2,$K51<BR$3,$K51>BR$4,#REF!>BR$6,#REF!<BR$7),BR$5,"") ->  | BS58: =IF(AND($I58=BS$2,$K51<BS$3,$K51>BS$4,#REF!>BS$6,#REF!<BS$7),BS$5,"") ->  | BT58: =IF(AND($I58=BT$2,$K51<BT$3,$K51>BT$4,#REF!>BT$6,#REF!<BT$7),BT$5,"") ->  | BU58: =IF(AND($I58=BU$2,$K51<BU$3,$K51>BU$4,#REF!>BU$6,#REF!<BU$7),BU$5,"") ->  | BV58: =IF(AND($I58=BV$2,$K51<BV$3,$K51>BV$4,#REF!>BV$6,#REF!<BV$7),BV$5,"") ->  | BW58: =IF(AND($I58=BW$2,$K51<BW$3,$K51>BW$4,#REF!>BW$6,#REF!<BW$7),BW$5,"") ->  | BX58: =IF(AND($I58=BX$2,$K51<BX$3,$K51>BX$4,#REF!>BX$6,#REF!<BX$7),BX$5,"") ->  | BY58: =IF(AND($I58=BY$2,$K51<BY$3,$K51>BY$4,#REF!>BY$6,#REF!<BY$7),BY$5,"") ->  | BZ58: =IF(AND($I58=BZ$2,$K51<BZ$3,$K51>BZ$4,#REF!>BZ$6,#REF!<BZ$7),BZ$5,"") ->  | CA58: =IF(AND($I58=CA$2,$K51<CA$3,$K51>CA$4,#REF!>CA$6,#REF!<CA$7),CA$5,"") ->  | CB58: =IF(AND($I58=CB$2,$K51<CB$3,$K51>CB$4,#REF!>CB$6,#REF!<CB$7),CB$5,"") ->  | CC58: =IF(AND($I58=CC$2,$K51<CC$3,$K51>CC$4,#REF!>CC$6,#REF!<CC$7),CC$5,"") ->  | CD58: =IF(AND($I58=CD$2,$K51<CD$3,$K51>CD$4,#REF!>CD$6,#REF!<CD$7),CD$5,"") ->  | CE58: =IF(AND($I58=CE$2,$K51<CE$3,$K51>CE$4,#REF!>CE$6,#REF!<CE$7),CE$5,"") ->  | CF58: =IF(AND($I58=CF$2,$K51<CF$3,$K51>CF$4,#REF!>CF$6,#REF!<CF$7),CF$5,"") ->  | CG58: =IF(AND($I58=CG$2,$K51<CG$3,$K51>CG$4,#REF!>CG$6,#REF!<CG$7),CG$5,"") ->  | CH58: =IF(AND($I58=CH$2,$K51<CH$3,$K51>CH$4,#REF!>CH$6,#REF!<CH$7),CH$5,"") ->  | CI58: =IF(AND($I58=CI$2,$K51<CI$3,$K51>CI$4,#REF!>CI$6,#REF!<CI$7),CI$5,"") ->  | CJ58: =IF(AND($I58=CJ$2,$K51<CJ$3,$K51>CJ$4,#REF!>CJ$6,#REF!<CJ$7),CJ$5,"") ->  | CK58: =IF(AND($I58=CK$2,$K51<CK$3,$K51>CK$4,#REF!>CK$6,#REF!<CK$7),CK$5,"") ->  | CL58: =IF(AND($I58=CL$2,$K51<CL$3,$K51>CL$4,#REF!>CL$6,#REF!<CL$7),CL$5,"") ->  | CM58: =IF(AND($I58=CM$2,$K51<CM$3,$K51>CM$4,#REF!>CM$6,#REF!<CM$7),CM$5,"") ->  | CN58: =IF(AND($I58=CN$2,$K51<CN$3,$K51>CN$4,#REF!>CN$6,#REF!<CN$7),CN$5,"") ->  | CO58: =IF(AND($I58=CO$2,$K51<CO$3,$K51>CO$4,#REF!>CO$6,#REF!<CO$7),CO$5,"") ->  | CP58: =IF(AND($I58=CP$2,$K51<CP$3,$K51>CP$4,#REF!>CP$6,#REF!<CP$7),CP$5,"") ->  | CQ58: =IF(AND($I58=CQ$2,$K51<CQ$3,$K51>CQ$4,#REF!>CQ$6,#REF!<CQ$7),CQ$5,"") ->  | CR58: =IF(AND($I58=CR$2,$K51<CR$3,$K51>CR$4,#REF!>CR$6,#REF!<CR$7),CR$5,"") ->  | CS58: =IF(AND($I58=CS$2,$K51<CS$3,$K51>CS$4,#REF!>CS$6,#REF!<CS$7),CS$5,"") ->  | CT58: =IF(AND($I58=CT$2,$K51<CT$3,$K51>CT$4,#REF!>CT$6,#REF!<CT$7),CT$5,"") ->  | CU58: =IF(AND($I58=CU$2,$K51<CU$3,$K51>CU$4,#REF!>CU$6,#REF!<CU$7),CU$5,"") ->  | CV58: =IF(AND($I58=CV$2,$K51<CV$3,$K51>CV$4,#REF!>CV$6,#REF!<CV$7),CV$5,"") ->  | CW58: =IF(AND($I58=CW$2,$K51<CW$3,$K51>CW$4,#REF!>CW$6,#REF!<CW$7),CW$5,"") ->  | CX58: =IF(AND($I58=CX$2,$K51<CX$3,$K51>CX$4,#REF!>CX$6,#REF!<CX$7),CX$5,"") ->  | CY58: =IF(AND($I58=CY$2,$K51<CY$3,$K51>CY$4,#REF!>CY$6,#REF!<CY$7),CY$5,"") ->  | CZ58: =IF(AND($I58=CZ$2,$K51<CZ$3,$K51>CZ$4,#REF!>CZ$6,#REF!<CZ$7),CZ$5,"") ->  | DA58: =IF(AND($I58=DA$2,$K51<DA$3,$K51>DA$4,#REF!>DA$6,#REF!<DA$7),DA$5,"") ->  | DB58: =IF(AND($I58=DB$2,$K51<DB$3,$K51>DB$4,#REF!>DB$6,#REF!<DB$7),DB$5,"") ->  | DC58: =IF(AND($I58=DC$2,$K51<DC$3,$K51>DC$4,#REF!>DC$6,#REF!<DC$7),DC$5,"") ->  | DD58: =IF(AND($I58=DD$2,$K51<DD$3,$K51>DD$4,#REF!>DD$6,#REF!<DD$7),DD$5,"") ->  | DE58: =IF(AND($I58=DE$2,$K51<DE$3,$K51>DE$4,#REF!>DE$6,#REF!<DE$7),DE$5,"") ->  | DF58: =IF(AND($I58=DF$2,$K51<DF$3,$K51>DF$4,#REF!>DF$6,#REF!<DF$7),DF$5,"") ->  | DG58: =IF(AND($I58=DG$2,$K51<DG$3,$K51>DG$4,#REF!>DG$6,#REF!<DG$7),DG$5,"") ->  | DH58: =IF(AND($I58=DH$2,$K51<DH$3,$K51>DH$4,#REF!>DH$6,#REF!<DH$7),DH$5,"") ->  | DI58: =IF(AND($I58=DI$2,$K51<DI$3,$K51>DI$4,#REF!>DI$6,#REF!<DI$7),DI$5,"") ->  | DJ58: =IF(AND($I58=DJ$2,$K51<DJ$3,$K51>DJ$4,#REF!>DJ$6,#REF!<DJ$7),DJ$5,"") ->  | DK58: =IF(AND($I58=DK$2,$K51<DK$3,$K51>DK$4,#REF!>DK$6,#REF!<DK$7),DK$5,"") ->  | DL58: =IF(AND($I58=DL$2,$K51<DL$3,$K51>DL$4,#REF!>DL$6,#REF!<DL$7),DL$5,"") ->  | DM58: =IF(AND($I58=DM$2,$K51<DM$3,$K51>DM$4,#REF!>DM$6,#REF!<DM$7),DM$5,"") ->  | DN58: =IF(AND($I58=DN$2,$K51<DN$3,$K51>DN$4,#REF!>DN$6,#REF!<DN$7),DN$5,"") ->  | DO58: =IF(AND($I58=DO$2,$K51<DO$3,$K51>DO$4,#REF!>DO$6,#REF!<DO$7),DO$5,"") ->  | DP58: =IF(AND($I58=DP$2,$K51<DP$3,$K51>DP$4,#REF!>DP$6,#REF!<DP$7),DP$5,"") ->  | DQ58: =IF(AND($I58=DQ$2,$K51<DQ$3,$K51>DQ$4,#REF!>DQ$6,#REF!<DQ$7),DQ$5,"") ->  | DR58: =IF(AND($I58=DR$2,$K51<DR$3,$K51>DR$4,#REF!>DR$6,#REF!<DR$7),DR$5,"") ->  | DS58: =IF(AND($I58=DS$2,$K51<DS$3,$K51>DS$4,#REF!>DS$6,#REF!<DS$7),DS$5,"") ->  | DT58: =IF(AND($I58=DT$2,$K51<DT$3,$K51>DT$4,#REF!>DT$6,#REF!<DT$7),DT$5,"") ->  | DU58: =IF(AND($I58=DU$2,$K51<DU$3,$K51>DU$4,#REF!>DU$6,#REF!<DU$7),DU$5,"") ->  | DV58: =IF(AND($I58=DV$2,$K51<DV$3,$K51>DV$4,#REF!>DV$6,#REF!<DV$7),DV$5,"") ->  | DW58: =IF(AND($I58=DW$2,$K51<DW$3,$K51>DW$4,#REF!>DW$6,#REF!<DW$7),DW$5,"") ->  | DX58: =IF(AND($I58=DX$2,$K51<DX$3,$K51>DX$4,#REF!>DX$6,#REF!<DX$7),DX$5,"") ->  | DY58: =IF(AND($I58=DY$2,$K51<DY$3,$K51>DY$4,#REF!>DY$6,#REF!<DY$7),DY$5,"") ->  | DZ58: =IF(AND($I58=DZ$2,$K51<DZ$3,$K51>DZ$4,#REF!>DZ$6,#REF!<DZ$7),DZ$5,"") ->  | EA58: =IF(AND($I58=EA$2,$K51<EA$3,$K51>EA$4,#REF!>EA$6,#REF!<EA$7),EA$5,"") ->  | EB58: =IF(AND($I58=EB$2,$K51<EB$3,$K51>EB$4,#REF!>EB$6,#REF!<EB$7),EB$5,"") ->  | EC58: =IF(AND($I58=EC$2,$K51<EC$3,$K51>EC$4,#REF!>EC$6,#REF!<EC$7),EC$5,"") ->  | ED58: =IF(AND($I58=ED$2,$K51<ED$3,$K51>ED$4,#REF!>ED$6,#REF!<ED$7),ED$5,"") ->  | EE58: =IF(AND($I58=EE$2,$K51<EE$3,$K51>EE$4,#REF!>EE$6,#REF!<EE$7),EE$5,"") ->  | EF58: =IF(AND($I58=EF$2,$K51<EF$3,$K51>EF$4,#REF!>EF$6,#REF!<EF$7),EF$5,"") ->  | EG58: =IF(AND($I58=EG$2,$K51<EG$3,$K51>EG$4,#REF!>EG$6,#REF!<EG$7),EG$5,"") ->  | EH58: =IF(AND($I58=EH$2,$K51<EH$3,$K51>EH$4,#REF!>EH$6,#REF!<EH$7),EH$5,"") ->  | EI58: =IF(AND($I58=EI$2,$K51<EI$3,$K51>EI$4,#REF!>EI$6,#REF!<EI$7),EI$5,"") ->  | EJ58: =IF(AND($I58=EJ$2,$K51<EJ$3,$K51>EJ$4,#REF!>EJ$6,#REF!<EJ$7),EJ$5,"") ->  | EK58: =IF(AND($I58=EK$2,$K51<EK$3,$K51>EK$4,#REF!>EK$6,#REF!<EK$7),EK$5,"") ->  | EL58: =IF(AND($I58=EL$2,$K51<EL$3,$K51>EL$4,#REF!>EL$6,#REF!<EL$7),EL$5,"") ->  | EM58: =IF(AND($I58=EM$2,$K51<EM$3,$K51>EM$4,#REF!>EM$6,#REF!<EM$7),EM$5,"") ->  | EN58: =IF(AND($I58=EN$2,$K51<EN$3,$K51>EN$4,#REF!>EN$6,#REF!<EN$7),EN$5,"") ->  | EO58: =IF(AND($I58=EO$2,$K51<EO$3,$K51>EO$4,#REF!>EO$6,#REF!<EO$7),EO$5,"") ->  | EP58: =IF(AND($I58=EP$2,$K51<EP$3,$K51>EP$4,#REF!>EP$6,#REF!<EP$7),EP$5,"") ->  | EQ58: =IF(AND($I58=EQ$2,$K51<EQ$3,$K51>EQ$4,#REF!>EQ$6,#REF!<EQ$7),EQ$5,"") ->  | ER58: =IF(AND($I58=ER$2,$K51<ER$3,$K51>ER$4,#REF!>ER$6,#REF!<ER$7),ER$5,"") ->  | ES58: =IF(AND($I58=ES$2,$K51<ES$3,$K51>ES$4,#REF!>ES$6,#REF!<ES$7),ES$5,"") ->  | ET58: =IF(AND($I58=ET$2,$K51<ET$3,$K51>ET$4,#REF!>ET$6,#REF!<ET$7),ET$5,"") ->  | EU58: =IF(AND($I58=EU$2,$K51<EU$3,$K51>EU$4,#REF!>EU$6,#REF!<EU$7),EU$5,"") ->  | EV58: =IF(AND($I58=EV$2,$K51<EV$3,$K51>EV$4,#REF!>EV$6,#REF!<EV$7),EV$5,"") ->  | EW58: =IF(AND($I58=EW$2,$K51<EW$3,$K51>EW$4,#REF!>EW$6,#REF!<EW$7),EW$5,"") ->  | EX58: =IF(AND($I58=EX$2,$K51<EX$3,$K51>EX$4,#REF!>EX$6,#REF!<EX$7),EX$5,"") ->  | EY58: =IF(AND($I58=EY$2,$K51<EY$3,$K51>EY$4,#REF!>EY$6,#REF!<EY$7),EY$5,"") ->  | EZ58: =IF(AND($I58=EZ$2,$K51<EZ$3,$K51>EZ$4,#REF!>EZ$6,#REF!<EZ$7),EZ$5,"") ->  | FA58: =IF(AND($I58=FA$2,$K51<FA$3,$K51>FA$4,#REF!>FA$6,#REF!<FA$7),FA$5,"") ->  | FB58: =IF(AND($I58=FB$2,$K51<FB$3,$K51>FB$4,#REF!>FB$6,#REF!<FB$7),FB$5,"") ->  | FC58: =IF(AND($I58=FC$2,$K51<FC$3,$K51>FC$4,#REF!>FC$6,#REF!<FC$7),FC$5,"") ->  | FD58: =IF(AND($I58=FD$2,$K51<FD$3,$K51>FD$4,#REF!>FD$6,#REF!<FD$7),FD$5,"") ->  | FE58: =IF(AND($I58=FE$2,$K51<FE$3,$K51>FE$4,#REF!>FE$6,#REF!<FE$7),FE$5,"") ->  | FF58: =IF(AND($I58=FF$2,$K51<FF$3,$K51>FF$4,#REF!>FF$6,#REF!<FF$7),FF$5,"") ->  | FG58: =IF(AND($I58=FG$2,$K51<FG$3,$K51>FG$4,#REF!>FG$6,#REF!<FG$7),FG$5,"") ->  | FH58: =IF(AND($I58=FH$2,$K51<FH$3,$K51>FH$4,#REF!>FH$6,#REF!<FH$7),FH$5,"") ->  | FI58: =IF(AND($I58=FI$2,$K51<FI$3,$K51>FI$4,#REF!>FI$6,#REF!<FI$7),FI$5,"") ->  | FJ58: =IF(AND($I58=FJ$2,$K51<FJ$3,$K51>FJ$4,#REF!>FJ$6,#REF!<FJ$7),FJ$5,"") ->  | FK58: =IF(AND($I58=FK$2,$K51<FK$3,$K51>FK$4,#REF!>FK$6,#REF!<FK$7),FK$5,"") ->  | FL58: =IF(AND($I58=FL$2,$K51<FL$3,$K51>FL$4,#REF!>FL$6,#REF!<FL$7),FL$5,"") ->  | FM58: =IF(AND($I58=FM$2,$K51<FM$3,$K51>FM$4,#REF!>FM$6,#REF!<FM$7),FM$5,"") ->  | FN58: =IF(AND($I58=FN$2,$K51<FN$3,$K51>FN$4,#REF!>FN$6,#REF!<FN$7),FN$5,"") ->  | FO58: =IF(AND($I58=FO$2,$K51<FO$3,$K51>FO$4,#REF!>FO$6,#REF!<FO$7),FO$5,"") ->  | FP58: =IF(AND($I58=FP$2,$K51<FP$3,$K51>FP$4,#REF!>FP$6,#REF!<FP$7),FP$5,"") ->  | FQ58: =IF(AND($I58=FQ$2,$K51<FQ$3,$K51>FQ$4,#REF!>FQ$6,#REF!<FQ$7),FQ$5,"") ->  | FR58: =IF(AND($I58=FR$2,$K51<FR$3,$K51>FR$4,#REF!>FR$6,#REF!<FR$7),FR$5,"") ->  | FS58: =IF(AND($I58=FS$2,$K51<FS$3,$K51>FS$4,#REF!>FS$6,#REF!<FS$7),FS$5,"") ->  | FT58: =IF(AND($I58=FT$2,$K51<FT$3,$K51>FT$4,#REF!>FT$6,#REF!<FT$7),FT$5,"") ->  | FU58: =IF(AND($I58=FU$2,$K51<FU$3,$K51>FU$4,#REF!>FU$6,#REF!<FU$7),FU$5,"") ->  | FV58: =IF(AND($I58=FV$2,$K51<FV$3,$K51>FV$4,#REF!>FV$6,#REF!<FV$7),FV$5,"") ->  | FW58: =IF(AND($I58=FW$2,$K51<FW$3,$K51>FW$4,#REF!>FW$6,#REF!<FW$7),FW$5,"") -> 
AN59: =IF(AND($I59=AN$2,$K52<AN$3,$K52>AN$4,#REF!>AN$6,#REF!<AN$7),AN$5,"") ->  | AO59: =IF(AND($I59=AO$2,$K52<AO$3,$K52>AO$4,#REF!>AO$6,#REF!<AO$7),AO$5,"") ->  | AP59: =IF(AND($I59=AP$2,$K52<AP$3,$K52>AP$4,#REF!>AP$6,#REF!<AP$7),AP$5,"") ->  | AQ59: =IF(AND($I59=AQ$2,$K52<AQ$3,$K52>AQ$4,#REF!>AQ$6,#REF!<AQ$7),AQ$5,"") ->  | AR59: =IF(AND($I59=AR$2,$K52<AR$3,$K52>AR$4,#REF!>AR$6,#REF!<AR$7),AR$5,"") ->  | AS59: =IF(AND($I59=AS$2,$K52<AS$3,$K52>AS$4,#REF!>AS$6,#REF!<AS$7),AS$5,"") ->  | AT59: =IF(AND($I59=AT$2,$K52<AT$3,$K52>AT$4,#REF!>AT$6,#REF!<AT$7),AT$5,"") ->  | AU59: =IF(AND($I59=AU$2,$K52<AU$3,$K52>AU$4,#REF!>AU$6,#REF!<AU$7),AU$5,"") ->  | AV59: =IF(AND($I59=AV$2,$K52<AV$3,$K52>AV$4,#REF!>AV$6,#REF!<AV$7),AV$5,"") ->  | AW59: =IF(AND($I59=AW$2,$K52<AW$3,$K52>AW$4,#REF!>AW$6,#REF!<AW$7),AW$5,"") ->  | AX59: =IF(AND($I59=AX$2,$K52<AX$3,$K52>AX$4,#REF!>AX$6,#REF!<AX$7),AX$5,"") ->  | AY59: =IF(AND($I59=AY$2,$K52<AY$3,$K52>AY$4,#REF!>AY$6,#REF!<AY$7),AY$5,"") ->  | AZ59: =IF(AND($I59=AZ$2,$K52<AZ$3,$K52>AZ$4,#REF!>AZ$6,#REF!<AZ$7),AZ$5,"") ->  | BA59: =IF(AND($I59=BA$2,$K52<BA$3,$K52>BA$4,#REF!>BA$6,#REF!<BA$7),BA$5,"") ->  | BB59: =IF(AND($I59=BB$2,$K52<BB$3,$K52>BB$4,#REF!>BB$6,#REF!<BB$7),BB$5,"") ->  | BC59: =IF(AND($I59=BC$2,$K52<BC$3,$K52>BC$4,#REF!>BC$6,#REF!<BC$7),BC$5,"") ->  | BD59: =IF(AND($I59=BD$2,$K52<BD$3,$K52>BD$4,#REF!>BD$6,#REF!<BD$7),BD$5,"") ->  | BE59: =IF(AND($I59=BE$2,$K52<BE$3,$K52>BE$4,#REF!>BE$6,#REF!<BE$7),BE$5,"") ->  | BF59: =IF(AND($I59=BF$2,$K52<BF$3,$K52>BF$4,#REF!>BF$6,#REF!<BF$7),BF$5,"") ->  | BG59: =IF(AND($I59=BG$2,$K52<BG$3,$K52>BG$4,#REF!>BG$6,#REF!<BG$7),BG$5,"") ->  | BH59: =IF(AND($I59=BH$2,$K52<BH$3,$K52>BH$4,#REF!>BH$6,#REF!<BH$7),BH$5,"") ->  | BI59: =IF(AND($I59=BI$2,$K52<BI$3,$K52>BI$4,#REF!>BI$6,#REF!<BI$7),BI$5,"") ->  | BJ59: =IF(AND($I59=BJ$2,$K52<BJ$3,$K52>BJ$4,#REF!>BJ$6,#REF!<BJ$7),BJ$5,"") ->  | BK59: =IF(AND($I59=BK$2,$K52<BK$3,$K52>BK$4,#REF!>BK$6,#REF!<BK$7),BK$5,"") ->  | BL59: =IF(AND($I59=BL$2,$K52<BL$3,$K52>BL$4,#REF!>BL$6,#REF!<BL$7),BL$5,"") ->  | BM59: =IF(AND($I59=BM$2,$K52<BM$3,$K52>BM$4,#REF!>BM$6,#REF!<BM$7),BM$5,"") ->  | BN59: =IF(AND($I59=BN$2,$K52<BN$3,$K52>BN$4,#REF!>BN$6,#REF!<BN$7),BN$5,"") ->  | BO59: =IF(AND($I59=BO$2,$K52<BO$3,$K52>BO$4,#REF!>BO$6,#REF!<BO$7),BO$5,"") ->  | BP59: =IF(AND($I59=BP$2,$K52<BP$3,$K52>BP$4,#REF!>BP$6,#REF!<BP$7),BP$5,"") ->  | BQ59: =IF(AND($I59=BQ$2,$K52<BQ$3,$K52>BQ$4,#REF!>BQ$6,#REF!<BQ$7),BQ$5,"") ->  | BR59: =IF(AND($I59=BR$2,$K52<BR$3,$K52>BR$4,#REF!>BR$6,#REF!<BR$7),BR$5,"") ->  | BS59: =IF(AND($I59=BS$2,$K52<BS$3,$K52>BS$4,#REF!>BS$6,#REF!<BS$7),BS$5,"") ->  | BT59: =IF(AND($I59=BT$2,$K52<BT$3,$K52>BT$4,#REF!>BT$6,#REF!<BT$7),BT$5,"") ->  | BU59: =IF(AND($I59=BU$2,$K52<BU$3,$K52>BU$4,#REF!>BU$6,#REF!<BU$7),BU$5,"") ->  | BV59: =IF(AND($I59=BV$2,$K52<BV$3,$K52>BV$4,#REF!>BV$6,#REF!<BV$7),BV$5,"") ->  | BW59: =IF(AND($I59=BW$2,$K52<BW$3,$K52>BW$4,#REF!>BW$6,#REF!<BW$7),BW$5,"") ->  | BX59: =IF(AND($I59=BX$2,$K52<BX$3,$K52>BX$4,#REF!>BX$6,#REF!<BX$7),BX$5,"") ->  | BY59: =IF(AND($I59=BY$2,$K52<BY$3,$K52>BY$4,#REF!>BY$6,#REF!<BY$7),BY$5,"") ->  | BZ59: =IF(AND($I59=BZ$2,$K52<BZ$3,$K52>BZ$4,#REF!>BZ$6,#REF!<BZ$7),BZ$5,"") ->  | CA59: =IF(AND($I59=CA$2,$K52<CA$3,$K52>CA$4,#REF!>CA$6,#REF!<CA$7),CA$5,"") ->  | CB59: =IF(AND($I59=CB$2,$K52<CB$3,$K52>CB$4,#REF!>CB$6,#REF!<CB$7),CB$5,"") ->  | CC59: =IF(AND($I59=CC$2,$K52<CC$3,$K52>CC$4,#REF!>CC$6,#REF!<CC$7),CC$5,"") ->  | CD59: =IF(AND($I59=CD$2,$K52<CD$3,$K52>CD$4,#REF!>CD$6,#REF!<CD$7),CD$5,"") ->  | CE59: =IF(AND($I59=CE$2,$K52<CE$3,$K52>CE$4,#REF!>CE$6,#REF!<CE$7),CE$5,"") ->  | CF59: =IF(AND($I59=CF$2,$K52<CF$3,$K52>CF$4,#REF!>CF$6,#REF!<CF$7),CF$5,"") ->  | CG59: =IF(AND($I59=CG$2,$K52<CG$3,$K52>CG$4,#REF!>CG$6,#REF!<CG$7),CG$5,"") ->  | CH59: =IF(AND($I59=CH$2,$K52<CH$3,$K52>CH$4,#REF!>CH$6,#REF!<CH$7),CH$5,"") ->  | CI59: =IF(AND($I59=CI$2,$K52<CI$3,$K52>CI$4,#REF!>CI$6,#REF!<CI$7),CI$5,"") ->  | CJ59: =IF(AND($I59=CJ$2,$K52<CJ$3,$K52>CJ$4,#REF!>CJ$6,#REF!<CJ$7),CJ$5,"") ->  | CK59: =IF(AND($I59=CK$2,$K52<CK$3,$K52>CK$4,#REF!>CK$6,#REF!<CK$7),CK$5,"") ->  | CL59: =IF(AND($I59=CL$2,$K52<CL$3,$K52>CL$4,#REF!>CL$6,#REF!<CL$7),CL$5,"") ->  | CM59: =IF(AND($I59=CM$2,$K52<CM$3,$K52>CM$4,#REF!>CM$6,#REF!<CM$7),CM$5,"") ->  | CN59: =IF(AND($I59=CN$2,$K52<CN$3,$K52>CN$4,#REF!>CN$6,#REF!<CN$7),CN$5,"") ->  | CO59: =IF(AND($I59=CO$2,$K52<CO$3,$K52>CO$4,#REF!>CO$6,#REF!<CO$7),CO$5,"") ->  | CP59: =IF(AND($I59=CP$2,$K52<CP$3,$K52>CP$4,#REF!>CP$6,#REF!<CP$7),CP$5,"") ->  | CQ59: =IF(AND($I59=CQ$2,$K52<CQ$3,$K52>CQ$4,#REF!>CQ$6,#REF!<CQ$7),CQ$5,"") ->  | CR59: =IF(AND($I59=CR$2,$K52<CR$3,$K52>CR$4,#REF!>CR$6,#REF!<CR$7),CR$5,"") ->  | CS59: =IF(AND($I59=CS$2,$K52<CS$3,$K52>CS$4,#REF!>CS$6,#REF!<CS$7),CS$5,"") ->  | CT59: =IF(AND($I59=CT$2,$K52<CT$3,$K52>CT$4,#REF!>CT$6,#REF!<CT$7),CT$5,"") ->  | CU59: =IF(AND($I59=CU$2,$K52<CU$3,$K52>CU$4,#REF!>CU$6,#REF!<CU$7),CU$5,"") ->  | CV59: =IF(AND($I59=CV$2,$K52<CV$3,$K52>CV$4,#REF!>CV$6,#REF!<CV$7),CV$5,"") ->  | CW59: =IF(AND($I59=CW$2,$K52<CW$3,$K52>CW$4,#REF!>CW$6,#REF!<CW$7),CW$5,"") ->  | CX59: =IF(AND($I59=CX$2,$K52<CX$3,$K52>CX$4,#REF!>CX$6,#REF!<CX$7),CX$5,"") ->  | CY59: =IF(AND($I59=CY$2,$K52<CY$3,$K52>CY$4,#REF!>CY$6,#REF!<CY$7),CY$5,"") ->  | CZ59: =IF(AND($I59=CZ$2,$K52<CZ$3,$K52>CZ$4,#REF!>CZ$6,#REF!<CZ$7),CZ$5,"") ->  | DA59: =IF(AND($I59=DA$2,$K52<DA$3,$K52>DA$4,#REF!>DA$6,#REF!<DA$7),DA$5,"") ->  | DB59: =IF(AND($I59=DB$2,$K52<DB$3,$K52>DB$4,#REF!>DB$6,#REF!<DB$7),DB$5,"") ->  | DC59: =IF(AND($I59=DC$2,$K52<DC$3,$K52>DC$4,#REF!>DC$6,#REF!<DC$7),DC$5,"") ->  | DD59: =IF(AND($I59=DD$2,$K52<DD$3,$K52>DD$4,#REF!>DD$6,#REF!<DD$7),DD$5,"") ->  | DE59: =IF(AND($I59=DE$2,$K52<DE$3,$K52>DE$4,#REF!>DE$6,#REF!<DE$7),DE$5,"") ->  | DF59: =IF(AND($I59=DF$2,$K52<DF$3,$K52>DF$4,#REF!>DF$6,#REF!<DF$7),DF$5,"") ->  | DG59: =IF(AND($I59=DG$2,$K52<DG$3,$K52>DG$4,#REF!>DG$6,#REF!<DG$7),DG$5,"") ->  | DH59: =IF(AND($I59=DH$2,$K52<DH$3,$K52>DH$4,#REF!>DH$6,#REF!<DH$7),DH$5,"") ->  | DI59: =IF(AND($I59=DI$2,$K52<DI$3,$K52>DI$4,#REF!>DI$6,#REF!<DI$7),DI$5,"") ->  | DJ59: =IF(AND($I59=DJ$2,$K52<DJ$3,$K52>DJ$4,#REF!>DJ$6,#REF!<DJ$7),DJ$5,"") ->  | DK59: =IF(AND($I59=DK$2,$K52<DK$3,$K52>DK$4,#REF!>DK$6,#REF!<DK$7),DK$5,"") ->  | DL59: =IF(AND($I59=DL$2,$K52<DL$3,$K52>DL$4,#REF!>DL$6,#REF!<DL$7),DL$5,"") ->  | DM59: =IF(AND($I59=DM$2,$K52<DM$3,$K52>DM$4,#REF!>DM$6,#REF!<DM$7),DM$5,"") ->  | DN59: =IF(AND($I59=DN$2,$K52<DN$3,$K52>DN$4,#REF!>DN$6,#REF!<DN$7),DN$5,"") ->  | DO59: =IF(AND($I59=DO$2,$K52<DO$3,$K52>DO$4,#REF!>DO$6,#REF!<DO$7),DO$5,"") ->  | DP59: =IF(AND($I59=DP$2,$K52<DP$3,$K52>DP$4,#REF!>DP$6,#REF!<DP$7),DP$5,"") ->  | DQ59: =IF(AND($I59=DQ$2,$K52<DQ$3,$K52>DQ$4,#REF!>DQ$6,#REF!<DQ$7),DQ$5,"") ->  | DR59: =IF(AND($I59=DR$2,$K52<DR$3,$K52>DR$4,#REF!>DR$6,#REF!<DR$7),DR$5,"") ->  | DS59: =IF(AND($I59=DS$2,$K52<DS$3,$K52>DS$4,#REF!>DS$6,#REF!<DS$7),DS$5,"") ->  | DT59: =IF(AND($I59=DT$2,$K52<DT$3,$K52>DT$4,#REF!>DT$6,#REF!<DT$7),DT$5,"") ->  | DU59: =IF(AND($I59=DU$2,$K52<DU$3,$K52>DU$4,#REF!>DU$6,#REF!<DU$7),DU$5,"") ->  | DV59: =IF(AND($I59=DV$2,$K52<DV$3,$K52>DV$4,#REF!>DV$6,#REF!<DV$7),DV$5,"") ->  | DW59: =IF(AND($I59=DW$2,$K52<DW$3,$K52>DW$4,#REF!>DW$6,#REF!<DW$7),DW$5,"") ->  | DX59: =IF(AND($I59=DX$2,$K52<DX$3,$K52>DX$4,#REF!>DX$6,#REF!<DX$7),DX$5,"") ->  | DY59: =IF(AND($I59=DY$2,$K52<DY$3,$K52>DY$4,#REF!>DY$6,#REF!<DY$7),DY$5,"") ->  | DZ59: =IF(AND($I59=DZ$2,$K52<DZ$3,$K52>DZ$4,#REF!>DZ$6,#REF!<DZ$7),DZ$5,"") ->  | EA59: =IF(AND($I59=EA$2,$K52<EA$3,$K52>EA$4,#REF!>EA$6,#REF!<EA$7),EA$5,"") ->  | EB59: =IF(AND($I59=EB$2,$K52<EB$3,$K52>EB$4,#REF!>EB$6,#REF!<EB$7),EB$5,"") ->  | EC59: =IF(AND($I59=EC$2,$K52<EC$3,$K52>EC$4,#REF!>EC$6,#REF!<EC$7),EC$5,"") ->  | ED59: =IF(AND($I59=ED$2,$K52<ED$3,$K52>ED$4,#REF!>ED$6,#REF!<ED$7),ED$5,"") ->  | EE59: =IF(AND($I59=EE$2,$K52<EE$3,$K52>EE$4,#REF!>EE$6,#REF!<EE$7),EE$5,"") ->  | EF59: =IF(AND($I59=EF$2,$K52<EF$3,$K52>EF$4,#REF!>EF$6,#REF!<EF$7),EF$5,"") ->  | EG59: =IF(AND($I59=EG$2,$K52<EG$3,$K52>EG$4,#REF!>EG$6,#REF!<EG$7),EG$5,"") ->  | EH59: =IF(AND($I59=EH$2,$K52<EH$3,$K52>EH$4,#REF!>EH$6,#REF!<EH$7),EH$5,"") ->  | EI59: =IF(AND($I59=EI$2,$K52<EI$3,$K52>EI$4,#REF!>EI$6,#REF!<EI$7),EI$5,"") ->  | EJ59: =IF(AND($I59=EJ$2,$K52<EJ$3,$K52>EJ$4,#REF!>EJ$6,#REF!<EJ$7),EJ$5,"") ->  | EK59: =IF(AND($I59=EK$2,$K52<EK$3,$K52>EK$4,#REF!>EK$6,#REF!<EK$7),EK$5,"") ->  | EL59: =IF(AND($I59=EL$2,$K52<EL$3,$K52>EL$4,#REF!>EL$6,#REF!<EL$7),EL$5,"") ->  | EM59: =IF(AND($I59=EM$2,$K52<EM$3,$K52>EM$4,#REF!>EM$6,#REF!<EM$7),EM$5,"") ->  | EN59: =IF(AND($I59=EN$2,$K52<EN$3,$K52>EN$4,#REF!>EN$6,#REF!<EN$7),EN$5,"") ->  | EO59: =IF(AND($I59=EO$2,$K52<EO$3,$K52>EO$4,#REF!>EO$6,#REF!<EO$7),EO$5,"") ->  | EP59: =IF(AND($I59=EP$2,$K52<EP$3,$K52>EP$4,#REF!>EP$6,#REF!<EP$7),EP$5,"") ->  | EQ59: =IF(AND($I59=EQ$2,$K52<EQ$3,$K52>EQ$4,#REF!>EQ$6,#REF!<EQ$7),EQ$5,"") ->  | ER59: =IF(AND($I59=ER$2,$K52<ER$3,$K52>ER$4,#REF!>ER$6,#REF!<ER$7),ER$5,"") ->  | ES59: =IF(AND($I59=ES$2,$K52<ES$3,$K52>ES$4,#REF!>ES$6,#REF!<ES$7),ES$5,"") ->  | ET59: =IF(AND($I59=ET$2,$K52<ET$3,$K52>ET$4,#REF!>ET$6,#REF!<ET$7),ET$5,"") ->  | EU59: =IF(AND($I59=EU$2,$K52<EU$3,$K52>EU$4,#REF!>EU$6,#REF!<EU$7),EU$5,"") ->  | EV59: =IF(AND($I59=EV$2,$K52<EV$3,$K52>EV$4,#REF!>EV$6,#REF!<EV$7),EV$5,"") ->  | EW59: =IF(AND($I59=EW$2,$K52<EW$3,$K52>EW$4,#REF!>EW$6,#REF!<EW$7),EW$5,"") ->  | EX59: =IF(AND($I59=EX$2,$K52<EX$3,$K52>EX$4,#REF!>EX$6,#REF!<EX$7),EX$5,"") ->  | EY59: =IF(AND($I59=EY$2,$K52<EY$3,$K52>EY$4,#REF!>EY$6,#REF!<EY$7),EY$5,"") ->  | EZ59: =IF(AND($I59=EZ$2,$K52<EZ$3,$K52>EZ$4,#REF!>EZ$6,#REF!<EZ$7),EZ$5,"") ->  | FA59: =IF(AND($I59=FA$2,$K52<FA$3,$K52>FA$4,#REF!>FA$6,#REF!<FA$7),FA$5,"") ->  | FB59: =IF(AND($I59=FB$2,$K52<FB$3,$K52>FB$4,#REF!>FB$6,#REF!<FB$7),FB$5,"") ->  | FC59: =IF(AND($I59=FC$2,$K52<FC$3,$K52>FC$4,#REF!>FC$6,#REF!<FC$7),FC$5,"") ->  | FD59: =IF(AND($I59=FD$2,$K52<FD$3,$K52>FD$4,#REF!>FD$6,#REF!<FD$7),FD$5,"") ->  | FE59: =IF(AND($I59=FE$2,$K52<FE$3,$K52>FE$4,#REF!>FE$6,#REF!<FE$7),FE$5,"") ->  | FF59: =IF(AND($I59=FF$2,$K52<FF$3,$K52>FF$4,#REF!>FF$6,#REF!<FF$7),FF$5,"") ->  | FG59: =IF(AND($I59=FG$2,$K52<FG$3,$K52>FG$4,#REF!>FG$6,#REF!<FG$7),FG$5,"") ->  | FH59: =IF(AND($I59=FH$2,$K52<FH$3,$K52>FH$4,#REF!>FH$6,#REF!<FH$7),FH$5,"") ->  | FI59: =IF(AND($I59=FI$2,$K52<FI$3,$K52>FI$4,#REF!>FI$6,#REF!<FI$7),FI$5,"") ->  | FJ59: =IF(AND($I59=FJ$2,$K52<FJ$3,$K52>FJ$4,#REF!>FJ$6,#REF!<FJ$7),FJ$5,"") ->  | FK59: =IF(AND($I59=FK$2,$K52<FK$3,$K52>FK$4,#REF!>FK$6,#REF!<FK$7),FK$5,"") ->  | FL59: =IF(AND($I59=FL$2,$K52<FL$3,$K52>FL$4,#REF!>FL$6,#REF!<FL$7),FL$5,"") ->  | FM59: =IF(AND($I59=FM$2,$K52<FM$3,$K52>FM$4,#REF!>FM$6,#REF!<FM$7),FM$5,"") ->  | FN59: =IF(AND($I59=FN$2,$K52<FN$3,$K52>FN$4,#REF!>FN$6,#REF!<FN$7),FN$5,"") ->  | FO59: =IF(AND($I59=FO$2,$K52<FO$3,$K52>FO$4,#REF!>FO$6,#REF!<FO$7),FO$5,"") ->  | FP59: =IF(AND($I59=FP$2,$K52<FP$3,$K52>FP$4,#REF!>FP$6,#REF!<FP$7),FP$5,"") ->  | FQ59: =IF(AND($I59=FQ$2,$K52<FQ$3,$K52>FQ$4,#REF!>FQ$6,#REF!<FQ$7),FQ$5,"") ->  | FR59: =IF(AND($I59=FR$2,$K52<FR$3,$K52>FR$4,#REF!>FR$6,#REF!<FR$7),FR$5,"") ->  | FS59: =IF(AND($I59=FS$2,$K52<FS$3,$K52>FS$4,#REF!>FS$6,#REF!<FS$7),FS$5,"") ->  | FT59: =IF(AND($I59=FT$2,$K52<FT$3,$K52>FT$4,#REF!>FT$6,#REF!<FT$7),FT$5,"") ->  | FU59: =IF(AND($I59=FU$2,$K52<FU$3,$K52>FU$4,#REF!>FU$6,#REF!<FU$7),FU$5,"") ->  | FV59: =IF(AND($I59=FV$2,$K52<FV$3,$K52>FV$4,#REF!>FV$6,#REF!<FV$7),FV$5,"") ->  | FW59: =IF(AND($I59=FW$2,$K52<FW$3,$K52>FW$4,#REF!>FW$6,#REF!<FW$7),FW$5,"") -> 
AN60: =IF(AND(#REF!=AN$2,$K53<AN$3,$K53>AN$4,#REF!>AN$6,#REF!<AN$7),AN$5,"") ->  | AO60: =IF(AND(#REF!=AO$2,$K53<AO$3,$K53>AO$4,#REF!>AO$6,#REF!<AO$7),AO$5,"") ->  | AP60: =IF(AND(#REF!=AP$2,$K53<AP$3,$K53>AP$4,#REF!>AP$6,#REF!<AP$7),AP$5,"") ->  | AQ60: =IF(AND(#REF!=AQ$2,$K53<AQ$3,$K53>AQ$4,#REF!>AQ$6,#REF!<AQ$7),AQ$5,"") ->  | AR60: =IF(AND(#REF!=AR$2,$K53<AR$3,$K53>AR$4,#REF!>AR$6,#REF!<AR$7),AR$5,"") ->  | AS60: =IF(AND(#REF!=AS$2,$K53<AS$3,$K53>AS$4,#REF!>AS$6,#REF!<AS$7),AS$5,"") ->  | AT60: =IF(AND(#REF!=AT$2,$K53<AT$3,$K53>AT$4,#REF!>AT$6,#REF!<AT$7),AT$5,"") ->  | AU60: =IF(AND(#REF!=AU$2,$K53<AU$3,$K53>AU$4,#REF!>AU$6,#REF!<AU$7),AU$5,"") ->  | AV60: =IF(AND(#REF!=AV$2,$K53<AV$3,$K53>AV$4,#REF!>AV$6,#REF!<AV$7),AV$5,"") ->  | AW60: =IF(AND(#REF!=AW$2,$K53<AW$3,$K53>AW$4,#REF!>AW$6,#REF!<AW$7),AW$5,"") ->  | AX60: =IF(AND(#REF!=AX$2,$K53<AX$3,$K53>AX$4,#REF!>AX$6,#REF!<AX$7),AX$5,"") ->  | AY60: =IF(AND(#REF!=AY$2,$K53<AY$3,$K53>AY$4,#REF!>AY$6,#REF!<AY$7),AY$5,"") ->  | AZ60: =IF(AND(#REF!=AZ$2,$K53<AZ$3,$K53>AZ$4,#REF!>AZ$6,#REF!<AZ$7),AZ$5,"") ->  | BA60: =IF(AND(#REF!=BA$2,$K53<BA$3,$K53>BA$4,#REF!>BA$6,#REF!<BA$7),BA$5,"") ->  | BB60: =IF(AND(#REF!=BB$2,$K53<BB$3,$K53>BB$4,#REF!>BB$6,#REF!<BB$7),BB$5,"") ->  | BC60: =IF(AND(#REF!=BC$2,$K53<BC$3,$K53>BC$4,#REF!>BC$6,#REF!<BC$7),BC$5,"") ->  | BD60: =IF(AND(#REF!=BD$2,$K53<BD$3,$K53>BD$4,#REF!>BD$6,#REF!<BD$7),BD$5,"") ->  | BE60: =IF(AND(#REF!=BE$2,$K53<BE$3,$K53>BE$4,#REF!>BE$6,#REF!<BE$7),BE$5,"") ->  | BF60: =IF(AND(#REF!=BF$2,$K53<BF$3,$K53>BF$4,#REF!>BF$6,#REF!<BF$7),BF$5,"") ->  | BG60: =IF(AND(#REF!=BG$2,$K53<BG$3,$K53>BG$4,#REF!>BG$6,#REF!<BG$7),BG$5,"") ->  | BH60: =IF(AND(#REF!=BH$2,$K53<BH$3,$K53>BH$4,#REF!>BH$6,#REF!<BH$7),BH$5,"") ->  | BI60: =IF(AND(#REF!=BI$2,$K53<BI$3,$K53>BI$4,#REF!>BI$6,#REF!<BI$7),BI$5,"") ->  | BJ60: =IF(AND(#REF!=BJ$2,$K53<BJ$3,$K53>BJ$4,#REF!>BJ$6,#REF!<BJ$7),BJ$5,"") ->  | BK60: =IF(AND(#REF!=BK$2,$K53<BK$3,$K53>BK$4,#REF!>BK$6,#REF!<BK$7),BK$5,"") ->  | BL60: =IF(AND(#REF!=BL$2,$K53<BL$3,$K53>BL$4,#REF!>BL$6,#REF!<BL$7),BL$5,"") ->  | BM60: =IF(AND(#REF!=BM$2,$K53<BM$3,$K53>BM$4,#REF!>BM$6,#REF!<BM$7),BM$5,"") ->  | BN60: =IF(AND(#REF!=BN$2,$K53<BN$3,$K53>BN$4,#REF!>BN$6,#REF!<BN$7),BN$5,"") ->  | BO60: =IF(AND(#REF!=BO$2,$K53<BO$3,$K53>BO$4,#REF!>BO$6,#REF!<BO$7),BO$5,"") ->  | BP60: =IF(AND(#REF!=BP$2,$K53<BP$3,$K53>BP$4,#REF!>BP$6,#REF!<BP$7),BP$5,"") ->  | BQ60: =IF(AND(#REF!=BQ$2,$K53<BQ$3,$K53>BQ$4,#REF!>BQ$6,#REF!<BQ$7),BQ$5,"") ->  | BR60: =IF(AND(#REF!=BR$2,$K53<BR$3,$K53>BR$4,#REF!>BR$6,#REF!<BR$7),BR$5,"") ->  | BS60: =IF(AND(#REF!=BS$2,$K53<BS$3,$K53>BS$4,#REF!>BS$6,#REF!<BS$7),BS$5,"") ->  | BT60: =IF(AND(#REF!=BT$2,$K53<BT$3,$K53>BT$4,#REF!>BT$6,#REF!<BT$7),BT$5,"") ->  | BU60: =IF(AND(#REF!=BU$2,$K53<BU$3,$K53>BU$4,#REF!>BU$6,#REF!<BU$7),BU$5,"") ->  | BV60: =IF(AND(#REF!=BV$2,$K53<BV$3,$K53>BV$4,#REF!>BV$6,#REF!<BV$7),BV$5,"") ->  | BW60: =IF(AND(#REF!=BW$2,$K53<BW$3,$K53>BW$4,#REF!>BW$6,#REF!<BW$7),BW$5,"") ->  | BX60: =IF(AND(#REF!=BX$2,$K53<BX$3,$K53>BX$4,#REF!>BX$6,#REF!<BX$7),BX$5,"") ->  | BY60: =IF(AND(#REF!=BY$2,$K53<BY$3,$K53>BY$4,#REF!>BY$6,#REF!<BY$7),BY$5,"") ->  | BZ60: =IF(AND(#REF!=BZ$2,$K53<BZ$3,$K53>BZ$4,#REF!>BZ$6,#REF!<BZ$7),BZ$5,"") ->  | CA60: =IF(AND(#REF!=CA$2,$K53<CA$3,$K53>CA$4,#REF!>CA$6,#REF!<CA$7),CA$5,"") ->  | CB60: =IF(AND(#REF!=CB$2,$K53<CB$3,$K53>CB$4,#REF!>CB$6,#REF!<CB$7),CB$5,"") ->  | CC60: =IF(AND(#REF!=CC$2,$K53<CC$3,$K53>CC$4,#REF!>CC$6,#REF!<CC$7),CC$5,"") ->  | CD60: =IF(AND(#REF!=CD$2,$K53<CD$3,$K53>CD$4,#REF!>CD$6,#REF!<CD$7),CD$5,"") ->  | CE60: =IF(AND(#REF!=CE$2,$K53<CE$3,$K53>CE$4,#REF!>CE$6,#REF!<CE$7),CE$5,"") ->  | CF60: =IF(AND(#REF!=CF$2,$K53<CF$3,$K53>CF$4,#REF!>CF$6,#REF!<CF$7),CF$5,"") ->  | CG60: =IF(AND(#REF!=CG$2,$K53<CG$3,$K53>CG$4,#REF!>CG$6,#REF!<CG$7),CG$5,"") ->  | CH60: =IF(AND(#REF!=CH$2,$K53<CH$3,$K53>CH$4,#REF!>CH$6,#REF!<CH$7),CH$5,"") ->  | CI60: =IF(AND(#REF!=CI$2,$K53<CI$3,$K53>CI$4,#REF!>CI$6,#REF!<CI$7),CI$5,"") ->  | CJ60: =IF(AND(#REF!=CJ$2,$K53<CJ$3,$K53>CJ$4,#REF!>CJ$6,#REF!<CJ$7),CJ$5,"") ->  | CK60: =IF(AND(#REF!=CK$2,$K53<CK$3,$K53>CK$4,#REF!>CK$6,#REF!<CK$7),CK$5,"") ->  | CL60: =IF(AND(#REF!=CL$2,$K53<CL$3,$K53>CL$4,#REF!>CL$6,#REF!<CL$7),CL$5,"") ->  | CM60: =IF(AND(#REF!=CM$2,$K53<CM$3,$K53>CM$4,#REF!>CM$6,#REF!<CM$7),CM$5,"") ->  | CN60: =IF(AND(#REF!=CN$2,$K53<CN$3,$K53>CN$4,#REF!>CN$6,#REF!<CN$7),CN$5,"") ->  | CO60: =IF(AND(#REF!=CO$2,$K53<CO$3,$K53>CO$4,#REF!>CO$6,#REF!<CO$7),CO$5,"") ->  | CP60: =IF(AND(#REF!=CP$2,$K53<CP$3,$K53>CP$4,#REF!>CP$6,#REF!<CP$7),CP$5,"") ->  | CQ60: =IF(AND(#REF!=CQ$2,$K53<CQ$3,$K53>CQ$4,#REF!>CQ$6,#REF!<CQ$7),CQ$5,"") ->  | CR60: =IF(AND(#REF!=CR$2,$K53<CR$3,$K53>CR$4,#REF!>CR$6,#REF!<CR$7),CR$5,"") ->  | CS60: =IF(AND(#REF!=CS$2,$K53<CS$3,$K53>CS$4,#REF!>CS$6,#REF!<CS$7),CS$5,"") ->  | CT60: =IF(AND(#REF!=CT$2,$K53<CT$3,$K53>CT$4,#REF!>CT$6,#REF!<CT$7),CT$5,"") ->  | CU60: =IF(AND(#REF!=CU$2,$K53<CU$3,$K53>CU$4,#REF!>CU$6,#REF!<CU$7),CU$5,"") ->  | CV60: =IF(AND(#REF!=CV$2,$K53<CV$3,$K53>CV$4,#REF!>CV$6,#REF!<CV$7),CV$5,"") ->  | CW60: =IF(AND(#REF!=CW$2,$K53<CW$3,$K53>CW$4,#REF!>CW$6,#REF!<CW$7),CW$5,"") ->  | CX60: =IF(AND(#REF!=CX$2,$K53<CX$3,$K53>CX$4,#REF!>CX$6,#REF!<CX$7),CX$5,"") ->  | CY60: =IF(AND(#REF!=CY$2,$K53<CY$3,$K53>CY$4,#REF!>CY$6,#REF!<CY$7),CY$5,"") ->  | CZ60: =IF(AND(#REF!=CZ$2,$K53<CZ$3,$K53>CZ$4,#REF!>CZ$6,#REF!<CZ$7),CZ$5,"") ->  | DA60: =IF(AND(#REF!=DA$2,$K53<DA$3,$K53>DA$4,#REF!>DA$6,#REF!<DA$7),DA$5,"") ->  | DB60: =IF(AND(#REF!=DB$2,$K53<DB$3,$K53>DB$4,#REF!>DB$6,#REF!<DB$7),DB$5,"") ->  | DC60: =IF(AND(#REF!=DC$2,$K53<DC$3,$K53>DC$4,#REF!>DC$6,#REF!<DC$7),DC$5,"") ->  | DD60: =IF(AND(#REF!=DD$2,$K53<DD$3,$K53>DD$4,#REF!>DD$6,#REF!<DD$7),DD$5,"") ->  | DE60: =IF(AND(#REF!=DE$2,$K53<DE$3,$K53>DE$4,#REF!>DE$6,#REF!<DE$7),DE$5,"") ->  | DF60: =IF(AND(#REF!=DF$2,$K53<DF$3,$K53>DF$4,#REF!>DF$6,#REF!<DF$7),DF$5,"") ->  | DG60: =IF(AND(#REF!=DG$2,$K53<DG$3,$K53>DG$4,#REF!>DG$6,#REF!<DG$7),DG$5,"") ->  | DH60: =IF(AND(#REF!=DH$2,$K53<DH$3,$K53>DH$4,#REF!>DH$6,#REF!<DH$7),DH$5,"") ->  | DI60: =IF(AND(#REF!=DI$2,$K53<DI$3,$K53>DI$4,#REF!>DI$6,#REF!<DI$7),DI$5,"") ->  | DJ60: =IF(AND(#REF!=DJ$2,$K53<DJ$3,$K53>DJ$4,#REF!>DJ$6,#REF!<DJ$7),DJ$5,"") ->  | DK60: =IF(AND(#REF!=DK$2,$K53<DK$3,$K53>DK$4,#REF!>DK$6,#REF!<DK$7),DK$5,"") ->  | DL60: =IF(AND(#REF!=DL$2,$K53<DL$3,$K53>DL$4,#REF!>DL$6,#REF!<DL$7),DL$5,"") ->  | DM60: =IF(AND(#REF!=DM$2,$K53<DM$3,$K53>DM$4,#REF!>DM$6,#REF!<DM$7),DM$5,"") ->  | DN60: =IF(AND(#REF!=DN$2,$K53<DN$3,$K53>DN$4,#REF!>DN$6,#REF!<DN$7),DN$5,"") ->  | DO60: =IF(AND(#REF!=DO$2,$K53<DO$3,$K53>DO$4,#REF!>DO$6,#REF!<DO$7),DO$5,"") ->  | DP60: =IF(AND(#REF!=DP$2,$K53<DP$3,$K53>DP$4,#REF!>DP$6,#REF!<DP$7),DP$5,"") ->  | DQ60: =IF(AND(#REF!=DQ$2,$K53<DQ$3,$K53>DQ$4,#REF!>DQ$6,#REF!<DQ$7),DQ$5,"") ->  | DR60: =IF(AND(#REF!=DR$2,$K53<DR$3,$K53>DR$4,#REF!>DR$6,#REF!<DR$7),DR$5,"") ->  | DS60: =IF(AND(#REF!=DS$2,$K53<DS$3,$K53>DS$4,#REF!>DS$6,#REF!<DS$7),DS$5,"") ->  | DT60: =IF(AND(#REF!=DT$2,$K53<DT$3,$K53>DT$4,#REF!>DT$6,#REF!<DT$7),DT$5,"") ->  | DU60: =IF(AND(#REF!=DU$2,$K53<DU$3,$K53>DU$4,#REF!>DU$6,#REF!<DU$7),DU$5,"") ->  | DV60: =IF(AND(#REF!=DV$2,$K53<DV$3,$K53>DV$4,#REF!>DV$6,#REF!<DV$7),DV$5,"") ->  | DW60: =IF(AND(#REF!=DW$2,$K53<DW$3,$K53>DW$4,#REF!>DW$6,#REF!<DW$7),DW$5,"") ->  | DX60: =IF(AND(#REF!=DX$2,$K53<DX$3,$K53>DX$4,#REF!>DX$6,#REF!<DX$7),DX$5,"") ->  | DY60: =IF(AND(#REF!=DY$2,$K53<DY$3,$K53>DY$4,#REF!>DY$6,#REF!<DY$7),DY$5,"") ->  | DZ60: =IF(AND(#REF!=DZ$2,$K53<DZ$3,$K53>DZ$4,#REF!>DZ$6,#REF!<DZ$7),DZ$5,"") ->  | EA60: =IF(AND(#REF!=EA$2,$K53<EA$3,$K53>EA$4,#REF!>EA$6,#REF!<EA$7),EA$5,"") ->  | EB60: =IF(AND(#REF!=EB$2,$K53<EB$3,$K53>EB$4,#REF!>EB$6,#REF!<EB$7),EB$5,"") ->  | EC60: =IF(AND(#REF!=EC$2,$K53<EC$3,$K53>EC$4,#REF!>EC$6,#REF!<EC$7),EC$5,"") ->  | ED60: =IF(AND(#REF!=ED$2,$K53<ED$3,$K53>ED$4,#REF!>ED$6,#REF!<ED$7),ED$5,"") ->  | EE60: =IF(AND(#REF!=EE$2,$K53<EE$3,$K53>EE$4,#REF!>EE$6,#REF!<EE$7),EE$5,"") ->  | EF60: =IF(AND(#REF!=EF$2,$K53<EF$3,$K53>EF$4,#REF!>EF$6,#REF!<EF$7),EF$5,"") ->  | EG60: =IF(AND(#REF!=EG$2,$K53<EG$3,$K53>EG$4,#REF!>EG$6,#REF!<EG$7),EG$5,"") ->  | EH60: =IF(AND(#REF!=EH$2,$K53<EH$3,$K53>EH$4,#REF!>EH$6,#REF!<EH$7),EH$5,"") ->  | EI60: =IF(AND(#REF!=EI$2,$K53<EI$3,$K53>EI$4,#REF!>EI$6,#REF!<EI$7),EI$5,"") ->  | EJ60: =IF(AND(#REF!=EJ$2,$K53<EJ$3,$K53>EJ$4,#REF!>EJ$6,#REF!<EJ$7),EJ$5,"") ->  | EK60: =IF(AND(#REF!=EK$2,$K53<EK$3,$K53>EK$4,#REF!>EK$6,#REF!<EK$7),EK$5,"") ->  | EL60: =IF(AND(#REF!=EL$2,$K53<EL$3,$K53>EL$4,#REF!>EL$6,#REF!<EL$7),EL$5,"") ->  | EM60: =IF(AND(#REF!=EM$2,$K53<EM$3,$K53>EM$4,#REF!>EM$6,#REF!<EM$7),EM$5,"") ->  | EN60: =IF(AND(#REF!=EN$2,$K53<EN$3,$K53>EN$4,#REF!>EN$6,#REF!<EN$7),EN$5,"") ->  | EO60: =IF(AND(#REF!=EO$2,$K53<EO$3,$K53>EO$4,#REF!>EO$6,#REF!<EO$7),EO$5,"") ->  | EP60: =IF(AND(#REF!=EP$2,$K53<EP$3,$K53>EP$4,#REF!>EP$6,#REF!<EP$7),EP$5,"") ->  | EQ60: =IF(AND(#REF!=EQ$2,$K53<EQ$3,$K53>EQ$4,#REF!>EQ$6,#REF!<EQ$7),EQ$5,"") ->  | ER60: =IF(AND(#REF!=ER$2,$K53<ER$3,$K53>ER$4,#REF!>ER$6,#REF!<ER$7),ER$5,"") ->  | ES60: =IF(AND(#REF!=ES$2,$K53<ES$3,$K53>ES$4,#REF!>ES$6,#REF!<ES$7),ES$5,"") ->  | ET60: =IF(AND(#REF!=ET$2,$K53<ET$3,$K53>ET$4,#REF!>ET$6,#REF!<ET$7),ET$5,"") ->  | EU60: =IF(AND(#REF!=EU$2,$K53<EU$3,$K53>EU$4,#REF!>EU$6,#REF!<EU$7),EU$5,"") ->  | EV60: =IF(AND(#REF!=EV$2,$K53<EV$3,$K53>EV$4,#REF!>EV$6,#REF!<EV$7),EV$5,"") ->  | EW60: =IF(AND(#REF!=EW$2,$K53<EW$3,$K53>EW$4,#REF!>EW$6,#REF!<EW$7),EW$5,"") ->  | EX60: =IF(AND(#REF!=EX$2,$K53<EX$3,$K53>EX$4,#REF!>EX$6,#REF!<EX$7),EX$5,"") ->  | EY60: =IF(AND(#REF!=EY$2,$K53<EY$3,$K53>EY$4,#REF!>EY$6,#REF!<EY$7),EY$5,"") ->  | EZ60: =IF(AND(#REF!=EZ$2,$K53<EZ$3,$K53>EZ$4,#REF!>EZ$6,#REF!<EZ$7),EZ$5,"") ->  | FA60: =IF(AND(#REF!=FA$2,$K53<FA$3,$K53>FA$4,#REF!>FA$6,#REF!<FA$7),FA$5,"") ->  | FB60: =IF(AND(#REF!=FB$2,$K53<FB$3,$K53>FB$4,#REF!>FB$6,#REF!<FB$7),FB$5,"") ->  | FC60: =IF(AND(#REF!=FC$2,$K53<FC$3,$K53>FC$4,#REF!>FC$6,#REF!<FC$7),FC$5,"") ->  | FD60: =IF(AND(#REF!=FD$2,$K53<FD$3,$K53>FD$4,#REF!>FD$6,#REF!<FD$7),FD$5,"") ->  | FE60: =IF(AND(#REF!=FE$2,$K53<FE$3,$K53>FE$4,#REF!>FE$6,#REF!<FE$7),FE$5,"") ->  | FF60: =IF(AND(#REF!=FF$2,$K53<FF$3,$K53>FF$4,#REF!>FF$6,#REF!<FF$7),FF$5,"") ->  | FG60: =IF(AND(#REF!=FG$2,$K53<FG$3,$K53>FG$4,#REF!>FG$6,#REF!<FG$7),FG$5,"") ->  | FH60: =IF(AND(#REF!=FH$2,$K53<FH$3,$K53>FH$4,#REF!>FH$6,#REF!<FH$7),FH$5,"") ->  | FI60: =IF(AND(#REF!=FI$2,$K53<FI$3,$K53>FI$4,#REF!>FI$6,#REF!<FI$7),FI$5,"") ->  | FJ60: =IF(AND(#REF!=FJ$2,$K53<FJ$3,$K53>FJ$4,#REF!>FJ$6,#REF!<FJ$7),FJ$5,"") ->  | FK60: =IF(AND(#REF!=FK$2,$K53<FK$3,$K53>FK$4,#REF!>FK$6,#REF!<FK$7),FK$5,"") ->  | FL60: =IF(AND(#REF!=FL$2,$K53<FL$3,$K53>FL$4,#REF!>FL$6,#REF!<FL$7),FL$5,"") ->  | FM60: =IF(AND(#REF!=FM$2,$K53<FM$3,$K53>FM$4,#REF!>FM$6,#REF!<FM$7),FM$5,"") ->  | FN60: =IF(AND(#REF!=FN$2,$K53<FN$3,$K53>FN$4,#REF!>FN$6,#REF!<FN$7),FN$5,"") ->  | FO60: =IF(AND(#REF!=FO$2,$K53<FO$3,$K53>FO$4,#REF!>FO$6,#REF!<FO$7),FO$5,"") ->  | FP60: =IF(AND(#REF!=FP$2,$K53<FP$3,$K53>FP$4,#REF!>FP$6,#REF!<FP$7),FP$5,"") ->  | FQ60: =IF(AND(#REF!=FQ$2,$K53<FQ$3,$K53>FQ$4,#REF!>FQ$6,#REF!<FQ$7),FQ$5,"") ->  | FR60: =IF(AND(#REF!=FR$2,$K53<FR$3,$K53>FR$4,#REF!>FR$6,#REF!<FR$7),FR$5,"") ->  | FS60: =IF(AND(#REF!=FS$2,$K53<FS$3,$K53>FS$4,#REF!>FS$6,#REF!<FS$7),FS$5,"") ->  | FT60: =IF(AND(#REF!=FT$2,$K53<FT$3,$K53>FT$4,#REF!>FT$6,#REF!<FT$7),FT$5,"") ->  | FU60: =IF(AND(#REF!=FU$2,$K53<FU$3,$K53>FU$4,#REF!>FU$6,#REF!<FU$7),FU$5,"") ->  | FV60: =IF(AND(#REF!=FV$2,$K53<FV$3,$K53>FV$4,#REF!>FV$6,#REF!<FV$7),FV$5,"") ->  | FW60: =IF(AND(#REF!=FW$2,$K53<FW$3,$K53>FW$4,#REF!>FW$6,#REF!<FW$7),FW$5,"") -> 
AN61: =IF(AND(#REF!=AN$2,$K54<AN$3,$K54>AN$4,#REF!>AN$6,#REF!<AN$7),AN$5,"") ->  | AO61: =IF(AND(#REF!=AO$2,$K54<AO$3,$K54>AO$4,#REF!>AO$6,#REF!<AO$7),AO$5,"") ->  | AP61: =IF(AND(#REF!=AP$2,$K54<AP$3,$K54>AP$4,#REF!>AP$6,#REF!<AP$7),AP$5,"") ->  | AQ61: =IF(AND(#REF!=AQ$2,$K54<AQ$3,$K54>AQ$4,#REF!>AQ$6,#REF!<AQ$7),AQ$5,"") ->  | AR61: =IF(AND(#REF!=AR$2,$K54<AR$3,$K54>AR$4,#REF!>AR$6,#REF!<AR$7),AR$5,"") ->  | AS61: =IF(AND(#REF!=AS$2,$K54<AS$3,$K54>AS$4,#REF!>AS$6,#REF!<AS$7),AS$5,"") ->  | AT61: =IF(AND(#REF!=AT$2,$K54<AT$3,$K54>AT$4,#REF!>AT$6,#REF!<AT$7),AT$5,"") ->  | AU61: =IF(AND(#REF!=AU$2,$K54<AU$3,$K54>AU$4,#REF!>AU$6,#REF!<AU$7),AU$5,"") ->  | AV61: =IF(AND(#REF!=AV$2,$K54<AV$3,$K54>AV$4,#REF!>AV$6,#REF!<AV$7),AV$5,"") ->  | AW61: =IF(AND(#REF!=AW$2,$K54<AW$3,$K54>AW$4,#REF!>AW$6,#REF!<AW$7),AW$5,"") ->  | AX61: =IF(AND(#REF!=AX$2,$K54<AX$3,$K54>AX$4,#REF!>AX$6,#REF!<AX$7),AX$5,"") ->  | AY61: =IF(AND(#REF!=AY$2,$K54<AY$3,$K54>AY$4,#REF!>AY$6,#REF!<AY$7),AY$5,"") ->  | AZ61: =IF(AND(#REF!=AZ$2,$K54<AZ$3,$K54>AZ$4,#REF!>AZ$6,#REF!<AZ$7),AZ$5,"") ->  | BA61: =IF(AND(#REF!=BA$2,$K54<BA$3,$K54>BA$4,#REF!>BA$6,#REF!<BA$7),BA$5,"") ->  | BB61: =IF(AND(#REF!=BB$2,$K54<BB$3,$K54>BB$4,#REF!>BB$6,#REF!<BB$7),BB$5,"") ->  | BC61: =IF(AND(#REF!=BC$2,$K54<BC$3,$K54>BC$4,#REF!>BC$6,#REF!<BC$7),BC$5,"") ->  | BD61: =IF(AND(#REF!=BD$2,$K54<BD$3,$K54>BD$4,#REF!>BD$6,#REF!<BD$7),BD$5,"") ->  | BE61: =IF(AND(#REF!=BE$2,$K54<BE$3,$K54>BE$4,#REF!>BE$6,#REF!<BE$7),BE$5,"") ->  | BF61: =IF(AND(#REF!=BF$2,$K54<BF$3,$K54>BF$4,#REF!>BF$6,#REF!<BF$7),BF$5,"") ->  | BG61: =IF(AND(#REF!=BG$2,$K54<BG$3,$K54>BG$4,#REF!>BG$6,#REF!<BG$7),BG$5,"") ->  | BH61: =IF(AND(#REF!=BH$2,$K54<BH$3,$K54>BH$4,#REF!>BH$6,#REF!<BH$7),BH$5,"") ->  | BI61: =IF(AND(#REF!=BI$2,$K54<BI$3,$K54>BI$4,#REF!>BI$6,#REF!<BI$7),BI$5,"") ->  | BJ61: =IF(AND(#REF!=BJ$2,$K54<BJ$3,$K54>BJ$4,#REF!>BJ$6,#REF!<BJ$7),BJ$5,"") ->  | BK61: =IF(AND(#REF!=BK$2,$K54<BK$3,$K54>BK$4,#REF!>BK$6,#REF!<BK$7),BK$5,"") ->  | BL61: =IF(AND(#REF!=BL$2,$K54<BL$3,$K54>BL$4,#REF!>BL$6,#REF!<BL$7),BL$5,"") ->  | BM61: =IF(AND(#REF!=BM$2,$K54<BM$3,$K54>BM$4,#REF!>BM$6,#REF!<BM$7),BM$5,"") ->  | BN61: =IF(AND(#REF!=BN$2,$K54<BN$3,$K54>BN$4,#REF!>BN$6,#REF!<BN$7),BN$5,"") ->  | BO61: =IF(AND(#REF!=BO$2,$K54<BO$3,$K54>BO$4,#REF!>BO$6,#REF!<BO$7),BO$5,"") ->  | BP61: =IF(AND(#REF!=BP$2,$K54<BP$3,$K54>BP$4,#REF!>BP$6,#REF!<BP$7),BP$5,"") ->  | BQ61: =IF(AND(#REF!=BQ$2,$K54<BQ$3,$K54>BQ$4,#REF!>BQ$6,#REF!<BQ$7),BQ$5,"") ->  | BR61: =IF(AND(#REF!=BR$2,$K54<BR$3,$K54>BR$4,#REF!>BR$6,#REF!<BR$7),BR$5,"") ->  | BS61: =IF(AND(#REF!=BS$2,$K54<BS$3,$K54>BS$4,#REF!>BS$6,#REF!<BS$7),BS$5,"") ->  | BT61: =IF(AND(#REF!=BT$2,$K54<BT$3,$K54>BT$4,#REF!>BT$6,#REF!<BT$7),BT$5,"") ->  | BU61: =IF(AND(#REF!=BU$2,$K54<BU$3,$K54>BU$4,#REF!>BU$6,#REF!<BU$7),BU$5,"") ->  | BV61: =IF(AND(#REF!=BV$2,$K54<BV$3,$K54>BV$4,#REF!>BV$6,#REF!<BV$7),BV$5,"") ->  | BW61: =IF(AND(#REF!=BW$2,$K54<BW$3,$K54>BW$4,#REF!>BW$6,#REF!<BW$7),BW$5,"") ->  | BX61: =IF(AND(#REF!=BX$2,$K54<BX$3,$K54>BX$4,#REF!>BX$6,#REF!<BX$7),BX$5,"") ->  | BY61: =IF(AND(#REF!=BY$2,$K54<BY$3,$K54>BY$4,#REF!>BY$6,#REF!<BY$7),BY$5,"") ->  | BZ61: =IF(AND(#REF!=BZ$2,$K54<BZ$3,$K54>BZ$4,#REF!>BZ$6,#REF!<BZ$7),BZ$5,"") ->  | CA61: =IF(AND(#REF!=CA$2,$K54<CA$3,$K54>CA$4,#REF!>CA$6,#REF!<CA$7),CA$5,"") ->  | CB61: =IF(AND(#REF!=CB$2,$K54<CB$3,$K54>CB$4,#REF!>CB$6,#REF!<CB$7),CB$5,"") ->  | CC61: =IF(AND(#REF!=CC$2,$K54<CC$3,$K54>CC$4,#REF!>CC$6,#REF!<CC$7),CC$5,"") ->  | CD61: =IF(AND(#REF!=CD$2,$K54<CD$3,$K54>CD$4,#REF!>CD$6,#REF!<CD$7),CD$5,"") ->  | CE61: =IF(AND(#REF!=CE$2,$K54<CE$3,$K54>CE$4,#REF!>CE$6,#REF!<CE$7),CE$5,"") ->  | CF61: =IF(AND(#REF!=CF$2,$K54<CF$3,$K54>CF$4,#REF!>CF$6,#REF!<CF$7),CF$5,"") ->  | CG61: =IF(AND(#REF!=CG$2,$K54<CG$3,$K54>CG$4,#REF!>CG$6,#REF!<CG$7),CG$5,"") ->  | CH61: =IF(AND(#REF!=CH$2,$K54<CH$3,$K54>CH$4,#REF!>CH$6,#REF!<CH$7),CH$5,"") ->  | CI61: =IF(AND(#REF!=CI$2,$K54<CI$3,$K54>CI$4,#REF!>CI$6,#REF!<CI$7),CI$5,"") ->  | CJ61: =IF(AND(#REF!=CJ$2,$K54<CJ$3,$K54>CJ$4,#REF!>CJ$6,#REF!<CJ$7),CJ$5,"") ->  | CK61: =IF(AND(#REF!=CK$2,$K54<CK$3,$K54>CK$4,#REF!>CK$6,#REF!<CK$7),CK$5,"") ->  | CL61: =IF(AND(#REF!=CL$2,$K54<CL$3,$K54>CL$4,#REF!>CL$6,#REF!<CL$7),CL$5,"") ->  | CM61: =IF(AND(#REF!=CM$2,$K54<CM$3,$K54>CM$4,#REF!>CM$6,#REF!<CM$7),CM$5,"") ->  | CN61: =IF(AND(#REF!=CN$2,$K54<CN$3,$K54>CN$4,#REF!>CN$6,#REF!<CN$7),CN$5,"") ->  | CO61: =IF(AND(#REF!=CO$2,$K54<CO$3,$K54>CO$4,#REF!>CO$6,#REF!<CO$7),CO$5,"") ->  | CP61: =IF(AND(#REF!=CP$2,$K54<CP$3,$K54>CP$4,#REF!>CP$6,#REF!<CP$7),CP$5,"") ->  | CQ61: =IF(AND(#REF!=CQ$2,$K54<CQ$3,$K54>CQ$4,#REF!>CQ$6,#REF!<CQ$7),CQ$5,"") ->  | CR61: =IF(AND(#REF!=CR$2,$K54<CR$3,$K54>CR$4,#REF!>CR$6,#REF!<CR$7),CR$5,"") ->  | CS61: =IF(AND(#REF!=CS$2,$K54<CS$3,$K54>CS$4,#REF!>CS$6,#REF!<CS$7),CS$5,"") ->  | CT61: =IF(AND(#REF!=CT$2,$K54<CT$3,$K54>CT$4,#REF!>CT$6,#REF!<CT$7),CT$5,"") ->  | CU61: =IF(AND(#REF!=CU$2,$K54<CU$3,$K54>CU$4,#REF!>CU$6,#REF!<CU$7),CU$5,"") ->  | CV61: =IF(AND(#REF!=CV$2,$K54<CV$3,$K54>CV$4,#REF!>CV$6,#REF!<CV$7),CV$5,"") ->  | CW61: =IF(AND(#REF!=CW$2,$K54<CW$3,$K54>CW$4,#REF!>CW$6,#REF!<CW$7),CW$5,"") ->  | CX61: =IF(AND(#REF!=CX$2,$K54<CX$3,$K54>CX$4,#REF!>CX$6,#REF!<CX$7),CX$5,"") ->  | CY61: =IF(AND(#REF!=CY$2,$K54<CY$3,$K54>CY$4,#REF!>CY$6,#REF!<CY$7),CY$5,"") ->  | CZ61: =IF(AND(#REF!=CZ$2,$K54<CZ$3,$K54>CZ$4,#REF!>CZ$6,#REF!<CZ$7),CZ$5,"") ->  | DA61: =IF(AND(#REF!=DA$2,$K54<DA$3,$K54>DA$4,#REF!>DA$6,#REF!<DA$7),DA$5,"") ->  | DB61: =IF(AND(#REF!=DB$2,$K54<DB$3,$K54>DB$4,#REF!>DB$6,#REF!<DB$7),DB$5,"") ->  | DC61: =IF(AND(#REF!=DC$2,$K54<DC$3,$K54>DC$4,#REF!>DC$6,#REF!<DC$7),DC$5,"") ->  | DD61: =IF(AND(#REF!=DD$2,$K54<DD$3,$K54>DD$4,#REF!>DD$6,#REF!<DD$7),DD$5,"") ->  | DE61: =IF(AND(#REF!=DE$2,$K54<DE$3,$K54>DE$4,#REF!>DE$6,#REF!<DE$7),DE$5,"") ->  | DF61: =IF(AND(#REF!=DF$2,$K54<DF$3,$K54>DF$4,#REF!>DF$6,#REF!<DF$7),DF$5,"") ->  | DG61: =IF(AND(#REF!=DG$2,$K54<DG$3,$K54>DG$4,#REF!>DG$6,#REF!<DG$7),DG$5,"") ->  | DH61: =IF(AND(#REF!=DH$2,$K54<DH$3,$K54>DH$4,#REF!>DH$6,#REF!<DH$7),DH$5,"") ->  | DI61: =IF(AND(#REF!=DI$2,$K54<DI$3,$K54>DI$4,#REF!>DI$6,#REF!<DI$7),DI$5,"") ->  | DJ61: =IF(AND(#REF!=DJ$2,$K54<DJ$3,$K54>DJ$4,#REF!>DJ$6,#REF!<DJ$7),DJ$5,"") ->  | DK61: =IF(AND(#REF!=DK$2,$K54<DK$3,$K54>DK$4,#REF!>DK$6,#REF!<DK$7),DK$5,"") ->  | DL61: =IF(AND(#REF!=DL$2,$K54<DL$3,$K54>DL$4,#REF!>DL$6,#REF!<DL$7),DL$5,"") ->  | DM61: =IF(AND(#REF!=DM$2,$K54<DM$3,$K54>DM$4,#REF!>DM$6,#REF!<DM$7),DM$5,"") ->  | DN61: =IF(AND(#REF!=DN$2,$K54<DN$3,$K54>DN$4,#REF!>DN$6,#REF!<DN$7),DN$5,"") ->  | DO61: =IF(AND(#REF!=DO$2,$K54<DO$3,$K54>DO$4,#REF!>DO$6,#REF!<DO$7),DO$5,"") ->  | DP61: =IF(AND(#REF!=DP$2,$K54<DP$3,$K54>DP$4,#REF!>DP$6,#REF!<DP$7),DP$5,"") ->  | DQ61: =IF(AND(#REF!=DQ$2,$K54<DQ$3,$K54>DQ$4,#REF!>DQ$6,#REF!<DQ$7),DQ$5,"") ->  | DR61: =IF(AND(#REF!=DR$2,$K54<DR$3,$K54>DR$4,#REF!>DR$6,#REF!<DR$7),DR$5,"") ->  | DS61: =IF(AND(#REF!=DS$2,$K54<DS$3,$K54>DS$4,#REF!>DS$6,#REF!<DS$7),DS$5,"") ->  | DT61: =IF(AND(#REF!=DT$2,$K54<DT$3,$K54>DT$4,#REF!>DT$6,#REF!<DT$7),DT$5,"") ->  | DU61: =IF(AND(#REF!=DU$2,$K54<DU$3,$K54>DU$4,#REF!>DU$6,#REF!<DU$7),DU$5,"") ->  | DV61: =IF(AND(#REF!=DV$2,$K54<DV$3,$K54>DV$4,#REF!>DV$6,#REF!<DV$7),DV$5,"") ->  | DW61: =IF(AND(#REF!=DW$2,$K54<DW$3,$K54>DW$4,#REF!>DW$6,#REF!<DW$7),DW$5,"") ->  | DX61: =IF(AND(#REF!=DX$2,$K54<DX$3,$K54>DX$4,#REF!>DX$6,#REF!<DX$7),DX$5,"") ->  | DY61: =IF(AND(#REF!=DY$2,$K54<DY$3,$K54>DY$4,#REF!>DY$6,#REF!<DY$7),DY$5,"") ->  | DZ61: =IF(AND(#REF!=DZ$2,$K54<DZ$3,$K54>DZ$4,#REF!>DZ$6,#REF!<DZ$7),DZ$5,"") ->  | EA61: =IF(AND(#REF!=EA$2,$K54<EA$3,$K54>EA$4,#REF!>EA$6,#REF!<EA$7),EA$5,"") ->  | EB61: =IF(AND(#REF!=EB$2,$K54<EB$3,$K54>EB$4,#REF!>EB$6,#REF!<EB$7),EB$5,"") ->  | EC61: =IF(AND(#REF!=EC$2,$K54<EC$3,$K54>EC$4,#REF!>EC$6,#REF!<EC$7),EC$5,"") ->  | ED61: =IF(AND(#REF!=ED$2,$K54<ED$3,$K54>ED$4,#REF!>ED$6,#REF!<ED$7),ED$5,"") ->  | EE61: =IF(AND(#REF!=EE$2,$K54<EE$3,$K54>EE$4,#REF!>EE$6,#REF!<EE$7),EE$5,"") ->  | EF61: =IF(AND(#REF!=EF$2,$K54<EF$3,$K54>EF$4,#REF!>EF$6,#REF!<EF$7),EF$5,"") ->  | EG61: =IF(AND(#REF!=EG$2,$K54<EG$3,$K54>EG$4,#REF!>EG$6,#REF!<EG$7),EG$5,"") ->  | EH61: =IF(AND(#REF!=EH$2,$K54<EH$3,$K54>EH$4,#REF!>EH$6,#REF!<EH$7),EH$5,"") ->  | EI61: =IF(AND(#REF!=EI$2,$K54<EI$3,$K54>EI$4,#REF!>EI$6,#REF!<EI$7),EI$5,"") ->  | EJ61: =IF(AND(#REF!=EJ$2,$K54<EJ$3,$K54>EJ$4,#REF!>EJ$6,#REF!<EJ$7),EJ$5,"") ->  | EK61: =IF(AND(#REF!=EK$2,$K54<EK$3,$K54>EK$4,#REF!>EK$6,#REF!<EK$7),EK$5,"") ->  | EL61: =IF(AND(#REF!=EL$2,$K54<EL$3,$K54>EL$4,#REF!>EL$6,#REF!<EL$7),EL$5,"") ->  | EM61: =IF(AND(#REF!=EM$2,$K54<EM$3,$K54>EM$4,#REF!>EM$6,#REF!<EM$7),EM$5,"") ->  | EN61: =IF(AND(#REF!=EN$2,$K54<EN$3,$K54>EN$4,#REF!>EN$6,#REF!<EN$7),EN$5,"") ->  | EO61: =IF(AND(#REF!=EO$2,$K54<EO$3,$K54>EO$4,#REF!>EO$6,#REF!<EO$7),EO$5,"") ->  | EP61: =IF(AND(#REF!=EP$2,$K54<EP$3,$K54>EP$4,#REF!>EP$6,#REF!<EP$7),EP$5,"") ->  | EQ61: =IF(AND(#REF!=EQ$2,$K54<EQ$3,$K54>EQ$4,#REF!>EQ$6,#REF!<EQ$7),EQ$5,"") ->  | ER61: =IF(AND(#REF!=ER$2,$K54<ER$3,$K54>ER$4,#REF!>ER$6,#REF!<ER$7),ER$5,"") ->  | ES61: =IF(AND(#REF!=ES$2,$K54<ES$3,$K54>ES$4,#REF!>ES$6,#REF!<ES$7),ES$5,"") ->  | ET61: =IF(AND(#REF!=ET$2,$K54<ET$3,$K54>ET$4,#REF!>ET$6,#REF!<ET$7),ET$5,"") ->  | EU61: =IF(AND(#REF!=EU$2,$K54<EU$3,$K54>EU$4,#REF!>EU$6,#REF!<EU$7),EU$5,"") ->  | EV61: =IF(AND(#REF!=EV$2,$K54<EV$3,$K54>EV$4,#REF!>EV$6,#REF!<EV$7),EV$5,"") ->  | EW61: =IF(AND(#REF!=EW$2,$K54<EW$3,$K54>EW$4,#REF!>EW$6,#REF!<EW$7),EW$5,"") ->  | EX61: =IF(AND(#REF!=EX$2,$K54<EX$3,$K54>EX$4,#REF!>EX$6,#REF!<EX$7),EX$5,"") ->  | EY61: =IF(AND(#REF!=EY$2,$K54<EY$3,$K54>EY$4,#REF!>EY$6,#REF!<EY$7),EY$5,"") ->  | EZ61: =IF(AND(#REF!=EZ$2,$K54<EZ$3,$K54>EZ$4,#REF!>EZ$6,#REF!<EZ$7),EZ$5,"") ->  | FA61: =IF(AND(#REF!=FA$2,$K54<FA$3,$K54>FA$4,#REF!>FA$6,#REF!<FA$7),FA$5,"") ->  | FB61: =IF(AND(#REF!=FB$2,$K54<FB$3,$K54>FB$4,#REF!>FB$6,#REF!<FB$7),FB$5,"") ->  | FC61: =IF(AND(#REF!=FC$2,$K54<FC$3,$K54>FC$4,#REF!>FC$6,#REF!<FC$7),FC$5,"") ->  | FD61: =IF(AND(#REF!=FD$2,$K54<FD$3,$K54>FD$4,#REF!>FD$6,#REF!<FD$7),FD$5,"") ->  | FE61: =IF(AND(#REF!=FE$2,$K54<FE$3,$K54>FE$4,#REF!>FE$6,#REF!<FE$7),FE$5,"") ->  | FF61: =IF(AND(#REF!=FF$2,$K54<FF$3,$K54>FF$4,#REF!>FF$6,#REF!<FF$7),FF$5,"") ->  | FG61: =IF(AND(#REF!=FG$2,$K54<FG$3,$K54>FG$4,#REF!>FG$6,#REF!<FG$7),FG$5,"") ->  | FH61: =IF(AND(#REF!=FH$2,$K54<FH$3,$K54>FH$4,#REF!>FH$6,#REF!<FH$7),FH$5,"") ->  | FI61: =IF(AND(#REF!=FI$2,$K54<FI$3,$K54>FI$4,#REF!>FI$6,#REF!<FI$7),FI$5,"") ->  | FJ61: =IF(AND(#REF!=FJ$2,$K54<FJ$3,$K54>FJ$4,#REF!>FJ$6,#REF!<FJ$7),FJ$5,"") ->  | FK61: =IF(AND(#REF!=FK$2,$K54<FK$3,$K54>FK$4,#REF!>FK$6,#REF!<FK$7),FK$5,"") ->  | FL61: =IF(AND(#REF!=FL$2,$K54<FL$3,$K54>FL$4,#REF!>FL$6,#REF!<FL$7),FL$5,"") ->  | FM61: =IF(AND(#REF!=FM$2,$K54<FM$3,$K54>FM$4,#REF!>FM$6,#REF!<FM$7),FM$5,"") ->  | FN61: =IF(AND(#REF!=FN$2,$K54<FN$3,$K54>FN$4,#REF!>FN$6,#REF!<FN$7),FN$5,"") ->  | FO61: =IF(AND(#REF!=FO$2,$K54<FO$3,$K54>FO$4,#REF!>FO$6,#REF!<FO$7),FO$5,"") ->  | FP61: =IF(AND(#REF!=FP$2,$K54<FP$3,$K54>FP$4,#REF!>FP$6,#REF!<FP$7),FP$5,"") ->  | FQ61: =IF(AND(#REF!=FQ$2,$K54<FQ$3,$K54>FQ$4,#REF!>FQ$6,#REF!<FQ$7),FQ$5,"") ->  | FR61: =IF(AND(#REF!=FR$2,$K54<FR$3,$K54>FR$4,#REF!>FR$6,#REF!<FR$7),FR$5,"") ->  | FS61: =IF(AND(#REF!=FS$2,$K54<FS$3,$K54>FS$4,#REF!>FS$6,#REF!<FS$7),FS$5,"") ->  | FT61: =IF(AND(#REF!=FT$2,$K54<FT$3,$K54>FT$4,#REF!>FT$6,#REF!<FT$7),FT$5,"") ->  | FU61: =IF(AND(#REF!=FU$2,$K54<FU$3,$K54>FU$4,#REF!>FU$6,#REF!<FU$7),FU$5,"") ->  | FV61: =IF(AND(#REF!=FV$2,$K54<FV$3,$K54>FV$4,#REF!>FV$6,#REF!<FV$7),FV$5,"") ->  | FW61: =IF(AND(#REF!=FW$2,$K54<FW$3,$K54>FW$4,#REF!>FW$6,#REF!<FW$7),FW$5,"") -> 
AN62: =IF(AND(#REF!=AN$2,$K55<AN$3,$K55>AN$4,#REF!>AN$6,#REF!<AN$7),AN$5,"") ->  | AO62: =IF(AND(#REF!=AO$2,$K55<AO$3,$K55>AO$4,#REF!>AO$6,#REF!<AO$7),AO$5,"") ->  | AP62: =IF(AND(#REF!=AP$2,$K55<AP$3,$K55>AP$4,#REF!>AP$6,#REF!<AP$7),AP$5,"") ->  | AQ62: =IF(AND(#REF!=AQ$2,$K55<AQ$3,$K55>AQ$4,#REF!>AQ$6,#REF!<AQ$7),AQ$5,"") ->  | AR62: =IF(AND(#REF!=AR$2,$K55<AR$3,$K55>AR$4,#REF!>AR$6,#REF!<AR$7),AR$5,"") ->  | AS62: =IF(AND(#REF!=AS$2,$K55<AS$3,$K55>AS$4,#REF!>AS$6,#REF!<AS$7),AS$5,"") ->  | AT62: =IF(AND(#REF!=AT$2,$K55<AT$3,$K55>AT$4,#REF!>AT$6,#REF!<AT$7),AT$5,"") ->  | AU62: =IF(AND(#REF!=AU$2,$K55<AU$3,$K55>AU$4,#REF!>AU$6,#REF!<AU$7),AU$5,"") ->  | AV62: =IF(AND(#REF!=AV$2,$K55<AV$3,$K55>AV$4,#REF!>AV$6,#REF!<AV$7),AV$5,"") ->  | AW62: =IF(AND(#REF!=AW$2,$K55<AW$3,$K55>AW$4,#REF!>AW$6,#REF!<AW$7),AW$5,"") ->  | AX62: =IF(AND(#REF!=AX$2,$K55<AX$3,$K55>AX$4,#REF!>AX$6,#REF!<AX$7),AX$5,"") ->  | AY62: =IF(AND(#REF!=AY$2,$K55<AY$3,$K55>AY$4,#REF!>AY$6,#REF!<AY$7),AY$5,"") ->  | AZ62: =IF(AND(#REF!=AZ$2,$K55<AZ$3,$K55>AZ$4,#REF!>AZ$6,#REF!<AZ$7),AZ$5,"") ->  | BA62: =IF(AND(#REF!=BA$2,$K55<BA$3,$K55>BA$4,#REF!>BA$6,#REF!<BA$7),BA$5,"") ->  | BB62: =IF(AND(#REF!=BB$2,$K55<BB$3,$K55>BB$4,#REF!>BB$6,#REF!<BB$7),BB$5,"") ->  | BC62: =IF(AND(#REF!=BC$2,$K55<BC$3,$K55>BC$4,#REF!>BC$6,#REF!<BC$7),BC$5,"") ->  | BD62: =IF(AND(#REF!=BD$2,$K55<BD$3,$K55>BD$4,#REF!>BD$6,#REF!<BD$7),BD$5,"") ->  | BE62: =IF(AND(#REF!=BE$2,$K55<BE$3,$K55>BE$4,#REF!>BE$6,#REF!<BE$7),BE$5,"") ->  | BF62: =IF(AND(#REF!=BF$2,$K55<BF$3,$K55>BF$4,#REF!>BF$6,#REF!<BF$7),BF$5,"") ->  | BG62: =IF(AND(#REF!=BG$2,$K55<BG$3,$K55>BG$4,#REF!>BG$6,#REF!<BG$7),BG$5,"") ->  | BH62: =IF(AND(#REF!=BH$2,$K55<BH$3,$K55>BH$4,#REF!>BH$6,#REF!<BH$7),BH$5,"") ->  | BI62: =IF(AND(#REF!=BI$2,$K55<BI$3,$K55>BI$4,#REF!>BI$6,#REF!<BI$7),BI$5,"") ->  | BJ62: =IF(AND(#REF!=BJ$2,$K55<BJ$3,$K55>BJ$4,#REF!>BJ$6,#REF!<BJ$7),BJ$5,"") ->  | BK62: =IF(AND(#REF!=BK$2,$K55<BK$3,$K55>BK$4,#REF!>BK$6,#REF!<BK$7),BK$5,"") ->  | BL62: =IF(AND(#REF!=BL$2,$K55<BL$3,$K55>BL$4,#REF!>BL$6,#REF!<BL$7),BL$5,"") ->  | BM62: =IF(AND(#REF!=BM$2,$K55<BM$3,$K55>BM$4,#REF!>BM$6,#REF!<BM$7),BM$5,"") ->  | BN62: =IF(AND(#REF!=BN$2,$K55<BN$3,$K55>BN$4,#REF!>BN$6,#REF!<BN$7),BN$5,"") ->  | BO62: =IF(AND(#REF!=BO$2,$K55<BO$3,$K55>BO$4,#REF!>BO$6,#REF!<BO$7),BO$5,"") ->  | BP62: =IF(AND(#REF!=BP$2,$K55<BP$3,$K55>BP$4,#REF!>BP$6,#REF!<BP$7),BP$5,"") ->  | BQ62: =IF(AND(#REF!=BQ$2,$K55<BQ$3,$K55>BQ$4,#REF!>BQ$6,#REF!<BQ$7),BQ$5,"") ->  | BR62: =IF(AND(#REF!=BR$2,$K55<BR$3,$K55>BR$4,#REF!>BR$6,#REF!<BR$7),BR$5,"") ->  | BS62: =IF(AND(#REF!=BS$2,$K55<BS$3,$K55>BS$4,#REF!>BS$6,#REF!<BS$7),BS$5,"") ->  | BT62: =IF(AND(#REF!=BT$2,$K55<BT$3,$K55>BT$4,#REF!>BT$6,#REF!<BT$7),BT$5,"") ->  | BU62: =IF(AND(#REF!=BU$2,$K55<BU$3,$K55>BU$4,#REF!>BU$6,#REF!<BU$7),BU$5,"") ->  | BV62: =IF(AND(#REF!=BV$2,$K55<BV$3,$K55>BV$4,#REF!>BV$6,#REF!<BV$7),BV$5,"") ->  | BW62: =IF(AND(#REF!=BW$2,$K55<BW$3,$K55>BW$4,#REF!>BW$6,#REF!<BW$7),BW$5,"") ->  | BX62: =IF(AND(#REF!=BX$2,$K55<BX$3,$K55>BX$4,#REF!>BX$6,#REF!<BX$7),BX$5,"") ->  | BY62: =IF(AND(#REF!=BY$2,$K55<BY$3,$K55>BY$4,#REF!>BY$6,#REF!<BY$7),BY$5,"") ->  | BZ62: =IF(AND(#REF!=BZ$2,$K55<BZ$3,$K55>BZ$4,#REF!>BZ$6,#REF!<BZ$7),BZ$5,"") ->  | CA62: =IF(AND(#REF!=CA$2,$K55<CA$3,$K55>CA$4,#REF!>CA$6,#REF!<CA$7),CA$5,"") ->  | CB62: =IF(AND(#REF!=CB$2,$K55<CB$3,$K55>CB$4,#REF!>CB$6,#REF!<CB$7),CB$5,"") ->  | CC62: =IF(AND(#REF!=CC$2,$K55<CC$3,$K55>CC$4,#REF!>CC$6,#REF!<CC$7),CC$5,"") ->  | CD62: =IF(AND(#REF!=CD$2,$K55<CD$3,$K55>CD$4,#REF!>CD$6,#REF!<CD$7),CD$5,"") ->  | CE62: =IF(AND(#REF!=CE$2,$K55<CE$3,$K55>CE$4,#REF!>CE$6,#REF!<CE$7),CE$5,"") ->  | CF62: =IF(AND(#REF!=CF$2,$K55<CF$3,$K55>CF$4,#REF!>CF$6,#REF!<CF$7),CF$5,"") ->  | CG62: =IF(AND(#REF!=CG$2,$K55<CG$3,$K55>CG$4,#REF!>CG$6,#REF!<CG$7),CG$5,"") ->  | CH62: =IF(AND(#REF!=CH$2,$K55<CH$3,$K55>CH$4,#REF!>CH$6,#REF!<CH$7),CH$5,"") ->  | CI62: =IF(AND(#REF!=CI$2,$K55<CI$3,$K55>CI$4,#REF!>CI$6,#REF!<CI$7),CI$5,"") ->  | CJ62: =IF(AND(#REF!=CJ$2,$K55<CJ$3,$K55>CJ$4,#REF!>CJ$6,#REF!<CJ$7),CJ$5,"") ->  | CK62: =IF(AND(#REF!=CK$2,$K55<CK$3,$K55>CK$4,#REF!>CK$6,#REF!<CK$7),CK$5,"") ->  | CL62: =IF(AND(#REF!=CL$2,$K55<CL$3,$K55>CL$4,#REF!>CL$6,#REF!<CL$7),CL$5,"") ->  | CM62: =IF(AND(#REF!=CM$2,$K55<CM$3,$K55>CM$4,#REF!>CM$6,#REF!<CM$7),CM$5,"") ->  | CN62: =IF(AND(#REF!=CN$2,$K55<CN$3,$K55>CN$4,#REF!>CN$6,#REF!<CN$7),CN$5,"") ->  | CO62: =IF(AND(#REF!=CO$2,$K55<CO$3,$K55>CO$4,#REF!>CO$6,#REF!<CO$7),CO$5,"") ->  | CP62: =IF(AND(#REF!=CP$2,$K55<CP$3,$K55>CP$4,#REF!>CP$6,#REF!<CP$7),CP$5,"") ->  | CQ62: =IF(AND(#REF!=CQ$2,$K55<CQ$3,$K55>CQ$4,#REF!>CQ$6,#REF!<CQ$7),CQ$5,"") ->  | CR62: =IF(AND(#REF!=CR$2,$K55<CR$3,$K55>CR$4,#REF!>CR$6,#REF!<CR$7),CR$5,"") ->  | CS62: =IF(AND(#REF!=CS$2,$K55<CS$3,$K55>CS$4,#REF!>CS$6,#REF!<CS$7),CS$5,"") ->  | CT62: =IF(AND(#REF!=CT$2,$K55<CT$3,$K55>CT$4,#REF!>CT$6,#REF!<CT$7),CT$5,"") ->  | CU62: =IF(AND(#REF!=CU$2,$K55<CU$3,$K55>CU$4,#REF!>CU$6,#REF!<CU$7),CU$5,"") ->  | CV62: =IF(AND(#REF!=CV$2,$K55<CV$3,$K55>CV$4,#REF!>CV$6,#REF!<CV$7),CV$5,"") ->  | CW62: =IF(AND(#REF!=CW$2,$K55<CW$3,$K55>CW$4,#REF!>CW$6,#REF!<CW$7),CW$5,"") ->  | CX62: =IF(AND(#REF!=CX$2,$K55<CX$3,$K55>CX$4,#REF!>CX$6,#REF!<CX$7),CX$5,"") ->  | CY62: =IF(AND(#REF!=CY$2,$K55<CY$3,$K55>CY$4,#REF!>CY$6,#REF!<CY$7),CY$5,"") ->  | CZ62: =IF(AND(#REF!=CZ$2,$K55<CZ$3,$K55>CZ$4,#REF!>CZ$6,#REF!<CZ$7),CZ$5,"") ->  | DA62: =IF(AND(#REF!=DA$2,$K55<DA$3,$K55>DA$4,#REF!>DA$6,#REF!<DA$7),DA$5,"") ->  | DB62: =IF(AND(#REF!=DB$2,$K55<DB$3,$K55>DB$4,#REF!>DB$6,#REF!<DB$7),DB$5,"") ->  | DC62: =IF(AND(#REF!=DC$2,$K55<DC$3,$K55>DC$4,#REF!>DC$6,#REF!<DC$7),DC$5,"") ->  | DD62: =IF(AND(#REF!=DD$2,$K55<DD$3,$K55>DD$4,#REF!>DD$6,#REF!<DD$7),DD$5,"") ->  | DE62: =IF(AND(#REF!=DE$2,$K55<DE$3,$K55>DE$4,#REF!>DE$6,#REF!<DE$7),DE$5,"") ->  | DF62: =IF(AND(#REF!=DF$2,$K55<DF$3,$K55>DF$4,#REF!>DF$6,#REF!<DF$7),DF$5,"") ->  | DG62: =IF(AND(#REF!=DG$2,$K55<DG$3,$K55>DG$4,#REF!>DG$6,#REF!<DG$7),DG$5,"") ->  | DH62: =IF(AND(#REF!=DH$2,$K55<DH$3,$K55>DH$4,#REF!>DH$6,#REF!<DH$7),DH$5,"") ->  | DI62: =IF(AND(#REF!=DI$2,$K55<DI$3,$K55>DI$4,#REF!>DI$6,#REF!<DI$7),DI$5,"") ->  | DJ62: =IF(AND(#REF!=DJ$2,$K55<DJ$3,$K55>DJ$4,#REF!>DJ$6,#REF!<DJ$7),DJ$5,"") ->  | DK62: =IF(AND(#REF!=DK$2,$K55<DK$3,$K55>DK$4,#REF!>DK$6,#REF!<DK$7),DK$5,"") ->  | DL62: =IF(AND(#REF!=DL$2,$K55<DL$3,$K55>DL$4,#REF!>DL$6,#REF!<DL$7),DL$5,"") ->  | DM62: =IF(AND(#REF!=DM$2,$K55<DM$3,$K55>DM$4,#REF!>DM$6,#REF!<DM$7),DM$5,"") ->  | DN62: =IF(AND(#REF!=DN$2,$K55<DN$3,$K55>DN$4,#REF!>DN$6,#REF!<DN$7),DN$5,"") ->  | DO62: =IF(AND(#REF!=DO$2,$K55<DO$3,$K55>DO$4,#REF!>DO$6,#REF!<DO$7),DO$5,"") ->  | DP62: =IF(AND(#REF!=DP$2,$K55<DP$3,$K55>DP$4,#REF!>DP$6,#REF!<DP$7),DP$5,"") ->  | DQ62: =IF(AND(#REF!=DQ$2,$K55<DQ$3,$K55>DQ$4,#REF!>DQ$6,#REF!<DQ$7),DQ$5,"") ->  | DR62: =IF(AND(#REF!=DR$2,$K55<DR$3,$K55>DR$4,#REF!>DR$6,#REF!<DR$7),DR$5,"") ->  | DS62: =IF(AND(#REF!=DS$2,$K55<DS$3,$K55>DS$4,#REF!>DS$6,#REF!<DS$7),DS$5,"") ->  | DT62: =IF(AND(#REF!=DT$2,$K55<DT$3,$K55>DT$4,#REF!>DT$6,#REF!<DT$7),DT$5,"") ->  | DU62: =IF(AND(#REF!=DU$2,$K55<DU$3,$K55>DU$4,#REF!>DU$6,#REF!<DU$7),DU$5,"") ->  | DV62: =IF(AND(#REF!=DV$2,$K55<DV$3,$K55>DV$4,#REF!>DV$6,#REF!<DV$7),DV$5,"") ->  | DW62: =IF(AND(#REF!=DW$2,$K55<DW$3,$K55>DW$4,#REF!>DW$6,#REF!<DW$7),DW$5,"") ->  | DX62: =IF(AND(#REF!=DX$2,$K55<DX$3,$K55>DX$4,#REF!>DX$6,#REF!<DX$7),DX$5,"") ->  | DY62: =IF(AND(#REF!=DY$2,$K55<DY$3,$K55>DY$4,#REF!>DY$6,#REF!<DY$7),DY$5,"") ->  | DZ62: =IF(AND(#REF!=DZ$2,$K55<DZ$3,$K55>DZ$4,#REF!>DZ$6,#REF!<DZ$7),DZ$5,"") ->  | EA62: =IF(AND(#REF!=EA$2,$K55<EA$3,$K55>EA$4,#REF!>EA$6,#REF!<EA$7),EA$5,"") ->  | EB62: =IF(AND(#REF!=EB$2,$K55<EB$3,$K55>EB$4,#REF!>EB$6,#REF!<EB$7),EB$5,"") ->  | EC62: =IF(AND(#REF!=EC$2,$K55<EC$3,$K55>EC$4,#REF!>EC$6,#REF!<EC$7),EC$5,"") ->  | ED62: =IF(AND(#REF!=ED$2,$K55<ED$3,$K55>ED$4,#REF!>ED$6,#REF!<ED$7),ED$5,"") ->  | EE62: =IF(AND(#REF!=EE$2,$K55<EE$3,$K55>EE$4,#REF!>EE$6,#REF!<EE$7),EE$5,"") ->  | EF62: =IF(AND(#REF!=EF$2,$K55<EF$3,$K55>EF$4,#REF!>EF$6,#REF!<EF$7),EF$5,"") ->  | EG62: =IF(AND(#REF!=EG$2,$K55<EG$3,$K55>EG$4,#REF!>EG$6,#REF!<EG$7),EG$5,"") ->  | EH62: =IF(AND(#REF!=EH$2,$K55<EH$3,$K55>EH$4,#REF!>EH$6,#REF!<EH$7),EH$5,"") ->  | EI62: =IF(AND(#REF!=EI$2,$K55<EI$3,$K55>EI$4,#REF!>EI$6,#REF!<EI$7),EI$5,"") ->  | EJ62: =IF(AND(#REF!=EJ$2,$K55<EJ$3,$K55>EJ$4,#REF!>EJ$6,#REF!<EJ$7),EJ$5,"") ->  | EK62: =IF(AND(#REF!=EK$2,$K55<EK$3,$K55>EK$4,#REF!>EK$6,#REF!<EK$7),EK$5,"") ->  | EL62: =IF(AND(#REF!=EL$2,$K55<EL$3,$K55>EL$4,#REF!>EL$6,#REF!<EL$7),EL$5,"") ->  | EM62: =IF(AND(#REF!=EM$2,$K55<EM$3,$K55>EM$4,#REF!>EM$6,#REF!<EM$7),EM$5,"") ->  | EN62: =IF(AND(#REF!=EN$2,$K55<EN$3,$K55>EN$4,#REF!>EN$6,#REF!<EN$7),EN$5,"") ->  | EO62: =IF(AND(#REF!=EO$2,$K55<EO$3,$K55>EO$4,#REF!>EO$6,#REF!<EO$7),EO$5,"") ->  | EP62: =IF(AND(#REF!=EP$2,$K55<EP$3,$K55>EP$4,#REF!>EP$6,#REF!<EP$7),EP$5,"") ->  | EQ62: =IF(AND(#REF!=EQ$2,$K55<EQ$3,$K55>EQ$4,#REF!>EQ$6,#REF!<EQ$7),EQ$5,"") ->  | ER62: =IF(AND(#REF!=ER$2,$K55<ER$3,$K55>ER$4,#REF!>ER$6,#REF!<ER$7),ER$5,"") ->  | ES62: =IF(AND(#REF!=ES$2,$K55<ES$3,$K55>ES$4,#REF!>ES$6,#REF!<ES$7),ES$5,"") ->  | ET62: =IF(AND(#REF!=ET$2,$K55<ET$3,$K55>ET$4,#REF!>ET$6,#REF!<ET$7),ET$5,"") ->  | EU62: =IF(AND(#REF!=EU$2,$K55<EU$3,$K55>EU$4,#REF!>EU$6,#REF!<EU$7),EU$5,"") ->  | EV62: =IF(AND(#REF!=EV$2,$K55<EV$3,$K55>EV$4,#REF!>EV$6,#REF!<EV$7),EV$5,"") ->  | EW62: =IF(AND(#REF!=EW$2,$K55<EW$3,$K55>EW$4,#REF!>EW$6,#REF!<EW$7),EW$5,"") ->  | EX62: =IF(AND(#REF!=EX$2,$K55<EX$3,$K55>EX$4,#REF!>EX$6,#REF!<EX$7),EX$5,"") ->  | EY62: =IF(AND(#REF!=EY$2,$K55<EY$3,$K55>EY$4,#REF!>EY$6,#REF!<EY$7),EY$5,"") ->  | EZ62: =IF(AND(#REF!=EZ$2,$K55<EZ$3,$K55>EZ$4,#REF!>EZ$6,#REF!<EZ$7),EZ$5,"") ->  | FA62: =IF(AND(#REF!=FA$2,$K55<FA$3,$K55>FA$4,#REF!>FA$6,#REF!<FA$7),FA$5,"") ->  | FB62: =IF(AND(#REF!=FB$2,$K55<FB$3,$K55>FB$4,#REF!>FB$6,#REF!<FB$7),FB$5,"") ->  | FC62: =IF(AND(#REF!=FC$2,$K55<FC$3,$K55>FC$4,#REF!>FC$6,#REF!<FC$7),FC$5,"") ->  | FD62: =IF(AND(#REF!=FD$2,$K55<FD$3,$K55>FD$4,#REF!>FD$6,#REF!<FD$7),FD$5,"") ->  | FE62: =IF(AND(#REF!=FE$2,$K55<FE$3,$K55>FE$4,#REF!>FE$6,#REF!<FE$7),FE$5,"") ->  | FF62: =IF(AND(#REF!=FF$2,$K55<FF$3,$K55>FF$4,#REF!>FF$6,#REF!<FF$7),FF$5,"") ->  | FG62: =IF(AND(#REF!=FG$2,$K55<FG$3,$K55>FG$4,#REF!>FG$6,#REF!<FG$7),FG$5,"") ->  | FH62: =IF(AND(#REF!=FH$2,$K55<FH$3,$K55>FH$4,#REF!>FH$6,#REF!<FH$7),FH$5,"") ->  | FI62: =IF(AND(#REF!=FI$2,$K55<FI$3,$K55>FI$4,#REF!>FI$6,#REF!<FI$7),FI$5,"") ->  | FJ62: =IF(AND(#REF!=FJ$2,$K55<FJ$3,$K55>FJ$4,#REF!>FJ$6,#REF!<FJ$7),FJ$5,"") ->  | FK62: =IF(AND(#REF!=FK$2,$K55<FK$3,$K55>FK$4,#REF!>FK$6,#REF!<FK$7),FK$5,"") ->  | FL62: =IF(AND(#REF!=FL$2,$K55<FL$3,$K55>FL$4,#REF!>FL$6,#REF!<FL$7),FL$5,"") ->  | FM62: =IF(AND(#REF!=FM$2,$K55<FM$3,$K55>FM$4,#REF!>FM$6,#REF!<FM$7),FM$5,"") ->  | FN62: =IF(AND(#REF!=FN$2,$K55<FN$3,$K55>FN$4,#REF!>FN$6,#REF!<FN$7),FN$5,"") ->  | FO62: =IF(AND(#REF!=FO$2,$K55<FO$3,$K55>FO$4,#REF!>FO$6,#REF!<FO$7),FO$5,"") ->  | FP62: =IF(AND(#REF!=FP$2,$K55<FP$3,$K55>FP$4,#REF!>FP$6,#REF!<FP$7),FP$5,"") ->  | FQ62: =IF(AND(#REF!=FQ$2,$K55<FQ$3,$K55>FQ$4,#REF!>FQ$6,#REF!<FQ$7),FQ$5,"") ->  | FR62: =IF(AND(#REF!=FR$2,$K55<FR$3,$K55>FR$4,#REF!>FR$6,#REF!<FR$7),FR$5,"") ->  | FS62: =IF(AND(#REF!=FS$2,$K55<FS$3,$K55>FS$4,#REF!>FS$6,#REF!<FS$7),FS$5,"") ->  | FT62: =IF(AND(#REF!=FT$2,$K55<FT$3,$K55>FT$4,#REF!>FT$6,#REF!<FT$7),FT$5,"") ->  | FU62: =IF(AND(#REF!=FU$2,$K55<FU$3,$K55>FU$4,#REF!>FU$6,#REF!<FU$7),FU$5,"") ->  | FV62: =IF(AND(#REF!=FV$2,$K55<FV$3,$K55>FV$4,#REF!>FV$6,#REF!<FV$7),FV$5,"") ->  | FW62: =IF(AND(#REF!=FW$2,$K55<FW$3,$K55>FW$4,#REF!>FW$6,#REF!<FW$7),FW$5,"") -> 
AN63: =IF(AND(#REF!=AN$2,$K56<AN$3,$K56>AN$4,$E56>AN$6,$E56<AN$7),AN$5,"") ->  | AO63: =IF(AND(#REF!=AO$2,$K56<AO$3,$K56>AO$4,$E56>AO$6,$E56<AO$7),AO$5,"") ->  | AP63: =IF(AND(#REF!=AP$2,$K56<AP$3,$K56>AP$4,$E56>AP$6,$E56<AP$7),AP$5,"") ->  | AQ63: =IF(AND(#REF!=AQ$2,$K56<AQ$3,$K56>AQ$4,$E56>AQ$6,$E56<AQ$7),AQ$5,"") ->  | AR63: =IF(AND(#REF!=AR$2,$K56<AR$3,$K56>AR$4,$E56>AR$6,$E56<AR$7),AR$5,"") ->  | AS63: =IF(AND(#REF!=AS$2,$K56<AS$3,$K56>AS$4,$E56>AS$6,$E56<AS$7),AS$5,"") ->  | AT63: =IF(AND(#REF!=AT$2,$K56<AT$3,$K56>AT$4,$E56>AT$6,$E56<AT$7),AT$5,"") ->  | AU63: =IF(AND(#REF!=AU$2,$K56<AU$3,$K56>AU$4,$E56>AU$6,$E56<AU$7),AU$5,"") ->  | AV63: =IF(AND(#REF!=AV$2,$K56<AV$3,$K56>AV$4,$E56>AV$6,$E56<AV$7),AV$5,"") ->  | AW63: =IF(AND(#REF!=AW$2,$K56<AW$3,$K56>AW$4,$E56>AW$6,$E56<AW$7),AW$5,"") ->  | AX63: =IF(AND(#REF!=AX$2,$K56<AX$3,$K56>AX$4,$E56>AX$6,$E56<AX$7),AX$5,"") ->  | AY63: =IF(AND(#REF!=AY$2,$K56<AY$3,$K56>AY$4,$E56>AY$6,$E56<AY$7),AY$5,"") ->  | AZ63: =IF(AND(#REF!=AZ$2,$K56<AZ$3,$K56>AZ$4,$E56>AZ$6,$E56<AZ$7),AZ$5,"") ->  | BA63: =IF(AND(#REF!=BA$2,$K56<BA$3,$K56>BA$4,$E56>BA$6,$E56<BA$7),BA$5,"") ->  | BB63: =IF(AND(#REF!=BB$2,$K56<BB$3,$K56>BB$4,$E56>BB$6,$E56<BB$7),BB$5,"") ->  | BC63: =IF(AND(#REF!=BC$2,$K56<BC$3,$K56>BC$4,$E56>BC$6,$E56<BC$7),BC$5,"") ->  | BD63: =IF(AND(#REF!=BD$2,$K56<BD$3,$K56>BD$4,$E56>BD$6,$E56<BD$7),BD$5,"") ->  | BE63: =IF(AND(#REF!=BE$2,$K56<BE$3,$K56>BE$4,$E56>BE$6,$E56<BE$7),BE$5,"") ->  | BF63: =IF(AND(#REF!=BF$2,$K56<BF$3,$K56>BF$4,$E56>BF$6,$E56<BF$7),BF$5,"") ->  | BG63: =IF(AND(#REF!=BG$2,$K56<BG$3,$K56>BG$4,$E56>BG$6,$E56<BG$7),BG$5,"") ->  | BH63: =IF(AND(#REF!=BH$2,$K56<BH$3,$K56>BH$4,$E56>BH$6,$E56<BH$7),BH$5,"") ->  | BI63: =IF(AND(#REF!=BI$2,$K56<BI$3,$K56>BI$4,$E56>BI$6,$E56<BI$7),BI$5,"") ->  | BJ63: =IF(AND(#REF!=BJ$2,$K56<BJ$3,$K56>BJ$4,$E56>BJ$6,$E56<BJ$7),BJ$5,"") ->  | BK63: =IF(AND(#REF!=BK$2,$K56<BK$3,$K56>BK$4,$E56>BK$6,$E56<BK$7),BK$5,"") ->  | BL63: =IF(AND(#REF!=BL$2,$K56<BL$3,$K56>BL$4,$E56>BL$6,$E56<BL$7),BL$5,"") ->  | BM63: =IF(AND(#REF!=BM$2,$K56<BM$3,$K56>BM$4,$E56>BM$6,$E56<BM$7),BM$5,"") ->  | BN63: =IF(AND(#REF!=BN$2,$K56<BN$3,$K56>BN$4,$E56>BN$6,$E56<BN$7),BN$5,"") ->  | BO63: =IF(AND(#REF!=BO$2,$K56<BO$3,$K56>BO$4,$E56>BO$6,$E56<BO$7),BO$5,"") ->  | BP63: =IF(AND(#REF!=BP$2,$K56<BP$3,$K56>BP$4,$E56>BP$6,$E56<BP$7),BP$5,"") ->  | BQ63: =IF(AND(#REF!=BQ$2,$K56<BQ$3,$K56>BQ$4,$E56>BQ$6,$E56<BQ$7),BQ$5,"") ->  | BR63: =IF(AND(#REF!=BR$2,$K56<BR$3,$K56>BR$4,$E56>BR$6,$E56<BR$7),BR$5,"") ->  | BS63: =IF(AND(#REF!=BS$2,$K56<BS$3,$K56>BS$4,$E56>BS$6,$E56<BS$7),BS$5,"") ->  | BT63: =IF(AND(#REF!=BT$2,$K56<BT$3,$K56>BT$4,$E56>BT$6,$E56<BT$7),BT$5,"") ->  | BU63: =IF(AND(#REF!=BU$2,$K56<BU$3,$K56>BU$4,$E56>BU$6,$E56<BU$7),BU$5,"") ->  | BV63: =IF(AND(#REF!=BV$2,$K56<BV$3,$K56>BV$4,$E56>BV$6,$E56<BV$7),BV$5,"") ->  | BW63: =IF(AND(#REF!=BW$2,$K56<BW$3,$K56>BW$4,$E56>BW$6,$E56<BW$7),BW$5,"") ->  | BX63: =IF(AND(#REF!=BX$2,$K56<BX$3,$K56>BX$4,$E56>BX$6,$E56<BX$7),BX$5,"") ->  | BY63: =IF(AND(#REF!=BY$2,$K56<BY$3,$K56>BY$4,$E56>BY$6,$E56<BY$7),BY$5,"") ->  | BZ63: =IF(AND(#REF!=BZ$2,$K56<BZ$3,$K56>BZ$4,$E56>BZ$6,$E56<BZ$7),BZ$5,"") ->  | CA63: =IF(AND(#REF!=CA$2,$K56<CA$3,$K56>CA$4,$E56>CA$6,$E56<CA$7),CA$5,"") ->  | CB63: =IF(AND(#REF!=CB$2,$K56<CB$3,$K56>CB$4,$E56>CB$6,$E56<CB$7),CB$5,"") ->  | CC63: =IF(AND(#REF!=CC$2,$K56<CC$3,$K56>CC$4,$E56>CC$6,$E56<CC$7),CC$5,"") ->  | CD63: =IF(AND(#REF!=CD$2,$K56<CD$3,$K56>CD$4,$E56>CD$6,$E56<CD$7),CD$5,"") ->  | CE63: =IF(AND(#REF!=CE$2,$K56<CE$3,$K56>CE$4,$E56>CE$6,$E56<CE$7),CE$5,"") ->  | CF63: =IF(AND(#REF!=CF$2,$K56<CF$3,$K56>CF$4,$E56>CF$6,$E56<CF$7),CF$5,"") ->  | CG63: =IF(AND(#REF!=CG$2,$K56<CG$3,$K56>CG$4,$E56>CG$6,$E56<CG$7),CG$5,"") ->  | CH63: =IF(AND(#REF!=CH$2,$K56<CH$3,$K56>CH$4,$E56>CH$6,$E56<CH$7),CH$5,"") ->  | CI63: =IF(AND(#REF!=CI$2,$K56<CI$3,$K56>CI$4,$E56>CI$6,$E56<CI$7),CI$5,"") ->  | CJ63: =IF(AND(#REF!=CJ$2,$K56<CJ$3,$K56>CJ$4,$E56>CJ$6,$E56<CJ$7),CJ$5,"") ->  | CK63: =IF(AND(#REF!=CK$2,$K56<CK$3,$K56>CK$4,$E56>CK$6,$E56<CK$7),CK$5,"") ->  | CL63: =IF(AND(#REF!=CL$2,$K56<CL$3,$K56>CL$4,$E56>CL$6,$E56<CL$7),CL$5,"") ->  | CM63: =IF(AND(#REF!=CM$2,$K56<CM$3,$K56>CM$4,$E56>CM$6,$E56<CM$7),CM$5,"") ->  | CN63: =IF(AND(#REF!=CN$2,$K56<CN$3,$K56>CN$4,$E56>CN$6,$E56<CN$7),CN$5,"") ->  | CO63: =IF(AND(#REF!=CO$2,$K56<CO$3,$K56>CO$4,$E56>CO$6,$E56<CO$7),CO$5,"") ->  | CP63: =IF(AND(#REF!=CP$2,$K56<CP$3,$K56>CP$4,$E56>CP$6,$E56<CP$7),CP$5,"") ->  | CQ63: =IF(AND(#REF!=CQ$2,$K56<CQ$3,$K56>CQ$4,$E56>CQ$6,$E56<CQ$7),CQ$5,"") ->  | CR63: =IF(AND(#REF!=CR$2,$K56<CR$3,$K56>CR$4,$E56>CR$6,$E56<CR$7),CR$5,"") ->  | CS63: =IF(AND(#REF!=CS$2,$K56<CS$3,$K56>CS$4,$E56>CS$6,$E56<CS$7),CS$5,"") ->  | CT63: =IF(AND(#REF!=CT$2,$K56<CT$3,$K56>CT$4,$E56>CT$6,$E56<CT$7),CT$5,"") ->  | CU63: =IF(AND(#REF!=CU$2,$K56<CU$3,$K56>CU$4,$E56>CU$6,$E56<CU$7),CU$5,"") ->  | CV63: =IF(AND(#REF!=CV$2,$K56<CV$3,$K56>CV$4,$E56>CV$6,$E56<CV$7),CV$5,"") ->  | CW63: =IF(AND(#REF!=CW$2,$K56<CW$3,$K56>CW$4,$E56>CW$6,$E56<CW$7),CW$5,"") ->  | CX63: =IF(AND(#REF!=CX$2,$K56<CX$3,$K56>CX$4,$E56>CX$6,$E56<CX$7),CX$5,"") ->  | CY63: =IF(AND(#REF!=CY$2,$K56<CY$3,$K56>CY$4,$E56>CY$6,$E56<CY$7),CY$5,"") ->  | CZ63: =IF(AND(#REF!=CZ$2,$K56<CZ$3,$K56>CZ$4,$E56>CZ$6,$E56<CZ$7),CZ$5,"") ->  | DA63: =IF(AND(#REF!=DA$2,$K56<DA$3,$K56>DA$4,$E56>DA$6,$E56<DA$7),DA$5,"") ->  | DB63: =IF(AND(#REF!=DB$2,$K56<DB$3,$K56>DB$4,$E56>DB$6,$E56<DB$7),DB$5,"") ->  | DC63: =IF(AND(#REF!=DC$2,$K56<DC$3,$K56>DC$4,$E56>DC$6,$E56<DC$7),DC$5,"") ->  | DD63: =IF(AND(#REF!=DD$2,$K56<DD$3,$K56>DD$4,$E56>DD$6,$E56<DD$7),DD$5,"") ->  | DE63: =IF(AND(#REF!=DE$2,$K56<DE$3,$K56>DE$4,$E56>DE$6,$E56<DE$7),DE$5,"") ->  | DF63: =IF(AND(#REF!=DF$2,$K56<DF$3,$K56>DF$4,$E56>DF$6,$E56<DF$7),DF$5,"") ->  | DG63: =IF(AND(#REF!=DG$2,$K56<DG$3,$K56>DG$4,$E56>DG$6,$E56<DG$7),DG$5,"") ->  | DH63: =IF(AND(#REF!=DH$2,$K56<DH$3,$K56>DH$4,$E56>DH$6,$E56<DH$7),DH$5,"") ->  | DI63: =IF(AND(#REF!=DI$2,$K56<DI$3,$K56>DI$4,$E56>DI$6,$E56<DI$7),DI$5,"") ->  | DJ63: =IF(AND(#REF!=DJ$2,$K56<DJ$3,$K56>DJ$4,$E56>DJ$6,$E56<DJ$7),DJ$5,"") ->  | DK63: =IF(AND(#REF!=DK$2,$K56<DK$3,$K56>DK$4,$E56>DK$6,$E56<DK$7),DK$5,"") ->  | DL63: =IF(AND(#REF!=DL$2,$K56<DL$3,$K56>DL$4,$E56>DL$6,$E56<DL$7),DL$5,"") ->  | DM63: =IF(AND(#REF!=DM$2,$K56<DM$3,$K56>DM$4,$E56>DM$6,$E56<DM$7),DM$5,"") ->  | DN63: =IF(AND(#REF!=DN$2,$K56<DN$3,$K56>DN$4,$E56>DN$6,$E56<DN$7),DN$5,"") ->  | DO63: =IF(AND(#REF!=DO$2,$K56<DO$3,$K56>DO$4,$E56>DO$6,$E56<DO$7),DO$5,"") ->  | DP63: =IF(AND(#REF!=DP$2,$K56<DP$3,$K56>DP$4,$E56>DP$6,$E56<DP$7),DP$5,"") ->  | DQ63: =IF(AND(#REF!=DQ$2,$K56<DQ$3,$K56>DQ$4,$E56>DQ$6,$E56<DQ$7),DQ$5,"") ->  | DR63: =IF(AND(#REF!=DR$2,$K56<DR$3,$K56>DR$4,$E56>DR$6,$E56<DR$7),DR$5,"") ->  | DS63: =IF(AND(#REF!=DS$2,$K56<DS$3,$K56>DS$4,$E56>DS$6,$E56<DS$7),DS$5,"") ->  | DT63: =IF(AND(#REF!=DT$2,$K56<DT$3,$K56>DT$4,$E56>DT$6,$E56<DT$7),DT$5,"") ->  | DU63: =IF(AND(#REF!=DU$2,$K56<DU$3,$K56>DU$4,$E56>DU$6,$E56<DU$7),DU$5,"") ->  | DV63: =IF(AND(#REF!=DV$2,$K56<DV$3,$K56>DV$4,$E56>DV$6,$E56<DV$7),DV$5,"") ->  | DW63: =IF(AND(#REF!=DW$2,$K56<DW$3,$K56>DW$4,$E56>DW$6,$E56<DW$7),DW$5,"") ->  | DX63: =IF(AND(#REF!=DX$2,$K56<DX$3,$K56>DX$4,$E56>DX$6,$E56<DX$7),DX$5,"") ->  | DY63: =IF(AND(#REF!=DY$2,$K56<DY$3,$K56>DY$4,$E56>DY$6,$E56<DY$7),DY$5,"") ->  | DZ63: =IF(AND(#REF!=DZ$2,$K56<DZ$3,$K56>DZ$4,$E56>DZ$6,$E56<DZ$7),DZ$5,"") ->  | EA63: =IF(AND(#REF!=EA$2,$K56<EA$3,$K56>EA$4,$E56>EA$6,$E56<EA$7),EA$5,"") ->  | EB63: =IF(AND(#REF!=EB$2,$K56<EB$3,$K56>EB$4,$E56>EB$6,$E56<EB$7),EB$5,"") ->  | EC63: =IF(AND(#REF!=EC$2,$K56<EC$3,$K56>EC$4,$E56>EC$6,$E56<EC$7),EC$5,"") ->  | ED63: =IF(AND(#REF!=ED$2,$K56<ED$3,$K56>ED$4,$E56>ED$6,$E56<ED$7),ED$5,"") ->  | EE63: =IF(AND(#REF!=EE$2,$K56<EE$3,$K56>EE$4,$E56>EE$6,$E56<EE$7),EE$5,"") ->  | EF63: =IF(AND(#REF!=EF$2,$K56<EF$3,$K56>EF$4,$E56>EF$6,$E56<EF$7),EF$5,"") ->  | EG63: =IF(AND(#REF!=EG$2,$K56<EG$3,$K56>EG$4,$E56>EG$6,$E56<EG$7),EG$5,"") ->  | EH63: =IF(AND(#REF!=EH$2,$K56<EH$3,$K56>EH$4,$E56>EH$6,$E56<EH$7),EH$5,"") ->  | EI63: =IF(AND(#REF!=EI$2,$K56<EI$3,$K56>EI$4,$E56>EI$6,$E56<EI$7),EI$5,"") ->  | EJ63: =IF(AND(#REF!=EJ$2,$K56<EJ$3,$K56>EJ$4,$E56>EJ$6,$E56<EJ$7),EJ$5,"") ->  | EK63: =IF(AND(#REF!=EK$2,$K56<EK$3,$K56>EK$4,$E56>EK$6,$E56<EK$7),EK$5,"") ->  | EL63: =IF(AND(#REF!=EL$2,$K56<EL$3,$K56>EL$4,$E56>EL$6,$E56<EL$7),EL$5,"") ->  | EM63: =IF(AND(#REF!=EM$2,$K56<EM$3,$K56>EM$4,$E56>EM$6,$E56<EM$7),EM$5,"") ->  | EN63: =IF(AND(#REF!=EN$2,$K56<EN$3,$K56>EN$4,$E56>EN$6,$E56<EN$7),EN$5,"") ->  | EO63: =IF(AND(#REF!=EO$2,$K56<EO$3,$K56>EO$4,$E56>EO$6,$E56<EO$7),EO$5,"") ->  | EP63: =IF(AND(#REF!=EP$2,$K56<EP$3,$K56>EP$4,$E56>EP$6,$E56<EP$7),EP$5,"") ->  | EQ63: =IF(AND(#REF!=EQ$2,$K56<EQ$3,$K56>EQ$4,$E56>EQ$6,$E56<EQ$7),EQ$5,"") ->  | ER63: =IF(AND(#REF!=ER$2,$K56<ER$3,$K56>ER$4,$E56>ER$6,$E56<ER$7),ER$5,"") ->  | ES63: =IF(AND(#REF!=ES$2,$K56<ES$3,$K56>ES$4,$E56>ES$6,$E56<ES$7),ES$5,"") ->  | ET63: =IF(AND(#REF!=ET$2,$K56<ET$3,$K56>ET$4,$E56>ET$6,$E56<ET$7),ET$5,"") ->  | EU63: =IF(AND(#REF!=EU$2,$K56<EU$3,$K56>EU$4,$E56>EU$6,$E56<EU$7),EU$5,"") ->  | EV63: =IF(AND(#REF!=EV$2,$K56<EV$3,$K56>EV$4,$E56>EV$6,$E56<EV$7),EV$5,"") ->  | EW63: =IF(AND(#REF!=EW$2,$K56<EW$3,$K56>EW$4,$E56>EW$6,$E56<EW$7),EW$5,"") ->  | EX63: =IF(AND(#REF!=EX$2,$K56<EX$3,$K56>EX$4,$E56>EX$6,$E56<EX$7),EX$5,"") ->  | EY63: =IF(AND(#REF!=EY$2,$K56<EY$3,$K56>EY$4,$E56>EY$6,$E56<EY$7),EY$5,"") ->  | EZ63: =IF(AND(#REF!=EZ$2,$K56<EZ$3,$K56>EZ$4,$E56>EZ$6,$E56<EZ$7),EZ$5,"") ->  | FA63: =IF(AND(#REF!=FA$2,$K56<FA$3,$K56>FA$4,$E56>FA$6,$E56<FA$7),FA$5,"") ->  | FB63: =IF(AND(#REF!=FB$2,$K56<FB$3,$K56>FB$4,$E56>FB$6,$E56<FB$7),FB$5,"") ->  | FC63: =IF(AND(#REF!=FC$2,$K56<FC$3,$K56>FC$4,$E56>FC$6,$E56<FC$7),FC$5,"") ->  | FD63: =IF(AND(#REF!=FD$2,$K56<FD$3,$K56>FD$4,$E56>FD$6,$E56<FD$7),FD$5,"") ->  | FE63: =IF(AND(#REF!=FE$2,$K56<FE$3,$K56>FE$4,$E56>FE$6,$E56<FE$7),FE$5,"") ->  | FF63: =IF(AND(#REF!=FF$2,$K56<FF$3,$K56>FF$4,$E56>FF$6,$E56<FF$7),FF$5,"") ->  | FG63: =IF(AND(#REF!=FG$2,$K56<FG$3,$K56>FG$4,$E56>FG$6,$E56<FG$7),FG$5,"") ->  | FH63: =IF(AND(#REF!=FH$2,$K56<FH$3,$K56>FH$4,$E56>FH$6,$E56<FH$7),FH$5,"") ->  | FI63: =IF(AND(#REF!=FI$2,$K56<FI$3,$K56>FI$4,$E56>FI$6,$E56<FI$7),FI$5,"") ->  | FJ63: =IF(AND(#REF!=FJ$2,$K56<FJ$3,$K56>FJ$4,$E56>FJ$6,$E56<FJ$7),FJ$5,"") ->  | FK63: =IF(AND(#REF!=FK$2,$K56<FK$3,$K56>FK$4,$E56>FK$6,$E56<FK$7),FK$5,"") ->  | FL63: =IF(AND(#REF!=FL$2,$K56<FL$3,$K56>FL$4,$E56>FL$6,$E56<FL$7),FL$5,"") ->  | FM63: =IF(AND(#REF!=FM$2,$K56<FM$3,$K56>FM$4,$E56>FM$6,$E56<FM$7),FM$5,"") ->  | FN63: =IF(AND(#REF!=FN$2,$K56<FN$3,$K56>FN$4,$E56>FN$6,$E56<FN$7),FN$5,"") ->  | FO63: =IF(AND(#REF!=FO$2,$K56<FO$3,$K56>FO$4,$E56>FO$6,$E56<FO$7),FO$5,"") ->  | FP63: =IF(AND(#REF!=FP$2,$K56<FP$3,$K56>FP$4,$E56>FP$6,$E56<FP$7),FP$5,"") ->  | FQ63: =IF(AND(#REF!=FQ$2,$K56<FQ$3,$K56>FQ$4,$E56>FQ$6,$E56<FQ$7),FQ$5,"") ->  | FR63: =IF(AND(#REF!=FR$2,$K56<FR$3,$K56>FR$4,$E56>FR$6,$E56<FR$7),FR$5,"") ->  | FS63: =IF(AND(#REF!=FS$2,$K56<FS$3,$K56>FS$4,$E56>FS$6,$E56<FS$7),FS$5,"") ->  | FT63: =IF(AND(#REF!=FT$2,$K56<FT$3,$K56>FT$4,$E56>FT$6,$E56<FT$7),FT$5,"") ->  | FU63: =IF(AND(#REF!=FU$2,$K56<FU$3,$K56>FU$4,$E56>FU$6,$E56<FU$7),FU$5,"") ->  | FV63: =IF(AND(#REF!=FV$2,$K56<FV$3,$K56>FV$4,$E56>FV$6,$E56<FV$7),FV$5,"") ->  | FW63: =IF(AND(#REF!=FW$2,$K56<FW$3,$K56>FW$4,$E56>FW$6,$E56<FW$7),FW$5,"") -> 
AN64: =IF(AND(#REF!=AN$2,$R64<AN$3,$R64>AN$4,#REF!>AN$6,#REF!<AN$7),AN$5,"") ->  | AO64: =IF(AND(#REF!=AO$2,$R64<AO$3,$R64>AO$4,#REF!>AO$6,#REF!<AO$7),AO$5,"") ->  | AP64: =IF(AND(#REF!=AP$2,$R64<AP$3,$R64>AP$4,#REF!>AP$6,#REF!<AP$7),AP$5,"") ->  | AQ64: =IF(AND(#REF!=AQ$2,$R64<AQ$3,$R64>AQ$4,#REF!>AQ$6,#REF!<AQ$7),AQ$5,"") ->  | AR64: =IF(AND(#REF!=AR$2,$R64<AR$3,$R64>AR$4,#REF!>AR$6,#REF!<AR$7),AR$5,"") ->  | AS64: =IF(AND(#REF!=AS$2,$R64<AS$3,$R64>AS$4,#REF!>AS$6,#REF!<AS$7),AS$5,"") ->  | AT64: =IF(AND(#REF!=AT$2,$R64<AT$3,$R64>AT$4,#REF!>AT$6,#REF!<AT$7),AT$5,"") ->  | AU64: =IF(AND(#REF!=AU$2,$R64<AU$3,$R64>AU$4,#REF!>AU$6,#REF!<AU$7),AU$5,"") ->  | AV64: =IF(AND(#REF!=AV$2,$R64<AV$3,$R64>AV$4,#REF!>AV$6,#REF!<AV$7),AV$5,"") ->  | AW64: =IF(AND(#REF!=AW$2,$R64<AW$3,$R64>AW$4,#REF!>AW$6,#REF!<AW$7),AW$5,"") ->  | AX64: =IF(AND(#REF!=AX$2,$R64<AX$3,$R64>AX$4,#REF!>AX$6,#REF!<AX$7),AX$5,"") ->  | AY64: =IF(AND(#REF!=AY$2,$R64<AY$3,$R64>AY$4,#REF!>AY$6,#REF!<AY$7),AY$5,"") ->  | AZ64: =IF(AND(#REF!=AZ$2,$R64<AZ$3,$R64>AZ$4,#REF!>AZ$6,#REF!<AZ$7),AZ$5,"") ->  | BA64: =IF(AND(#REF!=BA$2,$R64<BA$3,$R64>BA$4,#REF!>BA$6,#REF!<BA$7),BA$5,"") ->  | BB64: =IF(AND(#REF!=BB$2,$R64<BB$3,$R64>BB$4,#REF!>BB$6,#REF!<BB$7),BB$5,"") ->  | BC64: =IF(AND(#REF!=BC$2,$R64<BC$3,$R64>BC$4,#REF!>BC$6,#REF!<BC$7),BC$5,"") ->  | BD64: =IF(AND(#REF!=BD$2,$R64<BD$3,$R64>BD$4,#REF!>BD$6,#REF!<BD$7),BD$5,"") ->  | BE64: =IF(AND(#REF!=BE$2,$R64<BE$3,$R64>BE$4,#REF!>BE$6,#REF!<BE$7),BE$5,"") ->  | BF64: =IF(AND(#REF!=BF$2,$R64<BF$3,$R64>BF$4,#REF!>BF$6,#REF!<BF$7),BF$5,"") ->  | BG64: =IF(AND(#REF!=BG$2,$R64<BG$3,$R64>BG$4,#REF!>BG$6,#REF!<BG$7),BG$5,"") ->  | BH64: =IF(AND(#REF!=BH$2,$R64<BH$3,$R64>BH$4,#REF!>BH$6,#REF!<BH$7),BH$5,"") ->  | BI64: =IF(AND(#REF!=BI$2,$R64<BI$3,$R64>BI$4,#REF!>BI$6,#REF!<BI$7),BI$5,"") ->  | BJ64: =IF(AND(#REF!=BJ$2,$R64<BJ$3,$R64>BJ$4,#REF!>BJ$6,#REF!<BJ$7),BJ$5,"") ->  | BK64: =IF(AND(#REF!=BK$2,$R64<BK$3,$R64>BK$4,#REF!>BK$6,#REF!<BK$7),BK$5,"") ->  | BL64: =IF(AND(#REF!=BL$2,$R64<BL$3,$R64>BL$4,#REF!>BL$6,#REF!<BL$7),BL$5,"") ->  | BM64: =IF(AND(#REF!=BM$2,$R64<BM$3,$R64>BM$4,#REF!>BM$6,#REF!<BM$7),BM$5,"") ->  | BN64: =IF(AND(#REF!=BN$2,$R64<BN$3,$R64>BN$4,#REF!>BN$6,#REF!<BN$7),BN$5,"") ->  | BO64: =IF(AND(#REF!=BO$2,$R64<BO$3,$R64>BO$4,#REF!>BO$6,#REF!<BO$7),BO$5,"") ->  | BP64: =IF(AND(#REF!=BP$2,$R64<BP$3,$R64>BP$4,#REF!>BP$6,#REF!<BP$7),BP$5,"") ->  | BQ64: =IF(AND(#REF!=BQ$2,$R64<BQ$3,$R64>BQ$4,#REF!>BQ$6,#REF!<BQ$7),BQ$5,"") ->  | BR64: =IF(AND(#REF!=BR$2,$R64<BR$3,$R64>BR$4,#REF!>BR$6,#REF!<BR$7),BR$5,"") ->  | BS64: =IF(AND(#REF!=BS$2,$R64<BS$3,$R64>BS$4,#REF!>BS$6,#REF!<BS$7),BS$5,"") ->  | BT64: =IF(AND(#REF!=BT$2,$R64<BT$3,$R64>BT$4,#REF!>BT$6,#REF!<BT$7),BT$5,"") ->  | BU64: =IF(AND(#REF!=BU$2,$R64<BU$3,$R64>BU$4,#REF!>BU$6,#REF!<BU$7),BU$5,"") ->  | BV64: =IF(AND(#REF!=BV$2,$R64<BV$3,$R64>BV$4,#REF!>BV$6,#REF!<BV$7),BV$5,"") ->  | BW64: =IF(AND(#REF!=BW$2,$R64<BW$3,$R64>BW$4,#REF!>BW$6,#REF!<BW$7),BW$5,"") ->  | BX64: =IF(AND(#REF!=BX$2,$R64<BX$3,$R64>BX$4,#REF!>BX$6,#REF!<BX$7),BX$5,"") ->  | BY64: =IF(AND(#REF!=BY$2,$R64<BY$3,$R64>BY$4,#REF!>BY$6,#REF!<BY$7),BY$5,"") ->  | BZ64: =IF(AND(#REF!=BZ$2,$R64<BZ$3,$R64>BZ$4,#REF!>BZ$6,#REF!<BZ$7),BZ$5,"") ->  | CA64: =IF(AND(#REF!=CA$2,$R64<CA$3,$R64>CA$4,#REF!>CA$6,#REF!<CA$7),CA$5,"") ->  | CB64: =IF(AND(#REF!=CB$2,$R64<CB$3,$R64>CB$4,#REF!>CB$6,#REF!<CB$7),CB$5,"") ->  | CC64: =IF(AND(#REF!=CC$2,$R64<CC$3,$R64>CC$4,#REF!>CC$6,#REF!<CC$7),CC$5,"") ->  | CD64: =IF(AND(#REF!=CD$2,$R64<CD$3,$R64>CD$4,#REF!>CD$6,#REF!<CD$7),CD$5,"") ->  | CE64: =IF(AND(#REF!=CE$2,$R64<CE$3,$R64>CE$4,#REF!>CE$6,#REF!<CE$7),CE$5,"") ->  | CF64: =IF(AND(#REF!=CF$2,$R64<CF$3,$R64>CF$4,#REF!>CF$6,#REF!<CF$7),CF$5,"") ->  | CG64: =IF(AND(#REF!=CG$2,$R64<CG$3,$R64>CG$4,#REF!>CG$6,#REF!<CG$7),CG$5,"") ->  | CH64: =IF(AND(#REF!=CH$2,$R64<CH$3,$R64>CH$4,#REF!>CH$6,#REF!<CH$7),CH$5,"") ->  | CI64: =IF(AND(#REF!=CI$2,$R64<CI$3,$R64>CI$4,#REF!>CI$6,#REF!<CI$7),CI$5,"") ->  | CJ64: =IF(AND(#REF!=CJ$2,$R64<CJ$3,$R64>CJ$4,#REF!>CJ$6,#REF!<CJ$7),CJ$5,"") ->  | CK64: =IF(AND(#REF!=CK$2,$R64<CK$3,$R64>CK$4,#REF!>CK$6,#REF!<CK$7),CK$5,"") ->  | CL64: =IF(AND(#REF!=CL$2,$R64<CL$3,$R64>CL$4,#REF!>CL$6,#REF!<CL$7),CL$5,"") ->  | CM64: =IF(AND(#REF!=CM$2,$R64<CM$3,$R64>CM$4,#REF!>CM$6,#REF!<CM$7),CM$5,"") ->  | CN64: =IF(AND(#REF!=CN$2,$R64<CN$3,$R64>CN$4,#REF!>CN$6,#REF!<CN$7),CN$5,"") ->  | CO64: =IF(AND(#REF!=CO$2,$R64<CO$3,$R64>CO$4,#REF!>CO$6,#REF!<CO$7),CO$5,"") ->  | CP64: =IF(AND(#REF!=CP$2,$R64<CP$3,$R64>CP$4,#REF!>CP$6,#REF!<CP$7),CP$5,"") ->  | CQ64: =IF(AND(#REF!=CQ$2,$R64<CQ$3,$R64>CQ$4,#REF!>CQ$6,#REF!<CQ$7),CQ$5,"") ->  | CR64: =IF(AND(#REF!=CR$2,$R64<CR$3,$R64>CR$4,#REF!>CR$6,#REF!<CR$7),CR$5,"") ->  | CS64: =IF(AND(#REF!=CS$2,$R64<CS$3,$R64>CS$4,#REF!>CS$6,#REF!<CS$7),CS$5,"") ->  | CT64: =IF(AND(#REF!=CT$2,$R64<CT$3,$R64>CT$4,#REF!>CT$6,#REF!<CT$7),CT$5,"") ->  | CU64: =IF(AND(#REF!=CU$2,$R64<CU$3,$R64>CU$4,#REF!>CU$6,#REF!<CU$7),CU$5,"") ->  | CV64: =IF(AND(#REF!=CV$2,$R64<CV$3,$R64>CV$4,#REF!>CV$6,#REF!<CV$7),CV$5,"") ->  | CW64: =IF(AND(#REF!=CW$2,$R64<CW$3,$R64>CW$4,#REF!>CW$6,#REF!<CW$7),CW$5,"") ->  | CX64: =IF(AND(#REF!=CX$2,$R64<CX$3,$R64>CX$4,#REF!>CX$6,#REF!<CX$7),CX$5,"") ->  | CY64: =IF(AND(#REF!=CY$2,$R64<CY$3,$R64>CY$4,#REF!>CY$6,#REF!<CY$7),CY$5,"") ->  | CZ64: =IF(AND(#REF!=CZ$2,$R64<CZ$3,$R64>CZ$4,#REF!>CZ$6,#REF!<CZ$7),CZ$5,"") ->  | DA64: =IF(AND(#REF!=DA$2,$R64<DA$3,$R64>DA$4,#REF!>DA$6,#REF!<DA$7),DA$5,"") ->  | DB64: =IF(AND(#REF!=DB$2,$R64<DB$3,$R64>DB$4,#REF!>DB$6,#REF!<DB$7),DB$5,"") ->  | DC64: =IF(AND(#REF!=DC$2,$R64<DC$3,$R64>DC$4,#REF!>DC$6,#REF!<DC$7),DC$5,"") ->  | DD64: =IF(AND(#REF!=DD$2,$R64<DD$3,$R64>DD$4,#REF!>DD$6,#REF!<DD$7),DD$5,"") ->  | DE64: =IF(AND(#REF!=DE$2,$R64<DE$3,$R64>DE$4,#REF!>DE$6,#REF!<DE$7),DE$5,"") ->  | DF64: =IF(AND(#REF!=DF$2,$R64<DF$3,$R64>DF$4,#REF!>DF$6,#REF!<DF$7),DF$5,"") ->  | DG64: =IF(AND(#REF!=DG$2,$R64<DG$3,$R64>DG$4,#REF!>DG$6,#REF!<DG$7),DG$5,"") ->  | DH64: =IF(AND(#REF!=DH$2,$R64<DH$3,$R64>DH$4,#REF!>DH$6,#REF!<DH$7),DH$5,"") ->  | DI64: =IF(AND(#REF!=DI$2,$R64<DI$3,$R64>DI$4,#REF!>DI$6,#REF!<DI$7),DI$5,"") ->  | DJ64: =IF(AND(#REF!=DJ$2,$R64<DJ$3,$R64>DJ$4,#REF!>DJ$6,#REF!<DJ$7),DJ$5,"") ->  | DK64: =IF(AND(#REF!=DK$2,$R64<DK$3,$R64>DK$4,#REF!>DK$6,#REF!<DK$7),DK$5,"") ->  | DL64: =IF(AND(#REF!=DL$2,$R64<DL$3,$R64>DL$4,#REF!>DL$6,#REF!<DL$7),DL$5,"") ->  | DM64: =IF(AND(#REF!=DM$2,$R64<DM$3,$R64>DM$4,#REF!>DM$6,#REF!<DM$7),DM$5,"") ->  | DN64: =IF(AND(#REF!=DN$2,$R64<DN$3,$R64>DN$4,#REF!>DN$6,#REF!<DN$7),DN$5,"") ->  | DO64: =IF(AND(#REF!=DO$2,$R64<DO$3,$R64>DO$4,#REF!>DO$6,#REF!<DO$7),DO$5,"") ->  | DP64: =IF(AND(#REF!=DP$2,$R64<DP$3,$R64>DP$4,#REF!>DP$6,#REF!<DP$7),DP$5,"") ->  | DQ64: =IF(AND(#REF!=DQ$2,$R64<DQ$3,$R64>DQ$4,#REF!>DQ$6,#REF!<DQ$7),DQ$5,"") ->  | DR64: =IF(AND(#REF!=DR$2,$R64<DR$3,$R64>DR$4,#REF!>DR$6,#REF!<DR$7),DR$5,"") ->  | DS64: =IF(AND(#REF!=DS$2,$R64<DS$3,$R64>DS$4,#REF!>DS$6,#REF!<DS$7),DS$5,"") ->  | DT64: =IF(AND(#REF!=DT$2,$R64<DT$3,$R64>DT$4,#REF!>DT$6,#REF!<DT$7),DT$5,"") ->  | DU64: =IF(AND(#REF!=DU$2,$R64<DU$3,$R64>DU$4,#REF!>DU$6,#REF!<DU$7),DU$5,"") ->  | DV64: =IF(AND(#REF!=DV$2,$R64<DV$3,$R64>DV$4,#REF!>DV$6,#REF!<DV$7),DV$5,"") ->  | DW64: =IF(AND(#REF!=DW$2,$R64<DW$3,$R64>DW$4,#REF!>DW$6,#REF!<DW$7),DW$5,"") ->  | DX64: =IF(AND(#REF!=DX$2,$R64<DX$3,$R64>DX$4,#REF!>DX$6,#REF!<DX$7),DX$5,"") ->  | DY64: =IF(AND(#REF!=DY$2,$R64<DY$3,$R64>DY$4,#REF!>DY$6,#REF!<DY$7),DY$5,"") ->  | DZ64: =IF(AND(#REF!=DZ$2,$R64<DZ$3,$R64>DZ$4,#REF!>DZ$6,#REF!<DZ$7),DZ$5,"") ->  | EA64: =IF(AND(#REF!=EA$2,$R64<EA$3,$R64>EA$4,#REF!>EA$6,#REF!<EA$7),EA$5,"") ->  | EB64: =IF(AND(#REF!=EB$2,$R64<EB$3,$R64>EB$4,#REF!>EB$6,#REF!<EB$7),EB$5,"") ->  | EC64: =IF(AND(#REF!=EC$2,$R64<EC$3,$R64>EC$4,#REF!>EC$6,#REF!<EC$7),EC$5,"") ->  | ED64: =IF(AND(#REF!=ED$2,$R64<ED$3,$R64>ED$4,#REF!>ED$6,#REF!<ED$7),ED$5,"") ->  | EE64: =IF(AND(#REF!=EE$2,$R64<EE$3,$R64>EE$4,#REF!>EE$6,#REF!<EE$7),EE$5,"") ->  | EF64: =IF(AND(#REF!=EF$2,$R64<EF$3,$R64>EF$4,#REF!>EF$6,#REF!<EF$7),EF$5,"") ->  | EG64: =IF(AND(#REF!=EG$2,$R64<EG$3,$R64>EG$4,#REF!>EG$6,#REF!<EG$7),EG$5,"") ->  | EH64: =IF(AND(#REF!=EH$2,$R64<EH$3,$R64>EH$4,#REF!>EH$6,#REF!<EH$7),EH$5,"") ->  | EI64: =IF(AND(#REF!=EI$2,$R64<EI$3,$R64>EI$4,#REF!>EI$6,#REF!<EI$7),EI$5,"") ->  | EJ64: =IF(AND(#REF!=EJ$2,$R64<EJ$3,$R64>EJ$4,#REF!>EJ$6,#REF!<EJ$7),EJ$5,"") ->  | EK64: =IF(AND(#REF!=EK$2,$R64<EK$3,$R64>EK$4,#REF!>EK$6,#REF!<EK$7),EK$5,"") ->  | EL64: =IF(AND(#REF!=EL$2,$R64<EL$3,$R64>EL$4,#REF!>EL$6,#REF!<EL$7),EL$5,"") ->  | EM64: =IF(AND(#REF!=EM$2,$R64<EM$3,$R64>EM$4,#REF!>EM$6,#REF!<EM$7),EM$5,"") ->  | EN64: =IF(AND(#REF!=EN$2,$R64<EN$3,$R64>EN$4,#REF!>EN$6,#REF!<EN$7),EN$5,"") ->  | EO64: =IF(AND(#REF!=EO$2,$R64<EO$3,$R64>EO$4,#REF!>EO$6,#REF!<EO$7),EO$5,"") ->  | EP64: =IF(AND(#REF!=EP$2,$R64<EP$3,$R64>EP$4,#REF!>EP$6,#REF!<EP$7),EP$5,"") ->  | EQ64: =IF(AND(#REF!=EQ$2,$R64<EQ$3,$R64>EQ$4,#REF!>EQ$6,#REF!<EQ$7),EQ$5,"") ->  | ER64: =IF(AND(#REF!=ER$2,$R64<ER$3,$R64>ER$4,#REF!>ER$6,#REF!<ER$7),ER$5,"") ->  | ES64: =IF(AND(#REF!=ES$2,$R64<ES$3,$R64>ES$4,#REF!>ES$6,#REF!<ES$7),ES$5,"") ->  | ET64: =IF(AND(#REF!=ET$2,$R64<ET$3,$R64>ET$4,#REF!>ET$6,#REF!<ET$7),ET$5,"") ->  | EU64: =IF(AND(#REF!=EU$2,$R64<EU$3,$R64>EU$4,#REF!>EU$6,#REF!<EU$7),EU$5,"") ->  | EV64: =IF(AND(#REF!=EV$2,$R64<EV$3,$R64>EV$4,#REF!>EV$6,#REF!<EV$7),EV$5,"") ->  | EW64: =IF(AND(#REF!=EW$2,$R64<EW$3,$R64>EW$4,#REF!>EW$6,#REF!<EW$7),EW$5,"") ->  | EX64: =IF(AND(#REF!=EX$2,$R64<EX$3,$R64>EX$4,#REF!>EX$6,#REF!<EX$7),EX$5,"") ->  | EY64: =IF(AND(#REF!=EY$2,$R64<EY$3,$R64>EY$4,#REF!>EY$6,#REF!<EY$7),EY$5,"") ->  | EZ64: =IF(AND(#REF!=EZ$2,$R64<EZ$3,$R64>EZ$4,#REF!>EZ$6,#REF!<EZ$7),EZ$5,"") ->  | FA64: =IF(AND(#REF!=FA$2,$R64<FA$3,$R64>FA$4,#REF!>FA$6,#REF!<FA$7),FA$5,"") ->  | FB64: =IF(AND(#REF!=FB$2,$R64<FB$3,$R64>FB$4,#REF!>FB$6,#REF!<FB$7),FB$5,"") ->  | FC64: =IF(AND(#REF!=FC$2,$R64<FC$3,$R64>FC$4,#REF!>FC$6,#REF!<FC$7),FC$5,"") ->  | FD64: =IF(AND(#REF!=FD$2,$R64<FD$3,$R64>FD$4,#REF!>FD$6,#REF!<FD$7),FD$5,"") ->  | FE64: =IF(AND(#REF!=FE$2,$R64<FE$3,$R64>FE$4,#REF!>FE$6,#REF!<FE$7),FE$5,"") ->  | FF64: =IF(AND(#REF!=FF$2,$R64<FF$3,$R64>FF$4,#REF!>FF$6,#REF!<FF$7),FF$5,"") ->  | FG64: =IF(AND(#REF!=FG$2,$R64<FG$3,$R64>FG$4,#REF!>FG$6,#REF!<FG$7),FG$5,"") ->  | FH64: =IF(AND(#REF!=FH$2,$R64<FH$3,$R64>FH$4,#REF!>FH$6,#REF!<FH$7),FH$5,"") ->  | FI64: =IF(AND(#REF!=FI$2,$R64<FI$3,$R64>FI$4,#REF!>FI$6,#REF!<FI$7),FI$5,"") ->  | FJ64: =IF(AND(#REF!=FJ$2,$R64<FJ$3,$R64>FJ$4,#REF!>FJ$6,#REF!<FJ$7),FJ$5,"") ->  | FK64: =IF(AND(#REF!=FK$2,$R64<FK$3,$R64>FK$4,#REF!>FK$6,#REF!<FK$7),FK$5,"") ->  | FL64: =IF(AND(#REF!=FL$2,$R64<FL$3,$R64>FL$4,#REF!>FL$6,#REF!<FL$7),FL$5,"") ->  | FM64: =IF(AND(#REF!=FM$2,$R64<FM$3,$R64>FM$4,#REF!>FM$6,#REF!<FM$7),FM$5,"") ->  | FN64: =IF(AND(#REF!=FN$2,$R64<FN$3,$R64>FN$4,#REF!>FN$6,#REF!<FN$7),FN$5,"") ->  | FO64: =IF(AND(#REF!=FO$2,$R64<FO$3,$R64>FO$4,#REF!>FO$6,#REF!<FO$7),FO$5,"") ->  | FP64: =IF(AND(#REF!=FP$2,$R64<FP$3,$R64>FP$4,#REF!>FP$6,#REF!<FP$7),FP$5,"") ->  | FQ64: =IF(AND(#REF!=FQ$2,$R64<FQ$3,$R64>FQ$4,#REF!>FQ$6,#REF!<FQ$7),FQ$5,"") ->  | FR64: =IF(AND(#REF!=FR$2,$R64<FR$3,$R64>FR$4,#REF!>FR$6,#REF!<FR$7),FR$5,"") ->  | FS64: =IF(AND(#REF!=FS$2,$R64<FS$3,$R64>FS$4,#REF!>FS$6,#REF!<FS$7),FS$5,"") ->  | FT64: =IF(AND(#REF!=FT$2,$R64<FT$3,$R64>FT$4,#REF!>FT$6,#REF!<FT$7),FT$5,"") ->  | FU64: =IF(AND(#REF!=FU$2,$R64<FU$3,$R64>FU$4,#REF!>FU$6,#REF!<FU$7),FU$5,"") ->  | FV64: =IF(AND(#REF!=FV$2,$R64<FV$3,$R64>FV$4,#REF!>FV$6,#REF!<FV$7),FV$5,"") ->  | FW64: =IF(AND(#REF!=FW$2,$R64<FW$3,$R64>FW$4,#REF!>FW$6,#REF!<FW$7),FW$5,"") -> 
AN65: =IF(AND(#REF!=AN$2,$R65<AN$3,$R65>AN$4,#REF!>AN$6,#REF!<AN$7),AN$5,"") ->  | AO65: =IF(AND(#REF!=AO$2,$R65<AO$3,$R65>AO$4,#REF!>AO$6,#REF!<AO$7),AO$5,"") ->  | AP65: =IF(AND(#REF!=AP$2,$R65<AP$3,$R65>AP$4,#REF!>AP$6,#REF!<AP$7),AP$5,"") ->  | AQ65: =IF(AND(#REF!=AQ$2,$R65<AQ$3,$R65>AQ$4,#REF!>AQ$6,#REF!<AQ$7),AQ$5,"") ->  | AR65: =IF(AND(#REF!=AR$2,$R65<AR$3,$R65>AR$4,#REF!>AR$6,#REF!<AR$7),AR$5,"") ->  | AS65: =IF(AND(#REF!=AS$2,$R65<AS$3,$R65>AS$4,#REF!>AS$6,#REF!<AS$7),AS$5,"") ->  | AT65: =IF(AND(#REF!=AT$2,$R65<AT$3,$R65>AT$4,#REF!>AT$6,#REF!<AT$7),AT$5,"") ->  | AU65: =IF(AND(#REF!=AU$2,$R65<AU$3,$R65>AU$4,#REF!>AU$6,#REF!<AU$7),AU$5,"") ->  | AV65: =IF(AND(#REF!=AV$2,$R65<AV$3,$R65>AV$4,#REF!>AV$6,#REF!<AV$7),AV$5,"") ->  | AW65: =IF(AND(#REF!=AW$2,$R65<AW$3,$R65>AW$4,#REF!>AW$6,#REF!<AW$7),AW$5,"") ->  | AX65: =IF(AND(#REF!=AX$2,$R65<AX$3,$R65>AX$4,#REF!>AX$6,#REF!<AX$7),AX$5,"") ->  | AY65: =IF(AND(#REF!=AY$2,$R65<AY$3,$R65>AY$4,#REF!>AY$6,#REF!<AY$7),AY$5,"") ->  | AZ65: =IF(AND(#REF!=AZ$2,$R65<AZ$3,$R65>AZ$4,#REF!>AZ$6,#REF!<AZ$7),AZ$5,"") ->  | BA65: =IF(AND(#REF!=BA$2,$R65<BA$3,$R65>BA$4,#REF!>BA$6,#REF!<BA$7),BA$5,"") ->  | BB65: =IF(AND(#REF!=BB$2,$R65<BB$3,$R65>BB$4,#REF!>BB$6,#REF!<BB$7),BB$5,"") ->  | BC65: =IF(AND(#REF!=BC$2,$R65<BC$3,$R65>BC$4,#REF!>BC$6,#REF!<BC$7),BC$5,"") ->  | BD65: =IF(AND(#REF!=BD$2,$R65<BD$3,$R65>BD$4,#REF!>BD$6,#REF!<BD$7),BD$5,"") ->  | BE65: =IF(AND(#REF!=BE$2,$R65<BE$3,$R65>BE$4,#REF!>BE$6,#REF!<BE$7),BE$5,"") ->  | BF65: =IF(AND(#REF!=BF$2,$R65<BF$3,$R65>BF$4,#REF!>BF$6,#REF!<BF$7),BF$5,"") ->  | BG65: =IF(AND(#REF!=BG$2,$R65<BG$3,$R65>BG$4,#REF!>BG$6,#REF!<BG$7),BG$5,"") ->  | BH65: =IF(AND(#REF!=BH$2,$R65<BH$3,$R65>BH$4,#REF!>BH$6,#REF!<BH$7),BH$5,"") ->  | BI65: =IF(AND(#REF!=BI$2,$R65<BI$3,$R65>BI$4,#REF!>BI$6,#REF!<BI$7),BI$5,"") ->  | BJ65: =IF(AND(#REF!=BJ$2,$R65<BJ$3,$R65>BJ$4,#REF!>BJ$6,#REF!<BJ$7),BJ$5,"") ->  | BK65: =IF(AND(#REF!=BK$2,$R65<BK$3,$R65>BK$4,#REF!>BK$6,#REF!<BK$7),BK$5,"") ->  | BL65: =IF(AND(#REF!=BL$2,$R65<BL$3,$R65>BL$4,#REF!>BL$6,#REF!<BL$7),BL$5,"") ->  | BM65: =IF(AND(#REF!=BM$2,$R65<BM$3,$R65>BM$4,#REF!>BM$6,#REF!<BM$7),BM$5,"") ->  | BN65: =IF(AND(#REF!=BN$2,$R65<BN$3,$R65>BN$4,#REF!>BN$6,#REF!<BN$7),BN$5,"") ->  | BO65: =IF(AND(#REF!=BO$2,$R65<BO$3,$R65>BO$4,#REF!>BO$6,#REF!<BO$7),BO$5,"") ->  | BP65: =IF(AND(#REF!=BP$2,$R65<BP$3,$R65>BP$4,#REF!>BP$6,#REF!<BP$7),BP$5,"") ->  | BQ65: =IF(AND(#REF!=BQ$2,$R65<BQ$3,$R65>BQ$4,#REF!>BQ$6,#REF!<BQ$7),BQ$5,"") ->  | BR65: =IF(AND(#REF!=BR$2,$R65<BR$3,$R65>BR$4,#REF!>BR$6,#REF!<BR$7),BR$5,"") ->  | BS65: =IF(AND(#REF!=BS$2,$R65<BS$3,$R65>BS$4,#REF!>BS$6,#REF!<BS$7),BS$5,"") ->  | BT65: =IF(AND(#REF!=BT$2,$R65<BT$3,$R65>BT$4,#REF!>BT$6,#REF!<BT$7),BT$5,"") ->  | BU65: =IF(AND(#REF!=BU$2,$R65<BU$3,$R65>BU$4,#REF!>BU$6,#REF!<BU$7),BU$5,"") ->  | BV65: =IF(AND(#REF!=BV$2,$R65<BV$3,$R65>BV$4,#REF!>BV$6,#REF!<BV$7),BV$5,"") ->  | BW65: =IF(AND(#REF!=BW$2,$R65<BW$3,$R65>BW$4,#REF!>BW$6,#REF!<BW$7),BW$5,"") ->  | BX65: =IF(AND(#REF!=BX$2,$R65<BX$3,$R65>BX$4,#REF!>BX$6,#REF!<BX$7),BX$5,"") ->  | BY65: =IF(AND(#REF!=BY$2,$R65<BY$3,$R65>BY$4,#REF!>BY$6,#REF!<BY$7),BY$5,"") ->  | BZ65: =IF(AND(#REF!=BZ$2,$R65<BZ$3,$R65>BZ$4,#REF!>BZ$6,#REF!<BZ$7),BZ$5,"") ->  | CA65: =IF(AND(#REF!=CA$2,$R65<CA$3,$R65>CA$4,#REF!>CA$6,#REF!<CA$7),CA$5,"") ->  | CB65: =IF(AND(#REF!=CB$2,$R65<CB$3,$R65>CB$4,#REF!>CB$6,#REF!<CB$7),CB$5,"") ->  | CC65: =IF(AND(#REF!=CC$2,$R65<CC$3,$R65>CC$4,#REF!>CC$6,#REF!<CC$7),CC$5,"") ->  | CD65: =IF(AND(#REF!=CD$2,$R65<CD$3,$R65>CD$4,#REF!>CD$6,#REF!<CD$7),CD$5,"") ->  | CE65: =IF(AND(#REF!=CE$2,$R65<CE$3,$R65>CE$4,#REF!>CE$6,#REF!<CE$7),CE$5,"") ->  | CF65: =IF(AND(#REF!=CF$2,$R65<CF$3,$R65>CF$4,#REF!>CF$6,#REF!<CF$7),CF$5,"") ->  | CG65: =IF(AND(#REF!=CG$2,$R65<CG$3,$R65>CG$4,#REF!>CG$6,#REF!<CG$7),CG$5,"") ->  | CH65: =IF(AND(#REF!=CH$2,$R65<CH$3,$R65>CH$4,#REF!>CH$6,#REF!<CH$7),CH$5,"") ->  | CI65: =IF(AND(#REF!=CI$2,$R65<CI$3,$R65>CI$4,#REF!>CI$6,#REF!<CI$7),CI$5,"") ->  | CJ65: =IF(AND(#REF!=CJ$2,$R65<CJ$3,$R65>CJ$4,#REF!>CJ$6,#REF!<CJ$7),CJ$5,"") ->  | CK65: =IF(AND(#REF!=CK$2,$R65<CK$3,$R65>CK$4,#REF!>CK$6,#REF!<CK$7),CK$5,"") ->  | CL65: =IF(AND(#REF!=CL$2,$R65<CL$3,$R65>CL$4,#REF!>CL$6,#REF!<CL$7),CL$5,"") ->  | CM65: =IF(AND(#REF!=CM$2,$R65<CM$3,$R65>CM$4,#REF!>CM$6,#REF!<CM$7),CM$5,"") ->  | CN65: =IF(AND(#REF!=CN$2,$R65<CN$3,$R65>CN$4,#REF!>CN$6,#REF!<CN$7),CN$5,"") ->  | CO65: =IF(AND(#REF!=CO$2,$R65<CO$3,$R65>CO$4,#REF!>CO$6,#REF!<CO$7),CO$5,"") ->  | CP65: =IF(AND(#REF!=CP$2,$R65<CP$3,$R65>CP$4,#REF!>CP$6,#REF!<CP$7),CP$5,"") ->  | CQ65: =IF(AND(#REF!=CQ$2,$R65<CQ$3,$R65>CQ$4,#REF!>CQ$6,#REF!<CQ$7),CQ$5,"") ->  | CR65: =IF(AND(#REF!=CR$2,$R65<CR$3,$R65>CR$4,#REF!>CR$6,#REF!<CR$7),CR$5,"") ->  | CS65: =IF(AND(#REF!=CS$2,$R65<CS$3,$R65>CS$4,#REF!>CS$6,#REF!<CS$7),CS$5,"") ->  | CT65: =IF(AND(#REF!=CT$2,$R65<CT$3,$R65>CT$4,#REF!>CT$6,#REF!<CT$7),CT$5,"") ->  | CU65: =IF(AND(#REF!=CU$2,$R65<CU$3,$R65>CU$4,#REF!>CU$6,#REF!<CU$7),CU$5,"") ->  | CV65: =IF(AND(#REF!=CV$2,$R65<CV$3,$R65>CV$4,#REF!>CV$6,#REF!<CV$7),CV$5,"") ->  | CW65: =IF(AND(#REF!=CW$2,$R65<CW$3,$R65>CW$4,#REF!>CW$6,#REF!<CW$7),CW$5,"") ->  | CX65: =IF(AND(#REF!=CX$2,$R65<CX$3,$R65>CX$4,#REF!>CX$6,#REF!<CX$7),CX$5,"") ->  | CY65: =IF(AND(#REF!=CY$2,$R65<CY$3,$R65>CY$4,#REF!>CY$6,#REF!<CY$7),CY$5,"") ->  | CZ65: =IF(AND(#REF!=CZ$2,$R65<CZ$3,$R65>CZ$4,#REF!>CZ$6,#REF!<CZ$7),CZ$5,"") ->  | DA65: =IF(AND(#REF!=DA$2,$R65<DA$3,$R65>DA$4,#REF!>DA$6,#REF!<DA$7),DA$5,"") ->  | DB65: =IF(AND(#REF!=DB$2,$R65<DB$3,$R65>DB$4,#REF!>DB$6,#REF!<DB$7),DB$5,"") ->  | DC65: =IF(AND(#REF!=DC$2,$R65<DC$3,$R65>DC$4,#REF!>DC$6,#REF!<DC$7),DC$5,"") ->  | DD65: =IF(AND(#REF!=DD$2,$R65<DD$3,$R65>DD$4,#REF!>DD$6,#REF!<DD$7),DD$5,"") ->  | DE65: =IF(AND(#REF!=DE$2,$R65<DE$3,$R65>DE$4,#REF!>DE$6,#REF!<DE$7),DE$5,"") ->  | DF65: =IF(AND(#REF!=DF$2,$R65<DF$3,$R65>DF$4,#REF!>DF$6,#REF!<DF$7),DF$5,"") ->  | DG65: =IF(AND(#REF!=DG$2,$R65<DG$3,$R65>DG$4,#REF!>DG$6,#REF!<DG$7),DG$5,"") ->  | DH65: =IF(AND(#REF!=DH$2,$R65<DH$3,$R65>DH$4,#REF!>DH$6,#REF!<DH$7),DH$5,"") ->  | DI65: =IF(AND(#REF!=DI$2,$R65<DI$3,$R65>DI$4,#REF!>DI$6,#REF!<DI$7),DI$5,"") ->  | DJ65: =IF(AND(#REF!=DJ$2,$R65<DJ$3,$R65>DJ$4,#REF!>DJ$6,#REF!<DJ$7),DJ$5,"") ->  | DK65: =IF(AND(#REF!=DK$2,$R65<DK$3,$R65>DK$4,#REF!>DK$6,#REF!<DK$7),DK$5,"") ->  | DL65: =IF(AND(#REF!=DL$2,$R65<DL$3,$R65>DL$4,#REF!>DL$6,#REF!<DL$7),DL$5,"") ->  | DM65: =IF(AND(#REF!=DM$2,$R65<DM$3,$R65>DM$4,#REF!>DM$6,#REF!<DM$7),DM$5,"") ->  | DN65: =IF(AND(#REF!=DN$2,$R65<DN$3,$R65>DN$4,#REF!>DN$6,#REF!<DN$7),DN$5,"") ->  | DO65: =IF(AND(#REF!=DO$2,$R65<DO$3,$R65>DO$4,#REF!>DO$6,#REF!<DO$7),DO$5,"") ->  | DP65: =IF(AND(#REF!=DP$2,$R65<DP$3,$R65>DP$4,#REF!>DP$6,#REF!<DP$7),DP$5,"") ->  | DQ65: =IF(AND(#REF!=DQ$2,$R65<DQ$3,$R65>DQ$4,#REF!>DQ$6,#REF!<DQ$7),DQ$5,"") ->  | DR65: =IF(AND(#REF!=DR$2,$R65<DR$3,$R65>DR$4,#REF!>DR$6,#REF!<DR$7),DR$5,"") ->  | DS65: =IF(AND(#REF!=DS$2,$R65<DS$3,$R65>DS$4,#REF!>DS$6,#REF!<DS$7),DS$5,"") ->  | DT65: =IF(AND(#REF!=DT$2,$R65<DT$3,$R65>DT$4,#REF!>DT$6,#REF!<DT$7),DT$5,"") ->  | DU65: =IF(AND(#REF!=DU$2,$R65<DU$3,$R65>DU$4,#REF!>DU$6,#REF!<DU$7),DU$5,"") ->  | DV65: =IF(AND(#REF!=DV$2,$R65<DV$3,$R65>DV$4,#REF!>DV$6,#REF!<DV$7),DV$5,"") ->  | DW65: =IF(AND(#REF!=DW$2,$R65<DW$3,$R65>DW$4,#REF!>DW$6,#REF!<DW$7),DW$5,"") ->  | DX65: =IF(AND(#REF!=DX$2,$R65<DX$3,$R65>DX$4,#REF!>DX$6,#REF!<DX$7),DX$5,"") ->  | DY65: =IF(AND(#REF!=DY$2,$R65<DY$3,$R65>DY$4,#REF!>DY$6,#REF!<DY$7),DY$5,"") ->  | DZ65: =IF(AND(#REF!=DZ$2,$R65<DZ$3,$R65>DZ$4,#REF!>DZ$6,#REF!<DZ$7),DZ$5,"") ->  | EA65: =IF(AND(#REF!=EA$2,$R65<EA$3,$R65>EA$4,#REF!>EA$6,#REF!<EA$7),EA$5,"") ->  | EB65: =IF(AND(#REF!=EB$2,$R65<EB$3,$R65>EB$4,#REF!>EB$6,#REF!<EB$7),EB$5,"") ->  | EC65: =IF(AND(#REF!=EC$2,$R65<EC$3,$R65>EC$4,#REF!>EC$6,#REF!<EC$7),EC$5,"") ->  | ED65: =IF(AND(#REF!=ED$2,$R65<ED$3,$R65>ED$4,#REF!>ED$6,#REF!<ED$7),ED$5,"") ->  | EE65: =IF(AND(#REF!=EE$2,$R65<EE$3,$R65>EE$4,#REF!>EE$6,#REF!<EE$7),EE$5,"") ->  | EF65: =IF(AND(#REF!=EF$2,$R65<EF$3,$R65>EF$4,#REF!>EF$6,#REF!<EF$7),EF$5,"") ->  | EG65: =IF(AND(#REF!=EG$2,$R65<EG$3,$R65>EG$4,#REF!>EG$6,#REF!<EG$7),EG$5,"") ->  | EH65: =IF(AND(#REF!=EH$2,$R65<EH$3,$R65>EH$4,#REF!>EH$6,#REF!<EH$7),EH$5,"") ->  | EI65: =IF(AND(#REF!=EI$2,$R65<EI$3,$R65>EI$4,#REF!>EI$6,#REF!<EI$7),EI$5,"") ->  | EJ65: =IF(AND(#REF!=EJ$2,$R65<EJ$3,$R65>EJ$4,#REF!>EJ$6,#REF!<EJ$7),EJ$5,"") ->  | EK65: =IF(AND(#REF!=EK$2,$R65<EK$3,$R65>EK$4,#REF!>EK$6,#REF!<EK$7),EK$5,"") ->  | EL65: =IF(AND(#REF!=EL$2,$R65<EL$3,$R65>EL$4,#REF!>EL$6,#REF!<EL$7),EL$5,"") ->  | EM65: =IF(AND(#REF!=EM$2,$R65<EM$3,$R65>EM$4,#REF!>EM$6,#REF!<EM$7),EM$5,"") ->  | EN65: =IF(AND(#REF!=EN$2,$R65<EN$3,$R65>EN$4,#REF!>EN$6,#REF!<EN$7),EN$5,"") ->  | EO65: =IF(AND(#REF!=EO$2,$R65<EO$3,$R65>EO$4,#REF!>EO$6,#REF!<EO$7),EO$5,"") ->  | EP65: =IF(AND(#REF!=EP$2,$R65<EP$3,$R65>EP$4,#REF!>EP$6,#REF!<EP$7),EP$5,"") ->  | EQ65: =IF(AND(#REF!=EQ$2,$R65<EQ$3,$R65>EQ$4,#REF!>EQ$6,#REF!<EQ$7),EQ$5,"") ->  | ER65: =IF(AND(#REF!=ER$2,$R65<ER$3,$R65>ER$4,#REF!>ER$6,#REF!<ER$7),ER$5,"") ->  | ES65: =IF(AND(#REF!=ES$2,$R65<ES$3,$R65>ES$4,#REF!>ES$6,#REF!<ES$7),ES$5,"") ->  | ET65: =IF(AND(#REF!=ET$2,$R65<ET$3,$R65>ET$4,#REF!>ET$6,#REF!<ET$7),ET$5,"") ->  | EU65: =IF(AND(#REF!=EU$2,$R65<EU$3,$R65>EU$4,#REF!>EU$6,#REF!<EU$7),EU$5,"") ->  | EV65: =IF(AND(#REF!=EV$2,$R65<EV$3,$R65>EV$4,#REF!>EV$6,#REF!<EV$7),EV$5,"") ->  | EW65: =IF(AND(#REF!=EW$2,$R65<EW$3,$R65>EW$4,#REF!>EW$6,#REF!<EW$7),EW$5,"") ->  | EX65: =IF(AND(#REF!=EX$2,$R65<EX$3,$R65>EX$4,#REF!>EX$6,#REF!<EX$7),EX$5,"") ->  | EY65: =IF(AND(#REF!=EY$2,$R65<EY$3,$R65>EY$4,#REF!>EY$6,#REF!<EY$7),EY$5,"") ->  | EZ65: =IF(AND(#REF!=EZ$2,$R65<EZ$3,$R65>EZ$4,#REF!>EZ$6,#REF!<EZ$7),EZ$5,"") ->  | FA65: =IF(AND(#REF!=FA$2,$R65<FA$3,$R65>FA$4,#REF!>FA$6,#REF!<FA$7),FA$5,"") ->  | FB65: =IF(AND(#REF!=FB$2,$R65<FB$3,$R65>FB$4,#REF!>FB$6,#REF!<FB$7),FB$5,"") ->  | FC65: =IF(AND(#REF!=FC$2,$R65<FC$3,$R65>FC$4,#REF!>FC$6,#REF!<FC$7),FC$5,"") ->  | FD65: =IF(AND(#REF!=FD$2,$R65<FD$3,$R65>FD$4,#REF!>FD$6,#REF!<FD$7),FD$5,"") ->  | FE65: =IF(AND(#REF!=FE$2,$R65<FE$3,$R65>FE$4,#REF!>FE$6,#REF!<FE$7),FE$5,"") ->  | FF65: =IF(AND(#REF!=FF$2,$R65<FF$3,$R65>FF$4,#REF!>FF$6,#REF!<FF$7),FF$5,"") ->  | FG65: =IF(AND(#REF!=FG$2,$R65<FG$3,$R65>FG$4,#REF!>FG$6,#REF!<FG$7),FG$5,"") ->  | FH65: =IF(AND(#REF!=FH$2,$R65<FH$3,$R65>FH$4,#REF!>FH$6,#REF!<FH$7),FH$5,"") ->  | FI65: =IF(AND(#REF!=FI$2,$R65<FI$3,$R65>FI$4,#REF!>FI$6,#REF!<FI$7),FI$5,"") ->  | FJ65: =IF(AND(#REF!=FJ$2,$R65<FJ$3,$R65>FJ$4,#REF!>FJ$6,#REF!<FJ$7),FJ$5,"") ->  | FK65: =IF(AND(#REF!=FK$2,$R65<FK$3,$R65>FK$4,#REF!>FK$6,#REF!<FK$7),FK$5,"") ->  | FL65: =IF(AND(#REF!=FL$2,$R65<FL$3,$R65>FL$4,#REF!>FL$6,#REF!<FL$7),FL$5,"") ->  | FM65: =IF(AND(#REF!=FM$2,$R65<FM$3,$R65>FM$4,#REF!>FM$6,#REF!<FM$7),FM$5,"") ->  | FN65: =IF(AND(#REF!=FN$2,$R65<FN$3,$R65>FN$4,#REF!>FN$6,#REF!<FN$7),FN$5,"") ->  | FO65: =IF(AND(#REF!=FO$2,$R65<FO$3,$R65>FO$4,#REF!>FO$6,#REF!<FO$7),FO$5,"") ->  | FP65: =IF(AND(#REF!=FP$2,$R65<FP$3,$R65>FP$4,#REF!>FP$6,#REF!<FP$7),FP$5,"") ->  | FQ65: =IF(AND(#REF!=FQ$2,$R65<FQ$3,$R65>FQ$4,#REF!>FQ$6,#REF!<FQ$7),FQ$5,"") ->  | FR65: =IF(AND(#REF!=FR$2,$R65<FR$3,$R65>FR$4,#REF!>FR$6,#REF!<FR$7),FR$5,"") ->  | FS65: =IF(AND(#REF!=FS$2,$R65<FS$3,$R65>FS$4,#REF!>FS$6,#REF!<FS$7),FS$5,"") ->  | FT65: =IF(AND(#REF!=FT$2,$R65<FT$3,$R65>FT$4,#REF!>FT$6,#REF!<FT$7),FT$5,"") ->  | FU65: =IF(AND(#REF!=FU$2,$R65<FU$3,$R65>FU$4,#REF!>FU$6,#REF!<FU$7),FU$5,"") ->  | FV65: =IF(AND(#REF!=FV$2,$R65<FV$3,$R65>FV$4,#REF!>FV$6,#REF!<FV$7),FV$5,"") ->  | FW65: =IF(AND(#REF!=FW$2,$R65<FW$3,$R65>FW$4,#REF!>FW$6,#REF!<FW$7),FW$5,"") -> 
AN66: =IF(AND(#REF!=AN$2,$R66<AN$3,$R66>AN$4,#REF!>AN$6,#REF!<AN$7),AN$5,"") ->  | AO66: =IF(AND(#REF!=AO$2,$R66<AO$3,$R66>AO$4,#REF!>AO$6,#REF!<AO$7),AO$5,"") ->  | AP66: =IF(AND(#REF!=AP$2,$R66<AP$3,$R66>AP$4,#REF!>AP$6,#REF!<AP$7),AP$5,"") ->  | AQ66: =IF(AND(#REF!=AQ$2,$R66<AQ$3,$R66>AQ$4,#REF!>AQ$6,#REF!<AQ$7),AQ$5,"") ->  | AR66: =IF(AND(#REF!=AR$2,$R66<AR$3,$R66>AR$4,#REF!>AR$6,#REF!<AR$7),AR$5,"") ->  | AS66: =IF(AND(#REF!=AS$2,$R66<AS$3,$R66>AS$4,#REF!>AS$6,#REF!<AS$7),AS$5,"") ->  | AT66: =IF(AND(#REF!=AT$2,$R66<AT$3,$R66>AT$4,#REF!>AT$6,#REF!<AT$7),AT$5,"") ->  | AU66: =IF(AND(#REF!=AU$2,$R66<AU$3,$R66>AU$4,#REF!>AU$6,#REF!<AU$7),AU$5,"") ->  | AV66: =IF(AND(#REF!=AV$2,$R66<AV$3,$R66>AV$4,#REF!>AV$6,#REF!<AV$7),AV$5,"") ->  | AW66: =IF(AND(#REF!=AW$2,$R66<AW$3,$R66>AW$4,#REF!>AW$6,#REF!<AW$7),AW$5,"") ->  | AX66: =IF(AND(#REF!=AX$2,$R66<AX$3,$R66>AX$4,#REF!>AX$6,#REF!<AX$7),AX$5,"") ->  | AY66: =IF(AND(#REF!=AY$2,$R66<AY$3,$R66>AY$4,#REF!>AY$6,#REF!<AY$7),AY$5,"") ->  | AZ66: =IF(AND(#REF!=AZ$2,$R66<AZ$3,$R66>AZ$4,#REF!>AZ$6,#REF!<AZ$7),AZ$5,"") ->  | BA66: =IF(AND(#REF!=BA$2,$R66<BA$3,$R66>BA$4,#REF!>BA$6,#REF!<BA$7),BA$5,"") ->  | BB66: =IF(AND(#REF!=BB$2,$R66<BB$3,$R66>BB$4,#REF!>BB$6,#REF!<BB$7),BB$5,"") ->  | BC66: =IF(AND(#REF!=BC$2,$R66<BC$3,$R66>BC$4,#REF!>BC$6,#REF!<BC$7),BC$5,"") ->  | BD66: =IF(AND(#REF!=BD$2,$R66<BD$3,$R66>BD$4,#REF!>BD$6,#REF!<BD$7),BD$5,"") ->  | BE66: =IF(AND(#REF!=BE$2,$R66<BE$3,$R66>BE$4,#REF!>BE$6,#REF!<BE$7),BE$5,"") ->  | BF66: =IF(AND(#REF!=BF$2,$R66<BF$3,$R66>BF$4,#REF!>BF$6,#REF!<BF$7),BF$5,"") ->  | BG66: =IF(AND(#REF!=BG$2,$R66<BG$3,$R66>BG$4,#REF!>BG$6,#REF!<BG$7),BG$5,"") ->  | BH66: =IF(AND(#REF!=BH$2,$R66<BH$3,$R66>BH$4,#REF!>BH$6,#REF!<BH$7),BH$5,"") ->  | BI66: =IF(AND(#REF!=BI$2,$R66<BI$3,$R66>BI$4,#REF!>BI$6,#REF!<BI$7),BI$5,"") ->  | BJ66: =IF(AND(#REF!=BJ$2,$R66<BJ$3,$R66>BJ$4,#REF!>BJ$6,#REF!<BJ$7),BJ$5,"") ->  | BK66: =IF(AND(#REF!=BK$2,$R66<BK$3,$R66>BK$4,#REF!>BK$6,#REF!<BK$7),BK$5,"") ->  | BL66: =IF(AND(#REF!=BL$2,$R66<BL$3,$R66>BL$4,#REF!>BL$6,#REF!<BL$7),BL$5,"") ->  | BM66: =IF(AND(#REF!=BM$2,$R66<BM$3,$R66>BM$4,#REF!>BM$6,#REF!<BM$7),BM$5,"") ->  | BN66: =IF(AND(#REF!=BN$2,$R66<BN$3,$R66>BN$4,#REF!>BN$6,#REF!<BN$7),BN$5,"") ->  | BO66: =IF(AND(#REF!=BO$2,$R66<BO$3,$R66>BO$4,#REF!>BO$6,#REF!<BO$7),BO$5,"") ->  | BP66: =IF(AND(#REF!=BP$2,$R66<BP$3,$R66>BP$4,#REF!>BP$6,#REF!<BP$7),BP$5,"") ->  | BQ66: =IF(AND(#REF!=BQ$2,$R66<BQ$3,$R66>BQ$4,#REF!>BQ$6,#REF!<BQ$7),BQ$5,"") ->  | BR66: =IF(AND(#REF!=BR$2,$R66<BR$3,$R66>BR$4,#REF!>BR$6,#REF!<BR$7),BR$5,"") ->  | BS66: =IF(AND(#REF!=BS$2,$R66<BS$3,$R66>BS$4,#REF!>BS$6,#REF!<BS$7),BS$5,"") ->  | BT66: =IF(AND(#REF!=BT$2,$R66<BT$3,$R66>BT$4,#REF!>BT$6,#REF!<BT$7),BT$5,"") ->  | BU66: =IF(AND(#REF!=BU$2,$R66<BU$3,$R66>BU$4,#REF!>BU$6,#REF!<BU$7),BU$5,"") ->  | BV66: =IF(AND(#REF!=BV$2,$R66<BV$3,$R66>BV$4,#REF!>BV$6,#REF!<BV$7),BV$5,"") ->  | BW66: =IF(AND(#REF!=BW$2,$R66<BW$3,$R66>BW$4,#REF!>BW$6,#REF!<BW$7),BW$5,"") ->  | BX66: =IF(AND(#REF!=BX$2,$R66<BX$3,$R66>BX$4,#REF!>BX$6,#REF!<BX$7),BX$5,"") ->  | BY66: =IF(AND(#REF!=BY$2,$R66<BY$3,$R66>BY$4,#REF!>BY$6,#REF!<BY$7),BY$5,"") ->  | BZ66: =IF(AND(#REF!=BZ$2,$R66<BZ$3,$R66>BZ$4,#REF!>BZ$6,#REF!<BZ$7),BZ$5,"") ->  | CA66: =IF(AND(#REF!=CA$2,$R66<CA$3,$R66>CA$4,#REF!>CA$6,#REF!<CA$7),CA$5,"") ->  | CB66: =IF(AND(#REF!=CB$2,$R66<CB$3,$R66>CB$4,#REF!>CB$6,#REF!<CB$7),CB$5,"") ->  | CC66: =IF(AND(#REF!=CC$2,$R66<CC$3,$R66>CC$4,#REF!>CC$6,#REF!<CC$7),CC$5,"") ->  | CD66: =IF(AND(#REF!=CD$2,$R66<CD$3,$R66>CD$4,#REF!>CD$6,#REF!<CD$7),CD$5,"") ->  | CE66: =IF(AND(#REF!=CE$2,$R66<CE$3,$R66>CE$4,#REF!>CE$6,#REF!<CE$7),CE$5,"") ->  | CF66: =IF(AND(#REF!=CF$2,$R66<CF$3,$R66>CF$4,#REF!>CF$6,#REF!<CF$7),CF$5,"") ->  | CG66: =IF(AND(#REF!=CG$2,$R66<CG$3,$R66>CG$4,#REF!>CG$6,#REF!<CG$7),CG$5,"") ->  | CH66: =IF(AND(#REF!=CH$2,$R66<CH$3,$R66>CH$4,#REF!>CH$6,#REF!<CH$7),CH$5,"") ->  | CI66: =IF(AND(#REF!=CI$2,$R66<CI$3,$R66>CI$4,#REF!>CI$6,#REF!<CI$7),CI$5,"") ->  | CJ66: =IF(AND(#REF!=CJ$2,$R66<CJ$3,$R66>CJ$4,#REF!>CJ$6,#REF!<CJ$7),CJ$5,"") ->  | CK66: =IF(AND(#REF!=CK$2,$R66<CK$3,$R66>CK$4,#REF!>CK$6,#REF!<CK$7),CK$5,"") ->  | CL66: =IF(AND(#REF!=CL$2,$R66<CL$3,$R66>CL$4,#REF!>CL$6,#REF!<CL$7),CL$5,"") ->  | CM66: =IF(AND(#REF!=CM$2,$R66<CM$3,$R66>CM$4,#REF!>CM$6,#REF!<CM$7),CM$5,"") ->  | CN66: =IF(AND(#REF!=CN$2,$R66<CN$3,$R66>CN$4,#REF!>CN$6,#REF!<CN$7),CN$5,"") ->  | CO66: =IF(AND(#REF!=CO$2,$R66<CO$3,$R66>CO$4,#REF!>CO$6,#REF!<CO$7),CO$5,"") ->  | CP66: =IF(AND(#REF!=CP$2,$R66<CP$3,$R66>CP$4,#REF!>CP$6,#REF!<CP$7),CP$5,"") ->  | CQ66: =IF(AND(#REF!=CQ$2,$R66<CQ$3,$R66>CQ$4,#REF!>CQ$6,#REF!<CQ$7),CQ$5,"") ->  | CR66: =IF(AND(#REF!=CR$2,$R66<CR$3,$R66>CR$4,#REF!>CR$6,#REF!<CR$7),CR$5,"") ->  | CS66: =IF(AND(#REF!=CS$2,$R66<CS$3,$R66>CS$4,#REF!>CS$6,#REF!<CS$7),CS$5,"") ->  | CT66: =IF(AND(#REF!=CT$2,$R66<CT$3,$R66>CT$4,#REF!>CT$6,#REF!<CT$7),CT$5,"") ->  | CU66: =IF(AND(#REF!=CU$2,$R66<CU$3,$R66>CU$4,#REF!>CU$6,#REF!<CU$7),CU$5,"") ->  | CV66: =IF(AND(#REF!=CV$2,$R66<CV$3,$R66>CV$4,#REF!>CV$6,#REF!<CV$7),CV$5,"") ->  | CW66: =IF(AND(#REF!=CW$2,$R66<CW$3,$R66>CW$4,#REF!>CW$6,#REF!<CW$7),CW$5,"") ->  | CX66: =IF(AND(#REF!=CX$2,$R66<CX$3,$R66>CX$4,#REF!>CX$6,#REF!<CX$7),CX$5,"") ->  | CY66: =IF(AND(#REF!=CY$2,$R66<CY$3,$R66>CY$4,#REF!>CY$6,#REF!<CY$7),CY$5,"") ->  | CZ66: =IF(AND(#REF!=CZ$2,$R66<CZ$3,$R66>CZ$4,#REF!>CZ$6,#REF!<CZ$7),CZ$5,"") ->  | DA66: =IF(AND(#REF!=DA$2,$R66<DA$3,$R66>DA$4,#REF!>DA$6,#REF!<DA$7),DA$5,"") ->  | DB66: =IF(AND(#REF!=DB$2,$R66<DB$3,$R66>DB$4,#REF!>DB$6,#REF!<DB$7),DB$5,"") ->  | DC66: =IF(AND(#REF!=DC$2,$R66<DC$3,$R66>DC$4,#REF!>DC$6,#REF!<DC$7),DC$5,"") ->  | DD66: =IF(AND(#REF!=DD$2,$R66<DD$3,$R66>DD$4,#REF!>DD$6,#REF!<DD$7),DD$5,"") ->  | DE66: =IF(AND(#REF!=DE$2,$R66<DE$3,$R66>DE$4,#REF!>DE$6,#REF!<DE$7),DE$5,"") ->  | DF66: =IF(AND(#REF!=DF$2,$R66<DF$3,$R66>DF$4,#REF!>DF$6,#REF!<DF$7),DF$5,"") ->  | DG66: =IF(AND(#REF!=DG$2,$R66<DG$3,$R66>DG$4,#REF!>DG$6,#REF!<DG$7),DG$5,"") ->  | DH66: =IF(AND(#REF!=DH$2,$R66<DH$3,$R66>DH$4,#REF!>DH$6,#REF!<DH$7),DH$5,"") ->  | DI66: =IF(AND(#REF!=DI$2,$R66<DI$3,$R66>DI$4,#REF!>DI$6,#REF!<DI$7),DI$5,"") ->  | DJ66: =IF(AND(#REF!=DJ$2,$R66<DJ$3,$R66>DJ$4,#REF!>DJ$6,#REF!<DJ$7),DJ$5,"") ->  | DK66: =IF(AND(#REF!=DK$2,$R66<DK$3,$R66>DK$4,#REF!>DK$6,#REF!<DK$7),DK$5,"") ->  | DL66: =IF(AND(#REF!=DL$2,$R66<DL$3,$R66>DL$4,#REF!>DL$6,#REF!<DL$7),DL$5,"") ->  | DM66: =IF(AND(#REF!=DM$2,$R66<DM$3,$R66>DM$4,#REF!>DM$6,#REF!<DM$7),DM$5,"") ->  | DN66: =IF(AND(#REF!=DN$2,$R66<DN$3,$R66>DN$4,#REF!>DN$6,#REF!<DN$7),DN$5,"") ->  | DO66: =IF(AND(#REF!=DO$2,$R66<DO$3,$R66>DO$4,#REF!>DO$6,#REF!<DO$7),DO$5,"") ->  | DP66: =IF(AND(#REF!=DP$2,$R66<DP$3,$R66>DP$4,#REF!>DP$6,#REF!<DP$7),DP$5,"") ->  | DQ66: =IF(AND(#REF!=DQ$2,$R66<DQ$3,$R66>DQ$4,#REF!>DQ$6,#REF!<DQ$7),DQ$5,"") ->  | DR66: =IF(AND(#REF!=DR$2,$R66<DR$3,$R66>DR$4,#REF!>DR$6,#REF!<DR$7),DR$5,"") ->  | DS66: =IF(AND(#REF!=DS$2,$R66<DS$3,$R66>DS$4,#REF!>DS$6,#REF!<DS$7),DS$5,"") ->  | DT66: =IF(AND(#REF!=DT$2,$R66<DT$3,$R66>DT$4,#REF!>DT$6,#REF!<DT$7),DT$5,"") ->  | DU66: =IF(AND(#REF!=DU$2,$R66<DU$3,$R66>DU$4,#REF!>DU$6,#REF!<DU$7),DU$5,"") ->  | DV66: =IF(AND(#REF!=DV$2,$R66<DV$3,$R66>DV$4,#REF!>DV$6,#REF!<DV$7),DV$5,"") ->  | DW66: =IF(AND(#REF!=DW$2,$R66<DW$3,$R66>DW$4,#REF!>DW$6,#REF!<DW$7),DW$5,"") ->  | DX66: =IF(AND(#REF!=DX$2,$R66<DX$3,$R66>DX$4,#REF!>DX$6,#REF!<DX$7),DX$5,"") ->  | DY66: =IF(AND(#REF!=DY$2,$R66<DY$3,$R66>DY$4,#REF!>DY$6,#REF!<DY$7),DY$5,"") ->  | DZ66: =IF(AND(#REF!=DZ$2,$R66<DZ$3,$R66>DZ$4,#REF!>DZ$6,#REF!<DZ$7),DZ$5,"") ->  | EA66: =IF(AND(#REF!=EA$2,$R66<EA$3,$R66>EA$4,#REF!>EA$6,#REF!<EA$7),EA$5,"") ->  | EB66: =IF(AND(#REF!=EB$2,$R66<EB$3,$R66>EB$4,#REF!>EB$6,#REF!<EB$7),EB$5,"") ->  | EC66: =IF(AND(#REF!=EC$2,$R66<EC$3,$R66>EC$4,#REF!>EC$6,#REF!<EC$7),EC$5,"") ->  | ED66: =IF(AND(#REF!=ED$2,$R66<ED$3,$R66>ED$4,#REF!>ED$6,#REF!<ED$7),ED$5,"") ->  | EE66: =IF(AND(#REF!=EE$2,$R66<EE$3,$R66>EE$4,#REF!>EE$6,#REF!<EE$7),EE$5,"") ->  | EF66: =IF(AND(#REF!=EF$2,$R66<EF$3,$R66>EF$4,#REF!>EF$6,#REF!<EF$7),EF$5,"") ->  | EG66: =IF(AND(#REF!=EG$2,$R66<EG$3,$R66>EG$4,#REF!>EG$6,#REF!<EG$7),EG$5,"") ->  | EH66: =IF(AND(#REF!=EH$2,$R66<EH$3,$R66>EH$4,#REF!>EH$6,#REF!<EH$7),EH$5,"") ->  | EI66: =IF(AND(#REF!=EI$2,$R66<EI$3,$R66>EI$4,#REF!>EI$6,#REF!<EI$7),EI$5,"") ->  | EJ66: =IF(AND(#REF!=EJ$2,$R66<EJ$3,$R66>EJ$4,#REF!>EJ$6,#REF!<EJ$7),EJ$5,"") ->  | EK66: =IF(AND(#REF!=EK$2,$R66<EK$3,$R66>EK$4,#REF!>EK$6,#REF!<EK$7),EK$5,"") ->  | EL66: =IF(AND(#REF!=EL$2,$R66<EL$3,$R66>EL$4,#REF!>EL$6,#REF!<EL$7),EL$5,"") ->  | EM66: =IF(AND(#REF!=EM$2,$R66<EM$3,$R66>EM$4,#REF!>EM$6,#REF!<EM$7),EM$5,"") ->  | EN66: =IF(AND(#REF!=EN$2,$R66<EN$3,$R66>EN$4,#REF!>EN$6,#REF!<EN$7),EN$5,"") ->  | EO66: =IF(AND(#REF!=EO$2,$R66<EO$3,$R66>EO$4,#REF!>EO$6,#REF!<EO$7),EO$5,"") ->  | EP66: =IF(AND(#REF!=EP$2,$R66<EP$3,$R66>EP$4,#REF!>EP$6,#REF!<EP$7),EP$5,"") ->  | EQ66: =IF(AND(#REF!=EQ$2,$R66<EQ$3,$R66>EQ$4,#REF!>EQ$6,#REF!<EQ$7),EQ$5,"") ->  | ER66: =IF(AND(#REF!=ER$2,$R66<ER$3,$R66>ER$4,#REF!>ER$6,#REF!<ER$7),ER$5,"") ->  | ES66: =IF(AND(#REF!=ES$2,$R66<ES$3,$R66>ES$4,#REF!>ES$6,#REF!<ES$7),ES$5,"") ->  | ET66: =IF(AND(#REF!=ET$2,$R66<ET$3,$R66>ET$4,#REF!>ET$6,#REF!<ET$7),ET$5,"") ->  | EU66: =IF(AND(#REF!=EU$2,$R66<EU$3,$R66>EU$4,#REF!>EU$6,#REF!<EU$7),EU$5,"") ->  | EV66: =IF(AND(#REF!=EV$2,$R66<EV$3,$R66>EV$4,#REF!>EV$6,#REF!<EV$7),EV$5,"") ->  | EW66: =IF(AND(#REF!=EW$2,$R66<EW$3,$R66>EW$4,#REF!>EW$6,#REF!<EW$7),EW$5,"") ->  | EX66: =IF(AND(#REF!=EX$2,$R66<EX$3,$R66>EX$4,#REF!>EX$6,#REF!<EX$7),EX$5,"") ->  | EY66: =IF(AND(#REF!=EY$2,$R66<EY$3,$R66>EY$4,#REF!>EY$6,#REF!<EY$7),EY$5,"") ->  | EZ66: =IF(AND(#REF!=EZ$2,$R66<EZ$3,$R66>EZ$4,#REF!>EZ$6,#REF!<EZ$7),EZ$5,"") ->  | FA66: =IF(AND(#REF!=FA$2,$R66<FA$3,$R66>FA$4,#REF!>FA$6,#REF!<FA$7),FA$5,"") ->  | FB66: =IF(AND(#REF!=FB$2,$R66<FB$3,$R66>FB$4,#REF!>FB$6,#REF!<FB$7),FB$5,"") ->  | FC66: =IF(AND(#REF!=FC$2,$R66<FC$3,$R66>FC$4,#REF!>FC$6,#REF!<FC$7),FC$5,"") ->  | FD66: =IF(AND(#REF!=FD$2,$R66<FD$3,$R66>FD$4,#REF!>FD$6,#REF!<FD$7),FD$5,"") ->  | FE66: =IF(AND(#REF!=FE$2,$R66<FE$3,$R66>FE$4,#REF!>FE$6,#REF!<FE$7),FE$5,"") ->  | FF66: =IF(AND(#REF!=FF$2,$R66<FF$3,$R66>FF$4,#REF!>FF$6,#REF!<FF$7),FF$5,"") ->  | FG66: =IF(AND(#REF!=FG$2,$R66<FG$3,$R66>FG$4,#REF!>FG$6,#REF!<FG$7),FG$5,"") ->  | FH66: =IF(AND(#REF!=FH$2,$R66<FH$3,$R66>FH$4,#REF!>FH$6,#REF!<FH$7),FH$5,"") ->  | FI66: =IF(AND(#REF!=FI$2,$R66<FI$3,$R66>FI$4,#REF!>FI$6,#REF!<FI$7),FI$5,"") ->  | FJ66: =IF(AND(#REF!=FJ$2,$R66<FJ$3,$R66>FJ$4,#REF!>FJ$6,#REF!<FJ$7),FJ$5,"") ->  | FK66: =IF(AND(#REF!=FK$2,$R66<FK$3,$R66>FK$4,#REF!>FK$6,#REF!<FK$7),FK$5,"") ->  | FL66: =IF(AND(#REF!=FL$2,$R66<FL$3,$R66>FL$4,#REF!>FL$6,#REF!<FL$7),FL$5,"") ->  | FM66: =IF(AND(#REF!=FM$2,$R66<FM$3,$R66>FM$4,#REF!>FM$6,#REF!<FM$7),FM$5,"") ->  | FN66: =IF(AND(#REF!=FN$2,$R66<FN$3,$R66>FN$4,#REF!>FN$6,#REF!<FN$7),FN$5,"") ->  | FO66: =IF(AND(#REF!=FO$2,$R66<FO$3,$R66>FO$4,#REF!>FO$6,#REF!<FO$7),FO$5,"") ->  | FP66: =IF(AND(#REF!=FP$2,$R66<FP$3,$R66>FP$4,#REF!>FP$6,#REF!<FP$7),FP$5,"") ->  | FQ66: =IF(AND(#REF!=FQ$2,$R66<FQ$3,$R66>FQ$4,#REF!>FQ$6,#REF!<FQ$7),FQ$5,"") ->  | FR66: =IF(AND(#REF!=FR$2,$R66<FR$3,$R66>FR$4,#REF!>FR$6,#REF!<FR$7),FR$5,"") ->  | FS66: =IF(AND(#REF!=FS$2,$R66<FS$3,$R66>FS$4,#REF!>FS$6,#REF!<FS$7),FS$5,"") ->  | FT66: =IF(AND(#REF!=FT$2,$R66<FT$3,$R66>FT$4,#REF!>FT$6,#REF!<FT$7),FT$5,"") ->  | FU66: =IF(AND(#REF!=FU$2,$R66<FU$3,$R66>FU$4,#REF!>FU$6,#REF!<FU$7),FU$5,"") ->  | FV66: =IF(AND(#REF!=FV$2,$R66<FV$3,$R66>FV$4,#REF!>FV$6,#REF!<FV$7),FV$5,"") ->  | FW66: =IF(AND(#REF!=FW$2,$R66<FW$3,$R66>FW$4,#REF!>FW$6,#REF!<FW$7),FW$5,"") -> 
AN67: =IF(AND(#REF!=AN$2,$R67<AN$3,$R67>AN$4,#REF!>AN$6,#REF!<AN$7),AN$5,"") ->  | AO67: =IF(AND(#REF!=AO$2,$R67<AO$3,$R67>AO$4,#REF!>AO$6,#REF!<AO$7),AO$5,"") ->  | AP67: =IF(AND(#REF!=AP$2,$R67<AP$3,$R67>AP$4,#REF!>AP$6,#REF!<AP$7),AP$5,"") ->  | AQ67: =IF(AND(#REF!=AQ$2,$R67<AQ$3,$R67>AQ$4,#REF!>AQ$6,#REF!<AQ$7),AQ$5,"") ->  | AR67: =IF(AND(#REF!=AR$2,$R67<AR$3,$R67>AR$4,#REF!>AR$6,#REF!<AR$7),AR$5,"") ->  | AS67: =IF(AND(#REF!=AS$2,$R67<AS$3,$R67>AS$4,#REF!>AS$6,#REF!<AS$7),AS$5,"") ->  | AT67: =IF(AND(#REF!=AT$2,$R67<AT$3,$R67>AT$4,#REF!>AT$6,#REF!<AT$7),AT$5,"") ->  | AU67: =IF(AND(#REF!=AU$2,$R67<AU$3,$R67>AU$4,#REF!>AU$6,#REF!<AU$7),AU$5,"") ->  | AV67: =IF(AND(#REF!=AV$2,$R67<AV$3,$R67>AV$4,#REF!>AV$6,#REF!<AV$7),AV$5,"") ->  | AW67: =IF(AND(#REF!=AW$2,$R67<AW$3,$R67>AW$4,#REF!>AW$6,#REF!<AW$7),AW$5,"") ->  | AX67: =IF(AND(#REF!=AX$2,$R67<AX$3,$R67>AX$4,#REF!>AX$6,#REF!<AX$7),AX$5,"") ->  | AY67: =IF(AND(#REF!=AY$2,$R67<AY$3,$R67>AY$4,#REF!>AY$6,#REF!<AY$7),AY$5,"") ->  | AZ67: =IF(AND(#REF!=AZ$2,$R67<AZ$3,$R67>AZ$4,#REF!>AZ$6,#REF!<AZ$7),AZ$5,"") ->  | BA67: =IF(AND(#REF!=BA$2,$R67<BA$3,$R67>BA$4,#REF!>BA$6,#REF!<BA$7),BA$5,"") ->  | BB67: =IF(AND(#REF!=BB$2,$R67<BB$3,$R67>BB$4,#REF!>BB$6,#REF!<BB$7),BB$5,"") ->  | BC67: =IF(AND(#REF!=BC$2,$R67<BC$3,$R67>BC$4,#REF!>BC$6,#REF!<BC$7),BC$5,"") ->  | BD67: =IF(AND(#REF!=BD$2,$R67<BD$3,$R67>BD$4,#REF!>BD$6,#REF!<BD$7),BD$5,"") ->  | BE67: =IF(AND(#REF!=BE$2,$R67<BE$3,$R67>BE$4,#REF!>BE$6,#REF!<BE$7),BE$5,"") ->  | BF67: =IF(AND(#REF!=BF$2,$R67<BF$3,$R67>BF$4,#REF!>BF$6,#REF!<BF$7),BF$5,"") ->  | BG67: =IF(AND(#REF!=BG$2,$R67<BG$3,$R67>BG$4,#REF!>BG$6,#REF!<BG$7),BG$5,"") ->  | BH67: =IF(AND(#REF!=BH$2,$R67<BH$3,$R67>BH$4,#REF!>BH$6,#REF!<BH$7),BH$5,"") ->  | BI67: =IF(AND(#REF!=BI$2,$R67<BI$3,$R67>BI$4,#REF!>BI$6,#REF!<BI$7),BI$5,"") ->  | BJ67: =IF(AND(#REF!=BJ$2,$R67<BJ$3,$R67>BJ$4,#REF!>BJ$6,#REF!<BJ$7),BJ$5,"") ->  | BK67: =IF(AND(#REF!=BK$2,$R67<BK$3,$R67>BK$4,#REF!>BK$6,#REF!<BK$7),BK$5,"") ->  | BL67: =IF(AND(#REF!=BL$2,$R67<BL$3,$R67>BL$4,#REF!>BL$6,#REF!<BL$7),BL$5,"") ->  | BM67: =IF(AND(#REF!=BM$2,$R67<BM$3,$R67>BM$4,#REF!>BM$6,#REF!<BM$7),BM$5,"") ->  | BN67: =IF(AND(#REF!=BN$2,$R67<BN$3,$R67>BN$4,#REF!>BN$6,#REF!<BN$7),BN$5,"") ->  | BO67: =IF(AND(#REF!=BO$2,$R67<BO$3,$R67>BO$4,#REF!>BO$6,#REF!<BO$7),BO$5,"") ->  | BP67: =IF(AND(#REF!=BP$2,$R67<BP$3,$R67>BP$4,#REF!>BP$6,#REF!<BP$7),BP$5,"") ->  | BQ67: =IF(AND(#REF!=BQ$2,$R67<BQ$3,$R67>BQ$4,#REF!>BQ$6,#REF!<BQ$7),BQ$5,"") ->  | BR67: =IF(AND(#REF!=BR$2,$R67<BR$3,$R67>BR$4,#REF!>BR$6,#REF!<BR$7),BR$5,"") ->  | BS67: =IF(AND(#REF!=BS$2,$R67<BS$3,$R67>BS$4,#REF!>BS$6,#REF!<BS$7),BS$5,"") ->  | BT67: =IF(AND(#REF!=BT$2,$R67<BT$3,$R67>BT$4,#REF!>BT$6,#REF!<BT$7),BT$5,"") ->  | BU67: =IF(AND(#REF!=BU$2,$R67<BU$3,$R67>BU$4,#REF!>BU$6,#REF!<BU$7),BU$5,"") ->  | BV67: =IF(AND(#REF!=BV$2,$R67<BV$3,$R67>BV$4,#REF!>BV$6,#REF!<BV$7),BV$5,"") ->  | BW67: =IF(AND(#REF!=BW$2,$R67<BW$3,$R67>BW$4,#REF!>BW$6,#REF!<BW$7),BW$5,"") ->  | BX67: =IF(AND(#REF!=BX$2,$R67<BX$3,$R67>BX$4,#REF!>BX$6,#REF!<BX$7),BX$5,"") ->  | BY67: =IF(AND(#REF!=BY$2,$R67<BY$3,$R67>BY$4,#REF!>BY$6,#REF!<BY$7),BY$5,"") ->  | BZ67: =IF(AND(#REF!=BZ$2,$R67<BZ$3,$R67>BZ$4,#REF!>BZ$6,#REF!<BZ$7),BZ$5,"") ->  | CA67: =IF(AND(#REF!=CA$2,$R67<CA$3,$R67>CA$4,#REF!>CA$6,#REF!<CA$7),CA$5,"") ->  | CB67: =IF(AND(#REF!=CB$2,$R67<CB$3,$R67>CB$4,#REF!>CB$6,#REF!<CB$7),CB$5,"") ->  | CC67: =IF(AND(#REF!=CC$2,$R67<CC$3,$R67>CC$4,#REF!>CC$6,#REF!<CC$7),CC$5,"") ->  | CD67: =IF(AND(#REF!=CD$2,$R67<CD$3,$R67>CD$4,#REF!>CD$6,#REF!<CD$7),CD$5,"") ->  | CE67: =IF(AND(#REF!=CE$2,$R67<CE$3,$R67>CE$4,#REF!>CE$6,#REF!<CE$7),CE$5,"") ->  | CF67: =IF(AND(#REF!=CF$2,$R67<CF$3,$R67>CF$4,#REF!>CF$6,#REF!<CF$7),CF$5,"") ->  | CG67: =IF(AND(#REF!=CG$2,$R67<CG$3,$R67>CG$4,#REF!>CG$6,#REF!<CG$7),CG$5,"") ->  | CH67: =IF(AND(#REF!=CH$2,$R67<CH$3,$R67>CH$4,#REF!>CH$6,#REF!<CH$7),CH$5,"") ->  | CI67: =IF(AND(#REF!=CI$2,$R67<CI$3,$R67>CI$4,#REF!>CI$6,#REF!<CI$7),CI$5,"") ->  | CJ67: =IF(AND(#REF!=CJ$2,$R67<CJ$3,$R67>CJ$4,#REF!>CJ$6,#REF!<CJ$7),CJ$5,"") ->  | CK67: =IF(AND(#REF!=CK$2,$R67<CK$3,$R67>CK$4,#REF!>CK$6,#REF!<CK$7),CK$5,"") ->  | CL67: =IF(AND(#REF!=CL$2,$R67<CL$3,$R67>CL$4,#REF!>CL$6,#REF!<CL$7),CL$5,"") ->  | CM67: =IF(AND(#REF!=CM$2,$R67<CM$3,$R67>CM$4,#REF!>CM$6,#REF!<CM$7),CM$5,"") ->  | CN67: =IF(AND(#REF!=CN$2,$R67<CN$3,$R67>CN$4,#REF!>CN$6,#REF!<CN$7),CN$5,"") ->  | CO67: =IF(AND(#REF!=CO$2,$R67<CO$3,$R67>CO$4,#REF!>CO$6,#REF!<CO$7),CO$5,"") ->  | CP67: =IF(AND(#REF!=CP$2,$R67<CP$3,$R67>CP$4,#REF!>CP$6,#REF!<CP$7),CP$5,"") ->  | CQ67: =IF(AND(#REF!=CQ$2,$R67<CQ$3,$R67>CQ$4,#REF!>CQ$6,#REF!<CQ$7),CQ$5,"") ->  | CR67: =IF(AND(#REF!=CR$2,$R67<CR$3,$R67>CR$4,#REF!>CR$6,#REF!<CR$7),CR$5,"") ->  | CS67: =IF(AND(#REF!=CS$2,$R67<CS$3,$R67>CS$4,#REF!>CS$6,#REF!<CS$7),CS$5,"") ->  | CT67: =IF(AND(#REF!=CT$2,$R67<CT$3,$R67>CT$4,#REF!>CT$6,#REF!<CT$7),CT$5,"") ->  | CU67: =IF(AND(#REF!=CU$2,$R67<CU$3,$R67>CU$4,#REF!>CU$6,#REF!<CU$7),CU$5,"") ->  | CV67: =IF(AND(#REF!=CV$2,$R67<CV$3,$R67>CV$4,#REF!>CV$6,#REF!<CV$7),CV$5,"") ->  | CW67: =IF(AND(#REF!=CW$2,$R67<CW$3,$R67>CW$4,#REF!>CW$6,#REF!<CW$7),CW$5,"") ->  | CX67: =IF(AND(#REF!=CX$2,$R67<CX$3,$R67>CX$4,#REF!>CX$6,#REF!<CX$7),CX$5,"") ->  | CY67: =IF(AND(#REF!=CY$2,$R67<CY$3,$R67>CY$4,#REF!>CY$6,#REF!<CY$7),CY$5,"") ->  | CZ67: =IF(AND(#REF!=CZ$2,$R67<CZ$3,$R67>CZ$4,#REF!>CZ$6,#REF!<CZ$7),CZ$5,"") ->  | DA67: =IF(AND(#REF!=DA$2,$R67<DA$3,$R67>DA$4,#REF!>DA$6,#REF!<DA$7),DA$5,"") ->  | DB67: =IF(AND(#REF!=DB$2,$R67<DB$3,$R67>DB$4,#REF!>DB$6,#REF!<DB$7),DB$5,"") ->  | DC67: =IF(AND(#REF!=DC$2,$R67<DC$3,$R67>DC$4,#REF!>DC$6,#REF!<DC$7),DC$5,"") ->  | DD67: =IF(AND(#REF!=DD$2,$R67<DD$3,$R67>DD$4,#REF!>DD$6,#REF!<DD$7),DD$5,"") ->  | DE67: =IF(AND(#REF!=DE$2,$R67<DE$3,$R67>DE$4,#REF!>DE$6,#REF!<DE$7),DE$5,"") ->  | DF67: =IF(AND(#REF!=DF$2,$R67<DF$3,$R67>DF$4,#REF!>DF$6,#REF!<DF$7),DF$5,"") ->  | DG67: =IF(AND(#REF!=DG$2,$R67<DG$3,$R67>DG$4,#REF!>DG$6,#REF!<DG$7),DG$5,"") ->  | DH67: =IF(AND(#REF!=DH$2,$R67<DH$3,$R67>DH$4,#REF!>DH$6,#REF!<DH$7),DH$5,"") ->  | DI67: =IF(AND(#REF!=DI$2,$R67<DI$3,$R67>DI$4,#REF!>DI$6,#REF!<DI$7),DI$5,"") ->  | DJ67: =IF(AND(#REF!=DJ$2,$R67<DJ$3,$R67>DJ$4,#REF!>DJ$6,#REF!<DJ$7),DJ$5,"") ->  | DK67: =IF(AND(#REF!=DK$2,$R67<DK$3,$R67>DK$4,#REF!>DK$6,#REF!<DK$7),DK$5,"") ->  | DL67: =IF(AND(#REF!=DL$2,$R67<DL$3,$R67>DL$4,#REF!>DL$6,#REF!<DL$7),DL$5,"") ->  | DM67: =IF(AND(#REF!=DM$2,$R67<DM$3,$R67>DM$4,#REF!>DM$6,#REF!<DM$7),DM$5,"") ->  | DN67: =IF(AND(#REF!=DN$2,$R67<DN$3,$R67>DN$4,#REF!>DN$6,#REF!<DN$7),DN$5,"") ->  | DO67: =IF(AND(#REF!=DO$2,$R67<DO$3,$R67>DO$4,#REF!>DO$6,#REF!<DO$7),DO$5,"") ->  | DP67: =IF(AND(#REF!=DP$2,$R67<DP$3,$R67>DP$4,#REF!>DP$6,#REF!<DP$7),DP$5,"") ->  | DQ67: =IF(AND(#REF!=DQ$2,$R67<DQ$3,$R67>DQ$4,#REF!>DQ$6,#REF!<DQ$7),DQ$5,"") ->  | DR67: =IF(AND(#REF!=DR$2,$R67<DR$3,$R67>DR$4,#REF!>DR$6,#REF!<DR$7),DR$5,"") ->  | DS67: =IF(AND(#REF!=DS$2,$R67<DS$3,$R67>DS$4,#REF!>DS$6,#REF!<DS$7),DS$5,"") ->  | DT67: =IF(AND(#REF!=DT$2,$R67<DT$3,$R67>DT$4,#REF!>DT$6,#REF!<DT$7),DT$5,"") ->  | DU67: =IF(AND(#REF!=DU$2,$R67<DU$3,$R67>DU$4,#REF!>DU$6,#REF!<DU$7),DU$5,"") ->  | DV67: =IF(AND(#REF!=DV$2,$R67<DV$3,$R67>DV$4,#REF!>DV$6,#REF!<DV$7),DV$5,"") ->  | DW67: =IF(AND(#REF!=DW$2,$R67<DW$3,$R67>DW$4,#REF!>DW$6,#REF!<DW$7),DW$5,"") ->  | DX67: =IF(AND(#REF!=DX$2,$R67<DX$3,$R67>DX$4,#REF!>DX$6,#REF!<DX$7),DX$5,"") ->  | DY67: =IF(AND(#REF!=DY$2,$R67<DY$3,$R67>DY$4,#REF!>DY$6,#REF!<DY$7),DY$5,"") ->  | DZ67: =IF(AND(#REF!=DZ$2,$R67<DZ$3,$R67>DZ$4,#REF!>DZ$6,#REF!<DZ$7),DZ$5,"") ->  | EA67: =IF(AND(#REF!=EA$2,$R67<EA$3,$R67>EA$4,#REF!>EA$6,#REF!<EA$7),EA$5,"") ->  | EB67: =IF(AND(#REF!=EB$2,$R67<EB$3,$R67>EB$4,#REF!>EB$6,#REF!<EB$7),EB$5,"") ->  | EC67: =IF(AND(#REF!=EC$2,$R67<EC$3,$R67>EC$4,#REF!>EC$6,#REF!<EC$7),EC$5,"") ->  | ED67: =IF(AND(#REF!=ED$2,$R67<ED$3,$R67>ED$4,#REF!>ED$6,#REF!<ED$7),ED$5,"") ->  | EE67: =IF(AND(#REF!=EE$2,$R67<EE$3,$R67>EE$4,#REF!>EE$6,#REF!<EE$7),EE$5,"") ->  | EF67: =IF(AND(#REF!=EF$2,$R67<EF$3,$R67>EF$4,#REF!>EF$6,#REF!<EF$7),EF$5,"") ->  | EG67: =IF(AND(#REF!=EG$2,$R67<EG$3,$R67>EG$4,#REF!>EG$6,#REF!<EG$7),EG$5,"") ->  | EH67: =IF(AND(#REF!=EH$2,$R67<EH$3,$R67>EH$4,#REF!>EH$6,#REF!<EH$7),EH$5,"") ->  | EI67: =IF(AND(#REF!=EI$2,$R67<EI$3,$R67>EI$4,#REF!>EI$6,#REF!<EI$7),EI$5,"") ->  | EJ67: =IF(AND(#REF!=EJ$2,$R67<EJ$3,$R67>EJ$4,#REF!>EJ$6,#REF!<EJ$7),EJ$5,"") ->  | EK67: =IF(AND(#REF!=EK$2,$R67<EK$3,$R67>EK$4,#REF!>EK$6,#REF!<EK$7),EK$5,"") ->  | EL67: =IF(AND(#REF!=EL$2,$R67<EL$3,$R67>EL$4,#REF!>EL$6,#REF!<EL$7),EL$5,"") ->  | EM67: =IF(AND(#REF!=EM$2,$R67<EM$3,$R67>EM$4,#REF!>EM$6,#REF!<EM$7),EM$5,"") ->  | EN67: =IF(AND(#REF!=EN$2,$R67<EN$3,$R67>EN$4,#REF!>EN$6,#REF!<EN$7),EN$5,"") ->  | EO67: =IF(AND(#REF!=EO$2,$R67<EO$3,$R67>EO$4,#REF!>EO$6,#REF!<EO$7),EO$5,"") ->  | EP67: =IF(AND(#REF!=EP$2,$R67<EP$3,$R67>EP$4,#REF!>EP$6,#REF!<EP$7),EP$5,"") ->  | EQ67: =IF(AND(#REF!=EQ$2,$R67<EQ$3,$R67>EQ$4,#REF!>EQ$6,#REF!<EQ$7),EQ$5,"") ->  | ER67: =IF(AND(#REF!=ER$2,$R67<ER$3,$R67>ER$4,#REF!>ER$6,#REF!<ER$7),ER$5,"") ->  | ES67: =IF(AND(#REF!=ES$2,$R67<ES$3,$R67>ES$4,#REF!>ES$6,#REF!<ES$7),ES$5,"") ->  | ET67: =IF(AND(#REF!=ET$2,$R67<ET$3,$R67>ET$4,#REF!>ET$6,#REF!<ET$7),ET$5,"") ->  | EU67: =IF(AND(#REF!=EU$2,$R67<EU$3,$R67>EU$4,#REF!>EU$6,#REF!<EU$7),EU$5,"") ->  | EV67: =IF(AND(#REF!=EV$2,$R67<EV$3,$R67>EV$4,#REF!>EV$6,#REF!<EV$7),EV$5,"") ->  | EW67: =IF(AND(#REF!=EW$2,$R67<EW$3,$R67>EW$4,#REF!>EW$6,#REF!<EW$7),EW$5,"") ->  | EX67: =IF(AND(#REF!=EX$2,$R67<EX$3,$R67>EX$4,#REF!>EX$6,#REF!<EX$7),EX$5,"") ->  | EY67: =IF(AND(#REF!=EY$2,$R67<EY$3,$R67>EY$4,#REF!>EY$6,#REF!<EY$7),EY$5,"") ->  | EZ67: =IF(AND(#REF!=EZ$2,$R67<EZ$3,$R67>EZ$4,#REF!>EZ$6,#REF!<EZ$7),EZ$5,"") ->  | FA67: =IF(AND(#REF!=FA$2,$R67<FA$3,$R67>FA$4,#REF!>FA$6,#REF!<FA$7),FA$5,"") ->  | FB67: =IF(AND(#REF!=FB$2,$R67<FB$3,$R67>FB$4,#REF!>FB$6,#REF!<FB$7),FB$5,"") ->  | FC67: =IF(AND(#REF!=FC$2,$R67<FC$3,$R67>FC$4,#REF!>FC$6,#REF!<FC$7),FC$5,"") ->  | FD67: =IF(AND(#REF!=FD$2,$R67<FD$3,$R67>FD$4,#REF!>FD$6,#REF!<FD$7),FD$5,"") ->  | FE67: =IF(AND(#REF!=FE$2,$R67<FE$3,$R67>FE$4,#REF!>FE$6,#REF!<FE$7),FE$5,"") ->  | FF67: =IF(AND(#REF!=FF$2,$R67<FF$3,$R67>FF$4,#REF!>FF$6,#REF!<FF$7),FF$5,"") ->  | FG67: =IF(AND(#REF!=FG$2,$R67<FG$3,$R67>FG$4,#REF!>FG$6,#REF!<FG$7),FG$5,"") ->  | FH67: =IF(AND(#REF!=FH$2,$R67<FH$3,$R67>FH$4,#REF!>FH$6,#REF!<FH$7),FH$5,"") ->  | FI67: =IF(AND(#REF!=FI$2,$R67<FI$3,$R67>FI$4,#REF!>FI$6,#REF!<FI$7),FI$5,"") ->  | FJ67: =IF(AND(#REF!=FJ$2,$R67<FJ$3,$R67>FJ$4,#REF!>FJ$6,#REF!<FJ$7),FJ$5,"") ->  | FK67: =IF(AND(#REF!=FK$2,$R67<FK$3,$R67>FK$4,#REF!>FK$6,#REF!<FK$7),FK$5,"") ->  | FL67: =IF(AND(#REF!=FL$2,$R67<FL$3,$R67>FL$4,#REF!>FL$6,#REF!<FL$7),FL$5,"") ->  | FM67: =IF(AND(#REF!=FM$2,$R67<FM$3,$R67>FM$4,#REF!>FM$6,#REF!<FM$7),FM$5,"") ->  | FN67: =IF(AND(#REF!=FN$2,$R67<FN$3,$R67>FN$4,#REF!>FN$6,#REF!<FN$7),FN$5,"") ->  | FO67: =IF(AND(#REF!=FO$2,$R67<FO$3,$R67>FO$4,#REF!>FO$6,#REF!<FO$7),FO$5,"") ->  | FP67: =IF(AND(#REF!=FP$2,$R67<FP$3,$R67>FP$4,#REF!>FP$6,#REF!<FP$7),FP$5,"") ->  | FQ67: =IF(AND(#REF!=FQ$2,$R67<FQ$3,$R67>FQ$4,#REF!>FQ$6,#REF!<FQ$7),FQ$5,"") ->  | FR67: =IF(AND(#REF!=FR$2,$R67<FR$3,$R67>FR$4,#REF!>FR$6,#REF!<FR$7),FR$5,"") ->  | FS67: =IF(AND(#REF!=FS$2,$R67<FS$3,$R67>FS$4,#REF!>FS$6,#REF!<FS$7),FS$5,"") ->  | FT67: =IF(AND(#REF!=FT$2,$R67<FT$3,$R67>FT$4,#REF!>FT$6,#REF!<FT$7),FT$5,"") ->  | FU67: =IF(AND(#REF!=FU$2,$R67<FU$3,$R67>FU$4,#REF!>FU$6,#REF!<FU$7),FU$5,"") ->  | FV67: =IF(AND(#REF!=FV$2,$R67<FV$3,$R67>FV$4,#REF!>FV$6,#REF!<FV$7),FV$5,"") ->  | FW67: =IF(AND(#REF!=FW$2,$R67<FW$3,$R67>FW$4,#REF!>FW$6,#REF!<FW$7),FW$5,"") -> 
